Workbook

Sheet Copyright
A1: Wählen Sie das Tabellenblatt 'Polygon' um mit der Dateneingabe zu beginnen.
A2: Aequometer 4.0
I3: Version 4.0.08
A4: Berechnung von polaren Messungen und Export als Shapefiles
I5: Sprache / Language:
B6: Copyright © 2005 - 2021 Johannes Loose <johannes.loose@gmail.com>
A10: Dieses Programm ist freie Software. Sie können es unter den Bedingungen der
A11: GNU General Public License, wie von der Free Software Foundation
A12: veröffentlicht, weitergeben und/oder modifizieren, entweder gemäß Version 2
A13: der Lizenz oder (nach Ihrer Option) jeder späteren Version.
A15: Die Veröffentlichung dieses Programms erfolgt in der Hoffnung, daß es Ihnen | J15: Geschützte Originalversion, nur Felder in denen Benutzereingaben erwartet werden, sind frei gegeben.
A16: von Nutzen sein wird, aber OHNE IRGENDEINE GARANTIE, sogar ohne die
A17: implizite Garantie der MARKTREIFE oder der VERWENDBARKEIT FÜR EINEN
A18: BESTIMMTEN ZWECK. Details finden Sie in der GNU General Public License.
A20: Sie sollten eine Kopie der GNU General Public License zusammen mit diesem
A21: Programm erhalten haben. Falls nicht, schreiben Sie an die Free Software
A22: Foundation, Inc., 59 Temple Place, Suite 330, Boston, MA 02111-1307, USA.
A24: Ein Programm zur Auswertung polar vermessener Geometrien.
A26: Dieses Programm dient dazu, mit Kompass und Bandmaß aufgenommene Flächen auszuwerten, darzustellen
A27: und zu speichern. Die Geometrie kann als ESRI Shapefile gespeichert werden.
A29: * Die Auswertung der Geometrien erfolgt im Tabellenblatt 'Polygon'.
A31: * Als Eingabewerte werden gemessene Vektoren erwartet:
B32: * Richtung: Die Richtung gegen Nord vom Standpunkt zum Zielpunkt.
B33: * Strecke: Der Abstand vom Standpunkt zum Zielpunkt.
B34: * Neigung: Die Geländeneigung vom Standpunkt zum Zielpunkt.
B36: Die Einheiten der Winkelmaße (Richtung und Neigung) müssen vor der Eingabe festgelegt werden.
B37: Möglich sind für die Strecke: Grad (Vollkreis = 360 Teile) oder Gon (Vollkreis = 400 Teile),
B38: Für die Neigung Grad, Gon oder Neigungsprozent. 'a oder z' legt fest, ob der Azimutalwinkel
B39: (0° ist gerade voraus) oder der Zenitalwinkel (0° ist oben) verwendet wird.
A41: * Die Auswahl des Messverfahrens erfolgt in der Zelle A1.
B45: Geschlossenes Polygon mit streckenproportionaler Fehlerverteilung
B46: Die aufzunehmende Fläche wird einmal von Punkt zu Punkt messend
B47: umschritten. Der letzte Vektor muss am Startpunkt enden, um das
B48: Polygon zu schließen. Der Abschlussfehler wird streckenproportional
B49: verteilt. Der angezeigte Längenfehler entspricht der Distanz zwischen dem
B50: gemessenen letzten Punkt und dem Startpunkt, also der Länge des
B51: schließenden Fehlervektors. Der angezeigte Flächenfehlerwert 'Verbesserung'
B52: ist ein Schätzwert, der sich aus der Differenz der Flächen mit und ohne Fehler-
B53: verteilung ergibt. Der 'Schätzer' wird mit der Gaußschen Fehlerfortpflanzung
B54: berechnet. Diese Werte dienen nur zum Erkennen grober Fehler und entsprechen
B55: nicht dem wahren Flächenfehler.
B57: Offenes Polygon
B58: Das Messverfahren entspricht im Wesentlichen dem des geschlossenen Polygons,
B59: nur dass der letzte Vektor nicht gemessen wird. Der Schlussvektor wird berechnet
B60: und angezeigt. Es erfolgt keine Fehlerverteilung
B62: Zentrale Aufstellung
B63: Bei diesem Messverfahren steht der Aufnehmende innerhalb oder ausserhalb
B64: der Fläche. Von einem festen Standpunkt aus werden alle Messpunkte erhoben.
B65: Hier ist besonders auf die Aufnahmereihenfolge zu achten. Die Messwerte
B66: müssen in der Reihenfolge der Eckpunkte der Fläche aufgenommen werden. Um die
B67: Messgenauigkeit zu überprüfen, müssen zusätzlich Spannmaße (hier gestrichelt ein-
B68: gezeichnet) gemessen werden. Die Auswertung der Messgenauigkeit erfolgt im
B69: Tabellenblatt 'Polar'.
B72: Linienzug
B73: Ein Linienzug wird gemessen und eingegeben wie ein offenes Polygon. Als Ergebnis
B74: wird die Länge der gemessenen Strecke berechnet. Eine Fehlerberechnung und -verteilung
B75: kann nur zwischen zwei bekannten Punkten erfolgen. Mit der Berechnungsmethode
B76: 'Linienzug mit mehreren bekannten Einhängepunkten' ist dies möglich. Die Koordinaten
B77: der bekannten Punkte werden in der Spalte 'Rechtswert_2' und 'Hochwert2' in ein-
B78: gegeben. Hierzu ist der Expertenmodus zu aktivieren.
B81: Orthogonalverfahren
B82: Beim Orthogonalverfahren werden ausgehend von einer Grundlinie Lote auf die
B83: Messpunkte gefällt. Die Eingabe der Messwerte erfolgt im Tabellenblatt 'Orthogonal'.
B84: Als Eingabewerte werden Streckenlängen erwartet. In der Spalte 'Grundlinie' werden
B85: die Streckenlängen wahlweise fortlaufend (als Abstand zum Startpunkt) oder
B86: als Bindemaße (Abstand von Punkt zu Punkt) gemessen. Der Winkel der
B87: Grundlinie muss nicht konstant sein. Das Lot der Hilfslinie wird immer auf den vorher-
B88: gehenden Vektor der Grundlinie gefällt. In der Spalte 'Hilfslinien' werden die
B89: Streckenlängen der Lote eingegeben. Nach der Eingabe erfolgt die Aus-
B90: wertung im Tabellenblatt 'Polygon'. Hierzu werden entweder die gesamten
B91: Vektoren oder nur die Koordinaten der Fußpunkte und der Messpunkte durch
B92: Klick auf die Schaltfläche 'Übertragen' in das Tabellenblatt 'Polygon' geschrieben.
B93: Eine automatische Überprüfung der Messgenauigkeit ist hier nicht vorgesehen.
B94: Es wird empfohlen, wichtige Maße über zusätzlich eingemessene Vektoren und
B95: Dreiecksberechnungen zu überprüfen. Hier kann das Tabellenblatt 'Polygon'
B96: hilfreich sein.
B99: Der Expertenmodus
B100: Im Expertenmodus stehen zwei weitere Spalten zur Verfügung. Hier können Punktkoordinaten
B101: angegeben werden, die direkt in die Koordinatenliste übernommen werden. Sollten in der gleichen Zeile
B102: Messwerte stehen, werden diese ignoriert. Nachfolgende Messwerte beziehen sich auf diesen Punkt.
B103: So ist es möglich Geometrien darzustellen von denen mehrere Punkte bekannt sind.
B105: Sollen mehrere, getrennte Geometrien dargestellt werden, so sind die Marker zu aktivieren. Diese
B106: Schaltflächen, die sich in der letzten Spalte befinden, markieren in geklicktem Zustand (rot) den
B107: Startpunkt einer neuen Geometrie.
B109: Im Expertenmodus findet in den Berechnungsmodi 'offenes Polygon' und 'geschlossenes Polygon' weder eine
B110: Berechnung des Schlussvektors, noch eine Fehlerverteilung statt. Die Anzeige der Flächenberechnung ist
B111: deaktiviert. Im Expertenmodus ist daher besonders darauf zu achten, dass eingegebene Polygone geschlossen sind.
B112: Dies ist der Fall, wenn der erste und letzte Punkt der Koordinatenliste identisch sind. Zum korrekten Export als
B113: Shapedatei müssen Polygone die ihre Fläche innen haben, im Uhrzeigersinn orientiert sein.
B115: Die Option 'Punkte' wirkt sich nur auf die Darstellung und auf den Export als Shapedatei aus. Die Berechnungen
B116: werden nicht beeinflusst.
B118: Office 2007 Patch: Da Excel 2007 das Lesen und Schreiben von .dbf Dateien nicht mehr unterstützt, werden die
B119: Attribute zu den Geometrien ersatzweise als .xls Datei exportiert. Ab Office 2019 wird .xlsx genutzt.
B120: Diese Dateien können mit Hilfe anderer Werkzeuge in das .dbf Datenbankformat umgewandelt werden.
B123: Zeichnung kalibrieren und Druck
B124: Die Größe der Zeichnung im Ausdruck ist u.a. vom Druckermodell und -treiber abhängig. Ist ein maßstabs-
B125: gerechter Ausdruck gefordert, kann eine manuelle Kalibrierung der Diagrammgröße erfolgen. Mit Hilfe der
B126: Funktion 'Zeichnung kalibrieren' können die Größe des Diagramms angepasst und diese Werte gespeichert werden.
B128: Vor dem Drucken kann in einem Fenster ausgewählt werden, ob die gesamten Daten oder nur das Diagramm gedruckt
B129: werden sollen. Wird nur das Diagramm gedruckt, so wird die Originalgröße nicht verändert. Beim Ausdruck der gesamten
B130: Daten wird die Ansicht verkleinert, damit die Daten auf ein DIN A 4 Blatt passen. Das Diagramm wird vor dem
B131: Drucken automatisch auf 100% vergrößert und danach wieder auf Originalgröße zurückgesetzt. Da dieser Vorgang
B132: jedoch nur näherungsweise funktioniert, ist die Kalibrierung hier separat zu prüfen.

Sheet Polygon
A1: Polare Aufnahme einer Fläche als geschlossenes Ringpolygon mit streckenproportionaler Fehlerverteilung
D2: =IF(AND($A$1=LXE,$P$70 ="normal"),"Expertenmodus aktivieren zur Eingabe der Einhängepunkte",IF($P$70<>"normal",IF($A$1=PGG,"Fehlerverteilung deaktiviert",IF($A$1=PGO,"Berechnung Schlussvektor deaktiviert",IF($A$1=LXE,"Streckenproportionale Fehlerverteilung",""))),"")) ->  | Y2: =IF(AND($A$1=LXE,$Z$33=TRUE),"nicht Multigeometrie kompatibel!","") -> 
A3: AntragsNr | Y3: =IF(AND($A$1=LXE,$P$70 ="normal"),"Expertenmodus aktivieren zur Eingabe der Einhängepunkte",IF($P$70<>"normal",IF($A$1=PGG,"Fehlerverteilung deaktiviert",IF($A$1=PGO,"Berechnung Schlussvektor deaktiviert",IF($A$1=LXE,"Streckenproportionale Fehlerverteilung",""))),"")) -> 
A4: Antragsteller | Y4: =IF(AND($A$1=LXE,$P$70 ="normal"),"Enable Expert mode to enter known points",IF($P$70<>"normal",IF($A$1=PGG,"Error distribution disabled",IF($A$1=PGO,"Calculation of closing vector disabled",IF($A$1=LXE,"Distance proportional error distribution",""))),"")) -> 
A5: Massnahme
A6: Aufnehmend
A7: Datum
A8: FlNr/Dist
A9: Gde/Abt
A10: Gmkg/Best
A11: =IF(OR( $P$70<>"normal",$A$1=LNE,$A$1=LXE),"NoData","Flaeche") -> Flaeche | B11: =IF(OR($P$70<>"normal",$A$1=LNE,$A$1=LXE,AND($A$1=PGG,$F$36=""),AND(OR($A$1=PGO,$A$1=PGZ),$F$35="")),"",$P$53/10000) ->  | C11: =IF(OR( $P$70<>"normal",$A$1=LNE,$A$1=LXE),"","ha") -> ha
A12: =IF($P$70="normal",IF(OR($A$1=LNE,$A$1=LXE),"Strecke","Umfang"),IF($A$1=LXE,"Strecke","NoData2")) -> Umfang | B12: =IF($A$1=LXE,SUM(Umfang)/1000,IF(OR($P$70<>"normal",AND($A$1=PGG, $F$36=""),AND(OR($A$1=PGO,$A$1=PGZ), $F$35=""),AND($A$1=LNE, $F$34="")), "",SUM(Umfang)/1000)) ->  | C12: =IF(OR($P$70="normal",$A$1=LXE),"km","") -> km
A14: Quelle | B14: Aequometer v 4.0
A15: Prfsum
A16: Bemerkung
A21: =IF($P$70="normal",IF(AND($A$1=PGG,$F$36<>""),("Länge Fehler:"),IF(AND($A$1=PGO,$F$35<>""),"Schlussvektor: ","-1")),"-1") -> -1 | B21: =IF($P$70 <>"normal","-1",IF(AND($A$1=PGG,$F$36<>""),ROUND((SUM(dY)^2+SUM(dX)^2)^0.5,2)&" m",IF(AND($A$1=PGO,$F$35<>""),ROUND($C$133,2) & " " & Winkelmaß_Richtung,"-1"))) -> -1 | C21: =IF(AND($F$35<>"",$P$70="normal"),IF($A$1=PGO,ROUND($D$133,2)&" m",IF($F$36<>"",IF($A$1=PGG,"= "&ROUND(100*(SUM(dY)^2+SUM(dX)^2)^0.5/SUM(Horizontaldistanz),1)&"%","-1"),"-1")),"-1") -> -1
A22: =IF(AND($A$1=LXE,$P$70 <>"normal"),"Mittlerer Fehler:",IF($P$70="normal",IF(AND($A$1=PGG,$F$36<>""),("Schätzer:"),IF(AND($A$1=PGZ,Polar!J4<>""),"Mittlerer Fehler:","")),"")) ->  | B22: =IF(AND($A$1=LXE,$P$70 <>"normal"),IF(ISNUMBER(AO33),ROUND(AO33*100,1)& " %",""),IF(AND(SUM(Horizontaldistanz)<>0,$P$70 ="normal",$F$36<>""),IF(AND($A$1=PGZ,Polar!J4<>""),ROUND(Polar!J4*100,1)& " %", IF($A$1=PGG, ROUND(BQ35/$P$53*100,1)&" %","")),"")) -> 
A23: =IF(AND($A$1=$Q$55,$P$70="normal",$F$36<>""),("'Verbesserung':"),("")) ->  | B23: =IF(AND($A$1=PGG,$F$36<>"",$B$11<>0,$P$70 ="normal"),ROUND(ABS($AC$34-$P$53)/$P$53*100,2)&" %","") ->  | C23: =IF(AND($A$1=$Q$55,$P$70="normal",$F$36<>""),("geschätzt"),("")) -> 
A24: Winkelmaß: | B24: Grad
A25: (Richtung)
A26: Winkelmaß: | B26: Grad
A27: (Neigung)
A28: a oder z? | B28: a
A29: Diag. opt(j/n)? | B29: J
A30: Man. Maß.:
AA31: Flächenberechnung PGO | AD31: Berechnung Linienzug mit mehreren Einhängepunkten | AV31: Schätzer | AZ31: Fehlerberechnung nach Gauss'scher Fehlerfortpflanzung
A32: Standpunkt | B32: Zielpunkt | C32: Richtung | D32: Strecke [m] | E32: Neigung | F32: Hdi | G32: dY | H32: dX | I32: Fehler_Y | J32: Fehler_X | K32: Rechtswert | L32: Hochwert | M32: Fläche | N32: Y-Diagramm | O32: X-Diagramm | P32: Winkelmaß Hz | R32: Umfang | S32: Letzte Zeile | X32: Rechtswert_2 | Y32: Hochwert_2 | AA32: RW_PGO | AB32: HW_PGO | AC32: AR_PGO | AD32: Zeile | AE32: Weg i-1 ->i | AF32: Weg Teilabschnitt Gesamt | AG32: Y_Gesamt_Strecke_LNX | AH32: X_Gesamt_Strecke_LNX | AI32: Y_Ges_ERR_LNX | AJ32: X_Ges_ERR_LNX | AK32: Y_Teil_Fehler_LNX | AL32: X_Teil_Fehler_LNX | AM32: Y_Fehler_LNX | AN32: X_Fehler_LNX | AO32: ErrPrz | AP32: Markieren der Einhängepunkte im Diagramm | AR32: Streckenlänge | AS32: KO | AT32: Anzeigen | AU32: Berechnen | AV32: dY² | AW32: dX² | AX32: A | AY32: B | AZ32: Δφ² | BA32: δr² | BB32: Richtung | BC32: Strecke | BD32: Neigung | BE32: Neigung | BG32: Richtung | BM32: (δF/δdy,j)^2 | BN32: (δF/δdx,j)^2
K33: 0 | L33: 0 | N33: =IF(OR($L$33<>0,$L$34<>""),(Y33+N$135)/($P$44/100)+$P$50,-1) -> -1 | O33: =IF(OR($K$33<>0,$K$34<>""),(X33+O$135)/($P$44/100)+$P$51,-1) -> -1 | P33: =IF(Winkelmaß_Richtung=Grad,PI()/180,PI()/200) -> 0.01745329252 | S33: =IF(AND(K34="",L34=""),IF(AND(K34="",L34="",K33="",L33=""),S32+1,1),0) -> 1 | T33: Werte loeschen | V33: Diag ausblenden | X33: =IF($K$33="",0,$K$33) -> 0 | Y33: =IF($L$33="",0,$L$33) -> 0 | AD33: =ROW() -> 33 | AO33: =IF(NOT(ISERROR(AVERAGE(AO34:AO132))),AVERAGE(AO34:AO132),"---") -> --- | AV33: =POWER(SUM(dY),2) -> 0 | AW33: =POWER(SUM(dX),2) -> 0 | AX33: =(SUM(AX34:AX132)) -> 0 | AY33: =(SUM(AY34:AY132)) -> 0 | AZ33: =(AX33*AV33-AY33*AW33)/(POWER(AX33,2)-POWER(AY33,2)) ->  | BA33: =(AX33*AW33-AY33*AV33)/(POWER(AX33,2)-POWER(AY33,2)) ->  | BB33: =AZ33 ->  | BC33: =BA33 ->  | BD33: 0 | BE33: sinθ | BF33: cosθ | BG33: sinφ | BH33: cosφ | BI33: ΔY,j² | BJ33: ΔX,j² | BK33: dY | BL33: dX | BQ33: ΔF in m²
A34: =IF($A$1=PGZ,"0"," 1 ") -> 1 | B34: =IF($A$1=PGZ,1,2) -> 2 | F34: =IF(Strecke<>"",IF(OR(Winkelmaß_Neigung=Prozent,Winkelmaß_Neigung=PRZ),Strecke*COS(ATAN(Neigung/100)),Strecke*COS((Neigung+Neigung_a_oder_z)*Winkelmaß_Vt)),"") ->  | G34: =IF(Horizontaldistanz="","",Horizontaldistanz*SIN(Richtung*Winkelmaß_Hz)) ->  | H34: =IF(Horizontaldistanz="","",Horizontaldistanz*COS(Richtung*Winkelmaß_Hz)) ->  | I34: =IF(Horizontaldistanz="","",IF(AND($A$1=PGG,$P$70="normal"),SUM(dY)/SUM(Horizontaldistanz)*Horizontaldistanz,IF($A$1=LXE,AM34,0))) ->  | J34: =IF(Horizontaldistanz="","",IF(AND($A$1=PGG,$P$70="normal"),SUM(dX)/SUM(Horizontaldistanz)*Horizontaldistanz,IF($A$1=LXE,AN34,0))) ->  | K34: =IF(AND($X34<>"",$Y34<>""),$X34,IF(Horizontaldistanz="","",IF(OR($A$1=PGG,$A$1=LXE),($X33+dY-Fehler_Y),IF(OR($A$1=PGO,$A$1=LNE),($X33+dY),IF($A$1=PGZ,(Horizontaldistanz*SIN(Richtung*Winkelmaß_Hz)+LOOKUP(1E+307,$X$33:$X33,$X$33:$X33)),"Err"))))) ->  | L34: =IF(AND($X34<>"",$Y34<>""),$Y34,IF(Horizontaldistanz="","",IF(OR($A$1=PGG,$A$1=LXE),($Y33+dX-Fehler_X),IF(OR($A$1=PGO,$A$1=LNE),($Y33+dX),IF($A$1=PGZ,(Horizontaldistanz*COS(Richtung*Winkelmaß_Hz)+LOOKUP(1E+307,$Y$33:$Y33,$Y$33:$Y33)),"Err"))))) ->  | N34: =IF(Ost = "",$N33,(L34+N$135)/($P$44/100)+$P$50) -> -1 | O34: =IF(Nord="",$O33,(K34+O$135)/($P$44/100)+$P$51) -> -1 | P34: Winkelmaß Vt | R34: =IF(AND(OR($A$1=PGO,$A$1=LNE,$A$1=LXE),$F$34<>""),SQRT(POWER($K34-$X33,2)+POWER($L34-$Y33,2)),0) -> 0 | S34: 2 | V34: =IF($A$1=PGZ,"0"," 1 ") -> 1 | W34: =IF($A$1=PGZ,1,2) -> 2 | AA34: =IF(Horizontaldistanz ="","",$X$33+dY) ->  | AB34: =IF(Horizontaldistanz ="","",$Y$33+dX) ->  | AC34: =ABS(SUM(AC35:AC134))/2 -> 0 | AD34: =ROW() -> 34 | AE34: =Horizontaldistanz ->  | AF34: =IF(AND($X34<>"",$Y34<>""),SUM(INDIRECT(ADDRESS(LOOKUP(1E+307,$Y$33:$Y33,$AD$33:$AD33)+1,31,TRUE),TRUE):AE34),AF35) -> 0 | AG34: =IF(AND($X34<>"",$Y34<>""),SUM(INDIRECT(ADDRESS(LOOKUP(1E+307,$X$33:$X33,$AD$33:$AD33)+1,7,TRUE),TRUE):G34),AG35) -> 0 | AH34: =IF(AND($X34<>"",$Y34<>""),SUM(INDIRECT(ADDRESS(LOOKUP(1E+307,$Y$33:$Y33,$AD$33:$AD33)+1,8,TRUE),TRUE):H34),AH35) -> 0 | AI34: =IF(AND($X34<>"",$Y34<>""),X34-AG34-INDIRECT(ADDRESS(LOOKUP(1E+307,$X$33:$X33,$AD$33:$AD33),24,TRUE),TRUE),AI35) -> 0 | AJ34: =IF(AND($X34<>"",$Y34<>""),Y34-AH34-INDIRECT(ADDRESS(LOOKUP(1E+307,$X$33:$X33,$AD$33:$AD33),25,TRUE),TRUE),AJ35) -> 0 | AK34: =($AI34/AF34)*AE34 ->  | AL34: =($AJ34/AF34)*AE34 ->  | AM34: =IF(NOT(ISERROR(AK34)),-AK34,0) -> 0 | AN34: =IF(NOT(ISERROR(AL34)),-AL34,0) -> 0 | AO34: =IF(AND($X34<>"",$Y34<>""),SQRT(POWER(AI34,2)+POWER(AJ34,2))/AF34,"") ->  | AP34: =IF(AND($A$1= LXE,AND(NOT(ISBLANK(X34)),NOT(ISBLANK(Y34)))),$N34,-1) -> -1 | AQ34: =IF(AND($A$1= LXE,AND(NOT(ISBLANK(X34)),NOT(ISBLANK(Y34)))),$O34,-1) -> -1 | AR34: =IF($S34=2,IF($A$1=PGO,(N$33+N34)/2,IF($A$1=PGZ,(N$34+N34)/2,-1)),(N33+N34)/2) -> -1 | AS34: =IF($S34=2,IF($A$1=PGO,(O$33+O34)/2,IF($A$1=PGZ,(O$34+O34)/2,-1)),(O33+O34)/2) -> -1 | AU34: =IF(F34="","",IF($A$1=PGZ,"",SQRT(POWER($K34-$K33,2)+POWER($L34-$L33,2)))) ->  | AX34: =IF(Richtung<>"",POWER(COS(Richtung*Winkelmaß_Hz)*Horizontaldistanz,2),0) -> 0 | AY34: =IF(Richtung<>"",POWER(SIN(Richtung*Winkelmaß_Hz)*Horizontaldistanz,2),0) -> 0 | BB34: =BB33 ->  | BC34: =Strecke*$BC$33 ->  | BD34: =BD33*Winkelmaß_Vt -> 0 | BE34: =IF(OR(Winkelmaß_Neigung=Prozent,Winkelmaß_Neigung=PRZ),SIN(ATAN(Neigung/100)),SIN((Neigung+Neigung_a_oder_z)*Winkelmaß_Vt)) -> 0 | BF34: =IF(OR(Winkelmaß_Neigung=Prozent,Winkelmaß_Neigung=PRZ),COS(ATAN(Neigung/100)),COS((Neigung+Neigung_a_oder_z)*Winkelmaß_Vt)) -> 1 | BG34: =SIN(Richtung*Winkelmaß_Hz) -> 0 | BH34: =COS(Richtung*Winkelmaß_Hz) -> 1 | BI34: =POWER($BF34*$BG34,2) * POWER($BC34,2)+POWER((Strecke*$BE34*$BG34),2)*POWER($BD34,2)+POWER((Strecke*$BF34*$BH34),2)* POWER($BB34,2) ->  | BJ34: =POWER($BF34*$BH34,2)*$BC34+POWER(Strecke*$BE34*BH34,2)*POWER($BD34,2)+POWER(Strecke*$BF34*$BG34,2)*POWER(BB34,2) ->  | BK34: =K34 ->  | BL34: =L34 -> 
A35: =IF($F35="","",IF($A$1=PGZ,"0",2)) ->  | B35: =IF($F35="","",IF($A$1=PGZ,2,3)) ->  | F35: =IF(Strecke<>"",IF(OR(Winkelmaß_Neigung=Prozent,Winkelmaß_Neigung=PRZ),Strecke*COS(ATAN(Neigung/100)),Strecke*COS((Neigung+Neigung_a_oder_z)*Winkelmaß_Vt)),"") ->  | G35: =IF(Horizontaldistanz="","",Horizontaldistanz*SIN(Richtung*Winkelmaß_Hz)) ->  | I35: =IF(Horizontaldistanz="","",IF(AND($A$1=PGG,$P$70="normal"),SUM(dY)/SUM(Horizontaldistanz)*Horizontaldistanz,IF($A$1=LXE,AM35,0))) ->  | K35: =IF(AND($X35<>"",$Y35<>""),$X35,IF(Horizontaldistanz="","",IF(OR($A$1=PGG,$A$1=LXE),($K34+dY-Fehler_Y),IF(OR($A$1=PGO,$A$1=LNE),($K34+dY),IF($A$1=PGZ,(Horizontaldistanz*SIN(Richtung*Winkelmaß_Hz)+LOOKUP(1E+307,$X$33:$X34,$X$33:$X34)),"Err"))))) ->  | L35: =IF(AND($X35<>"",$Y35<>""),$Y35,IF(Horizontaldistanz="","",IF(OR($A$1=PGG,$A$1=LXE),($L34+dX-Fehler_X),IF(OR($A$1=PGO,$A$1=LNE),($L34+dX),IF($A$1=PGZ,(Horizontaldistanz*COS(Richtung*Winkelmaß_Hz)+LOOKUP(1E+307,$Y$33:$Y34,$Y$33:$Y34)),"Err"))))) ->  | M35: =IF(Ost="",0,K34*L35-L34*K35) -> 0 | N35: -1 | O35: -1 | P35: =IF(Winkelmaß_Neigung=Grad,PI()/180,PI()/200) -> 0.01745329252 | R35: =IF(Ost="",0,SQRT(POWER($K35-$K34,2)+POWER($L35-$L34,2))) -> 0 | S35: 3 | V35: =IF($F35="","",IF($A$1=PGZ,"0",2)) ->  | W35: =IF($F35="","",IF($A$1=PGZ,2,3)) ->  | AA35: =IF(Horizontaldistanz ="","",$AA34+dY) ->  | AB35: =IF(Horizontaldistanz ="","",$AB34+dX) ->  | AC35: =IF(Ost="",0,AA34*AB35-AB34*AA35) -> 0 | AD35: =ROW() -> 35 | AF35: =IF(AND($X35<>"",$Y35<>""),SUM(INDIRECT(ADDRESS(LOOKUP(1E+307,$Y$33:$Y34,$AD$33:$AD34)+1,31,TRUE),TRUE):AE35),AF36) -> 0 | AG35: =IF(AND($X35<>"",$Y35<>""),SUM(INDIRECT(ADDRESS(LOOKUP(1E+307,$X$33:$X34,$AD$33:$AD34)+1,7,TRUE),TRUE):G35),AG36) -> 0 | AH35: =IF(AND($X35<>"",$Y35<>""),SUM(INDIRECT(ADDRESS(LOOKUP(1E+307,$Y$33:$Y34,$AD$33:$AD34)+1,8,TRUE),TRUE):H35),AH36) -> 0 | AI35: =IF(AND($X35<>"",$Y35<>""),X35-AG35-INDIRECT(ADDRESS(LOOKUP(1E+307,$X$33:$X34,$AD$33:$AD34),24,TRUE),TRUE),AI36) -> 0 | AJ35: =IF(AND($X35<>"",$Y35<>""),Y35-AH35-INDIRECT(ADDRESS(LOOKUP(1E+307,$X$33:$X34,$AD$33:$AD34),25,TRUE),TRUE),AJ36) -> 0 | AM35: =IF(NOT(ISERROR(AK35)),-AK35,0) -> 0 | AN35: =IF(NOT(ISERROR(AL35)),-AL35,0) -> 0 | AP35: -1 | AQ35: -1 | AR35: -1 | AS35: -1 | AU35: =IF(Ost="",IF($F34<>"",IF($A$1=PGO,$D$133,IF($A$1=PGZ,$AU$133,"")),""),SQRT(POWER($K35-$K34,2)+POWER($L35-$L34,2))) ->  | AX35: 0 | AY35: 0 | BB35: =BB34 ->  | BD35: 0 | BE35: 0 | BF35: 1 | BG35: 0 | BH35: 1 | BM35: =IF(BK35<>"",POWER((SUM($BK$34:BK34))+(BK35/2)-(0.5*SUM($BK$34:$BK$132)),2),0) -> 0 | BN35: =IF(BL35<>"",POWER(0.5*SUM($BL$34:$BL$132)-SUM($BL$34:BL34)-(0.5*BL35),2),0) -> 0 | BO35: =BM35*BI35 ->  | BP35: =BN35*BJ35 ->  | BQ35: =SQRT(ABS(SUM(BO35:BO132)+SUM(BP35:BP132))) -> 
A36: =IF($F36="","",IF($A$1=PGZ,"0",3)) ->  | B36: =IF($F36="","",IF($A$1=PGZ,3,IF(AND($A$1=PGG,T36=1),1,4))) ->  | K36: =IF(AND($X36<>"",$Y36<>""),$X36,IF(Horizontaldistanz="","",IF(OR($A$1=PGG,$A$1=LXE),($K35+dY-Fehler_Y),IF(OR($A$1=PGO,$A$1=LNE),($K35+dY),IF($A$1=PGZ,(Horizontaldistanz*SIN(Richtung*Winkelmaß_Hz)+LOOKUP(1E+307,$X$33:$X35,$X$33:$X35)),"Err"))))) ->  | L36: =IF(AND($X36<>"",$Y36<>""),$Y36,IF(Horizontaldistanz="","",IF(OR($A$1=PGG,$A$1=LXE),($L35+dX-Fehler_X),IF(OR($A$1=PGO,$A$1=LNE),($L35+dX),IF($A$1=PGZ,(Horizontaldistanz*COS(Richtung*Winkelmaß_Hz)+LOOKUP(1E+307,$Y$33:$Y35,$Y$33:$Y35)),"Err"))))) ->  | M36: =IF(Ost="",0,K35*L36-L35*K36) -> 0 | N36: -1 | O36: -1 | P36: Neigung a oder z | R36: 0 | S36: 4 | T36: =IF($A$1=PGZ,"0"," 1 ") -> 1 | U36: =IF($A$1=PGZ,1,2) -> 2 | V36: =IF($F36="","",IF($A$1=PGZ,"0",3)) ->  | W36: =IF($F36="","",IF($A$1=PGZ,3,IF(AND($A$1=PGG,AO36=1),1,4))) ->  | AC36: 0 | AD36: =ROW() -> 36 | AF36: =IF(AND($X36<>"",$Y36<>""),SUM(INDIRECT(ADDRESS(LOOKUP(1E+307,$Y$33:$Y35,$AD$33:$AD35)+1,31,TRUE),TRUE):AE36),AF37) -> 0 | AG36: =IF(AND($X36<>"",$Y36<>""),SUM(INDIRECT(ADDRESS(LOOKUP(1E+307,$X$33:$X35,$AD$33:$AD35)+1,7,TRUE),TRUE):G36),AG37) -> 0 | AH36: =IF(AND($X36<>"",$Y36<>""),SUM(INDIRECT(ADDRESS(LOOKUP(1E+307,$Y$33:$Y35,$AD$33:$AD35)+1,8,TRUE),TRUE):H36),AH37) -> 0 | AI36: =IF(AND($X36<>"",$Y36<>""),X36-AG36-INDIRECT(ADDRESS(LOOKUP(1E+307,$X$33:$X35,$AD$33:$AD35),24,TRUE),TRUE),AI37) -> 0 | AJ36: =IF(AND($X36<>"",$Y36<>""),Y36-AH36-INDIRECT(ADDRESS(LOOKUP(1E+307,$X$33:$X35,$AD$33:$AD35),25,TRUE),TRUE),AJ37) -> 0 | AM36: 0 | AN36: 0 | AP36: -1 | AQ36: -1 | AR36: -1 | AS36: -1 | AX36: 0 | AY36: 0 | BD36: 0 | BE36: 0 | BF36: 1 | BG36: 0 | BH36: 1 | BM36: =IF(BK36<>"",POWER((SUM($BK$34:BK35))+(BK36/2)-(0.5*SUM($BK$34:$BK$132)),2),0) -> 0 | BN36: =IF(BL36<>"",POWER(0.5*SUM($BL$34:$BL$132)-SUM($BL$34:BL35)-(0.5*BL36),2),0) -> 0
A37: =IF($F37="","",IF($A$1=PGZ,"0",4)) ->  | B37: =IF($F37="","",IF($A$1=PGZ,4,IF(AND($A$1=PGG,T37=1),1,5))) ->  | K37: =IF(AND($X37<>"",$Y37<>""),$X37,IF(Horizontaldistanz="","",IF(OR($A$1=PGG,$A$1=LXE),($K36+dY-Fehler_Y),IF(OR($A$1=PGO,$A$1=LNE),($K36+dY),IF($A$1=PGZ,(Horizontaldistanz*SIN(Richtung*Winkelmaß_Hz)+LOOKUP(1E+307,$X$33:$X36,$X$33:$X36)),"Err"))))) ->  | L37: =IF(AND($X37<>"",$Y37<>""),$Y37,IF(Horizontaldistanz="","",IF(OR($A$1=PGG,$A$1=LXE),($L36+dX-Fehler_X),IF(OR($A$1=PGO,$A$1=LNE),($L36+dX),IF($A$1=PGZ,(Horizontaldistanz*COS(Richtung*Winkelmaß_Hz)+LOOKUP(1E+307,$Y$33:$Y36,$Y$33:$Y36)),"Err"))))) ->  | M37: 0 | N37: -1 | O37: -1 | P37: =IF(AND(Skalierung_Neigung=Zenitalwinkel,Winkelmaß_Neigung=Grad),-90,IF(AND(Skalierung_Neigung=Zenitalwinkel,Winkelmaß_Neigung=Gon),-100,0)) -> 0 | R37: 0 | S37: 5 | T37: =IF($F37="","",IF($A$1=PGZ,"0",2)) ->  | U37: =IF($F37="","",IF($A$1=PGZ,2,3)) ->  | V37: =IF($F37="","",IF($A$1=PGZ,"0",4)) ->  | W37: =IF($F37="","",IF($A$1=PGZ,4,IF(AND($A$1=PGG,AO37=1),1,5))) ->  | AC37: 0 | AD37: =ROW() -> 37 | AF37: =IF(AND($X37<>"",$Y37<>""),SUM(INDIRECT(ADDRESS(LOOKUP(1E+307,$Y$33:$Y36,$AD$33:$AD36)+1,31,TRUE),TRUE):AE37),AF38) -> 0 | AG37: =IF(AND($X37<>"",$Y37<>""),SUM(INDIRECT(ADDRESS(LOOKUP(1E+307,$X$33:$X36,$AD$33:$AD36)+1,7,TRUE),TRUE):G37),AG38) -> 0 | AH37: =IF(AND($X37<>"",$Y37<>""),SUM(INDIRECT(ADDRESS(LOOKUP(1E+307,$Y$33:$Y36,$AD$33:$AD36)+1,8,TRUE),TRUE):H37),AH38) -> 0 | AI37: =IF(AND($X37<>"",$Y37<>""),X37-AG37-INDIRECT(ADDRESS(LOOKUP(1E+307,$X$33:$X36,$AD$33:$AD36),24,TRUE),TRUE),AI38) -> 0 | AJ37: =IF(AND($X37<>"",$Y37<>""),Y37-AH37-INDIRECT(ADDRESS(LOOKUP(1E+307,$X$33:$X36,$AD$33:$AD36),25,TRUE),TRUE),AJ38) -> 0 | AM37: 0 | AN37: 0 | AP37: -1 | AQ37: -1 | AR37: -1 | AS37: -1 | AX37: 0 | AY37: 0 | BD37: 0 | BE37: 0 | BF37: 1 | BG37: 0 | BH37: 1 | BM37: =IF(BK37<>"",POWER((SUM($BK$34:BK36))+(BK37/2)-(0.5*SUM($BK$34:$BK$132)),2),0) -> 0 | BN37: =IF(BL37<>"",POWER(0.5*SUM($BL$34:$BL$132)-SUM($BL$34:BL36)-(0.5*BL37),2),0) -> 0
A38: =IF($F38="","",IF($A$1=PGZ,"0",5)) ->  | B38: =IF($F38="","",IF($A$1=PGZ,5,IF(AND($A$1=PGG,T38=1),1,6))) ->  | K38: =IF(AND($X38<>"",$Y38<>""),$X38,IF(Horizontaldistanz="","",IF(OR($A$1=PGG,$A$1=LXE),($K37+dY-Fehler_Y),IF(OR($A$1=PGO,$A$1=LNE),($K37+dY),IF($A$1=PGZ,(Horizontaldistanz*SIN(Richtung*Winkelmaß_Hz)+LOOKUP(1E+307,$X$33:$X37,$X$33:$X37)),"Err"))))) ->  | L38: =IF(AND($X38<>"",$Y38<>""),$Y38,IF(Horizontaldistanz="","",IF(OR($A$1=PGG,$A$1=LXE),($L37+dX-Fehler_X),IF(OR($A$1=PGO,$A$1=LNE),($L37+dX),IF($A$1=PGZ,(Horizontaldistanz*COS(Richtung*Winkelmaß_Hz)+LOOKUP(1E+307,$Y$33:$Y37,$Y$33:$Y37)),"Err"))))) ->  | M38: 0 | N38: -1 | O38: -1 | P38: Amplitude | R38: 0 | S38: 6 | T38: =IF($F38="","",IF($A$1=PGZ,"0",3)) ->  | U38: =IF($F38="","",IF($A$1=PGZ,3,IF(AND($A$1=PGG,AM38=1),1,4))) ->  | V38: =IF($F38="","",IF($A$1=PGZ,"0",5)) ->  | W38: =IF($F38="","",IF($A$1=PGZ,5,IF(AND($A$1=PGG,AO38=1),1,6))) ->  | AC38: 0 | AD38: =ROW() -> 38 | AF38: =IF(AND($X38<>"",$Y38<>""),SUM(INDIRECT(ADDRESS(LOOKUP(1E+307,$Y$33:$Y37,$AD$33:$AD37)+1,31,TRUE),TRUE):AE38),AF39) -> 0 | AG38: =IF(AND($X38<>"",$Y38<>""),SUM(INDIRECT(ADDRESS(LOOKUP(1E+307,$X$33:$X37,$AD$33:$AD37)+1,7,TRUE),TRUE):G38),AG39) -> 0 | AH38: =IF(AND($X38<>"",$Y38<>""),SUM(INDIRECT(ADDRESS(LOOKUP(1E+307,$Y$33:$Y37,$AD$33:$AD37)+1,8,TRUE),TRUE):H38),AH39) -> 0 | AI38: =IF(AND($X38<>"",$Y38<>""),X38-AG38-INDIRECT(ADDRESS(LOOKUP(1E+307,$X$33:$X37,$AD$33:$AD37),24,TRUE),TRUE),AI39) -> 0 | AJ38: =IF(AND($X38<>"",$Y38<>""),Y38-AH38-INDIRECT(ADDRESS(LOOKUP(1E+307,$X$33:$X37,$AD$33:$AD37),25,TRUE),TRUE),AJ39) -> 0 | AM38: 0 | AN38: 0 | AP38: -1 | AQ38: -1 | AR38: -1 | AS38: -1 | AX38: 0 | AY38: 0 | BD38: 0 | BE38: 0 | BF38: 1 | BG38: 0 | BH38: 1 | BM38: =IF(BK38<>"",POWER((SUM($BK$34:BK37))+(BK38/2)-(0.5*SUM($BK$34:$BK$132)),2),0) -> 0 | BN38: =IF(BL38<>"",POWER(0.5*SUM($BL$34:$BL$132)-SUM($BL$34:BL37)-(0.5*BL38),2),0) -> 0
A39: =IF($F39="","",IF($A$1=PGZ,"0",6)) ->  | B39: =IF($F39="","",IF($A$1=PGZ,6,IF(AND($A$1=PGG,T39=1),1,7))) ->  | K39: =IF(AND($X39<>"",$Y39<>""),$X39,IF(Horizontaldistanz="","",IF(OR($A$1=PGG,$A$1=LXE),($K38+dY-Fehler_Y),IF(OR($A$1=PGO,$A$1=LNE),($K38+dY),IF($A$1=PGZ,(Horizontaldistanz*SIN(Richtung*Winkelmaß_Hz)+LOOKUP(1E+307,$X$33:$X38,$X$33:$X38)),"Err"))))) ->  | L39: =IF(AND($X39<>"",$Y39<>""),$Y39,IF(Horizontaldistanz="","",IF(OR($A$1=PGG,$A$1=LXE),($L38+dX-Fehler_X),IF(OR($A$1=PGO,$A$1=LNE),($L38+dX),IF($A$1=PGZ,(Horizontaldistanz*COS(Richtung*Winkelmaß_Hz)+LOOKUP(1E+307,$Y$33:$Y38,$Y$33:$Y38)),"Err"))))) ->  | M39: 0 | N39: -1 | O39: -1 | P39: =MAX(Y33,L34:L134)-MIN(Y33,L34:L134) -> 0 | R39: 0 | S39: =IF(AND(K40="",L40=""),IF(AND(K40="",L40="",K39="",L39=""),S38+1,1),0) -> 7 | T39: =IF($F39="","",IF($A$1=PGZ,"0",4)) ->  | U39: =IF($F39="","",IF($A$1=PGZ,4,IF(AND($A$1=PGG,AM39=1),1,5))) ->  | V39: =IF($F39="","",IF($A$1=PGZ,"0",6)) ->  | W39: =IF($F39="","",IF($A$1=PGZ,6,IF(AND($A$1=PGG,AO39=1),1,7))) ->  | AC39: 0 | AD39: =ROW() -> 39 | AF39: =IF(AND($X39<>"",$Y39<>""),SUM(INDIRECT(ADDRESS(LOOKUP(1E+307,$Y$33:$Y38,$AD$33:$AD38)+1,31,TRUE),TRUE):AE39),AF40) -> 0 | AG39: =IF(AND($X39<>"",$Y39<>""),SUM(INDIRECT(ADDRESS(LOOKUP(1E+307,$X$33:$X38,$AD$33:$AD38)+1,7,TRUE),TRUE):G39),AG40) -> 0 | AH39: =IF(AND($X39<>"",$Y39<>""),SUM(INDIRECT(ADDRESS(LOOKUP(1E+307,$Y$33:$Y38,$AD$33:$AD38)+1,8,TRUE),TRUE):H39),AH40) -> 0 | AI39: =IF(AND($X39<>"",$Y39<>""),X39-AG39-INDIRECT(ADDRESS(LOOKUP(1E+307,$X$33:$X38,$AD$33:$AD38),24,TRUE),TRUE),AI40) -> 0 | AJ39: =IF(AND($X39<>"",$Y39<>""),Y39-AH39-INDIRECT(ADDRESS(LOOKUP(1E+307,$X$33:$X38,$AD$33:$AD38),25,TRUE),TRUE),AJ40) -> 0 | AM39: 0 | AN39: 0 | AP39: -1 | AQ39: -1 | AR39: -1 | AS39: -1 | AX39: 0 | AY39: 0 | BD39: 0 | BE39: 0 | BF39: 1 | BG39: 0 | BH39: 1 | BM39: =IF(BK39<>"",POWER((SUM($BK$34:BK38))+(BK39/2)-(0.5*SUM($BK$34:$BK$132)),2),0) -> 0 | BN39: =IF(BL39<>"",POWER(0.5*SUM($BL$34:$BL$132)-SUM($BL$34:BL38)-(0.5*BL39),2),0) -> 0
A40: =IF($F40="","",IF($A$1=PGZ,"0",7)) ->  | B40: =IF($F40="","",IF($A$1=PGZ,7,IF(AND($A$1=PGG,T40=1),1,8))) ->  | K40: =IF(AND($X40<>"",$Y40<>""),$X40,IF(Horizontaldistanz="","",IF(OR($A$1=PGG,$A$1=LXE),($K39+dY-Fehler_Y),IF(OR($A$1=PGO,$A$1=LNE),($K39+dY),IF($A$1=PGZ,(Horizontaldistanz*SIN(Richtung*Winkelmaß_Hz)+LOOKUP(1E+307,$X$33:$X39,$X$33:$X39)),"Err"))))) ->  | L40: =IF(AND($X40<>"",$Y40<>""),$Y40,IF(Horizontaldistanz="","",IF(OR($A$1=PGG,$A$1=LXE),($L39+dX-Fehler_X),IF(OR($A$1=PGO,$A$1=LNE),($L39+dX),IF($A$1=PGZ,(Horizontaldistanz*COS(Richtung*Winkelmaß_Hz)+LOOKUP(1E+307,$Y$33:$Y39,$Y$33:$Y39)),"Err"))))) ->  | M40: 0 | N40: =IF(Ost = "",$N39,(L40+N$135)/($P$44/100)+$P$50) -> -1 | O40: -1 | P40: =MAX(X33,K34:K134)-MIN(X33,K34:K134) -> 0 | R40: 0 | S40: 8 | T40: =IF($F40="","",IF($A$1=PGZ,"0",5)) ->  | U40: =IF($F40="","",IF($A$1=PGZ,5,IF(AND($A$1=PGG,AM40=1),1,6))) ->  | V40: =IF($F40="","",IF($A$1=PGZ,"0",7)) ->  | W40: =IF($F40="","",IF($A$1=PGZ,7,IF(AND($A$1=PGG,AO40=1),1,8))) ->  | AC40: 0 | AD40: =ROW() -> 40 | AF40: =IF(AND($X40<>"",$Y40<>""),SUM(INDIRECT(ADDRESS(LOOKUP(1E+307,$Y$33:$Y39,$AD$33:$AD39)+1,31,TRUE),TRUE):AE40),AF41) -> 0 | AG40: =IF(AND($X40<>"",$Y40<>""),SUM(INDIRECT(ADDRESS(LOOKUP(1E+307,$X$33:$X39,$AD$33:$AD39)+1,7,TRUE),TRUE):G40),AG41) -> 0 | AH40: =IF(AND($X40<>"",$Y40<>""),SUM(INDIRECT(ADDRESS(LOOKUP(1E+307,$Y$33:$Y39,$AD$33:$AD39)+1,8,TRUE),TRUE):H40),AH41) -> 0 | AI40: =IF(AND($X40<>"",$Y40<>""),X40-AG40-INDIRECT(ADDRESS(LOOKUP(1E+307,$X$33:$X39,$AD$33:$AD39),24,TRUE),TRUE),AI41) -> 0 | AJ40: =IF(AND($X40<>"",$Y40<>""),Y40-AH40-INDIRECT(ADDRESS(LOOKUP(1E+307,$X$33:$X39,$AD$33:$AD39),25,TRUE),TRUE),AJ41) -> 0 | AM40: 0 | AN40: 0 | AP40: -1 | AQ40: -1 | AR40: -1 | AS40: -1 | AX40: 0 | AY40: 0 | BD40: 0 | BE40: 0 | BF40: 1 | BG40: 0 | BH40: 1 | BM40: =IF(BK40<>"",POWER((SUM($BK$34:BK39))+(BK40/2)-(0.5*SUM($BK$34:$BK$132)),2),0) -> 0 | BN40: =IF(BL40<>"",POWER(0.5*SUM($BL$34:$BL$132)-SUM($BL$34:BL39)-(0.5*BL40),2),0) -> 0
A41: =IF($F41="","",IF($A$1=PGZ,"0",8)) ->  | B41: =IF($F41="","",IF($A$1=PGZ,8,IF(AND($A$1=PGG,T41=1),1,9))) ->  | K41: =IF(AND($X41<>"",$Y41<>""),$X41,IF(Horizontaldistanz="","",IF(OR($A$1=PGG,$A$1=LXE),($K40+dY-Fehler_Y),IF(OR($A$1=PGO,$A$1=LNE),($K40+dY),IF($A$1=PGZ,(Horizontaldistanz*SIN(Richtung*Winkelmaß_Hz)+LOOKUP(1E+307,$X$33:$X40,$X$33:$X40)),"Err"))))) ->  | L41: =IF(AND($X41<>"",$Y41<>""),$Y41,IF(Horizontaldistanz="","",IF(OR($A$1=PGG,$A$1=LXE),($L40+dX-Fehler_X),IF(OR($A$1=PGO,$A$1=LNE),($L40+dX),IF($A$1=PGZ,(Horizontaldistanz*COS(Richtung*Winkelmaß_Hz)+LOOKUP(1E+307,$Y$33:$Y40,$Y$33:$Y40)),"Err"))))) ->  | M41: 0 | N41: -1 | O41: -1 | P41: =IF($P$39>$P$40,$P$39,$P$40) -> 0 | R41: 0 | S41: 9 | T41: =IF($F41="","",IF($A$1=PGZ,"0",6)) ->  | U41: =IF($F41="","",IF($A$1=PGZ,6,IF(AND($A$1=PGG,AM41=1),1,7))) ->  | V41: =IF($F41="","",IF($A$1=PGZ,"0",8)) ->  | W41: =IF($F41="","",IF($A$1=PGZ,8,IF(AND($A$1=PGG,AO41=1),1,9))) ->  | AC41: 0 | AD41: =ROW() -> 41 | AF41: =IF(AND($X41<>"",$Y41<>""),SUM(INDIRECT(ADDRESS(LOOKUP(1E+307,$Y$33:$Y40,$AD$33:$AD40)+1,31,TRUE),TRUE):AE41),AF42) -> 0 | AG41: =IF(AND($X41<>"",$Y41<>""),SUM(INDIRECT(ADDRESS(LOOKUP(1E+307,$X$33:$X40,$AD$33:$AD40)+1,7,TRUE),TRUE):G41),AG42) -> 0 | AH41: =IF(AND($X41<>"",$Y41<>""),SUM(INDIRECT(ADDRESS(LOOKUP(1E+307,$Y$33:$Y40,$AD$33:$AD40)+1,8,TRUE),TRUE):H41),AH42) -> 0 | AI41: =IF(AND($X41<>"",$Y41<>""),X41-AG41-INDIRECT(ADDRESS(LOOKUP(1E+307,$X$33:$X40,$AD$33:$AD40),24,TRUE),TRUE),AI42) -> 0 | AJ41: =IF(AND($X41<>"",$Y41<>""),Y41-AH41-INDIRECT(ADDRESS(LOOKUP(1E+307,$X$33:$X40,$AD$33:$AD40),25,TRUE),TRUE),AJ42) -> 0 | AM41: 0 | AN41: 0 | AP41: -1 | AQ41: -1 | AR41: -1 | AS41: -1 | AX41: 0 | AY41: 0 | BD41: 0 | BE41: 0 | BF41: 1 | BG41: 0 | BH41: 1 | BM41: =IF(BK41<>"",POWER((SUM($BK$34:BK40))+(BK41/2)-(0.5*SUM($BK$34:$BK$132)),2),0) -> 0 | BN41: =IF(BL41<>"",POWER(0.5*SUM($BL$34:$BL$132)-SUM($BL$34:BL40)-(0.5*BL41),2),0) -> 0 | BO41: =BM41*BI41 ->  | BP41: =BN41*BJ41 -> 
A42: =IF($F42="","",IF($A$1=PGZ,"0",9)) ->  | B42: =IF($F42="","",IF($A$1=PGZ,9,IF(AND($A$1=PGG,T42=1),1,10))) ->  | K42: =IF(AND($X42<>"",$Y42<>""),$X42,IF(Horizontaldistanz="","",IF(OR($A$1=PGG,$A$1=LXE),($K41+dY-Fehler_Y),IF(OR($A$1=PGO,$A$1=LNE),($K41+dY),IF($A$1=PGZ,(Horizontaldistanz*SIN(Richtung*Winkelmaß_Hz)+LOOKUP(1E+307,$X$33:$X41,$X$33:$X41)),"Err"))))) ->  | L42: =IF(AND($X42<>"",$Y42<>""),$Y42,IF(Horizontaldistanz="","",IF(OR($A$1=PGG,$A$1=LXE),($L41+dX-Fehler_X),IF(OR($A$1=PGO,$A$1=LNE),($L41+dX),IF($A$1=PGZ,(Horizontaldistanz*COS(Richtung*Winkelmaß_Hz)+LOOKUP(1E+307,$Y$33:$Y41,$Y$33:$Y41)),"Err"))))) ->  | M42: 0 | N42: -1 | O42: -1 | P42: Maßstab | R42: 0 | S42: 10 | T42: =IF($F42="","",IF($A$1=PGZ,"0",7)) ->  | U42: =IF($F42="","",IF($A$1=PGZ,7,IF(AND($A$1=PGG,AM42=1),1,8))) ->  | V42: =IF($F42="","",IF($A$1=PGZ,"0",9)) ->  | W42: =IF($F42="","",IF($A$1=PGZ,9,IF(AND($A$1=PGG,AO42=1),1,10))) ->  | AC42: 0 | AD42: =ROW() -> 42 | AF42: =IF(AND($X42<>"",$Y42<>""),SUM(INDIRECT(ADDRESS(LOOKUP(1E+307,$Y$33:$Y41,$AD$33:$AD41)+1,31,TRUE),TRUE):AE42),AF43) -> 0 | AG42: =IF(AND($X42<>"",$Y42<>""),SUM(INDIRECT(ADDRESS(LOOKUP(1E+307,$X$33:$X41,$AD$33:$AD41)+1,7,TRUE),TRUE):G42),AG43) -> 0 | AH42: =IF(AND($X42<>"",$Y42<>""),SUM(INDIRECT(ADDRESS(LOOKUP(1E+307,$Y$33:$Y41,$AD$33:$AD41)+1,8,TRUE),TRUE):H42),AH43) -> 0 | AI42: =IF(AND($X42<>"",$Y42<>""),X42-AG42-INDIRECT(ADDRESS(LOOKUP(1E+307,$X$33:$X41,$AD$33:$AD41),24,TRUE),TRUE),AI43) -> 0 | AJ42: =IF(AND($X42<>"",$Y42<>""),Y42-AH42-INDIRECT(ADDRESS(LOOKUP(1E+307,$X$33:$X41,$AD$33:$AD41),25,TRUE),TRUE),AJ43) -> 0 | AM42: 0 | AN42: 0 | AP42: -1 | AQ42: -1 | AR42: -1 | AS42: -1 | AX42: 0 | AY42: 0 | BD42: 0 | BE42: 0 | BF42: 1 | BG42: 0 | BH42: 1 | BM42: =IF(BK42<>"",POWER((SUM($BK$34:BK41))+(BK42/2)-(0.5*SUM($BK$34:$BK$132)),2),0) -> 0 | BN42: =IF(BL42<>"",POWER(0.5*SUM($BL$34:$BL$132)-SUM($BL$34:BL41)-(0.5*BL42),2),0) -> 0
A43: =IF($F43="","",IF($A$1=PGZ,"0",10)) ->  | B43: =IF($F43="","",IF($A$1=PGZ,10,IF(AND($A$1=PGG,T43=1),1,11))) ->  | K43: =IF(AND($X43<>"",$Y43<>""),$X43,IF(Horizontaldistanz="","",IF(OR($A$1=PGG,$A$1=LXE),($K42+dY-Fehler_Y),IF(OR($A$1=PGO,$A$1=LNE),($K42+dY),IF($A$1=PGZ,(Horizontaldistanz*SIN(Richtung*Winkelmaß_Hz)+LOOKUP(1E+307,$X$33:$X42,$X$33:$X42)),"Err"))))) ->  | L43: =IF(AND($X43<>"",$Y43<>""),$Y43,IF(Horizontaldistanz="","",IF(OR($A$1=PGG,$A$1=LXE),($L42+dX-Fehler_X),IF(OR($A$1=PGO,$A$1=LNE),($L42+dX),IF($A$1=PGZ,(Horizontaldistanz*COS(Richtung*Winkelmaß_Hz)+LOOKUP(1E+307,$Y$33:$Y42,$Y$33:$Y42)),"Err"))))) ->  | M43: 0 | N43: -1 | O43: -1 | P43: =IF(Diag_Opt=Ja,ROUNDUP($P$41*10,0),VLOOKUP($P$41,P86:Q105,2)) -> 0 | R43: 0 | S43: 11 | T43: =IF($F43="","",IF($A$1=PGZ,"0",8)) ->  | U43: =IF($F43="","",IF($A$1=PGZ,8,IF(AND($A$1=PGG,AM43=1),1,9))) ->  | V43: =IF($F43="","",IF($A$1=PGZ,"0",10)) ->  | W43: =IF($F43="","",IF($A$1=PGZ,10,IF(AND($A$1=PGG,AO43=1),1,11))) ->  | AC43: 0 | AD43: =ROW() -> 43 | AF43: =IF(AND($X43<>"",$Y43<>""),SUM(INDIRECT(ADDRESS(LOOKUP(1E+307,$Y$33:$Y42,$AD$33:$AD42)+1,31,TRUE),TRUE):AE43),AF44) -> 0 | AG43: =IF(AND($X43<>"",$Y43<>""),SUM(INDIRECT(ADDRESS(LOOKUP(1E+307,$X$33:$X42,$AD$33:$AD42)+1,7,TRUE),TRUE):G43),AG44) -> 0 | AH43: =IF(AND($X43<>"",$Y43<>""),SUM(INDIRECT(ADDRESS(LOOKUP(1E+307,$Y$33:$Y42,$AD$33:$AD42)+1,8,TRUE),TRUE):H43),AH44) -> 0 | AI43: =IF(AND($X43<>"",$Y43<>""),X43-AG43-INDIRECT(ADDRESS(LOOKUP(1E+307,$X$33:$X42,$AD$33:$AD42),24,TRUE),TRUE),AI44) -> 0 | AJ43: =IF(AND($X43<>"",$Y43<>""),Y43-AH43-INDIRECT(ADDRESS(LOOKUP(1E+307,$X$33:$X42,$AD$33:$AD42),25,TRUE),TRUE),AJ44) -> 0 | AM43: 0 | AN43: 0 | AO43: =IF(AND($X43<>"",$Y43<>""),SQRT(POWER(AI43,2)+POWER(AJ43,2))/AF43,"") ->  | AP43: =IF(AND($A$1= LXE,AND(NOT(ISBLANK(X43)),NOT(ISBLANK(Y43)))),$N43,-1) -> -1 | AQ43: =IF(AND($A$1= LXE,AND(NOT(ISBLANK(X43)),NOT(ISBLANK(Y43)))),$O43,-1) -> -1 | AR43: -1 | AS43: -1 | AX43: 0 | AY43: 0 | BD43: 0 | BE43: 0 | BF43: 1 | BG43: 0 | BH43: 1 | BM43: =IF(BK43<>"",POWER((SUM($BK$34:BK42))+(BK43/2)-(0.5*SUM($BK$34:$BK$132)),2),0) -> 0 | BN43: =IF(BL43<>"",POWER(0.5*SUM($BL$34:$BL$132)-SUM($BL$34:BL42)-(0.5*BL43),2),0) -> 0
A44: =IF($F44="","",IF($A$1=PGZ,"0",11)) ->  | B44: =IF($F44="","",IF($A$1=PGZ,11,IF(AND($A$1=PGG,T44=1),1,12))) ->  | K44: =IF(AND($X44<>"",$Y44<>""),$X44,IF(Horizontaldistanz="","",IF(OR($A$1=PGG,$A$1=LXE),($K43+dY-Fehler_Y),IF(OR($A$1=PGO,$A$1=LNE),($K43+dY),IF($A$1=PGZ,(Horizontaldistanz*SIN(Richtung*Winkelmaß_Hz)+LOOKUP(1E+307,$X$33:$X43,$X$33:$X43)),"Err"))))) ->  | L44: =IF(AND($X44<>"",$Y44<>""),$Y44,IF(Horizontaldistanz="","",IF(OR($A$1=PGG,$A$1=LXE),($L43+dX-Fehler_X),IF(OR($A$1=PGO,$A$1=LNE),($L43+dX),IF($A$1=PGZ,(Horizontaldistanz*COS(Richtung*Winkelmaß_Hz)+LOOKUP(1E+307,$Y$33:$Y43,$Y$33:$Y43)),"Err"))))) ->  | M44: 0 | N44: -1 | O44: -1 | P44: =IF(Manueller_Maßstab="",$P$43,$B$30) -> 0 | R44: 0 | S44: 12 | T44: =IF($F44="","",IF($A$1=PGZ,"0",9)) ->  | U44: =IF($F44="","",IF($A$1=PGZ,9,IF(AND($A$1=PGG,AM44=1),1,10))) ->  | V44: =IF($F44="","",IF($A$1=PGZ,"0",11)) ->  | W44: =IF($F44="","",IF($A$1=PGZ,11,IF(AND($A$1=PGG,AO44=1),1,12))) ->  | AC44: 0 | AD44: =ROW() -> 44 | AF44: =IF(AND($X44<>"",$Y44<>""),SUM(INDIRECT(ADDRESS(LOOKUP(1E+307,$Y$33:$Y43,$AD$33:$AD43)+1,31,TRUE),TRUE):AE44),AF45) -> 0 | AG44: =IF(AND($X44<>"",$Y44<>""),SUM(INDIRECT(ADDRESS(LOOKUP(1E+307,$X$33:$X43,$AD$33:$AD43)+1,7,TRUE),TRUE):G44),AG45) -> 0 | AH44: =IF(AND($X44<>"",$Y44<>""),SUM(INDIRECT(ADDRESS(LOOKUP(1E+307,$Y$33:$Y43,$AD$33:$AD43)+1,8,TRUE),TRUE):H44),AH45) -> 0 | AI44: =IF(AND($X44<>"",$Y44<>""),X44-AG44-INDIRECT(ADDRESS(LOOKUP(1E+307,$X$33:$X43,$AD$33:$AD43),24,TRUE),TRUE),AI45) -> 0 | AJ44: =IF(AND($X44<>"",$Y44<>""),Y44-AH44-INDIRECT(ADDRESS(LOOKUP(1E+307,$X$33:$X43,$AD$33:$AD43),25,TRUE),TRUE),AJ45) -> 0 | AM44: 0 | AN44: 0 | AP44: -1 | AQ44: -1 | AR44: -1 | AS44: -1 | AX44: 0 | AY44: 0 | BD44: 0 | BE44: 0 | BF44: 1 | BG44: 0 | BH44: 1 | BM44: =IF(BK44<>"",POWER((SUM($BK$34:BK43))+(BK44/2)-(0.5*SUM($BK$34:$BK$132)),2),0) -> 0 | BN44: =IF(BL44<>"",POWER(0.5*SUM($BL$34:$BL$132)-SUM($BL$34:BL43)-(0.5*BL44),2),0) -> 0
A45: =IF($F45="","",IF($A$1=PGZ,"0",12)) ->  | B45: =IF($F45="","",IF($A$1=PGZ,12,IF(AND($A$1=PGG,T45=1),1,13))) ->  | K45: =IF(AND($X45<>"",$Y45<>""),$X45,IF(Horizontaldistanz="","",IF(OR($A$1=PGG,$A$1=LXE),($K44+dY-Fehler_Y),IF(OR($A$1=PGO,$A$1=LNE),($K44+dY),IF($A$1=PGZ,(Horizontaldistanz*SIN(Richtung*Winkelmaß_Hz)+LOOKUP(1E+307,$X$33:$X44,$X$33:$X44)),"Err"))))) ->  | L45: =IF(AND($X45<>"",$Y45<>""),$Y45,IF(Horizontaldistanz="","",IF(OR($A$1=PGG,$A$1=LXE),($L44+dX-Fehler_X),IF(OR($A$1=PGO,$A$1=LNE),($L44+dX),IF($A$1=PGZ,(Horizontaldistanz*COS(Richtung*Winkelmaß_Hz)+LOOKUP(1E+307,$Y$33:$Y44,$Y$33:$Y44)),"Err"))))) ->  | M45: 0 | N45: -1 | O45: -1 | P45: ="Maßstab: 1: "&$P$44 -> Maßstab: 1: 0 | R45: 0 | S45: 13 | T45: =IF($F45="","",IF($A$1=PGZ,"0",10)) ->  | U45: =IF($F45="","",IF($A$1=PGZ,10,IF(AND($A$1=PGG,AM45=1),1,11))) ->  | V45: =IF($F45="","",IF($A$1=PGZ,"0",12)) ->  | W45: =IF($F45="","",IF($A$1=PGZ,12,IF(AND($A$1=PGG,AO45=1),1,13))) ->  | AC45: 0 | AD45: =ROW() -> 45 | AF45: =IF(AND($X45<>"",$Y45<>""),SUM(INDIRECT(ADDRESS(LOOKUP(1E+307,$Y$33:$Y44,$AD$33:$AD44)+1,31,TRUE),TRUE):AE45),AF46) -> 0 | AG45: =IF(AND($X45<>"",$Y45<>""),SUM(INDIRECT(ADDRESS(LOOKUP(1E+307,$X$33:$X44,$AD$33:$AD44)+1,7,TRUE),TRUE):G45),AG46) -> 0 | AH45: =IF(AND($X45<>"",$Y45<>""),SUM(INDIRECT(ADDRESS(LOOKUP(1E+307,$Y$33:$Y44,$AD$33:$AD44)+1,8,TRUE),TRUE):H45),AH46) -> 0 | AI45: =IF(AND($X45<>"",$Y45<>""),X45-AG45-INDIRECT(ADDRESS(LOOKUP(1E+307,$X$33:$X44,$AD$33:$AD44),24,TRUE),TRUE),AI46) -> 0 | AJ45: =IF(AND($X45<>"",$Y45<>""),Y45-AH45-INDIRECT(ADDRESS(LOOKUP(1E+307,$X$33:$X44,$AD$33:$AD44),25,TRUE),TRUE),AJ46) -> 0 | AM45: 0 | AN45: 0 | AP45: -1 | AQ45: -1 | AR45: -1 | AS45: -1 | AX45: 0 | AY45: 0 | BD45: 0 | BE45: 0 | BF45: 1 | BG45: 0 | BH45: 1 | BM45: =IF(BK45<>"",POWER((SUM($BK$34:BK44))+(BK45/2)-(0.5*SUM($BK$34:$BK$132)),2),0) -> 0 | BN45: =IF(BL45<>"",POWER(0.5*SUM($BL$34:$BL$132)-SUM($BL$34:BL44)-(0.5*BL45),2),0) -> 0
A46: =IF($F46="","",IF($A$1=PGZ,"0",13)) ->  | B46: =IF($F46="","",IF($A$1=PGZ,13,IF(AND($A$1=PGG,T46=1),1,14))) ->  | K46: =IF(AND($X46<>"",$Y46<>""),$X46,IF(Horizontaldistanz="","",IF(OR($A$1=PGG,$A$1=LXE),($K45+dY-Fehler_Y),IF(OR($A$1=PGO,$A$1=LNE),($K45+dY),IF($A$1=PGZ,(Horizontaldistanz*SIN(Richtung*Winkelmaß_Hz)+LOOKUP(1E+307,$X$33:$X45,$X$33:$X45)),"Err"))))) ->  | L46: =IF(AND($X46<>"",$Y46<>""),$Y46,IF(Horizontaldistanz="","",IF(OR($A$1=PGG,$A$1=LXE),($L45+dX-Fehler_X),IF(OR($A$1=PGO,$A$1=LNE),($L45+dX),IF($A$1=PGZ,(Horizontaldistanz*COS(Richtung*Winkelmaß_Hz)+LOOKUP(1E+307,$Y$33:$Y45,$Y$33:$Y45)),"Err"))))) ->  | M46: 0 | N46: -1 | O46: -1 | R46: 0 | S46: 14 | T46: =IF($F46="","",IF($A$1=PGZ,"0",11)) ->  | U46: =IF($F46="","",IF($A$1=PGZ,11,IF(AND($A$1=PGG,AM46=1),1,12))) ->  | V46: =IF($F46="","",IF($A$1=PGZ,"0",13)) ->  | W46: =IF($F46="","",IF($A$1=PGZ,13,IF(AND($A$1=PGG,AO46=1),1,14))) ->  | AC46: 0 | AD46: =ROW() -> 46 | AF46: =IF(AND($X46<>"",$Y46<>""),SUM(INDIRECT(ADDRESS(LOOKUP(1E+307,$Y$33:$Y45,$AD$33:$AD45)+1,31,TRUE),TRUE):AE46),AF47) -> 0 | AG46: =IF(AND($X46<>"",$Y46<>""),SUM(INDIRECT(ADDRESS(LOOKUP(1E+307,$X$33:$X45,$AD$33:$AD45)+1,7,TRUE),TRUE):G46),AG47) -> 0 | AH46: =IF(AND($X46<>"",$Y46<>""),SUM(INDIRECT(ADDRESS(LOOKUP(1E+307,$Y$33:$Y45,$AD$33:$AD45)+1,8,TRUE),TRUE):H46),AH47) -> 0 | AI46: =IF(AND($X46<>"",$Y46<>""),X46-AG46-INDIRECT(ADDRESS(LOOKUP(1E+307,$X$33:$X45,$AD$33:$AD45),24,TRUE),TRUE),AI47) -> 0 | AJ46: =IF(AND($X46<>"",$Y46<>""),Y46-AH46-INDIRECT(ADDRESS(LOOKUP(1E+307,$X$33:$X45,$AD$33:$AD45),25,TRUE),TRUE),AJ47) -> 0 | AM46: 0 | AN46: 0 | AP46: -1 | AQ46: -1 | AR46: -1 | AS46: -1 | AX46: 0 | AY46: 0 | BD46: 0 | BE46: 0 | BF46: 1 | BG46: 0 | BH46: 1 | BM46: =IF(BK46<>"",POWER((SUM($BK$34:BK45))+(BK46/2)-(0.5*SUM($BK$34:$BK$132)),2),0) -> 0 | BN46: =IF(BL46<>"",POWER(0.5*SUM($BL$34:$BL$132)-SUM($BL$34:BL45)-(0.5*BL46),2),0) -> 0
A47: =IF($F47="","",IF($A$1=PGZ,"0",14)) ->  | B47: =IF($F47="","",IF($A$1=PGZ,14,IF(AND($A$1=PGG,T47=1),1,15))) ->  | K47: =IF(AND($X47<>"",$Y47<>""),$X47,IF(Horizontaldistanz="","",IF(OR($A$1=PGG,$A$1=LXE),($K46+dY-Fehler_Y),IF(OR($A$1=PGO,$A$1=LNE),($K46+dY),IF($A$1=PGZ,(Horizontaldistanz*SIN(Richtung*Winkelmaß_Hz)+LOOKUP(1E+307,$X$33:$X46,$X$33:$X46)),"Err"))))) ->  | L47: =IF(AND($X47<>"",$Y47<>""),$Y47,IF(Horizontaldistanz="","",IF(OR($A$1=PGG,$A$1=LXE),($L46+dX-Fehler_X),IF(OR($A$1=PGO,$A$1=LNE),($L46+dX),IF($A$1=PGZ,(Horizontaldistanz*COS(Richtung*Winkelmaß_Hz)+LOOKUP(1E+307,$Y$33:$Y46,$Y$33:$Y46)),"Err"))))) ->  | M47: 0 | N47: -1 | O47: -1 | R47: 0 | S47: 15 | T47: =IF($F47="","",IF($A$1=PGZ,"0",12)) ->  | U47: =IF($F47="","",IF($A$1=PGZ,12,IF(AND($A$1=PGG,AM47=1),1,13))) ->  | V47: =IF($F47="","",IF($A$1=PGZ,"0",14)) ->  | W47: =IF($F47="","",IF($A$1=PGZ,14,IF(AND($A$1=PGG,AO47=1),1,15))) ->  | AC47: 0 | AD47: =ROW() -> 47 | AF47: =IF(AND($X47<>"",$Y47<>""),SUM(INDIRECT(ADDRESS(LOOKUP(1E+307,$Y$33:$Y46,$AD$33:$AD46)+1,31,TRUE),TRUE):AE47),AF48) -> 0 | AG47: =IF(AND($X47<>"",$Y47<>""),SUM(INDIRECT(ADDRESS(LOOKUP(1E+307,$X$33:$X46,$AD$33:$AD46)+1,7,TRUE),TRUE):G47),AG48) -> 0 | AH47: =IF(AND($X47<>"",$Y47<>""),SUM(INDIRECT(ADDRESS(LOOKUP(1E+307,$Y$33:$Y46,$AD$33:$AD46)+1,8,TRUE),TRUE):H47),AH48) -> 0 | AI47: =IF(AND($X47<>"",$Y47<>""),X47-AG47-INDIRECT(ADDRESS(LOOKUP(1E+307,$X$33:$X46,$AD$33:$AD46),24,TRUE),TRUE),AI48) -> 0 | AJ47: =IF(AND($X47<>"",$Y47<>""),Y47-AH47-INDIRECT(ADDRESS(LOOKUP(1E+307,$X$33:$X46,$AD$33:$AD46),25,TRUE),TRUE),AJ48) -> 0 | AM47: 0 | AN47: 0 | AP47: -1 | AQ47: -1 | AR47: -1 | AS47: -1 | AX47: 0 | AY47: 0 | BD47: 0 | BE47: 0 | BF47: 1 | BG47: 0 | BH47: 1 | BM47: =IF(BK47<>"",POWER((SUM($BK$34:BK46))+(BK47/2)-(0.5*SUM($BK$34:$BK$132)),2),0) -> 0 | BN47: =IF(BL47<>"",POWER(0.5*SUM($BL$34:$BL$132)-SUM($BL$34:BL46)-(0.5*BL47),2),0) -> 0
A48: =IF($F48="","",IF($A$1=PGZ,"0",15)) ->  | B48: =IF($F48="","",IF($A$1=PGZ,15,IF(AND($A$1=PGG,T48=1),1,16))) ->  | K48: =IF(AND($X48<>"",$Y48<>""),$X48,IF(Horizontaldistanz="","",IF(OR($A$1=PGG,$A$1=LXE),($K47+dY-Fehler_Y),IF(OR($A$1=PGO,$A$1=LNE),($K47+dY),IF($A$1=PGZ,(Horizontaldistanz*SIN(Richtung*Winkelmaß_Hz)+LOOKUP(1E+307,$X$33:$X47,$X$33:$X47)),"Err"))))) ->  | L48: =IF(AND($X48<>"",$Y48<>""),$Y48,IF(Horizontaldistanz="","",IF(OR($A$1=PGG,$A$1=LXE),($L47+dX-Fehler_X),IF(OR($A$1=PGO,$A$1=LNE),($L47+dX),IF($A$1=PGZ,(Horizontaldistanz*COS(Richtung*Winkelmaß_Hz)+LOOKUP(1E+307,$Y$33:$Y47,$Y$33:$Y47)),"Err"))))) ->  | M48: 0 | N48: -1 | O48: -1 | R48: 0 | S48: 16 | T48: =IF($F48="","",IF($A$1=PGZ,"0",13)) ->  | U48: =IF($F48="","",IF($A$1=PGZ,13,IF(AND($A$1=PGG,AM48=1),1,14))) ->  | V48: =IF($F48="","",IF($A$1=PGZ,"0",15)) ->  | W48: =IF($F48="","",IF($A$1=PGZ,15,IF(AND($A$1=PGG,AO48=1),1,16))) ->  | AC48: 0 | AD48: =ROW() -> 48 | AF48: =IF(AND($X48<>"",$Y48<>""),SUM(INDIRECT(ADDRESS(LOOKUP(1E+307,$Y$33:$Y47,$AD$33:$AD47)+1,31,TRUE),TRUE):AE48),AF49) -> 0 | AG48: =IF(AND($X48<>"",$Y48<>""),SUM(INDIRECT(ADDRESS(LOOKUP(1E+307,$X$33:$X47,$AD$33:$AD47)+1,7,TRUE),TRUE):G48),AG49) -> 0 | AH48: =IF(AND($X48<>"",$Y48<>""),SUM(INDIRECT(ADDRESS(LOOKUP(1E+307,$Y$33:$Y47,$AD$33:$AD47)+1,8,TRUE),TRUE):H48),AH49) -> 0 | AI48: =IF(AND($X48<>"",$Y48<>""),X48-AG48-INDIRECT(ADDRESS(LOOKUP(1E+307,$X$33:$X47,$AD$33:$AD47),24,TRUE),TRUE),AI49) -> 0 | AJ48: =IF(AND($X48<>"",$Y48<>""),Y48-AH48-INDIRECT(ADDRESS(LOOKUP(1E+307,$X$33:$X47,$AD$33:$AD47),25,TRUE),TRUE),AJ49) -> 0 | AM48: 0 | AN48: 0 | AP48: -1 | AQ48: -1 | AR48: -1 | AS48: -1 | AX48: 0 | AY48: 0 | BD48: 0 | BE48: 0 | BF48: 1 | BG48: 0 | BH48: 1 | BM48: =IF(BK48<>"",POWER((SUM($BK$34:BK47))+(BK48/2)-(0.5*SUM($BK$34:$BK$132)),2),0) -> 0 | BN48: =IF(BL48<>"",POWER(0.5*SUM($BL$34:$BL$132)-SUM($BL$34:BL47)-(0.5*BL48),2),0) -> 0
A49: =IF($F49="","",IF($A$1=PGZ,"0",16)) ->  | B49: =IF($F49="","",IF($A$1=PGZ,16,IF(AND($A$1=PGG,T49=1),1,17))) ->  | K49: =IF(AND($X49<>"",$Y49<>""),$X49,IF(Horizontaldistanz="","",IF(OR($A$1=PGG,$A$1=LXE),($K48+dY-Fehler_Y),IF(OR($A$1=PGO,$A$1=LNE),($K48+dY),IF($A$1=PGZ,(Horizontaldistanz*SIN(Richtung*Winkelmaß_Hz)+LOOKUP(1E+307,$X$33:$X48,$X$33:$X48)),"Err"))))) ->  | L49: =IF(AND($X49<>"",$Y49<>""),$Y49,IF(Horizontaldistanz="","",IF(OR($A$1=PGG,$A$1=LXE),($L48+dX-Fehler_X),IF(OR($A$1=PGO,$A$1=LNE),($L48+dX),IF($A$1=PGZ,(Horizontaldistanz*COS(Richtung*Winkelmaß_Hz)+LOOKUP(1E+307,$Y$33:$Y48,$Y$33:$Y48)),"Err"))))) ->  | M49: 0 | N49: -1 | O49: -1 | P49: Mitte | R49: 0 | S49: 17 | T49: =IF($F49="","",IF($A$1=PGZ,"0",14)) ->  | U49: =IF($F49="","",IF($A$1=PGZ,14,IF(AND($A$1=PGG,AM49=1),1,15))) ->  | V49: =IF($F49="","",IF($A$1=PGZ,"0",16)) ->  | W49: =IF($F49="","",IF($A$1=PGZ,16,IF(AND($A$1=PGG,AO49=1),1,17))) ->  | AC49: 0 | AD49: =ROW() -> 49 | AF49: =IF(AND($X49<>"",$Y49<>""),SUM(INDIRECT(ADDRESS(LOOKUP(1E+307,$Y$33:$Y48,$AD$33:$AD48)+1,31,TRUE),TRUE):AE49),AF50) -> 0 | AG49: =IF(AND($X49<>"",$Y49<>""),SUM(INDIRECT(ADDRESS(LOOKUP(1E+307,$X$33:$X48,$AD$33:$AD48)+1,7,TRUE),TRUE):G49),AG50) -> 0 | AH49: =IF(AND($X49<>"",$Y49<>""),SUM(INDIRECT(ADDRESS(LOOKUP(1E+307,$Y$33:$Y48,$AD$33:$AD48)+1,8,TRUE),TRUE):H49),AH50) -> 0 | AI49: =IF(AND($X49<>"",$Y49<>""),X49-AG49-INDIRECT(ADDRESS(LOOKUP(1E+307,$X$33:$X48,$AD$33:$AD48),24,TRUE),TRUE),AI50) -> 0 | AJ49: =IF(AND($X49<>"",$Y49<>""),Y49-AH49-INDIRECT(ADDRESS(LOOKUP(1E+307,$X$33:$X48,$AD$33:$AD48),25,TRUE),TRUE),AJ50) -> 0 | AM49: 0 | AN49: 0 | AO49: =IF(AND($X49<>"",$Y49<>""),SQRT(POWER(AI49,2)+POWER(AJ49,2))/AF49,"") ->  | AP49: -1 | AQ49: -1 | AR49: -1 | AS49: -1 | AX49: 0 | AY49: 0 | BD49: 0 | BE49: 0 | BF49: 1 | BG49: 0 | BH49: 1 | BM49: =IF(BK49<>"",POWER((SUM($BK$34:BK48))+(BK49/2)-(0.5*SUM($BK$34:$BK$132)),2),0) -> 0 | BN49: =IF(BL49<>"",POWER(0.5*SUM($BL$34:$BL$132)-SUM($BL$34:BL48)-(0.5*BL49),2),0) -> 0
A50: =IF($F50="","",IF($A$1=PGZ,"0",17)) ->  | B50: =IF($F50="","",IF($A$1=PGZ,17,IF(AND($A$1=PGG,T50=1),1,18))) ->  | K50: =IF(AND($X50<>"",$Y50<>""),$X50,IF(Horizontaldistanz="","",IF(OR($A$1=PGG,$A$1=LXE),($K49+dY-Fehler_Y),IF(OR($A$1=PGO,$A$1=LNE),($K49+dY),IF($A$1=PGZ,(Horizontaldistanz*SIN(Richtung*Winkelmaß_Hz)+LOOKUP(1E+307,$X$33:$X49,$X$33:$X49)),"Err"))))) ->  | L50: =IF(AND($X50<>"",$Y50<>""),$Y50,IF(Horizontaldistanz="","",IF(OR($A$1=PGG,$A$1=LXE),($L49+dX-Fehler_X),IF(OR($A$1=PGO,$A$1=LNE),($L49+dX),IF($A$1=PGZ,(Horizontaldistanz*COS(Richtung*Winkelmaß_Hz)+LOOKUP(1E+307,$Y$33:$Y49,$Y$33:$Y49)),"Err"))))) ->  | M50: 0 | N50: -1 | O50: -1 | P50: =(10-$P$39/($P$44/100))/2 ->  | R50: 0 | S50: 18 | T50: =IF($F50="","",IF($A$1=PGZ,"0",15)) ->  | U50: =IF($F50="","",IF($A$1=PGZ,15,IF(AND($A$1=PGG,AM50=1),1,16))) ->  | V50: =IF($F50="","",IF($A$1=PGZ,"0",17)) ->  | W50: =IF($F50="","",IF($A$1=PGZ,17,IF(AND($A$1=PGG,AO50=1),1,18))) ->  | AC50: 0 | AD50: =ROW() -> 50 | AF50: =IF(AND($X50<>"",$Y50<>""),SUM(INDIRECT(ADDRESS(LOOKUP(1E+307,$Y$33:$Y49,$AD$33:$AD49)+1,31,TRUE),TRUE):AE50),AF51) -> 0 | AG50: =IF(AND($X50<>"",$Y50<>""),SUM(INDIRECT(ADDRESS(LOOKUP(1E+307,$X$33:$X49,$AD$33:$AD49)+1,7,TRUE),TRUE):G50),AG51) -> 0 | AH50: =IF(AND($X50<>"",$Y50<>""),SUM(INDIRECT(ADDRESS(LOOKUP(1E+307,$Y$33:$Y49,$AD$33:$AD49)+1,8,TRUE),TRUE):H50),AH51) -> 0 | AI50: =IF(AND($X50<>"",$Y50<>""),X50-AG50-INDIRECT(ADDRESS(LOOKUP(1E+307,$X$33:$X49,$AD$33:$AD49),24,TRUE),TRUE),AI51) -> 0 | AJ50: =IF(AND($X50<>"",$Y50<>""),Y50-AH50-INDIRECT(ADDRESS(LOOKUP(1E+307,$X$33:$X49,$AD$33:$AD49),25,TRUE),TRUE),AJ51) -> 0 | AM50: 0 | AN50: 0 | AO50: =IF(AND($X50<>"",$Y50<>""),SQRT(POWER(AI50,2)+POWER(AJ50,2))/AF50,"") ->  | AP50: -1 | AQ50: -1 | AR50: -1 | AS50: -1 | AX50: 0 | AY50: 0 | BD50: 0 | BE50: 0 | BF50: 1 | BG50: 0 | BH50: 1 | BM50: =IF(BK50<>"",POWER((SUM($BK$34:BK49))+(BK50/2)-(0.5*SUM($BK$34:$BK$132)),2),0) -> 0 | BN50: =IF(BL50<>"",POWER(0.5*SUM($BL$34:$BL$132)-SUM($BL$34:BL49)-(0.5*BL50),2),0) -> 0
A51: =IF($F51="","",IF($A$1=PGZ,"0",18)) ->  | B51: =IF($F51="","",IF($A$1=PGZ,18,IF(AND($A$1=PGG,T51=1),1,19))) ->  | K51: =IF(AND($X51<>"",$Y51<>""),$X51,IF(Horizontaldistanz="","",IF(OR($A$1=PGG,$A$1=LXE),($K50+dY-Fehler_Y),IF(OR($A$1=PGO,$A$1=LNE),($K50+dY),IF($A$1=PGZ,(Horizontaldistanz*SIN(Richtung*Winkelmaß_Hz)+LOOKUP(1E+307,$X$33:$X50,$X$33:$X50)),"Err"))))) ->  | L51: =IF(AND($X51<>"",$Y51<>""),$Y51,IF(Horizontaldistanz="","",IF(OR($A$1=PGG,$A$1=LXE),($L50+dX-Fehler_X),IF(OR($A$1=PGO,$A$1=LNE),($L50+dX),IF($A$1=PGZ,(Horizontaldistanz*COS(Richtung*Winkelmaß_Hz)+LOOKUP(1E+307,$Y$33:$Y50,$Y$33:$Y50)),"Err"))))) ->  | M51: 0 | N51: -1 | O51: -1 | P51: =(10-$P$40/($P$44/100))/2 ->  | R51: 0 | S51: 19 | T51: =IF($F51="","",IF($A$1=PGZ,"0",16)) ->  | U51: =IF($F51="","",IF($A$1=PGZ,16,IF(AND($A$1=PGG,AM51=1),1,17))) ->  | V51: =IF($F51="","",IF($A$1=PGZ,"0",18)) ->  | W51: =IF($F51="","",IF($A$1=PGZ,18,IF(AND($A$1=PGG,AO51=1),1,19))) ->  | AC51: 0 | AD51: =ROW() -> 51 | AF51: =IF(AND($X51<>"",$Y51<>""),SUM(INDIRECT(ADDRESS(LOOKUP(1E+307,$Y$33:$Y50,$AD$33:$AD50)+1,31,TRUE),TRUE):AE51),AF52) -> 0 | AG51: =IF(AND($X51<>"",$Y51<>""),SUM(INDIRECT(ADDRESS(LOOKUP(1E+307,$X$33:$X50,$AD$33:$AD50)+1,7,TRUE),TRUE):G51),AG52) -> 0 | AH51: =IF(AND($X51<>"",$Y51<>""),SUM(INDIRECT(ADDRESS(LOOKUP(1E+307,$Y$33:$Y50,$AD$33:$AD50)+1,8,TRUE),TRUE):H51),AH52) -> 0 | AI51: =IF(AND($X51<>"",$Y51<>""),X51-AG51-INDIRECT(ADDRESS(LOOKUP(1E+307,$X$33:$X50,$AD$33:$AD50),24,TRUE),TRUE),AI52) -> 0 | AJ51: =IF(AND($X51<>"",$Y51<>""),Y51-AH51-INDIRECT(ADDRESS(LOOKUP(1E+307,$X$33:$X50,$AD$33:$AD50),25,TRUE),TRUE),AJ52) -> 0 | AM51: 0 | AN51: 0 | AP51: -1 | AQ51: -1 | AR51: -1 | AS51: -1 | AX51: 0 | AY51: 0 | BD51: 0 | BE51: 0 | BF51: 1 | BG51: 0 | BH51: 1 | BM51: =IF(BK51<>"",POWER((SUM($BK$34:BK50))+(BK51/2)-(0.5*SUM($BK$34:$BK$132)),2),0) -> 0 | BN51: =IF(BL51<>"",POWER(0.5*SUM($BL$34:$BL$132)-SUM($BL$34:BL50)-(0.5*BL51),2),0) -> 0
A52: =IF($F52="","",IF($A$1=PGZ,"0",19)) ->  | B52: =IF($F52="","",IF($A$1=PGZ,19,IF(AND($A$1=PGG,T52=1),1,20))) ->  | K52: =IF(AND($X52<>"",$Y52<>""),$X52,IF(Horizontaldistanz="","",IF(OR($A$1=PGG,$A$1=LXE),($K51+dY-Fehler_Y),IF(OR($A$1=PGO,$A$1=LNE),($K51+dY),IF($A$1=PGZ,(Horizontaldistanz*SIN(Richtung*Winkelmaß_Hz)+LOOKUP(1E+307,$X$33:$X51,$X$33:$X51)),"Err"))))) ->  | L52: =IF(AND($X52<>"",$Y52<>""),$Y52,IF(Horizontaldistanz="","",IF(OR($A$1=PGG,$A$1=LXE),($L51+dX-Fehler_X),IF(OR($A$1=PGO,$A$1=LNE),($L51+dX),IF($A$1=PGZ,(Horizontaldistanz*COS(Richtung*Winkelmaß_Hz)+LOOKUP(1E+307,$Y$33:$Y51,$Y$33:$Y51)),"Err"))))) ->  | M52: 0 | N52: -1 | O52: -1 | P52: Fläche | R52: 0 | S52: 20 | T52: =IF($F52="","",IF($A$1=PGZ,"0",17)) ->  | U52: =IF($F52="","",IF($A$1=PGZ,17,IF(AND($A$1=PGG,AM52=1),1,18))) ->  | V52: =IF($F52="","",IF($A$1=PGZ,"0",19)) ->  | W52: =IF($F52="","",IF($A$1=PGZ,19,IF(AND($A$1=PGG,AO52=1),1,20))) ->  | AC52: 0 | AD52: =ROW() -> 52 | AF52: =IF(AND($X52<>"",$Y52<>""),SUM(INDIRECT(ADDRESS(LOOKUP(1E+307,$Y$33:$Y51,$AD$33:$AD51)+1,31,TRUE),TRUE):AE52),AF53) -> 0 | AG52: =IF(AND($X52<>"",$Y52<>""),SUM(INDIRECT(ADDRESS(LOOKUP(1E+307,$X$33:$X51,$AD$33:$AD51)+1,7,TRUE),TRUE):G52),AG53) -> 0 | AH52: =IF(AND($X52<>"",$Y52<>""),SUM(INDIRECT(ADDRESS(LOOKUP(1E+307,$Y$33:$Y51,$AD$33:$AD51)+1,8,TRUE),TRUE):H52),AH53) -> 0 | AI52: =IF(AND($X52<>"",$Y52<>""),X52-AG52-INDIRECT(ADDRESS(LOOKUP(1E+307,$X$33:$X51,$AD$33:$AD51),24,TRUE),TRUE),AI53) -> 0 | AJ52: =IF(AND($X52<>"",$Y52<>""),Y52-AH52-INDIRECT(ADDRESS(LOOKUP(1E+307,$X$33:$X51,$AD$33:$AD51),25,TRUE),TRUE),AJ53) -> 0 | AM52: 0 | AN52: 0 | AP52: -1 | AQ52: -1 | AR52: -1 | AS52: -1 | AX52: 0 | AY52: 0 | BD52: 0 | BE52: 0 | BF52: 1 | BG52: 0 | BH52: 1 | BM52: =IF(BK52<>"",POWER((SUM($BK$34:BK51))+(BK52/2)-(0.5*SUM($BK$34:$BK$132)),2),0) -> 0 | BN52: =IF(BL52<>"",POWER(0.5*SUM($BL$34:$BL$132)-SUM($BL$34:BL51)-(0.5*BL52),2),0) -> 0
A53: =IF($F53="","",IF($A$1=PGZ,"0",20)) ->  | B53: =IF($F53="","",IF($A$1=PGZ,20,IF(AND($A$1=PGG,T53=1),1,21))) ->  | K53: =IF(AND($X53<>"",$Y53<>""),$X53,IF(Horizontaldistanz="","",IF(OR($A$1=PGG,$A$1=LXE),($K52+dY-Fehler_Y),IF(OR($A$1=PGO,$A$1=LNE),($K52+dY),IF($A$1=PGZ,(Horizontaldistanz*SIN(Richtung*Winkelmaß_Hz)+LOOKUP(1E+307,$X$33:$X52,$X$33:$X52)),"Err"))))) ->  | L53: =IF(AND($X53<>"",$Y53<>""),$Y53,IF(Horizontaldistanz="","",IF(OR($A$1=PGG,$A$1=LXE),($L52+dX-Fehler_X),IF(OR($A$1=PGO,$A$1=LNE),($L52+dX),IF($A$1=PGZ,(Horizontaldistanz*COS(Richtung*Winkelmaß_Hz)+LOOKUP(1E+307,$Y$33:$Y52,$Y$33:$Y52)),"Err"))))) ->  | M53: 0 | N53: -1 | O53: -1 | P53: =ABS(SUM(Fläche)/2) -> 0 | R53: 0 | S53: 21 | T53: =IF($F53="","",IF($A$1=PGZ,"0",18)) ->  | U53: =IF($F53="","",IF($A$1=PGZ,18,IF(AND($A$1=PGG,AM53=1),1,19))) ->  | V53: =IF($F53="","",IF($A$1=PGZ,"0",20)) ->  | W53: =IF($F53="","",IF($A$1=PGZ,20,IF(AND($A$1=PGG,AO53=1),1,21))) ->  | AC53: 0 | AD53: =ROW() -> 53 | AF53: =IF(AND($X53<>"",$Y53<>""),SUM(INDIRECT(ADDRESS(LOOKUP(1E+307,$Y$33:$Y52,$AD$33:$AD52)+1,31,TRUE),TRUE):AE53),AF54) -> 0 | AG53: =IF(AND($X53<>"",$Y53<>""),SUM(INDIRECT(ADDRESS(LOOKUP(1E+307,$X$33:$X52,$AD$33:$AD52)+1,7,TRUE),TRUE):G53),AG54) -> 0 | AH53: =IF(AND($X53<>"",$Y53<>""),SUM(INDIRECT(ADDRESS(LOOKUP(1E+307,$Y$33:$Y52,$AD$33:$AD52)+1,8,TRUE),TRUE):H53),AH54) -> 0 | AI53: =IF(AND($X53<>"",$Y53<>""),X53-AG53-INDIRECT(ADDRESS(LOOKUP(1E+307,$X$33:$X52,$AD$33:$AD52),24,TRUE),TRUE),AI54) -> 0 | AJ53: =IF(AND($X53<>"",$Y53<>""),Y53-AH53-INDIRECT(ADDRESS(LOOKUP(1E+307,$X$33:$X52,$AD$33:$AD52),25,TRUE),TRUE),AJ54) -> 0 | AM53: 0 | AN53: 0 | AP53: -1 | AQ53: -1 | AR53: -1 | AS53: -1 | AX53: 0 | AY53: 0 | BD53: 0 | BE53: 0 | BF53: 1 | BG53: 0 | BH53: 1 | BM53: =IF(BK53<>"",POWER((SUM($BK$34:BK52))+(BK53/2)-(0.5*SUM($BK$34:$BK$132)),2),0) -> 0 | BN53: =IF(BL53<>"",POWER(0.5*SUM($BL$34:$BL$132)-SUM($BL$34:BL52)-(0.5*BL53),2),0) -> 0
A54: =IF($F54="","",IF($A$1=PGZ,"0",21)) ->  | B54: =IF($F54="","",IF($A$1=PGZ,21,IF(AND($A$1=PGG,T54=1),1,22))) ->  | K54: =IF(AND($X54<>"",$Y54<>""),$X54,IF(Horizontaldistanz="","",IF(OR($A$1=PGG,$A$1=LXE),($K53+dY-Fehler_Y),IF(OR($A$1=PGO,$A$1=LNE),($K53+dY),IF($A$1=PGZ,(Horizontaldistanz*SIN(Richtung*Winkelmaß_Hz)+LOOKUP(1E+307,$X$33:$X53,$X$33:$X53)),"Err"))))) ->  | L54: =IF(AND($X54<>"",$Y54<>""),$Y54,IF(Horizontaldistanz="","",IF(OR($A$1=PGG,$A$1=LXE),($L53+dX-Fehler_X),IF(OR($A$1=PGO,$A$1=LNE),($L53+dX),IF($A$1=PGZ,(Horizontaldistanz*COS(Richtung*Winkelmaß_Hz)+LOOKUP(1E+307,$Y$33:$Y53,$Y$33:$Y53)),"Err"))))) ->  | M54: 0 | N54: -1 | O54: -1 | R54: 0 | S54: 22 | T54: =IF($F54="","",IF($A$1=PGZ,"0",19)) ->  | U54: =IF($F54="","",IF($A$1=PGZ,19,IF(AND($A$1=PGG,AM54=1),1,20))) ->  | V54: =IF($F54="","",IF($A$1=PGZ,"0",21)) ->  | W54: =IF($F54="","",IF($A$1=PGZ,21,IF(AND($A$1=PGG,AO54=1),1,22))) ->  | AC54: 0 | AD54: =ROW() -> 54 | AF54: =IF(AND($X54<>"",$Y54<>""),SUM(INDIRECT(ADDRESS(LOOKUP(1E+307,$Y$33:$Y53,$AD$33:$AD53)+1,31,TRUE),TRUE):AE54),AF55) -> 0 | AG54: =IF(AND($X54<>"",$Y54<>""),SUM(INDIRECT(ADDRESS(LOOKUP(1E+307,$X$33:$X53,$AD$33:$AD53)+1,7,TRUE),TRUE):G54),AG55) -> 0 | AH54: =IF(AND($X54<>"",$Y54<>""),SUM(INDIRECT(ADDRESS(LOOKUP(1E+307,$Y$33:$Y53,$AD$33:$AD53)+1,8,TRUE),TRUE):H54),AH55) -> 0 | AI54: =IF(AND($X54<>"",$Y54<>""),X54-AG54-INDIRECT(ADDRESS(LOOKUP(1E+307,$X$33:$X53,$AD$33:$AD53),24,TRUE),TRUE),AI55) -> 0 | AJ54: =IF(AND($X54<>"",$Y54<>""),Y54-AH54-INDIRECT(ADDRESS(LOOKUP(1E+307,$X$33:$X53,$AD$33:$AD53),25,TRUE),TRUE),AJ55) -> 0 | AM54: 0 | AN54: 0 | AP54: -1 | AQ54: -1 | AR54: -1 | AS54: -1 | AX54: 0 | AY54: 0 | BD54: 0 | BE54: 0 | BF54: 1 | BG54: 0 | BH54: 1 | BM54: =IF(BK54<>"",POWER((SUM($BK$34:BK53))+(BK54/2)-(0.5*SUM($BK$34:$BK$132)),2),0) -> 0 | BN54: =IF(BL54<>"",POWER(0.5*SUM($BL$34:$BL$132)-SUM($BL$34:BL53)-(0.5*BL54),2),0) -> 0
A55: =IF($F55="","",IF($A$1=PGZ,"0",22)) ->  | B55: =IF($F55="","",IF($A$1=PGZ,22,IF(AND($A$1=PGG,T55=1),1,23))) ->  | K55: =IF(AND($X55<>"",$Y55<>""),$X55,IF(Horizontaldistanz="","",IF(OR($A$1=PGG,$A$1=LXE),($K54+dY-Fehler_Y),IF(OR($A$1=PGO,$A$1=LNE),($K54+dY),IF($A$1=PGZ,(Horizontaldistanz*SIN(Richtung*Winkelmaß_Hz)+LOOKUP(1E+307,$X$33:$X54,$X$33:$X54)),"Err"))))) ->  | L55: =IF(AND($X55<>"",$Y55<>""),$Y55,IF(Horizontaldistanz="","",IF(OR($A$1=PGG,$A$1=LXE),($L54+dX-Fehler_X),IF(OR($A$1=PGO,$A$1=LNE),($L54+dX),IF($A$1=PGZ,(Horizontaldistanz*COS(Richtung*Winkelmaß_Hz)+LOOKUP(1E+307,$Y$33:$Y54,$Y$33:$Y54)),"Err"))))) ->  | M55: 0 | N55: -1 | O55: -1 | P55: Grad | Q55: Polare Aufnahme einer Fläche als geschlossenes Ringpolygon mit streckenproportionaler Fehlerverteilung | R55: 0 | S55: 23 | T55: =IF($F55="","",IF($A$1=PGZ,"0",20)) ->  | U55: =IF($F55="","",IF($A$1=PGZ,20,IF(AND($A$1=PGG,AM55=1),1,21))) ->  | V55: =IF($F55="","",IF($A$1=PGZ,"0",22)) ->  | W55: =IF($F55="","",IF($A$1=PGZ,22,IF(AND($A$1=PGG,AO55=1),1,23))) ->  | AC55: 0 | AD55: =ROW() -> 55 | AF55: =IF(AND($X55<>"",$Y55<>""),SUM(INDIRECT(ADDRESS(LOOKUP(1E+307,$Y$33:$Y54,$AD$33:$AD54)+1,31,TRUE),TRUE):AE55),AF56) -> 0 | AG55: =IF(AND($X55<>"",$Y55<>""),SUM(INDIRECT(ADDRESS(LOOKUP(1E+307,$X$33:$X54,$AD$33:$AD54)+1,7,TRUE),TRUE):G55),AG56) -> 0 | AH55: =IF(AND($X55<>"",$Y55<>""),SUM(INDIRECT(ADDRESS(LOOKUP(1E+307,$Y$33:$Y54,$AD$33:$AD54)+1,8,TRUE),TRUE):H55),AH56) -> 0 | AI55: =IF(AND($X55<>"",$Y55<>""),X55-AG55-INDIRECT(ADDRESS(LOOKUP(1E+307,$X$33:$X54,$AD$33:$AD54),24,TRUE),TRUE),AI56) -> 0 | AJ55: =IF(AND($X55<>"",$Y55<>""),Y55-AH55-INDIRECT(ADDRESS(LOOKUP(1E+307,$X$33:$X54,$AD$33:$AD54),25,TRUE),TRUE),AJ56) -> 0 | AM55: 0 | AN55: 0 | AP55: -1 | AQ55: -1 | AR55: -1 | AS55: -1 | AX55: 0 | AY55: 0 | BD55: 0 | BE55: 0 | BF55: 1 | BG55: 0 | BH55: 1 | BM55: =IF(BK55<>"",POWER((SUM($BK$34:BK54))+(BK55/2)-(0.5*SUM($BK$34:$BK$132)),2),0) -> 0 | BN55: =IF(BL55<>"",POWER(0.5*SUM($BL$34:$BL$132)-SUM($BL$34:BL54)-(0.5*BL55),2),0) -> 0
A56: =IF($F56="","",IF($A$1=PGZ,"0",23)) ->  | B56: =IF($F56="","",IF($A$1=PGZ,23,IF(AND($A$1=PGG,T56=1),1,24))) ->  | K56: =IF(AND($X56<>"",$Y56<>""),$X56,IF(Horizontaldistanz="","",IF(OR($A$1=PGG,$A$1=LXE),($K55+dY-Fehler_Y),IF(OR($A$1=PGO,$A$1=LNE),($K55+dY),IF($A$1=PGZ,(Horizontaldistanz*SIN(Richtung*Winkelmaß_Hz)+LOOKUP(1E+307,$X$33:$X55,$X$33:$X55)),"Err"))))) ->  | L56: =IF(AND($X56<>"",$Y56<>""),$Y56,IF(Horizontaldistanz="","",IF(OR($A$1=PGG,$A$1=LXE),($L55+dX-Fehler_X),IF(OR($A$1=PGO,$A$1=LNE),($L55+dX),IF($A$1=PGZ,(Horizontaldistanz*COS(Richtung*Winkelmaß_Hz)+LOOKUP(1E+307,$Y$33:$Y55,$Y$33:$Y55)),"Err"))))) ->  | M56: 0 | N56: -1 | O56: -1 | P56: Gon | Q56: Polare Aufnahme einer Fläche als offenes Polygon | R56: 0 | S56: 24 | T56: =IF($F56="","",IF($A$1=PGZ,"0",21)) ->  | U56: =IF($F56="","",IF($A$1=PGZ,21,IF(AND($A$1=PGG,AM56=1),1,22))) ->  | V56: =IF($F56="","",IF($A$1=PGZ,"0",23)) ->  | W56: =IF($F56="","",IF($A$1=PGZ,23,IF(AND($A$1=PGG,AO56=1),1,24))) ->  | AC56: 0 | AD56: =ROW() -> 56 | AF56: =IF(AND($X56<>"",$Y56<>""),SUM(INDIRECT(ADDRESS(LOOKUP(1E+307,$Y$33:$Y55,$AD$33:$AD55)+1,31,TRUE),TRUE):AE56),AF57) -> 0 | AG56: =IF(AND($X56<>"",$Y56<>""),SUM(INDIRECT(ADDRESS(LOOKUP(1E+307,$X$33:$X55,$AD$33:$AD55)+1,7,TRUE),TRUE):G56),AG57) -> 0 | AH56: =IF(AND($X56<>"",$Y56<>""),SUM(INDIRECT(ADDRESS(LOOKUP(1E+307,$Y$33:$Y55,$AD$33:$AD55)+1,8,TRUE),TRUE):H56),AH57) -> 0 | AI56: =IF(AND($X56<>"",$Y56<>""),X56-AG56-INDIRECT(ADDRESS(LOOKUP(1E+307,$X$33:$X55,$AD$33:$AD55),24,TRUE),TRUE),AI57) -> 0 | AJ56: =IF(AND($X56<>"",$Y56<>""),Y56-AH56-INDIRECT(ADDRESS(LOOKUP(1E+307,$X$33:$X55,$AD$33:$AD55),25,TRUE),TRUE),AJ57) -> 0 | AM56: 0 | AN56: 0 | AP56: -1 | AQ56: -1 | AR56: -1 | AS56: -1 | AX56: 0 | AY56: 0 | BD56: 0 | BE56: 0 | BF56: 1 | BG56: 0 | BH56: 1 | BM56: =IF(BK56<>"",POWER((SUM($BK$34:BK55))+(BK56/2)-(0.5*SUM($BK$34:$BK$132)),2),0) -> 0 | BN56: =IF(BL56<>"",POWER(0.5*SUM($BL$34:$BL$132)-SUM($BL$34:BL55)-(0.5*BL56),2),0) -> 0
A57: =IF($F57="","",IF($A$1=PGZ,"0",24)) ->  | B57: =IF($F57="","",IF($A$1=PGZ,24,IF(AND($A$1=PGG,T57=1),1,25))) ->  | K57: =IF(AND($X57<>"",$Y57<>""),$X57,IF(Horizontaldistanz="","",IF(OR($A$1=PGG,$A$1=LXE),($K56+dY-Fehler_Y),IF(OR($A$1=PGO,$A$1=LNE),($K56+dY),IF($A$1=PGZ,(Horizontaldistanz*SIN(Richtung*Winkelmaß_Hz)+LOOKUP(1E+307,$X$33:$X56,$X$33:$X56)),"Err"))))) ->  | L57: =IF(AND($X57<>"",$Y57<>""),$Y57,IF(Horizontaldistanz="","",IF(OR($A$1=PGG,$A$1=LXE),($L56+dX-Fehler_X),IF(OR($A$1=PGO,$A$1=LNE),($L56+dX),IF($A$1=PGZ,(Horizontaldistanz*COS(Richtung*Winkelmaß_Hz)+LOOKUP(1E+307,$Y$33:$Y56,$Y$33:$Y56)),"Err"))))) ->  | M57: 0 | N57: -1 | O57: -1 | P57: Prozent | Q57: Polare Aufnahme einer Fläche mit zentraler Aufstellung | R57: 0 | S57: 25 | T57: =IF($F57="","",IF($A$1=PGZ,"0",22)) ->  | U57: =IF($F57="","",IF($A$1=PGZ,22,IF(AND($A$1=PGG,AM57=1),1,23))) ->  | V57: =IF($F57="","",IF($A$1=PGZ,"0",24)) ->  | W57: =IF($F57="","",IF($A$1=PGZ,24,IF(AND($A$1=PGG,AO57=1),1,25))) ->  | AC57: 0 | AD57: =ROW() -> 57 | AF57: =IF(AND($X57<>"",$Y57<>""),SUM(INDIRECT(ADDRESS(LOOKUP(1E+307,$Y$33:$Y56,$AD$33:$AD56)+1,31,TRUE),TRUE):AE57),AF58) -> 0 | AG57: =IF(AND($X57<>"",$Y57<>""),SUM(INDIRECT(ADDRESS(LOOKUP(1E+307,$X$33:$X56,$AD$33:$AD56)+1,7,TRUE),TRUE):G57),AG58) -> 0 | AH57: =IF(AND($X57<>"",$Y57<>""),SUM(INDIRECT(ADDRESS(LOOKUP(1E+307,$Y$33:$Y56,$AD$33:$AD56)+1,8,TRUE),TRUE):H57),AH58) -> 0 | AI57: =IF(AND($X57<>"",$Y57<>""),X57-AG57-INDIRECT(ADDRESS(LOOKUP(1E+307,$X$33:$X56,$AD$33:$AD56),24,TRUE),TRUE),AI58) -> 0 | AJ57: =IF(AND($X57<>"",$Y57<>""),Y57-AH57-INDIRECT(ADDRESS(LOOKUP(1E+307,$X$33:$X56,$AD$33:$AD56),25,TRUE),TRUE),AJ58) -> 0 | AM57: 0 | AN57: 0 | AP57: -1 | AQ57: -1 | AR57: -1 | AS57: -1 | AX57: 0 | AY57: 0 | BD57: 0 | BE57: 0 | BF57: 1 | BG57: 0 | BH57: 1 | BM57: =IF(BK57<>"",POWER((SUM($BK$34:BK56))+(BK57/2)-(0.5*SUM($BK$34:$BK$132)),2),0) -> 0 | BN57: =IF(BL57<>"",POWER(0.5*SUM($BL$34:$BL$132)-SUM($BL$34:BL56)-(0.5*BL57),2),0) -> 0
A58: =IF($F58="","",IF($A$1=PGZ,"0",25)) ->  | B58: =IF($F58="","",IF($A$1=PGZ,25,IF(AND($A$1=PGG,T58=1),1,26))) ->  | K58: =IF(AND($X58<>"",$Y58<>""),$X58,IF(Horizontaldistanz="","",IF(OR($A$1=PGG,$A$1=LXE),($K57+dY-Fehler_Y),IF(OR($A$1=PGO,$A$1=LNE),($K57+dY),IF($A$1=PGZ,(Horizontaldistanz*SIN(Richtung*Winkelmaß_Hz)+LOOKUP(1E+307,$X$33:$X57,$X$33:$X57)),"Err"))))) ->  | L58: =IF(AND($X58<>"",$Y58<>""),$Y58,IF(Horizontaldistanz="","",IF(OR($A$1=PGG,$A$1=LXE),($L57+dX-Fehler_X),IF(OR($A$1=PGO,$A$1=LNE),($L57+dX),IF($A$1=PGZ,(Horizontaldistanz*COS(Richtung*Winkelmaß_Hz)+LOOKUP(1E+307,$Y$33:$Y57,$Y$33:$Y57)),"Err"))))) ->  | M58: 0 | N58: -1 | O58: -1 | P58: % | Q58: Polare Aufnahme eines Linienzuges | R58: 0 | S58: 26 | T58: =IF($F58="","",IF($A$1=PGZ,"0",23)) ->  | U58: =IF($F58="","",IF($A$1=PGZ,23,IF(AND($A$1=PGG,AM58=1),1,24))) ->  | V58: =IF($F58="","",IF($A$1=PGZ,"0",25)) ->  | W58: =IF($F58="","",IF($A$1=PGZ,25,IF(AND($A$1=PGG,AO58=1),1,26))) ->  | AC58: 0 | AD58: =ROW() -> 58 | AF58: =IF(AND($X58<>"",$Y58<>""),SUM(INDIRECT(ADDRESS(LOOKUP(1E+307,$Y$33:$Y57,$AD$33:$AD57)+1,31,TRUE),TRUE):AE58),AF59) -> 0 | AG58: =IF(AND($X58<>"",$Y58<>""),SUM(INDIRECT(ADDRESS(LOOKUP(1E+307,$X$33:$X57,$AD$33:$AD57)+1,7,TRUE),TRUE):G58),AG59) -> 0 | AH58: =IF(AND($X58<>"",$Y58<>""),SUM(INDIRECT(ADDRESS(LOOKUP(1E+307,$Y$33:$Y57,$AD$33:$AD57)+1,8,TRUE),TRUE):H58),AH59) -> 0 | AI58: =IF(AND($X58<>"",$Y58<>""),X58-AG58-INDIRECT(ADDRESS(LOOKUP(1E+307,$X$33:$X57,$AD$33:$AD57),24,TRUE),TRUE),AI59) -> 0 | AJ58: =IF(AND($X58<>"",$Y58<>""),Y58-AH58-INDIRECT(ADDRESS(LOOKUP(1E+307,$X$33:$X57,$AD$33:$AD57),25,TRUE),TRUE),AJ59) -> 0 | AM58: 0 | AN58: 0 | AP58: -1 | AQ58: -1 | AR58: -1 | AS58: -1 | AX58: 0 | AY58: 0 | BD58: 0 | BE58: 0 | BF58: 1 | BG58: 0 | BH58: 1 | BM58: =IF(BK58<>"",POWER((SUM($BK$34:BK57))+(BK58/2)-(0.5*SUM($BK$34:$BK$132)),2),0) -> 0 | BN58: =IF(BL58<>"",POWER(0.5*SUM($BL$34:$BL$132)-SUM($BL$34:BL57)-(0.5*BL58),2),0) -> 0
A59: =IF($F59="","",IF($A$1=PGZ,"0",26)) ->  | B59: =IF($F59="","",IF($A$1=PGZ,26,IF(AND($A$1=PGG,T59=1),1,27))) ->  | K59: =IF(AND($X59<>"",$Y59<>""),$X59,IF(Horizontaldistanz="","",IF(OR($A$1=PGG,$A$1=LXE),($K58+dY-Fehler_Y),IF(OR($A$1=PGO,$A$1=LNE),($K58+dY),IF($A$1=PGZ,(Horizontaldistanz*SIN(Richtung*Winkelmaß_Hz)+LOOKUP(1E+307,$X$33:$X58,$X$33:$X58)),"Err"))))) ->  | L59: =IF(AND($X59<>"",$Y59<>""),$Y59,IF(Horizontaldistanz="","",IF(OR($A$1=PGG,$A$1=LXE),($L58+dX-Fehler_X),IF(OR($A$1=PGO,$A$1=LNE),($L58+dX),IF($A$1=PGZ,(Horizontaldistanz*COS(Richtung*Winkelmaß_Hz)+LOOKUP(1E+307,$Y$33:$Y58,$Y$33:$Y58)),"Err"))))) ->  | M59: 0 | N59: -1 | O59: -1 | P59: a | Q59: Polare Aufnahme eines Linienzuges mit mehreren Einhängepunkten | R59: 0 | S59: 27 | T59: =IF($F59="","",IF($A$1=PGZ,"0",24)) ->  | U59: =IF($F59="","",IF($A$1=PGZ,24,IF(AND($A$1=PGG,AM59=1),1,25))) ->  | V59: =IF($F59="","",IF($A$1=PGZ,"0",26)) ->  | W59: =IF($F59="","",IF($A$1=PGZ,26,IF(AND($A$1=PGG,AO59=1),1,27))) ->  | AC59: 0 | AD59: =ROW() -> 59 | AF59: =IF(AND($X59<>"",$Y59<>""),SUM(INDIRECT(ADDRESS(LOOKUP(1E+307,$Y$33:$Y58,$AD$33:$AD58)+1,31,TRUE),TRUE):AE59),AF60) -> 0 | AG59: =IF(AND($X59<>"",$Y59<>""),SUM(INDIRECT(ADDRESS(LOOKUP(1E+307,$X$33:$X58,$AD$33:$AD58)+1,7,TRUE),TRUE):G59),AG60) -> 0 | AH59: =IF(AND($X59<>"",$Y59<>""),SUM(INDIRECT(ADDRESS(LOOKUP(1E+307,$Y$33:$Y58,$AD$33:$AD58)+1,8,TRUE),TRUE):H59),AH60) -> 0 | AI59: =IF(AND($X59<>"",$Y59<>""),X59-AG59-INDIRECT(ADDRESS(LOOKUP(1E+307,$X$33:$X58,$AD$33:$AD58),24,TRUE),TRUE),AI60) -> 0 | AJ59: =IF(AND($X59<>"",$Y59<>""),Y59-AH59-INDIRECT(ADDRESS(LOOKUP(1E+307,$X$33:$X58,$AD$33:$AD58),25,TRUE),TRUE),AJ60) -> 0 | AM59: 0 | AN59: 0 | AP59: -1 | AQ59: -1 | AR59: -1 | AS59: -1 | AX59: 0 | AY59: 0 | BD59: 0 | BE59: 0 | BF59: 1 | BG59: 0 | BH59: 1 | BM59: =IF(BK59<>"",POWER((SUM($BK$34:BK58))+(BK59/2)-(0.5*SUM($BK$34:$BK$132)),2),0) -> 0 | BN59: =IF(BL59<>"",POWER(0.5*SUM($BL$34:$BL$132)-SUM($BL$34:BL58)-(0.5*BL59),2),0) -> 0
A60: =IF($F60="","",IF($A$1=PGZ,"0",27)) ->  | B60: =IF($F60="","",IF($A$1=PGZ,27,IF(AND($A$1=PGG,T60=1),1,28))) ->  | K60: =IF(AND($X60<>"",$Y60<>""),$X60,IF(Horizontaldistanz="","",IF(OR($A$1=PGG,$A$1=LXE),($K59+dY-Fehler_Y),IF(OR($A$1=PGO,$A$1=LNE),($K59+dY),IF($A$1=PGZ,(Horizontaldistanz*SIN(Richtung*Winkelmaß_Hz)+LOOKUP(1E+307,$X$33:$X59,$X$33:$X59)),"Err"))))) ->  | L60: =IF(AND($X60<>"",$Y60<>""),$Y60,IF(Horizontaldistanz="","",IF(OR($A$1=PGG,$A$1=LXE),($L59+dX-Fehler_X),IF(OR($A$1=PGO,$A$1=LNE),($L59+dX),IF($A$1=PGZ,(Horizontaldistanz*COS(Richtung*Winkelmaß_Hz)+LOOKUP(1E+307,$Y$33:$Y59,$Y$33:$Y59)),"Err"))))) ->  | M60: 0 | N60: -1 | O60: -1 | P60: z | Q60: Aeq 4.0 | R60: 0 | S60: 28 | T60: =IF($F60="","",IF($A$1=PGZ,"0",25)) ->  | U60: =IF($F60="","",IF($A$1=PGZ,25,IF(AND($A$1=PGG,AM60=1),1,26))) ->  | V60: =IF($F60="","",IF($A$1=PGZ,"0",27)) ->  | W60: =IF($F60="","",IF($A$1=PGZ,27,IF(AND($A$1=PGG,AO60=1),1,28))) ->  | AC60: 0 | AD60: =ROW() -> 60 | AF60: =IF(AND($X60<>"",$Y60<>""),SUM(INDIRECT(ADDRESS(LOOKUP(1E+307,$Y$33:$Y59,$AD$33:$AD59)+1,31,TRUE),TRUE):AE60),AF61) -> 0 | AG60: =IF(AND($X60<>"",$Y60<>""),SUM(INDIRECT(ADDRESS(LOOKUP(1E+307,$X$33:$X59,$AD$33:$AD59)+1,7,TRUE),TRUE):G60),AG61) -> 0 | AH60: =IF(AND($X60<>"",$Y60<>""),SUM(INDIRECT(ADDRESS(LOOKUP(1E+307,$Y$33:$Y59,$AD$33:$AD59)+1,8,TRUE),TRUE):H60),AH61) -> 0 | AI60: =IF(AND($X60<>"",$Y60<>""),X60-AG60-INDIRECT(ADDRESS(LOOKUP(1E+307,$X$33:$X59,$AD$33:$AD59),24,TRUE),TRUE),AI61) -> 0 | AJ60: =IF(AND($X60<>"",$Y60<>""),Y60-AH60-INDIRECT(ADDRESS(LOOKUP(1E+307,$X$33:$X59,$AD$33:$AD59),25,TRUE),TRUE),AJ61) -> 0 | AM60: 0 | AN60: 0 | AP60: -1 | AQ60: -1 | AR60: -1 | AS60: -1 | AX60: 0 | AY60: 0 | BD60: 0 | BE60: 0 | BF60: 1 | BG60: 0 | BH60: 1 | BM60: =IF(BK60<>"",POWER((SUM($BK$34:BK59))+(BK60/2)-(0.5*SUM($BK$34:$BK$132)),2),0) -> 0 | BN60: =IF(BL60<>"",POWER(0.5*SUM($BL$34:$BL$132)-SUM($BL$34:BL59)-(0.5*BL60),2),0) -> 0
A61: =IF($F61="","",IF($A$1=PGZ,"0",28)) ->  | B61: =IF($F61="","",IF($A$1=PGZ,28,IF(AND($A$1=PGG,T61=1),1,29))) ->  | K61: =IF(AND($X61<>"",$Y61<>""),$X61,IF(Horizontaldistanz="","",IF(OR($A$1=PGG,$A$1=LXE),($K60+dY-Fehler_Y),IF(OR($A$1=PGO,$A$1=LNE),($K60+dY),IF($A$1=PGZ,(Horizontaldistanz*SIN(Richtung*Winkelmaß_Hz)+LOOKUP(1E+307,$X$33:$X60,$X$33:$X60)),"Err"))))) ->  | L61: =IF(AND($X61<>"",$Y61<>""),$Y61,IF(Horizontaldistanz="","",IF(OR($A$1=PGG,$A$1=LXE),($L60+dX-Fehler_X),IF(OR($A$1=PGO,$A$1=LNE),($L60+dX),IF($A$1=PGZ,(Horizontaldistanz*COS(Richtung*Winkelmaß_Hz)+LOOKUP(1E+307,$Y$33:$Y60,$Y$33:$Y60)),"Err"))))) ->  | M61: 0 | N61: -1 | O61: -1 | R61: 0 | S61: 29 | T61: =IF($F61="","",IF($A$1=PGZ,"0",26)) ->  | U61: =IF($F61="","",IF($A$1=PGZ,26,IF(AND($A$1=PGG,AM61=1),1,27))) ->  | V61: =IF($F61="","",IF($A$1=PGZ,"0",28)) ->  | W61: =IF($F61="","",IF($A$1=PGZ,28,IF(AND($A$1=PGG,AO61=1),1,29))) ->  | AC61: 0 | AD61: =ROW() -> 61 | AF61: =IF(AND($X61<>"",$Y61<>""),SUM(INDIRECT(ADDRESS(LOOKUP(1E+307,$Y$33:$Y60,$AD$33:$AD60)+1,31,TRUE),TRUE):AE61),AF62) -> 0 | AG61: =IF(AND($X61<>"",$Y61<>""),SUM(INDIRECT(ADDRESS(LOOKUP(1E+307,$X$33:$X60,$AD$33:$AD60)+1,7,TRUE),TRUE):G61),AG62) -> 0 | AH61: =IF(AND($X61<>"",$Y61<>""),SUM(INDIRECT(ADDRESS(LOOKUP(1E+307,$Y$33:$Y60,$AD$33:$AD60)+1,8,TRUE),TRUE):H61),AH62) -> 0 | AI61: =IF(AND($X61<>"",$Y61<>""),X61-AG61-INDIRECT(ADDRESS(LOOKUP(1E+307,$X$33:$X60,$AD$33:$AD60),24,TRUE),TRUE),AI62) -> 0 | AJ61: =IF(AND($X61<>"",$Y61<>""),Y61-AH61-INDIRECT(ADDRESS(LOOKUP(1E+307,$X$33:$X60,$AD$33:$AD60),25,TRUE),TRUE),AJ62) -> 0 | AM61: 0 | AN61: 0 | AP61: -1 | AQ61: -1 | AR61: -1 | AS61: -1 | AX61: 0 | AY61: 0 | BD61: 0 | BE61: 0 | BF61: 1 | BG61: 0 | BH61: 1 | BM61: =IF(BK61<>"",POWER((SUM($BK$34:BK60))+(BK61/2)-(0.5*SUM($BK$34:$BK$132)),2),0) -> 0 | BN61: =IF(BL61<>"",POWER(0.5*SUM($BL$34:$BL$132)-SUM($BL$34:BL60)-(0.5*BL61),2),0) -> 0
A62: =IF($F62="","",IF($A$1=PGZ,"0",29)) ->  | B62: =IF($F62="","",IF($A$1=PGZ,29,IF(AND($A$1=PGG,T62=1),1,30))) ->  | K62: =IF(AND($X62<>"",$Y62<>""),$X62,IF(Horizontaldistanz="","",IF(OR($A$1=PGG,$A$1=LXE),($K61+dY-Fehler_Y),IF(OR($A$1=PGO,$A$1=LNE),($K61+dY),IF($A$1=PGZ,(Horizontaldistanz*SIN(Richtung*Winkelmaß_Hz)+LOOKUP(1E+307,$X$33:$X61,$X$33:$X61)),"Err"))))) ->  | L62: =IF(AND($X62<>"",$Y62<>""),$Y62,IF(Horizontaldistanz="","",IF(OR($A$1=PGG,$A$1=LXE),($L61+dX-Fehler_X),IF(OR($A$1=PGO,$A$1=LNE),($L61+dX),IF($A$1=PGZ,(Horizontaldistanz*COS(Richtung*Winkelmaß_Hz)+LOOKUP(1E+307,$Y$33:$Y61,$Y$33:$Y61)),"Err"))))) ->  | M62: 0 | N62: -1 | O62: -1 | P62: J | R62: 0 | S62: =IF(AND(K63="",L63=""),IF(AND(K63="",L63="",K62="",L62=""),S61+1,1),0) -> 30 | T62: =IF($F62="","",IF($A$1=PGZ,"0",27)) ->  | U62: =IF($F62="","",IF($A$1=PGZ,27,IF(AND($A$1=PGG,AM62=1),1,28))) ->  | V62: =IF($F62="","",IF($A$1=PGZ,"0",29)) ->  | W62: =IF($F62="","",IF($A$1=PGZ,29,IF(AND($A$1=PGG,AO62=1),1,30))) ->  | AC62: 0 | AD62: =ROW() -> 62 | AF62: =IF(AND($X62<>"",$Y62<>""),SUM(INDIRECT(ADDRESS(LOOKUP(1E+307,$Y$33:$Y61,$AD$33:$AD61)+1,31,TRUE),TRUE):AE62),AF63) -> 0 | AG62: =IF(AND($X62<>"",$Y62<>""),SUM(INDIRECT(ADDRESS(LOOKUP(1E+307,$X$33:$X61,$AD$33:$AD61)+1,7,TRUE),TRUE):G62),AG63) -> 0 | AH62: =IF(AND($X62<>"",$Y62<>""),SUM(INDIRECT(ADDRESS(LOOKUP(1E+307,$Y$33:$Y61,$AD$33:$AD61)+1,8,TRUE),TRUE):H62),AH63) -> 0 | AI62: =IF(AND($X62<>"",$Y62<>""),X62-AG62-INDIRECT(ADDRESS(LOOKUP(1E+307,$X$33:$X61,$AD$33:$AD61),24,TRUE),TRUE),AI63) -> 0 | AJ62: =IF(AND($X62<>"",$Y62<>""),Y62-AH62-INDIRECT(ADDRESS(LOOKUP(1E+307,$X$33:$X61,$AD$33:$AD61),25,TRUE),TRUE),AJ63) -> 0 | AM62: 0 | AN62: 0 | AP62: -1 | AQ62: -1 | AR62: -1 | AS62: -1 | AX62: 0 | AY62: 0 | BD62: 0 | BE62: 0 | BF62: 1 | BG62: 0 | BH62: 1 | BM62: =IF(BK62<>"",POWER((SUM($BK$34:BK61))+(BK62/2)-(0.5*SUM($BK$34:$BK$132)),2),0) -> 0 | BN62: =IF(BL62<>"",POWER(0.5*SUM($BL$34:$BL$132)-SUM($BL$34:BL61)-(0.5*BL62),2),0) -> 0
A63: =IF($F63="","",IF($A$1=PGZ,"0",30)) ->  | B63: =IF($F63="","",IF($A$1=PGZ,30,IF(AND($A$1=PGG,T63=1),1,31))) ->  | K63: =IF(AND($X63<>"",$Y63<>""),$X63,IF(Horizontaldistanz="","",IF(OR($A$1=PGG,$A$1=LXE),($K62+dY-Fehler_Y),IF(OR($A$1=PGO,$A$1=LNE),($K62+dY),IF($A$1=PGZ,(Horizontaldistanz*SIN(Richtung*Winkelmaß_Hz)+LOOKUP(1E+307,$X$33:$X62,$X$33:$X62)),"Err"))))) ->  | L63: =IF(AND($X63<>"",$Y63<>""),$Y63,IF(Horizontaldistanz="","",IF(OR($A$1=PGG,$A$1=LXE),($L62+dX-Fehler_X),IF(OR($A$1=PGO,$A$1=LNE),($L62+dX),IF($A$1=PGZ,(Horizontaldistanz*COS(Richtung*Winkelmaß_Hz)+LOOKUP(1E+307,$Y$33:$Y62,$Y$33:$Y62)),"Err"))))) ->  | M63: =IF(Ost="",0,K62*L63-L62*K63) -> 0 | N63: -1 | O63: -1 | P63: N | Q63: Maßstab nur gültig für 1cm Raster! | R63: =IF(Ost="",0,SQRT(POWER($K63-$K62,2)+POWER($L63-$L62,2))) -> 0 | S63: =IF(AND(K64="",L64=""),IF(AND(K64="",L64="",K63="",L63=""),S62+1,1),0) -> 31 | T63: =IF($F63="","",IF($A$1=PGZ,"0",28)) ->  | U63: =IF($F63="","",IF($A$1=PGZ,28,IF(AND($A$1=PGG,AM63=1),1,29))) ->  | V63: =IF($F63="","",IF($A$1=PGZ,"0",30)) ->  | W63: =IF($F63="","",IF($A$1=PGZ,30,IF(AND($A$1=PGG,AO63=1),1,31))) ->  | AC63: 0 | AD63: =ROW() -> 63 | AF63: =IF(AND($X63<>"",$Y63<>""),SUM(INDIRECT(ADDRESS(LOOKUP(1E+307,$Y$33:$Y62,$AD$33:$AD62)+1,31,TRUE),TRUE):AE63),AF64) -> 0 | AG63: =IF(AND($X63<>"",$Y63<>""),SUM(INDIRECT(ADDRESS(LOOKUP(1E+307,$X$33:$X62,$AD$33:$AD62)+1,7,TRUE),TRUE):G63),AG64) -> 0 | AH63: =IF(AND($X63<>"",$Y63<>""),SUM(INDIRECT(ADDRESS(LOOKUP(1E+307,$Y$33:$Y62,$AD$33:$AD62)+1,8,TRUE),TRUE):H63),AH64) -> 0 | AI63: =IF(AND($X63<>"",$Y63<>""),X63-AG63-INDIRECT(ADDRESS(LOOKUP(1E+307,$X$33:$X62,$AD$33:$AD62),24,TRUE),TRUE),AI64) -> 0 | AJ63: =IF(AND($X63<>"",$Y63<>""),Y63-AH63-INDIRECT(ADDRESS(LOOKUP(1E+307,$X$33:$X62,$AD$33:$AD62),25,TRUE),TRUE),AJ64) -> 0 | AM63: 0 | AN63: 0 | AP63: -1 | AQ63: -1 | AR63: -1 | AS63: -1 | AX63: 0 | AY63: 0 | BD63: 0 | BE63: 0 | BF63: 1 | BG63: 0 | BH63: 1 | BM63: =IF(BK63<>"",POWER((SUM($BK$34:BK62))+(BK63/2)-(0.5*SUM($BK$34:$BK$132)),2),0) -> 0 | BN63: =IF(BL63<>"",POWER(0.5*SUM($BL$34:$BL$132)-SUM($BL$34:BL62)-(0.5*BL63),2),0) -> 0
A64: =IF($F64="","",IF($A$1=PGZ,"0",31)) ->  | B64: =IF($F64="","",IF($A$1=PGZ,31,IF(AND($A$1=PGG,T64=1),1,32))) ->  | K64: =IF(AND($X64<>"",$Y64<>""),$X64,IF(Horizontaldistanz="","",IF(OR($A$1=PGG,$A$1=LXE),($K63+dY-Fehler_Y),IF(OR($A$1=PGO,$A$1=LNE),($K63+dY),IF($A$1=PGZ,(Horizontaldistanz*SIN(Richtung*Winkelmaß_Hz)+LOOKUP(1E+307,$X$33:$X63,$X$33:$X63)),"Err"))))) ->  | L64: =IF(AND($X64<>"",$Y64<>""),$Y64,IF(Horizontaldistanz="","",IF(OR($A$1=PGG,$A$1=LXE),($L63+dX-Fehler_X),IF(OR($A$1=PGO,$A$1=LNE),($L63+dX),IF($A$1=PGZ,(Horizontaldistanz*COS(Richtung*Winkelmaß_Hz)+LOOKUP(1E+307,$Y$33:$Y63,$Y$33:$Y63)),"Err"))))) ->  | M64: 0 | N64: -1 | O64: -1 | R64: 0 | S64: 32 | T64: =IF($F64="","",IF($A$1=PGZ,"0",29)) ->  | U64: =IF($F64="","",IF($A$1=PGZ,29,IF(AND($A$1=PGG,AM64=1),1,30))) ->  | V64: =IF($F64="","",IF($A$1=PGZ,"0",31)) ->  | W64: =IF($F64="","",IF($A$1=PGZ,31,IF(AND($A$1=PGG,AO64=1),1,32))) ->  | AC64: 0 | AD64: =ROW() -> 64 | AF64: =IF(AND($X64<>"",$Y64<>""),SUM(INDIRECT(ADDRESS(LOOKUP(1E+307,$Y$33:$Y63,$AD$33:$AD63)+1,31,TRUE),TRUE):AE64),AF65) -> 0 | AG64: =IF(AND($X64<>"",$Y64<>""),SUM(INDIRECT(ADDRESS(LOOKUP(1E+307,$X$33:$X63,$AD$33:$AD63)+1,7,TRUE),TRUE):G64),AG65) -> 0 | AH64: =IF(AND($X64<>"",$Y64<>""),SUM(INDIRECT(ADDRESS(LOOKUP(1E+307,$Y$33:$Y63,$AD$33:$AD63)+1,8,TRUE),TRUE):H64),AH65) -> 0 | AI64: =IF(AND($X64<>"",$Y64<>""),X64-AG64-INDIRECT(ADDRESS(LOOKUP(1E+307,$X$33:$X63,$AD$33:$AD63),24,TRUE),TRUE),AI65) -> 0 | AJ64: =IF(AND($X64<>"",$Y64<>""),Y64-AH64-INDIRECT(ADDRESS(LOOKUP(1E+307,$X$33:$X63,$AD$33:$AD63),25,TRUE),TRUE),AJ65) -> 0 | AM64: 0 | AN64: 0 | AP64: -1 | AQ64: -1 | AR64: -1 | AS64: -1 | AX64: 0 | AY64: 0 | BD64: 0 | BE64: 0 | BF64: 1 | BG64: 0 | BH64: 1 | BM64: =IF(BK64<>"",POWER((SUM($BK$34:BK63))+(BK64/2)-(0.5*SUM($BK$34:$BK$132)),2),0) -> 0 | BN64: =IF(BL64<>"",POWER(0.5*SUM($BL$34:$BL$132)-SUM($BL$34:BL63)-(0.5*BL64),2),0) -> 0
A65: =IF($F65="","",IF($A$1=PGZ,"0",32)) ->  | B65: =IF($F65="","",IF($A$1=PGZ,32,IF(AND($A$1=PGG,T65=1),1,33))) ->  | K65: =IF(AND($X65<>"",$Y65<>""),$X65,IF(Horizontaldistanz="","",IF(OR($A$1=PGG,$A$1=LXE),($K64+dY-Fehler_Y),IF(OR($A$1=PGO,$A$1=LNE),($K64+dY),IF($A$1=PGZ,(Horizontaldistanz*SIN(Richtung*Winkelmaß_Hz)+LOOKUP(1E+307,$X$33:$X64,$X$33:$X64)),"Err"))))) ->  | L65: =IF(AND($X65<>"",$Y65<>""),$Y65,IF(Horizontaldistanz="","",IF(OR($A$1=PGG,$A$1=LXE),($L64+dX-Fehler_X),IF(OR($A$1=PGO,$A$1=LNE),($L64+dX),IF($A$1=PGZ,(Horizontaldistanz*COS(Richtung*Winkelmaß_Hz)+LOOKUP(1E+307,$Y$33:$Y64,$Y$33:$Y64)),"Err"))))) ->  | M65: 0 | N65: -1 | O65: -1 | P65: Drehsinn | R65: 0 | S65: 33 | T65: =IF($F65="","",IF($A$1=PGZ,"0",30)) ->  | U65: =IF($F65="","",IF($A$1=PGZ,30,IF(AND($A$1=PGG,AM65=1),1,31))) ->  | V65: =IF($F65="","",IF($A$1=PGZ,"0",32)) ->  | W65: =IF($F65="","",IF($A$1=PGZ,32,IF(AND($A$1=PGG,AO65=1),1,33))) ->  | AC65: 0 | AD65: =ROW() -> 65 | AF65: =IF(AND($X65<>"",$Y65<>""),SUM(INDIRECT(ADDRESS(LOOKUP(1E+307,$Y$33:$Y64,$AD$33:$AD64)+1,31,TRUE),TRUE):AE65),AF66) -> 0 | AG65: =IF(AND($X65<>"",$Y65<>""),SUM(INDIRECT(ADDRESS(LOOKUP(1E+307,$X$33:$X64,$AD$33:$AD64)+1,7,TRUE),TRUE):G65),AG66) -> 0 | AH65: =IF(AND($X65<>"",$Y65<>""),SUM(INDIRECT(ADDRESS(LOOKUP(1E+307,$Y$33:$Y64,$AD$33:$AD64)+1,8,TRUE),TRUE):H65),AH66) -> 0 | AI65: =IF(AND($X65<>"",$Y65<>""),X65-AG65-INDIRECT(ADDRESS(LOOKUP(1E+307,$X$33:$X64,$AD$33:$AD64),24,TRUE),TRUE),AI66) -> 0 | AJ65: =IF(AND($X65<>"",$Y65<>""),Y65-AH65-INDIRECT(ADDRESS(LOOKUP(1E+307,$X$33:$X64,$AD$33:$AD64),25,TRUE),TRUE),AJ66) -> 0 | AM65: 0 | AN65: 0 | AP65: -1 | AQ65: -1 | AR65: -1 | AS65: -1 | AX65: 0 | AY65: 0 | BD65: 0 | BE65: 0 | BF65: 1 | BG65: 0 | BH65: 1 | BM65: =IF(BK65<>"",POWER((SUM($BK$34:BK64))+(BK65/2)-(0.5*SUM($BK$34:$BK$132)),2),0) -> 0 | BN65: =IF(BL65<>"",POWER(0.5*SUM($BL$34:$BL$132)-SUM($BL$34:BL64)-(0.5*BL65),2),0) -> 0
A66: =IF($F66="","",IF($A$1=PGZ,"0",33)) ->  | B66: =IF($F66="","",IF($A$1=PGZ,33,IF(AND($A$1=PGG,T66=1),1,34))) ->  | F66: =IF(Strecke<>"",IF(OR(Winkelmaß_Neigung=Prozent,Winkelmaß_Neigung=PRZ),Strecke*COS(ATAN(Neigung/100)),Strecke*COS((Neigung+Neigung_a_oder_z)*Winkelmaß_Vt)),"") ->  | G66: =IF(Horizontaldistanz="","",Horizontaldistanz*SIN(Richtung*Winkelmaß_Hz)) ->  | H66: =IF(Horizontaldistanz="","",Horizontaldistanz*COS(Richtung*Winkelmaß_Hz)) ->  | I66: =IF(Horizontaldistanz="","",IF(AND($A$1=PGG,$P$70="normal"),SUM(dY)/SUM(Horizontaldistanz)*Horizontaldistanz,IF($A$1=LXE,AM66,0))) ->  | J66: =IF(Horizontaldistanz="","",IF(AND($A$1=PGG,$P$70="normal"),SUM(dX)/SUM(Horizontaldistanz)*Horizontaldistanz,IF($A$1=LXE,AN66,0))) ->  | K66: =IF(AND($X66<>"",$Y66<>""),$X66,IF(Horizontaldistanz="","",IF(OR($A$1=PGG,$A$1=LXE),($K65+dY-Fehler_Y),IF(OR($A$1=PGO,$A$1=LNE),($K65+dY),IF($A$1=PGZ,(Horizontaldistanz*SIN(Richtung*Winkelmaß_Hz)+LOOKUP(1E+307,$X$33:$X65,$X$33:$X65)),"Err"))))) ->  | L66: =IF(AND($X66<>"",$Y66<>""),$Y66,IF(Horizontaldistanz="","",IF(OR($A$1=PGG,$A$1=LXE),($L65+dX-Fehler_X),IF(OR($A$1=PGO,$A$1=LNE),($L65+dX),IF($A$1=PGZ,(Horizontaldistanz*COS(Richtung*Winkelmaß_Hz)+LOOKUP(1E+307,$Y$33:$Y65,$Y$33:$Y65)),"Err"))))) ->  | M66: 0 | N66: =IF(Ost = "",$N65,(L66+N$135)/($P$44/100)+$P$50) -> -1 | O66: =IF(Nord="",$O65,(K66+O$135)/($P$44/100)+$P$51) -> -1 | P66: =IF(SUM(Fläche)>0,"ccw","cw") -> cw | R66: =IF(Ost="",0,SQRT(POWER($K66-$K65,2)+POWER($L66-$L65,2))) -> 0 | S66: 34 | T66: =IF($F66="","",IF($A$1=PGZ,"0",31)) ->  | U66: =IF($F66="","",IF($A$1=PGZ,31,IF(AND($A$1=PGG,AM66=1),1,32))) ->  | V66: =IF($F66="","",IF($A$1=PGZ,"0",33)) ->  | W66: =IF($F66="","",IF($A$1=PGZ,33,IF(AND($A$1=PGG,AO66=1),1,34))) ->  | AC66: 0 | AD66: =ROW() -> 66 | AE66: =Horizontaldistanz ->  | AF66: =IF(AND($X66<>"",$Y66<>""),SUM(INDIRECT(ADDRESS(LOOKUP(1E+307,$Y$33:$Y65,$AD$33:$AD65)+1,31,TRUE),TRUE):AE66),AF67) -> 0 | AG66: =IF(AND($X66<>"",$Y66<>""),SUM(INDIRECT(ADDRESS(LOOKUP(1E+307,$X$33:$X65,$AD$33:$AD65)+1,7,TRUE),TRUE):G66),AG67) -> 0 | AH66: =IF(AND($X66<>"",$Y66<>""),SUM(INDIRECT(ADDRESS(LOOKUP(1E+307,$Y$33:$Y65,$AD$33:$AD65)+1,8,TRUE),TRUE):H66),AH67) -> 0 | AI66: =IF(AND($X66<>"",$Y66<>""),X66-AG66-INDIRECT(ADDRESS(LOOKUP(1E+307,$X$33:$X65,$AD$33:$AD65),24,TRUE),TRUE),AI67) -> 0 | AJ66: =IF(AND($X66<>"",$Y66<>""),Y66-AH66-INDIRECT(ADDRESS(LOOKUP(1E+307,$X$33:$X65,$AD$33:$AD65),25,TRUE),TRUE),AJ67) -> 0 | AK66: =($AI66/AF66)*AE66 ->  | AL66: =($AJ66/AF66)*AE66 ->  | AM66: 0 | AN66: 0 | AO66: =IF(AND($X66<>"",$Y66<>""),SQRT(POWER(AI66,2)+POWER(AJ66,2))/AF66,"") ->  | AP66: =IF(AND($A$1= LXE,AND(NOT(ISBLANK(X66)),NOT(ISBLANK(Y66)))),$N66,-1) -> -1 | AQ66: =IF(AND($A$1= LXE,AND(NOT(ISBLANK(X66)),NOT(ISBLANK(Y66)))),$O66,-1) -> -1 | AR66: =IF($S66=2,IF($A$1=PGO,(N$33+N66)/2,IF($A$1=PGZ,(N$34+N66)/2,-1)),(N65+N66)/2) -> -1 | AS66: =IF($S66=2,IF($A$1=PGO,(O$33+O66)/2,IF($A$1=PGZ,(O$34+O66)/2,-1)),(O65+O66)/2) -> -1 | AX66: =IF(Richtung<>"",POWER(COS(Richtung*Winkelmaß_Hz)*Horizontaldistanz,2),0) -> 0 | AY66: =IF(Richtung<>"",POWER(SIN(Richtung*Winkelmaß_Hz)*Horizontaldistanz,2),0) -> 0 | BC66: =Strecke*$BC$33 ->  | BD66: =BD65*Winkelmaß_Vt -> 0 | BE66: =IF(OR(Winkelmaß_Neigung=Prozent,Winkelmaß_Neigung=PRZ),SIN(ATAN(Neigung/100)),SIN((Neigung+Neigung_a_oder_z)*Winkelmaß_Vt)) -> 0 | BF66: =IF(OR(Winkelmaß_Neigung=Prozent,Winkelmaß_Neigung=PRZ),COS(ATAN(Neigung/100)),COS((Neigung+Neigung_a_oder_z)*Winkelmaß_Vt)) -> 1 | BG66: =SIN(Richtung*Winkelmaß_Hz) -> 0 | BH66: =COS(Richtung*Winkelmaß_Hz) -> 1 | BI66: =POWER($BF66*$BG66,2) * POWER($BC66,2)+POWER((Strecke*$BE66*$BG66),2)*POWER($BD66,2)+POWER((Strecke*$BF66*$BH66),2)* POWER($BB66,2) ->  | BJ66: =POWER($BF66*$BH66,2)*$BC66+POWER(Strecke*$BE66*BH66,2)*POWER($BD66,2)+POWER(Strecke*$BF66*$BG66,2)*POWER(BB66,2) ->  | BK66: =K66 ->  | BL66: =L66 ->  | BM66: =IF(BK66<>"",POWER((SUM($BK$34:BK65))+(BK66/2)-(0.5*SUM($BK$34:$BK$132)),2),0) -> 0 | BN66: =IF(BL66<>"",POWER(0.5*SUM($BL$34:$BL$132)-SUM($BL$34:BL65)-(0.5*BL66),2),0) -> 0
A67: =IF($F67="","",IF($A$1=PGZ,"0",34)) ->  | B67: =IF($F67="","",IF($A$1=PGZ,34,IF(AND($A$1=PGG,T67=1),1,35))) ->  | K67: =IF(AND($X67<>"",$Y67<>""),$X67,IF(Horizontaldistanz="","",IF(OR($A$1=PGG,$A$1=LXE),($K66+dY-Fehler_Y),IF(OR($A$1=PGO,$A$1=LNE),($K66+dY),IF($A$1=PGZ,(Horizontaldistanz*SIN(Richtung*Winkelmaß_Hz)+LOOKUP(1E+307,$X$33:$X66,$X$33:$X66)),"Err"))))) ->  | L67: =IF(AND($X67<>"",$Y67<>""),$Y67,IF(Horizontaldistanz="","",IF(OR($A$1=PGG,$A$1=LXE),($L66+dX-Fehler_X),IF(OR($A$1=PGO,$A$1=LNE),($L66+dX),IF($A$1=PGZ,(Horizontaldistanz*COS(Richtung*Winkelmaß_Hz)+LOOKUP(1E+307,$Y$33:$Y66,$Y$33:$Y66)),"Err"))))) ->  | M67: =IF(Ost="",0,K66*L67-L66*K67) -> 0 | N67: -1 | O67: -1 | R67: 0 | S67: =IF(AND(K68="",L68=""),IF(AND(K68="",L68="",K67="",L67=""),S66+1,1),0) -> 35 | T67: =IF($F67="","",IF($A$1=PGZ,"0",32)) ->  | U67: =IF($F67="","",IF($A$1=PGZ,32,IF(AND($A$1=PGG,AM67=1),1,33))) ->  | V67: =IF($F67="","",IF($A$1=PGZ,"0",34)) ->  | W67: =IF($F67="","",IF($A$1=PGZ,34,IF(AND($A$1=PGG,AO67=1),1,35))) ->  | AA67: =IF(Horizontaldistanz ="","",$AA66+dY) ->  | AB67: =IF(Horizontaldistanz ="","",$AB66+dX) ->  | AC67: =IF(Ost="",0,AA66*AB67-AB66*AA67) -> 0 | AD67: =ROW() -> 67 | AF67: =IF(AND($X67<>"",$Y67<>""),SUM(INDIRECT(ADDRESS(LOOKUP(1E+307,$Y$33:$Y66,$AD$33:$AD66)+1,31,TRUE),TRUE):AE67),AF68) -> 0 | AG67: =IF(AND($X67<>"",$Y67<>""),SUM(INDIRECT(ADDRESS(LOOKUP(1E+307,$X$33:$X66,$AD$33:$AD66)+1,7,TRUE),TRUE):G67),AG68) -> 0 | AH67: =IF(AND($X67<>"",$Y67<>""),SUM(INDIRECT(ADDRESS(LOOKUP(1E+307,$Y$33:$Y66,$AD$33:$AD66)+1,8,TRUE),TRUE):H67),AH68) -> 0 | AI67: =IF(AND($X67<>"",$Y67<>""),X67-AG67-INDIRECT(ADDRESS(LOOKUP(1E+307,$X$33:$X66,$AD$33:$AD66),24,TRUE),TRUE),AI68) -> 0 | AJ67: =IF(AND($X67<>"",$Y67<>""),Y67-AH67-INDIRECT(ADDRESS(LOOKUP(1E+307,$X$33:$X66,$AD$33:$AD66),25,TRUE),TRUE),AJ68) -> 0 | AM67: 0 | AN67: 0 | AP67: -1 | AQ67: -1 | AR67: -1 | AS67: -1 | AU67: =IF(Ost="",IF($F66<>"",IF($A$1=PGO,$D$133,IF($A$1=PGZ,$AU$133,"")),""),SQRT(POWER($K67-$K66,2)+POWER($L67-$L66,2))) ->  | AX67: 0 | AY67: 0 | BD67: 0 | BE67: 0 | BF67: 1 | BG67: 0 | BH67: 1 | BM67: =IF(BK67<>"",POWER((SUM($BK$34:BK66))+(BK67/2)-(0.5*SUM($BK$34:$BK$132)),2),0) -> 0 | BN67: =IF(BL67<>"",POWER(0.5*SUM($BL$34:$BL$132)-SUM($BL$34:BL66)-(0.5*BL67),2),0) -> 0
A68: =IF($F68="","",IF($A$1=PGZ,"0",35)) ->  | B68: =IF($F68="","",IF($A$1=PGZ,35,IF(AND($A$1=PGG,T68=1),1,36))) ->  | K68: =IF(AND($X68<>"",$Y68<>""),$X68,IF(Horizontaldistanz="","",IF(OR($A$1=PGG,$A$1=LXE),($K67+dY-Fehler_Y),IF(OR($A$1=PGO,$A$1=LNE),($K67+dY),IF($A$1=PGZ,(Horizontaldistanz*SIN(Richtung*Winkelmaß_Hz)+LOOKUP(1E+307,$X$33:$X67,$X$33:$X67)),"Err"))))) ->  | L68: =IF(AND($X68<>"",$Y68<>""),$Y68,IF(Horizontaldistanz="","",IF(OR($A$1=PGG,$A$1=LXE),($L67+dX-Fehler_X),IF(OR($A$1=PGO,$A$1=LNE),($L67+dX),IF($A$1=PGZ,(Horizontaldistanz*COS(Richtung*Winkelmaß_Hz)+LOOKUP(1E+307,$Y$33:$Y67,$Y$33:$Y67)),"Err"))))) ->  | M68: 0 | N68: -1 | O68: -1 | R68: 0 | S68: =IF(AND(K69="",L69=""),IF(AND(K69="",L69="",K68="",L68=""),S67+1,1),0) -> 36 | T68: =IF($F68="","",IF($A$1=PGZ,"0",33)) ->  | U68: =IF($F68="","",IF($A$1=PGZ,33,IF(AND($A$1=PGG,AM68=1),1,34))) ->  | V68: =IF($F68="","",IF($A$1=PGZ,"0",35)) ->  | W68: =IF($F68="","",IF($A$1=PGZ,35,IF(AND($A$1=PGG,AO68=1),1,36))) ->  | AC68: 0 | AD68: =ROW() -> 68 | AF68: =IF(AND($X68<>"",$Y68<>""),SUM(INDIRECT(ADDRESS(LOOKUP(1E+307,$Y$33:$Y67,$AD$33:$AD67)+1,31,TRUE),TRUE):AE68),AF69) -> 0 | AG68: =IF(AND($X68<>"",$Y68<>""),SUM(INDIRECT(ADDRESS(LOOKUP(1E+307,$X$33:$X67,$AD$33:$AD67)+1,7,TRUE),TRUE):G68),AG69) -> 0 | AH68: =IF(AND($X68<>"",$Y68<>""),SUM(INDIRECT(ADDRESS(LOOKUP(1E+307,$Y$33:$Y67,$AD$33:$AD67)+1,8,TRUE),TRUE):H68),AH69) -> 0 | AI68: =IF(AND($X68<>"",$Y68<>""),X68-AG68-INDIRECT(ADDRESS(LOOKUP(1E+307,$X$33:$X67,$AD$33:$AD67),24,TRUE),TRUE),AI69) -> 0 | AJ68: =IF(AND($X68<>"",$Y68<>""),Y68-AH68-INDIRECT(ADDRESS(LOOKUP(1E+307,$X$33:$X67,$AD$33:$AD67),25,TRUE),TRUE),AJ69) -> 0 | AM68: 0 | AN68: 0 | AP68: -1 | AQ68: -1 | AR68: -1 | AS68: -1 | AX68: 0 | AY68: 0 | BD68: 0 | BE68: 0 | BF68: 1 | BG68: 0 | BH68: 1 | BM68: =IF(BK68<>"",POWER((SUM($BK$34:BK67))+(BK68/2)-(0.5*SUM($BK$34:$BK$132)),2),0) -> 0 | BN68: =IF(BL68<>"",POWER(0.5*SUM($BL$34:$BL$132)-SUM($BL$34:BL67)-(0.5*BL68),2),0) -> 0
A69: =IF($F69="","",IF($A$1=PGZ,"0",36)) ->  | B69: =IF($F69="","",IF($A$1=PGZ,36,IF(AND($A$1=PGG,T69=1),1,37))) ->  | K69: =IF(AND($X69<>"",$Y69<>""),$X69,IF(Horizontaldistanz="","",IF(OR($A$1=PGG,$A$1=LXE),($K68+dY-Fehler_Y),IF(OR($A$1=PGO,$A$1=LNE),($K68+dY),IF($A$1=PGZ,(Horizontaldistanz*SIN(Richtung*Winkelmaß_Hz)+LOOKUP(1E+307,$X$33:$X68,$X$33:$X68)),"Err"))))) ->  | L69: =IF(AND($X69<>"",$Y69<>""),$Y69,IF(Horizontaldistanz="","",IF(OR($A$1=PGG,$A$1=LXE),($L68+dX-Fehler_X),IF(OR($A$1=PGO,$A$1=LNE),($L68+dX),IF($A$1=PGZ,(Horizontaldistanz*COS(Richtung*Winkelmaß_Hz)+LOOKUP(1E+307,$Y$33:$Y68,$Y$33:$Y68)),"Err"))))) ->  | M69: 0 | N69: -1 | O69: -1 | P69: =IF($A$1=PGG,"Geschlossenes Polygon",IF($A$1=PGO,"Offenes Polygon",IF($A$1=PGZ,"Zentrale Aufstellung",IF($A$1=LNE,"Linienzug",IF($A$1=LXE,"Linienzug_Fehlerverteilung","Err"))))) -> Geschlossenes Polygon | R69: 0 | S69: =IF(AND(K70="",L70=""),IF(AND(K70="",L70="",K69="",L69=""),S68+1,1),0) -> 37 | T69: =IF($F69="","",IF($A$1=PGZ,"0",34)) ->  | U69: =IF($F69="","",IF($A$1=PGZ,34,IF(AND($A$1=PGG,AM69=1),1,35))) ->  | V69: =IF($F69="","",IF($A$1=PGZ,"0",36)) ->  | W69: =IF($F69="","",IF($A$1=PGZ,36,IF(AND($A$1=PGG,AO69=1),1,37))) ->  | AC69: 0 | AD69: =ROW() -> 69 | AF69: =IF(AND($X69<>"",$Y69<>""),SUM(INDIRECT(ADDRESS(LOOKUP(1E+307,$Y$33:$Y68,$AD$33:$AD68)+1,31,TRUE),TRUE):AE69),AF70) -> 0 | AG69: =IF(AND($X69<>"",$Y69<>""),SUM(INDIRECT(ADDRESS(LOOKUP(1E+307,$X$33:$X68,$AD$33:$AD68)+1,7,TRUE),TRUE):G69),AG70) -> 0 | AH69: =IF(AND($X69<>"",$Y69<>""),SUM(INDIRECT(ADDRESS(LOOKUP(1E+307,$Y$33:$Y68,$AD$33:$AD68)+1,8,TRUE),TRUE):H69),AH70) -> 0 | AI69: =IF(AND($X69<>"",$Y69<>""),X69-AG69-INDIRECT(ADDRESS(LOOKUP(1E+307,$X$33:$X68,$AD$33:$AD68),24,TRUE),TRUE),AI70) -> 0 | AJ69: =IF(AND($X69<>"",$Y69<>""),Y69-AH69-INDIRECT(ADDRESS(LOOKUP(1E+307,$X$33:$X68,$AD$33:$AD68),25,TRUE),TRUE),AJ70) -> 0 | AM69: 0 | AN69: 0 | AP69: -1 | AQ69: -1 | AR69: -1 | AS69: -1 | AX69: 0 | AY69: 0 | BD69: 0 | BE69: 0 | BF69: 1 | BG69: 0 | BH69: 1 | BM69: =IF(BK69<>"",POWER((SUM($BK$34:BK68))+(BK69/2)-(0.5*SUM($BK$34:$BK$132)),2),0) -> 0 | BN69: =IF(BL69<>"",POWER(0.5*SUM($BL$34:$BL$132)-SUM($BL$34:BL68)-(0.5*BL69),2),0) -> 0
A70: =IF($F70="","",IF($A$1=PGZ,"0",37)) ->  | B70: =IF($F70="","",IF($A$1=PGZ,37,IF(AND($A$1=PGG,T70=1),1,38))) ->  | K70: =IF(AND($X70<>"",$Y70<>""),$X70,IF(Horizontaldistanz="","",IF(OR($A$1=PGG,$A$1=LXE),($K69+dY-Fehler_Y),IF(OR($A$1=PGO,$A$1=LNE),($K69+dY),IF($A$1=PGZ,(Horizontaldistanz*SIN(Richtung*Winkelmaß_Hz)+LOOKUP(1E+307,$X$33:$X69,$X$33:$X69)),"Err"))))) ->  | L70: =IF(AND($X70<>"",$Y70<>""),$Y70,IF(Horizontaldistanz="","",IF(OR($A$1=PGG,$A$1=LXE),($L69+dX-Fehler_X),IF(OR($A$1=PGO,$A$1=LNE),($L69+dX),IF($A$1=PGZ,(Horizontaldistanz*COS(Richtung*Winkelmaß_Hz)+LOOKUP(1E+307,$Y$33:$Y69,$Y$33:$Y69)),"Err"))))) ->  | M70: 0 | N70: -1 | O70: -1 | P70: normal | R70: 0 | S70: 38 | T70: =IF($F70="","",IF($A$1=PGZ,"0",35)) ->  | U70: =IF($F70="","",IF($A$1=PGZ,35,IF(AND($A$1=PGG,AM70=1),1,36))) ->  | V70: =IF($F70="","",IF($A$1=PGZ,"0",37)) ->  | W70: =IF($F70="","",IF($A$1=PGZ,37,IF(AND($A$1=PGG,AO70=1),1,38))) ->  | AC70: 0 | AD70: =ROW() -> 70 | AF70: =IF(AND($X70<>"",$Y70<>""),SUM(INDIRECT(ADDRESS(LOOKUP(1E+307,$Y$33:$Y69,$AD$33:$AD69)+1,31,TRUE),TRUE):AE70),AF71) -> 0 | AG70: =IF(AND($X70<>"",$Y70<>""),SUM(INDIRECT(ADDRESS(LOOKUP(1E+307,$X$33:$X69,$AD$33:$AD69)+1,7,TRUE),TRUE):G70),AG71) -> 0 | AH70: =IF(AND($X70<>"",$Y70<>""),SUM(INDIRECT(ADDRESS(LOOKUP(1E+307,$Y$33:$Y69,$AD$33:$AD69)+1,8,TRUE),TRUE):H70),AH71) -> 0 | AI70: =IF(AND($X70<>"",$Y70<>""),X70-AG70-INDIRECT(ADDRESS(LOOKUP(1E+307,$X$33:$X69,$AD$33:$AD69),24,TRUE),TRUE),AI71) -> 0 | AJ70: =IF(AND($X70<>"",$Y70<>""),Y70-AH70-INDIRECT(ADDRESS(LOOKUP(1E+307,$X$33:$X69,$AD$33:$AD69),25,TRUE),TRUE),AJ71) -> 0 | AM70: 0 | AN70: 0 | AP70: -1 | AQ70: -1 | AR70: -1 | AS70: -1 | AX70: 0 | AY70: 0 | BD70: 0 | BE70: 0 | BF70: 1 | BG70: 0 | BH70: 1 | BM70: =IF(BK70<>"",POWER((SUM($BK$34:BK69))+(BK70/2)-(0.5*SUM($BK$34:$BK$132)),2),0) -> 0 | BN70: =IF(BL70<>"",POWER(0.5*SUM($BL$34:$BL$132)-SUM($BL$34:BL69)-(0.5*BL70),2),0) -> 0
A71: =IF($F71="","",IF($A$1=PGZ,"0",38)) ->  | B71: =IF($F71="","",IF($A$1=PGZ,38,IF(AND($A$1=PGG,T71=1),1,39))) ->  | K71: =IF(AND($X71<>"",$Y71<>""),$X71,IF(Horizontaldistanz="","",IF(OR($A$1=PGG,$A$1=LXE),($K70+dY-Fehler_Y),IF(OR($A$1=PGO,$A$1=LNE),($K70+dY),IF($A$1=PGZ,(Horizontaldistanz*SIN(Richtung*Winkelmaß_Hz)+LOOKUP(1E+307,$X$33:$X70,$X$33:$X70)),"Err"))))) ->  | L71: =IF(AND($X71<>"",$Y71<>""),$Y71,IF(Horizontaldistanz="","",IF(OR($A$1=PGG,$A$1=LXE),($L70+dX-Fehler_X),IF(OR($A$1=PGO,$A$1=LNE),($L70+dX),IF($A$1=PGZ,(Horizontaldistanz*COS(Richtung*Winkelmaß_Hz)+LOOKUP(1E+307,$Y$33:$Y70,$Y$33:$Y70)),"Err"))))) ->  | M71: 0 | N71: -1 | O71: -1 | R71: 0 | S71: 39 | T71: =IF($F71="","",IF($A$1=PGZ,"0",36)) ->  | U71: =IF($F71="","",IF($A$1=PGZ,36,IF(AND($A$1=PGG,AM71=1),1,37))) ->  | V71: =IF($F71="","",IF($A$1=PGZ,"0",38)) ->  | W71: =IF($F71="","",IF($A$1=PGZ,38,IF(AND($A$1=PGG,AO71=1),1,39))) ->  | AC71: 0 | AD71: =ROW() -> 71 | AF71: =IF(AND($X71<>"",$Y71<>""),SUM(INDIRECT(ADDRESS(LOOKUP(1E+307,$Y$33:$Y70,$AD$33:$AD70)+1,31,TRUE),TRUE):AE71),AF72) -> 0 | AG71: =IF(AND($X71<>"",$Y71<>""),SUM(INDIRECT(ADDRESS(LOOKUP(1E+307,$X$33:$X70,$AD$33:$AD70)+1,7,TRUE),TRUE):G71),AG72) -> 0 | AH71: =IF(AND($X71<>"",$Y71<>""),SUM(INDIRECT(ADDRESS(LOOKUP(1E+307,$Y$33:$Y70,$AD$33:$AD70)+1,8,TRUE),TRUE):H71),AH72) -> 0 | AI71: =IF(AND($X71<>"",$Y71<>""),X71-AG71-INDIRECT(ADDRESS(LOOKUP(1E+307,$X$33:$X70,$AD$33:$AD70),24,TRUE),TRUE),AI72) -> 0 | AJ71: =IF(AND($X71<>"",$Y71<>""),Y71-AH71-INDIRECT(ADDRESS(LOOKUP(1E+307,$X$33:$X70,$AD$33:$AD70),25,TRUE),TRUE),AJ72) -> 0 | AM71: 0 | AN71: 0 | AP71: -1 | AQ71: -1 | AR71: -1 | AS71: -1 | AX71: 0 | AY71: 0 | BD71: 0 | BE71: 0 | BF71: 1 | BG71: 0 | BH71: 1 | BM71: =IF(BK71<>"",POWER((SUM($BK$34:BK70))+(BK71/2)-(0.5*SUM($BK$34:$BK$132)),2),0) -> 0 | BN71: =IF(BL71<>"",POWER(0.5*SUM($BL$34:$BL$132)-SUM($BL$34:BL70)-(0.5*BL71),2),0) -> 0
A72: =IF($F72="","",IF($A$1=PGZ,"0",39)) ->  | B72: =IF($F72="","",IF($A$1=PGZ,39,IF(AND($A$1=PGG,T72=1),1,40))) ->  | K72: =IF(AND($X72<>"",$Y72<>""),$X72,IF(Horizontaldistanz="","",IF(OR($A$1=PGG,$A$1=LXE),($K71+dY-Fehler_Y),IF(OR($A$1=PGO,$A$1=LNE),($K71+dY),IF($A$1=PGZ,(Horizontaldistanz*SIN(Richtung*Winkelmaß_Hz)+LOOKUP(1E+307,$X$33:$X71,$X$33:$X71)),"Err"))))) ->  | L72: =IF(AND($X72<>"",$Y72<>""),$Y72,IF(Horizontaldistanz="","",IF(OR($A$1=PGG,$A$1=LXE),($L71+dX-Fehler_X),IF(OR($A$1=PGO,$A$1=LNE),($L71+dX),IF($A$1=PGZ,(Horizontaldistanz*COS(Richtung*Winkelmaß_Hz)+LOOKUP(1E+307,$Y$33:$Y71,$Y$33:$Y71)),"Err"))))) ->  | M72: 0 | N72: -1 | O72: -1 | R72: 0 | S72: 40 | T72: =IF($F72="","",IF($A$1=PGZ,"0",37)) ->  | U72: =IF($F72="","",IF($A$1=PGZ,37,IF(AND($A$1=PGG,AM72=1),1,38))) ->  | V72: =IF($F72="","",IF($A$1=PGZ,"0",39)) ->  | W72: =IF($F72="","",IF($A$1=PGZ,39,IF(AND($A$1=PGG,AO72=1),1,40))) ->  | AC72: 0 | AD72: =ROW() -> 72 | AF72: =IF(AND($X72<>"",$Y72<>""),SUM(INDIRECT(ADDRESS(LOOKUP(1E+307,$Y$33:$Y71,$AD$33:$AD71)+1,31,TRUE),TRUE):AE72),AF73) -> 0 | AG72: =IF(AND($X72<>"",$Y72<>""),SUM(INDIRECT(ADDRESS(LOOKUP(1E+307,$X$33:$X71,$AD$33:$AD71)+1,7,TRUE),TRUE):G72),AG73) -> 0 | AH72: =IF(AND($X72<>"",$Y72<>""),SUM(INDIRECT(ADDRESS(LOOKUP(1E+307,$Y$33:$Y71,$AD$33:$AD71)+1,8,TRUE),TRUE):H72),AH73) -> 0 | AI72: =IF(AND($X72<>"",$Y72<>""),X72-AG72-INDIRECT(ADDRESS(LOOKUP(1E+307,$X$33:$X71,$AD$33:$AD71),24,TRUE),TRUE),AI73) -> 0 | AJ72: =IF(AND($X72<>"",$Y72<>""),Y72-AH72-INDIRECT(ADDRESS(LOOKUP(1E+307,$X$33:$X71,$AD$33:$AD71),25,TRUE),TRUE),AJ73) -> 0 | AM72: 0 | AN72: 0 | AP72: -1 | AQ72: -1 | AR72: -1 | AS72: -1 | AX72: 0 | AY72: 0 | BD72: 0 | BE72: 0 | BF72: 1 | BG72: 0 | BH72: 1 | BM72: =IF(BK72<>"",POWER((SUM($BK$34:BK71))+(BK72/2)-(0.5*SUM($BK$34:$BK$132)),2),0) -> 0 | BN72: =IF(BL72<>"",POWER(0.5*SUM($BL$34:$BL$132)-SUM($BL$34:BL71)-(0.5*BL72),2),0) -> 0
A73: =IF($F73="","",IF($A$1=PGZ,"0",40)) ->  | B73: =IF($F73="","",IF($A$1=PGZ,40,IF(AND($A$1=PGG,T73=1),1,41))) ->  | K73: =IF(AND($X73<>"",$Y73<>""),$X73,IF(Horizontaldistanz="","",IF(OR($A$1=PGG,$A$1=LXE),($K72+dY-Fehler_Y),IF(OR($A$1=PGO,$A$1=LNE),($K72+dY),IF($A$1=PGZ,(Horizontaldistanz*SIN(Richtung*Winkelmaß_Hz)+LOOKUP(1E+307,$X$33:$X72,$X$33:$X72)),"Err"))))) ->  | L73: =IF(AND($X73<>"",$Y73<>""),$Y73,IF(Horizontaldistanz="","",IF(OR($A$1=PGG,$A$1=LXE),($L72+dX-Fehler_X),IF(OR($A$1=PGO,$A$1=LNE),($L72+dX),IF($A$1=PGZ,(Horizontaldistanz*COS(Richtung*Winkelmaß_Hz)+LOOKUP(1E+307,$Y$33:$Y72,$Y$33:$Y72)),"Err"))))) ->  | M73: 0 | N73: -1 | O73: -1 | P73: BBox | R73: 0 | S73: 41 | T73: =IF($F73="","",IF($A$1=PGZ,"0",38)) ->  | U73: =IF($F73="","",IF($A$1=PGZ,38,IF(AND($A$1=PGG,AM73=1),1,39))) ->  | V73: =IF($F73="","",IF($A$1=PGZ,"0",40)) ->  | W73: =IF($F73="","",IF($A$1=PGZ,40,IF(AND($A$1=PGG,AO73=1),1,41))) ->  | AC73: 0 | AD73: =ROW() -> 73 | AF73: =IF(AND($X73<>"",$Y73<>""),SUM(INDIRECT(ADDRESS(LOOKUP(1E+307,$Y$33:$Y72,$AD$33:$AD72)+1,31,TRUE),TRUE):AE73),AF74) -> 0 | AG73: =IF(AND($X73<>"",$Y73<>""),SUM(INDIRECT(ADDRESS(LOOKUP(1E+307,$X$33:$X72,$AD$33:$AD72)+1,7,TRUE),TRUE):G73),AG74) -> 0 | AH73: =IF(AND($X73<>"",$Y73<>""),SUM(INDIRECT(ADDRESS(LOOKUP(1E+307,$Y$33:$Y72,$AD$33:$AD72)+1,8,TRUE),TRUE):H73),AH74) -> 0 | AI73: =IF(AND($X73<>"",$Y73<>""),X73-AG73-INDIRECT(ADDRESS(LOOKUP(1E+307,$X$33:$X72,$AD$33:$AD72),24,TRUE),TRUE),AI74) -> 0 | AJ73: =IF(AND($X73<>"",$Y73<>""),Y73-AH73-INDIRECT(ADDRESS(LOOKUP(1E+307,$X$33:$X72,$AD$33:$AD72),25,TRUE),TRUE),AJ74) -> 0 | AM73: 0 | AN73: 0 | AP73: -1 | AQ73: -1 | AR73: -1 | AS73: -1 | AX73: 0 | AY73: 0 | BD73: 0 | BE73: 0 | BF73: 1 | BG73: 0 | BH73: 1 | BM73: =IF(BK73<>"",POWER((SUM($BK$34:BK72))+(BK73/2)-(0.5*SUM($BK$34:$BK$132)),2),0) -> 0 | BN73: =IF(BL73<>"",POWER(0.5*SUM($BL$34:$BL$132)-SUM($BL$34:BL72)-(0.5*BL73),2),0) -> 0
A74: =IF($F74="","",IF($A$1=PGZ,"0",41)) ->  | B74: =IF($F74="","",IF($A$1=PGZ,41,IF(AND($A$1=PGG,T74=1),1,42))) ->  | K74: =IF(AND($X74<>"",$Y74<>""),$X74,IF(Horizontaldistanz="","",IF(OR($A$1=PGG,$A$1=LXE),($K73+dY-Fehler_Y),IF(OR($A$1=PGO,$A$1=LNE),($K73+dY),IF($A$1=PGZ,(Horizontaldistanz*SIN(Richtung*Winkelmaß_Hz)+LOOKUP(1E+307,$X$33:$X73,$X$33:$X73)),"Err"))))) ->  | L74: =IF(AND($X74<>"",$Y74<>""),$Y74,IF(Horizontaldistanz="","",IF(OR($A$1=PGG,$A$1=LXE),($L73+dX-Fehler_X),IF(OR($A$1=PGO,$A$1=LNE),($L73+dX),IF($A$1=PGZ,(Horizontaldistanz*COS(Richtung*Winkelmaß_Hz)+LOOKUP(1E+307,$Y$33:$Y73,$Y$33:$Y73)),"Err"))))) ->  | M74: 0 | N74: -1 | O74: -1 | P74: xmin | Q74: =ROUNDDOWN(MIN($X$33,K34:K134),0) -> 0 | R74: 0 | S74: 42 | T74: =IF($F74="","",IF($A$1=PGZ,"0",39)) ->  | U74: =IF($F74="","",IF($A$1=PGZ,39,IF(AND($A$1=PGG,AM74=1),1,40))) ->  | V74: =IF($F74="","",IF($A$1=PGZ,"0",41)) ->  | W74: =IF($F74="","",IF($A$1=PGZ,41,IF(AND($A$1=PGG,AO74=1),1,42))) ->  | AC74: 0 | AD74: =ROW() -> 74 | AF74: =IF(AND($X74<>"",$Y74<>""),SUM(INDIRECT(ADDRESS(LOOKUP(1E+307,$Y$33:$Y73,$AD$33:$AD73)+1,31,TRUE),TRUE):AE74),AF75) -> 0 | AG74: =IF(AND($X74<>"",$Y74<>""),SUM(INDIRECT(ADDRESS(LOOKUP(1E+307,$X$33:$X73,$AD$33:$AD73)+1,7,TRUE),TRUE):G74),AG75) -> 0 | AH74: =IF(AND($X74<>"",$Y74<>""),SUM(INDIRECT(ADDRESS(LOOKUP(1E+307,$Y$33:$Y73,$AD$33:$AD73)+1,8,TRUE),TRUE):H74),AH75) -> 0 | AI74: =IF(AND($X74<>"",$Y74<>""),X74-AG74-INDIRECT(ADDRESS(LOOKUP(1E+307,$X$33:$X73,$AD$33:$AD73),24,TRUE),TRUE),AI75) -> 0 | AJ74: =IF(AND($X74<>"",$Y74<>""),Y74-AH74-INDIRECT(ADDRESS(LOOKUP(1E+307,$X$33:$X73,$AD$33:$AD73),25,TRUE),TRUE),AJ75) -> 0 | AM74: 0 | AN74: 0 | AP74: -1 | AQ74: -1 | AR74: -1 | AS74: -1 | AX74: 0 | AY74: 0 | BD74: 0 | BE74: 0 | BF74: 1 | BG74: 0 | BH74: 1 | BM74: =IF(BK74<>"",POWER((SUM($BK$34:BK73))+(BK74/2)-(0.5*SUM($BK$34:$BK$132)),2),0) -> 0 | BN74: =IF(BL74<>"",POWER(0.5*SUM($BL$34:$BL$132)-SUM($BL$34:BL73)-(0.5*BL74),2),0) -> 0
A75: =IF($F75="","",IF($A$1=PGZ,"0",42)) ->  | B75: =IF($F75="","",IF($A$1=PGZ,42,IF(AND($A$1=PGG,T75=1),1,43))) ->  | K75: =IF(AND($X75<>"",$Y75<>""),$X75,IF(Horizontaldistanz="","",IF(OR($A$1=PGG,$A$1=LXE),($K74+dY-Fehler_Y),IF(OR($A$1=PGO,$A$1=LNE),($K74+dY),IF($A$1=PGZ,(Horizontaldistanz*SIN(Richtung*Winkelmaß_Hz)+LOOKUP(1E+307,$X$33:$X74,$X$33:$X74)),"Err"))))) ->  | L75: =IF(AND($X75<>"",$Y75<>""),$Y75,IF(Horizontaldistanz="","",IF(OR($A$1=PGG,$A$1=LXE),($L74+dX-Fehler_X),IF(OR($A$1=PGO,$A$1=LNE),($L74+dX),IF($A$1=PGZ,(Horizontaldistanz*COS(Richtung*Winkelmaß_Hz)+LOOKUP(1E+307,$Y$33:$Y74,$Y$33:$Y74)),"Err"))))) ->  | M75: 0 | N75: -1 | O75: -1 | P75: ymin | Q75: =ROUNDDOWN(MIN($Y$33,L34:L134),0) -> 0 | R75: 0 | S75: 43 | T75: =IF($F75="","",IF($A$1=PGZ,"0",40)) ->  | U75: =IF($F75="","",IF($A$1=PGZ,40,IF(AND($A$1=PGG,AM75=1),1,41))) ->  | V75: =IF($F75="","",IF($A$1=PGZ,"0",42)) ->  | W75: =IF($F75="","",IF($A$1=PGZ,42,IF(AND($A$1=PGG,AO75=1),1,43))) ->  | AC75: 0 | AD75: =ROW() -> 75 | AF75: =IF(AND($X75<>"",$Y75<>""),SUM(INDIRECT(ADDRESS(LOOKUP(1E+307,$Y$33:$Y74,$AD$33:$AD74)+1,31,TRUE),TRUE):AE75),AF76) -> 0 | AG75: =IF(AND($X75<>"",$Y75<>""),SUM(INDIRECT(ADDRESS(LOOKUP(1E+307,$X$33:$X74,$AD$33:$AD74)+1,7,TRUE),TRUE):G75),AG76) -> 0 | AH75: =IF(AND($X75<>"",$Y75<>""),SUM(INDIRECT(ADDRESS(LOOKUP(1E+307,$Y$33:$Y74,$AD$33:$AD74)+1,8,TRUE),TRUE):H75),AH76) -> 0 | AI75: =IF(AND($X75<>"",$Y75<>""),X75-AG75-INDIRECT(ADDRESS(LOOKUP(1E+307,$X$33:$X74,$AD$33:$AD74),24,TRUE),TRUE),AI76) -> 0 | AJ75: =IF(AND($X75<>"",$Y75<>""),Y75-AH75-INDIRECT(ADDRESS(LOOKUP(1E+307,$X$33:$X74,$AD$33:$AD74),25,TRUE),TRUE),AJ76) -> 0 | AM75: 0 | AN75: 0 | AP75: -1 | AQ75: -1 | AR75: -1 | AS75: -1 | AX75: 0 | AY75: 0 | BD75: 0 | BE75: 0 | BF75: 1 | BG75: 0 | BH75: 1 | BM75: =IF(BK75<>"",POWER((SUM($BK$34:BK74))+(BK75/2)-(0.5*SUM($BK$34:$BK$132)),2),0) -> 0 | BN75: =IF(BL75<>"",POWER(0.5*SUM($BL$34:$BL$132)-SUM($BL$34:BL74)-(0.5*BL75),2),0) -> 0
A76: =IF($F76="","",IF($A$1=PGZ,"0",43)) ->  | B76: =IF($F76="","",IF($A$1=PGZ,43,IF(AND($A$1=PGG,T76=1),1,44))) ->  | K76: =IF(AND($X76<>"",$Y76<>""),$X76,IF(Horizontaldistanz="","",IF(OR($A$1=PGG,$A$1=LXE),($K75+dY-Fehler_Y),IF(OR($A$1=PGO,$A$1=LNE),($K75+dY),IF($A$1=PGZ,(Horizontaldistanz*SIN(Richtung*Winkelmaß_Hz)+LOOKUP(1E+307,$X$33:$X75,$X$33:$X75)),"Err"))))) ->  | L76: =IF(AND($X76<>"",$Y76<>""),$Y76,IF(Horizontaldistanz="","",IF(OR($A$1=PGG,$A$1=LXE),($L75+dX-Fehler_X),IF(OR($A$1=PGO,$A$1=LNE),($L75+dX),IF($A$1=PGZ,(Horizontaldistanz*COS(Richtung*Winkelmaß_Hz)+LOOKUP(1E+307,$Y$33:$Y75,$Y$33:$Y75)),"Err"))))) ->  | M76: 0 | N76: -1 | O76: -1 | P76: xmax | Q76: =ROUNDUP(MAX(X43,K34:K134),0) -> 0 | R76: 0 | S76: 44 | T76: =IF($F76="","",IF($A$1=PGZ,"0",41)) ->  | U76: =IF($F76="","",IF($A$1=PGZ,41,IF(AND($A$1=PGG,AM76=1),1,42))) ->  | V76: =IF($F76="","",IF($A$1=PGZ,"0",43)) ->  | W76: =IF($F76="","",IF($A$1=PGZ,43,IF(AND($A$1=PGG,AO76=1),1,44))) ->  | AC76: 0 | AD76: =ROW() -> 76 | AF76: =IF(AND($X76<>"",$Y76<>""),SUM(INDIRECT(ADDRESS(LOOKUP(1E+307,$Y$33:$Y75,$AD$33:$AD75)+1,31,TRUE),TRUE):AE76),AF77) -> 0 | AG76: =IF(AND($X76<>"",$Y76<>""),SUM(INDIRECT(ADDRESS(LOOKUP(1E+307,$X$33:$X75,$AD$33:$AD75)+1,7,TRUE),TRUE):G76),AG77) -> 0 | AH76: =IF(AND($X76<>"",$Y76<>""),SUM(INDIRECT(ADDRESS(LOOKUP(1E+307,$Y$33:$Y75,$AD$33:$AD75)+1,8,TRUE),TRUE):H76),AH77) -> 0 | AI76: =IF(AND($X76<>"",$Y76<>""),X76-AG76-INDIRECT(ADDRESS(LOOKUP(1E+307,$X$33:$X75,$AD$33:$AD75),24,TRUE),TRUE),AI77) -> 0 | AJ76: =IF(AND($X76<>"",$Y76<>""),Y76-AH76-INDIRECT(ADDRESS(LOOKUP(1E+307,$X$33:$X75,$AD$33:$AD75),25,TRUE),TRUE),AJ77) -> 0 | AM76: 0 | AN76: 0 | AP76: -1 | AQ76: -1 | AR76: -1 | AS76: -1 | AX76: 0 | AY76: 0 | BD76: 0 | BE76: 0 | BF76: 1 | BG76: 0 | BH76: 1 | BM76: =IF(BK76<>"",POWER((SUM($BK$34:BK75))+(BK76/2)-(0.5*SUM($BK$34:$BK$132)),2),0) -> 0 | BN76: =IF(BL76<>"",POWER(0.5*SUM($BL$34:$BL$132)-SUM($BL$34:BL75)-(0.5*BL76),2),0) -> 0
A77: =IF($F77="","",IF($A$1=PGZ,"0",44)) ->  | B77: =IF($F77="","",IF($A$1=PGZ,44,IF(AND($A$1=PGG,T77=1),1,45))) ->  | K77: =IF(AND($X77<>"",$Y77<>""),$X77,IF(Horizontaldistanz="","",IF(OR($A$1=PGG,$A$1=LXE),($K76+dY-Fehler_Y),IF(OR($A$1=PGO,$A$1=LNE),($K76+dY),IF($A$1=PGZ,(Horizontaldistanz*SIN(Richtung*Winkelmaß_Hz)+LOOKUP(1E+307,$X$33:$X76,$X$33:$X76)),"Err"))))) ->  | L77: =IF(AND($X77<>"",$Y77<>""),$Y77,IF(Horizontaldistanz="","",IF(OR($A$1=PGG,$A$1=LXE),($L76+dX-Fehler_X),IF(OR($A$1=PGO,$A$1=LNE),($L76+dX),IF($A$1=PGZ,(Horizontaldistanz*COS(Richtung*Winkelmaß_Hz)+LOOKUP(1E+307,$Y$33:$Y76,$Y$33:$Y76)),"Err"))))) ->  | M77: 0 | N77: -1 | O77: -1 | P77: ymax | Q77: =ROUNDUP(MAX(Y33,L34:L134),0) -> 0 | R77: 0 | S77: 45 | T77: =IF($F77="","",IF($A$1=PGZ,"0",42)) ->  | U77: =IF($F77="","",IF($A$1=PGZ,42,IF(AND($A$1=PGG,AM77=1),1,43))) ->  | V77: =IF($F77="","",IF($A$1=PGZ,"0",44)) ->  | W77: =IF($F77="","",IF($A$1=PGZ,44,IF(AND($A$1=PGG,AO77=1),1,45))) ->  | AC77: 0 | AD77: =ROW() -> 77 | AF77: =IF(AND($X77<>"",$Y77<>""),SUM(INDIRECT(ADDRESS(LOOKUP(1E+307,$Y$33:$Y76,$AD$33:$AD76)+1,31,TRUE),TRUE):AE77),AF78) -> 0 | AG77: =IF(AND($X77<>"",$Y77<>""),SUM(INDIRECT(ADDRESS(LOOKUP(1E+307,$X$33:$X76,$AD$33:$AD76)+1,7,TRUE),TRUE):G77),AG78) -> 0 | AH77: =IF(AND($X77<>"",$Y77<>""),SUM(INDIRECT(ADDRESS(LOOKUP(1E+307,$Y$33:$Y76,$AD$33:$AD76)+1,8,TRUE),TRUE):H77),AH78) -> 0 | AI77: =IF(AND($X77<>"",$Y77<>""),X77-AG77-INDIRECT(ADDRESS(LOOKUP(1E+307,$X$33:$X76,$AD$33:$AD76),24,TRUE),TRUE),AI78) -> 0 | AJ77: =IF(AND($X77<>"",$Y77<>""),Y77-AH77-INDIRECT(ADDRESS(LOOKUP(1E+307,$X$33:$X76,$AD$33:$AD76),25,TRUE),TRUE),AJ78) -> 0 | AM77: 0 | AN77: 0 | AP77: -1 | AQ77: -1 | AR77: -1 | AS77: -1 | AX77: 0 | AY77: 0 | BD77: 0 | BE77: 0 | BF77: 1 | BG77: 0 | BH77: 1 | BM77: =IF(BK77<>"",POWER((SUM($BK$34:BK76))+(BK77/2)-(0.5*SUM($BK$34:$BK$132)),2),0) -> 0 | BN77: =IF(BL77<>"",POWER(0.5*SUM($BL$34:$BL$132)-SUM($BL$34:BL76)-(0.5*BL77),2),0) -> 0
A78: =IF($F78="","",IF($A$1=PGZ,"0",45)) ->  | B78: =IF($F78="","",IF($A$1=PGZ,45,IF(AND($A$1=PGG,T78=1),1,46))) ->  | K78: =IF(AND($X78<>"",$Y78<>""),$X78,IF(Horizontaldistanz="","",IF(OR($A$1=PGG,$A$1=LXE),($K77+dY-Fehler_Y),IF(OR($A$1=PGO,$A$1=LNE),($K77+dY),IF($A$1=PGZ,(Horizontaldistanz*SIN(Richtung*Winkelmaß_Hz)+LOOKUP(1E+307,$X$33:$X77,$X$33:$X77)),"Err"))))) ->  | L78: =IF(AND($X78<>"",$Y78<>""),$Y78,IF(Horizontaldistanz="","",IF(OR($A$1=PGG,$A$1=LXE),($L77+dX-Fehler_X),IF(OR($A$1=PGO,$A$1=LNE),($L77+dX),IF($A$1=PGZ,(Horizontaldistanz*COS(Richtung*Winkelmaß_Hz)+LOOKUP(1E+307,$Y$33:$Y77,$Y$33:$Y77)),"Err"))))) ->  | M78: 0 | N78: -1 | O78: -1 | R78: 0 | S78: 46 | T78: =IF($F78="","",IF($A$1=PGZ,"0",43)) ->  | U78: =IF($F78="","",IF($A$1=PGZ,43,IF(AND($A$1=PGG,AM78=1),1,44))) ->  | V78: =IF($F78="","",IF($A$1=PGZ,"0",45)) ->  | W78: =IF($F78="","",IF($A$1=PGZ,45,IF(AND($A$1=PGG,AO78=1),1,46))) ->  | AC78: 0 | AD78: =ROW() -> 78 | AF78: =IF(AND($X78<>"",$Y78<>""),SUM(INDIRECT(ADDRESS(LOOKUP(1E+307,$Y$33:$Y77,$AD$33:$AD77)+1,31,TRUE),TRUE):AE78),AF79) -> 0 | AG78: =IF(AND($X78<>"",$Y78<>""),SUM(INDIRECT(ADDRESS(LOOKUP(1E+307,$X$33:$X77,$AD$33:$AD77)+1,7,TRUE),TRUE):G78),AG79) -> 0 | AH78: =IF(AND($X78<>"",$Y78<>""),SUM(INDIRECT(ADDRESS(LOOKUP(1E+307,$Y$33:$Y77,$AD$33:$AD77)+1,8,TRUE),TRUE):H78),AH79) -> 0 | AI78: =IF(AND($X78<>"",$Y78<>""),X78-AG78-INDIRECT(ADDRESS(LOOKUP(1E+307,$X$33:$X77,$AD$33:$AD77),24,TRUE),TRUE),AI79) -> 0 | AJ78: =IF(AND($X78<>"",$Y78<>""),Y78-AH78-INDIRECT(ADDRESS(LOOKUP(1E+307,$X$33:$X77,$AD$33:$AD77),25,TRUE),TRUE),AJ79) -> 0 | AM78: 0 | AN78: 0 | AP78: -1 | AQ78: -1 | AR78: -1 | AS78: -1 | AX78: 0 | AY78: 0 | BD78: 0 | BE78: 0 | BF78: 1 | BG78: 0 | BH78: 1 | BM78: =IF(BK78<>"",POWER((SUM($BK$34:BK77))+(BK78/2)-(0.5*SUM($BK$34:$BK$132)),2),0) -> 0 | BN78: =IF(BL78<>"",POWER(0.5*SUM($BL$34:$BL$132)-SUM($BL$34:BL77)-(0.5*BL78),2),0) -> 0
A79: =IF($F79="","",IF($A$1=PGZ,"0",46)) ->  | B79: =IF($F79="","",IF($A$1=PGZ,46,IF(AND($A$1=PGG,T79=1),1,47))) ->  | K79: =IF(AND($X79<>"",$Y79<>""),$X79,IF(Horizontaldistanz="","",IF(OR($A$1=PGG,$A$1=LXE),($K78+dY-Fehler_Y),IF(OR($A$1=PGO,$A$1=LNE),($K78+dY),IF($A$1=PGZ,(Horizontaldistanz*SIN(Richtung*Winkelmaß_Hz)+LOOKUP(1E+307,$X$33:$X78,$X$33:$X78)),"Err"))))) ->  | L79: =IF(AND($X79<>"",$Y79<>""),$Y79,IF(Horizontaldistanz="","",IF(OR($A$1=PGG,$A$1=LXE),($L78+dX-Fehler_X),IF(OR($A$1=PGO,$A$1=LNE),($L78+dX),IF($A$1=PGZ,(Horizontaldistanz*COS(Richtung*Winkelmaß_Hz)+LOOKUP(1E+307,$Y$33:$Y78,$Y$33:$Y78)),"Err"))))) ->  | M79: 0 | N79: -1 | O79: -1 | R79: 0 | S79: 47 | T79: =IF($F79="","",IF($A$1=PGZ,"0",44)) ->  | U79: =IF($F79="","",IF($A$1=PGZ,44,IF(AND($A$1=PGG,AM79=1),1,45))) ->  | V79: =IF($F79="","",IF($A$1=PGZ,"0",46)) ->  | W79: =IF($F79="","",IF($A$1=PGZ,46,IF(AND($A$1=PGG,AO79=1),1,47))) ->  | AC79: 0 | AD79: =ROW() -> 79 | AF79: =IF(AND($X79<>"",$Y79<>""),SUM(INDIRECT(ADDRESS(LOOKUP(1E+307,$Y$33:$Y78,$AD$33:$AD78)+1,31,TRUE),TRUE):AE79),AF80) -> 0 | AG79: =IF(AND($X79<>"",$Y79<>""),SUM(INDIRECT(ADDRESS(LOOKUP(1E+307,$X$33:$X78,$AD$33:$AD78)+1,7,TRUE),TRUE):G79),AG80) -> 0 | AH79: =IF(AND($X79<>"",$Y79<>""),SUM(INDIRECT(ADDRESS(LOOKUP(1E+307,$Y$33:$Y78,$AD$33:$AD78)+1,8,TRUE),TRUE):H79),AH80) -> 0 | AI79: =IF(AND($X79<>"",$Y79<>""),X79-AG79-INDIRECT(ADDRESS(LOOKUP(1E+307,$X$33:$X78,$AD$33:$AD78),24,TRUE),TRUE),AI80) -> 0 | AJ79: =IF(AND($X79<>"",$Y79<>""),Y79-AH79-INDIRECT(ADDRESS(LOOKUP(1E+307,$X$33:$X78,$AD$33:$AD78),25,TRUE),TRUE),AJ80) -> 0 | AM79: 0 | AN79: 0 | AP79: -1 | AQ79: -1 | AR79: -1 | AS79: -1 | AX79: 0 | AY79: 0 | BD79: 0 | BE79: 0 | BF79: 1 | BG79: 0 | BH79: 1 | BM79: =IF(BK79<>"",POWER((SUM($BK$34:BK78))+(BK79/2)-(0.5*SUM($BK$34:$BK$132)),2),0) -> 0 | BN79: =IF(BL79<>"",POWER(0.5*SUM($BL$34:$BL$132)-SUM($BL$34:BL78)-(0.5*BL79),2),0) -> 0
A80: =IF($F80="","",IF($A$1=PGZ,"0",47)) ->  | B80: =IF($F80="","",IF($A$1=PGZ,47,IF(AND($A$1=PGG,T80=1),1,48))) ->  | K80: =IF(AND($X80<>"",$Y80<>""),$X80,IF(Horizontaldistanz="","",IF(OR($A$1=PGG,$A$1=LXE),($K79+dY-Fehler_Y),IF(OR($A$1=PGO,$A$1=LNE),($K79+dY),IF($A$1=PGZ,(Horizontaldistanz*SIN(Richtung*Winkelmaß_Hz)+LOOKUP(1E+307,$X$33:$X79,$X$33:$X79)),"Err"))))) ->  | L80: =IF(AND($X80<>"",$Y80<>""),$Y80,IF(Horizontaldistanz="","",IF(OR($A$1=PGG,$A$1=LXE),($L79+dX-Fehler_X),IF(OR($A$1=PGO,$A$1=LNE),($L79+dX),IF($A$1=PGZ,(Horizontaldistanz*COS(Richtung*Winkelmaß_Hz)+LOOKUP(1E+307,$Y$33:$Y79,$Y$33:$Y79)),"Err"))))) ->  | M80: 0 | N80: -1 | O80: -1 | R80: 0 | S80: 48 | T80: =IF($F80="","",IF($A$1=PGZ,"0",45)) ->  | U80: =IF($F80="","",IF($A$1=PGZ,45,IF(AND($A$1=PGG,AM80=1),1,46))) ->  | V80: =IF($F80="","",IF($A$1=PGZ,"0",47)) ->  | W80: =IF($F80="","",IF($A$1=PGZ,47,IF(AND($A$1=PGG,AO80=1),1,48))) ->  | AC80: 0 | AD80: =ROW() -> 80 | AF80: =IF(AND($X80<>"",$Y80<>""),SUM(INDIRECT(ADDRESS(LOOKUP(1E+307,$Y$33:$Y79,$AD$33:$AD79)+1,31,TRUE),TRUE):AE80),AF81) -> 0 | AG80: =IF(AND($X80<>"",$Y80<>""),SUM(INDIRECT(ADDRESS(LOOKUP(1E+307,$X$33:$X79,$AD$33:$AD79)+1,7,TRUE),TRUE):G80),AG81) -> 0 | AH80: =IF(AND($X80<>"",$Y80<>""),SUM(INDIRECT(ADDRESS(LOOKUP(1E+307,$Y$33:$Y79,$AD$33:$AD79)+1,8,TRUE),TRUE):H80),AH81) -> 0 | AI80: =IF(AND($X80<>"",$Y80<>""),X80-AG80-INDIRECT(ADDRESS(LOOKUP(1E+307,$X$33:$X79,$AD$33:$AD79),24,TRUE),TRUE),AI81) -> 0 | AJ80: =IF(AND($X80<>"",$Y80<>""),Y80-AH80-INDIRECT(ADDRESS(LOOKUP(1E+307,$X$33:$X79,$AD$33:$AD79),25,TRUE),TRUE),AJ81) -> 0 | AM80: 0 | AN80: 0 | AP80: -1 | AQ80: -1 | AR80: -1 | AS80: -1 | AX80: 0 | AY80: 0 | BD80: 0 | BE80: 0 | BF80: 1 | BG80: 0 | BH80: 1 | BM80: =IF(BK80<>"",POWER((SUM($BK$34:BK79))+(BK80/2)-(0.5*SUM($BK$34:$BK$132)),2),0) -> 0 | BN80: =IF(BL80<>"",POWER(0.5*SUM($BL$34:$BL$132)-SUM($BL$34:BL79)-(0.5*BL80),2),0) -> 0
A81: =IF($F81="","",IF($A$1=PGZ,"0",48)) ->  | B81: =IF($F81="","",IF($A$1=PGZ,48,IF(AND($A$1=PGG,T81=1),1,49))) ->  | K81: =IF(AND($X81<>"",$Y81<>""),$X81,IF(Horizontaldistanz="","",IF(OR($A$1=PGG,$A$1=LXE),($K80+dY-Fehler_Y),IF(OR($A$1=PGO,$A$1=LNE),($K80+dY),IF($A$1=PGZ,(Horizontaldistanz*SIN(Richtung*Winkelmaß_Hz)+LOOKUP(1E+307,$X$33:$X80,$X$33:$X80)),"Err"))))) ->  | L81: =IF(AND($X81<>"",$Y81<>""),$Y81,IF(Horizontaldistanz="","",IF(OR($A$1=PGG,$A$1=LXE),($L80+dX-Fehler_X),IF(OR($A$1=PGO,$A$1=LNE),($L80+dX),IF($A$1=PGZ,(Horizontaldistanz*COS(Richtung*Winkelmaß_Hz)+LOOKUP(1E+307,$Y$33:$Y80,$Y$33:$Y80)),"Err"))))) ->  | M81: 0 | N81: -1 | O81: -1 | R81: 0 | S81: 49 | T81: =IF($F81="","",IF($A$1=PGZ,"0",46)) ->  | U81: =IF($F81="","",IF($A$1=PGZ,46,IF(AND($A$1=PGG,AM81=1),1,47))) ->  | V81: =IF($F81="","",IF($A$1=PGZ,"0",48)) ->  | W81: =IF($F81="","",IF($A$1=PGZ,48,IF(AND($A$1=PGG,AO81=1),1,49))) ->  | AC81: 0 | AD81: =ROW() -> 81 | AF81: =IF(AND($X81<>"",$Y81<>""),SUM(INDIRECT(ADDRESS(LOOKUP(1E+307,$Y$33:$Y80,$AD$33:$AD80)+1,31,TRUE),TRUE):AE81),AF82) -> 0 | AG81: =IF(AND($X81<>"",$Y81<>""),SUM(INDIRECT(ADDRESS(LOOKUP(1E+307,$X$33:$X80,$AD$33:$AD80)+1,7,TRUE),TRUE):G81),AG82) -> 0 | AH81: =IF(AND($X81<>"",$Y81<>""),SUM(INDIRECT(ADDRESS(LOOKUP(1E+307,$Y$33:$Y80,$AD$33:$AD80)+1,8,TRUE),TRUE):H81),AH82) -> 0 | AI81: =IF(AND($X81<>"",$Y81<>""),X81-AG81-INDIRECT(ADDRESS(LOOKUP(1E+307,$X$33:$X80,$AD$33:$AD80),24,TRUE),TRUE),AI82) -> 0 | AJ81: =IF(AND($X81<>"",$Y81<>""),Y81-AH81-INDIRECT(ADDRESS(LOOKUP(1E+307,$X$33:$X80,$AD$33:$AD80),25,TRUE),TRUE),AJ82) -> 0 | AM81: 0 | AN81: 0 | AP81: -1 | AQ81: -1 | AR81: -1 | AS81: -1 | AX81: 0 | AY81: 0 | BD81: 0 | BE81: 0 | BF81: 1 | BG81: 0 | BH81: 1 | BM81: =IF(BK81<>"",POWER((SUM($BK$34:BK80))+(BK81/2)-(0.5*SUM($BK$34:$BK$132)),2),0) -> 0 | BN81: =IF(BL81<>"",POWER(0.5*SUM($BL$34:$BL$132)-SUM($BL$34:BL80)-(0.5*BL81),2),0) -> 0
A82: =IF($F82="","",IF($A$1=PGZ,"0",49)) ->  | B82: =IF($F82="","",IF($A$1=PGZ,49,IF(AND($A$1=PGG,T82=1),1,50))) ->  | K82: =IF(AND($X82<>"",$Y82<>""),$X82,IF(Horizontaldistanz="","",IF(OR($A$1=PGG,$A$1=LXE),($K81+dY-Fehler_Y),IF(OR($A$1=PGO,$A$1=LNE),($K81+dY),IF($A$1=PGZ,(Horizontaldistanz*SIN(Richtung*Winkelmaß_Hz)+LOOKUP(1E+307,$X$33:$X81,$X$33:$X81)),"Err"))))) ->  | L82: =IF(AND($X82<>"",$Y82<>""),$Y82,IF(Horizontaldistanz="","",IF(OR($A$1=PGG,$A$1=LXE),($L81+dX-Fehler_X),IF(OR($A$1=PGO,$A$1=LNE),($L81+dX),IF($A$1=PGZ,(Horizontaldistanz*COS(Richtung*Winkelmaß_Hz)+LOOKUP(1E+307,$Y$33:$Y81,$Y$33:$Y81)),"Err"))))) ->  | M82: 0 | N82: -1 | O82: -1 | R82: 0 | S82: 50 | T82: =IF($F82="","",IF($A$1=PGZ,"0",47)) ->  | U82: =IF($F82="","",IF($A$1=PGZ,47,IF(AND($A$1=PGG,AM82=1),1,48))) ->  | V82: =IF($F82="","",IF($A$1=PGZ,"0",49)) ->  | W82: =IF($F82="","",IF($A$1=PGZ,49,IF(AND($A$1=PGG,AO82=1),1,50))) ->  | AC82: 0 | AD82: =ROW() -> 82 | AF82: =IF(AND($X82<>"",$Y82<>""),SUM(INDIRECT(ADDRESS(LOOKUP(1E+307,$Y$33:$Y81,$AD$33:$AD81)+1,31,TRUE),TRUE):AE82),AF83) -> 0 | AG82: =IF(AND($X82<>"",$Y82<>""),SUM(INDIRECT(ADDRESS(LOOKUP(1E+307,$X$33:$X81,$AD$33:$AD81)+1,7,TRUE),TRUE):G82),AG83) -> 0 | AH82: =IF(AND($X82<>"",$Y82<>""),SUM(INDIRECT(ADDRESS(LOOKUP(1E+307,$Y$33:$Y81,$AD$33:$AD81)+1,8,TRUE),TRUE):H82),AH83) -> 0 | AI82: =IF(AND($X82<>"",$Y82<>""),X82-AG82-INDIRECT(ADDRESS(LOOKUP(1E+307,$X$33:$X81,$AD$33:$AD81),24,TRUE),TRUE),AI83) -> 0 | AJ82: =IF(AND($X82<>"",$Y82<>""),Y82-AH82-INDIRECT(ADDRESS(LOOKUP(1E+307,$X$33:$X81,$AD$33:$AD81),25,TRUE),TRUE),AJ83) -> 0 | AM82: 0 | AN82: 0 | AP82: -1 | AQ82: -1 | AR82: -1 | AS82: -1 | AX82: 0 | AY82: 0 | BD82: 0 | BE82: 0 | BF82: 1 | BG82: 0 | BH82: 1 | BM82: =IF(BK82<>"",POWER((SUM($BK$34:BK81))+(BK82/2)-(0.5*SUM($BK$34:$BK$132)),2),0) -> 0 | BN82: =IF(BL82<>"",POWER(0.5*SUM($BL$34:$BL$132)-SUM($BL$34:BL81)-(0.5*BL82),2),0) -> 0
A83: =IF($F83="","",IF($A$1=PGZ,"0",50)) ->  | B83: =IF($F83="","",IF($A$1=PGZ,50,IF(AND($A$1=PGG,T83=1),1,51))) ->  | K83: =IF(AND($X83<>"",$Y83<>""),$X83,IF(Horizontaldistanz="","",IF(OR($A$1=PGG,$A$1=LXE),($K82+dY-Fehler_Y),IF(OR($A$1=PGO,$A$1=LNE),($K82+dY),IF($A$1=PGZ,(Horizontaldistanz*SIN(Richtung*Winkelmaß_Hz)+LOOKUP(1E+307,$X$33:$X82,$X$33:$X82)),"Err"))))) ->  | L83: =IF(AND($X83<>"",$Y83<>""),$Y83,IF(Horizontaldistanz="","",IF(OR($A$1=PGG,$A$1=LXE),($L82+dX-Fehler_X),IF(OR($A$1=PGO,$A$1=LNE),($L82+dX),IF($A$1=PGZ,(Horizontaldistanz*COS(Richtung*Winkelmaß_Hz)+LOOKUP(1E+307,$Y$33:$Y82,$Y$33:$Y82)),"Err"))))) ->  | M83: 0 | N83: -1 | O83: -1 | R83: 0 | S83: 51 | T83: =IF($F83="","",IF($A$1=PGZ,"0",48)) ->  | U83: =IF($F83="","",IF($A$1=PGZ,48,IF(AND($A$1=PGG,AM83=1),1,49))) ->  | V83: =IF($F83="","",IF($A$1=PGZ,"0",50)) ->  | W83: =IF($F83="","",IF($A$1=PGZ,50,IF(AND($A$1=PGG,AO83=1),1,51))) ->  | AC83: 0 | AD83: =ROW() -> 83 | AF83: =IF(AND($X83<>"",$Y83<>""),SUM(INDIRECT(ADDRESS(LOOKUP(1E+307,$Y$33:$Y82,$AD$33:$AD82)+1,31,TRUE),TRUE):AE83),AF84) -> 0 | AG83: =IF(AND($X83<>"",$Y83<>""),SUM(INDIRECT(ADDRESS(LOOKUP(1E+307,$X$33:$X82,$AD$33:$AD82)+1,7,TRUE),TRUE):G83),AG84) -> 0 | AH83: =IF(AND($X83<>"",$Y83<>""),SUM(INDIRECT(ADDRESS(LOOKUP(1E+307,$Y$33:$Y82,$AD$33:$AD82)+1,8,TRUE),TRUE):H83),AH84) -> 0 | AI83: =IF(AND($X83<>"",$Y83<>""),X83-AG83-INDIRECT(ADDRESS(LOOKUP(1E+307,$X$33:$X82,$AD$33:$AD82),24,TRUE),TRUE),AI84) -> 0 | AJ83: =IF(AND($X83<>"",$Y83<>""),Y83-AH83-INDIRECT(ADDRESS(LOOKUP(1E+307,$X$33:$X82,$AD$33:$AD82),25,TRUE),TRUE),AJ84) -> 0 | AM83: 0 | AN83: 0 | AP83: -1 | AQ83: -1 | AR83: -1 | AS83: -1 | AX83: 0 | AY83: 0 | BD83: 0 | BE83: 0 | BF83: 1 | BG83: 0 | BH83: 1 | BM83: =IF(BK83<>"",POWER((SUM($BK$34:BK82))+(BK83/2)-(0.5*SUM($BK$34:$BK$132)),2),0) -> 0 | BN83: =IF(BL83<>"",POWER(0.5*SUM($BL$34:$BL$132)-SUM($BL$34:BL82)-(0.5*BL83),2),0) -> 0
A84: =IF($F84="","",IF($A$1=PGZ,"0",51)) ->  | B84: =IF($F84="","",IF($A$1=PGZ,51,IF(AND($A$1=PGG,T84=1),1,52))) ->  | K84: =IF(AND($X84<>"",$Y84<>""),$X84,IF(Horizontaldistanz="","",IF(OR($A$1=PGG,$A$1=LXE),($K83+dY-Fehler_Y),IF(OR($A$1=PGO,$A$1=LNE),($K83+dY),IF($A$1=PGZ,(Horizontaldistanz*SIN(Richtung*Winkelmaß_Hz)+LOOKUP(1E+307,$X$33:$X83,$X$33:$X83)),"Err"))))) ->  | L84: =IF(AND($X84<>"",$Y84<>""),$Y84,IF(Horizontaldistanz="","",IF(OR($A$1=PGG,$A$1=LXE),($L83+dX-Fehler_X),IF(OR($A$1=PGO,$A$1=LNE),($L83+dX),IF($A$1=PGZ,(Horizontaldistanz*COS(Richtung*Winkelmaß_Hz)+LOOKUP(1E+307,$Y$33:$Y83,$Y$33:$Y83)),"Err"))))) ->  | M84: 0 | N84: -1 | O84: -1 | R84: 0 | S84: 52 | T84: =IF($F84="","",IF($A$1=PGZ,"0",49)) ->  | U84: =IF($F84="","",IF($A$1=PGZ,49,IF(AND($A$1=PGG,AM84=1),1,50))) ->  | V84: =IF($F84="","",IF($A$1=PGZ,"0",51)) ->  | W84: =IF($F84="","",IF($A$1=PGZ,51,IF(AND($A$1=PGG,AO84=1),1,52))) ->  | AC84: 0 | AD84: =ROW() -> 84 | AF84: =IF(AND($X84<>"",$Y84<>""),SUM(INDIRECT(ADDRESS(LOOKUP(1E+307,$Y$33:$Y83,$AD$33:$AD83)+1,31,TRUE),TRUE):AE84),AF85) -> 0 | AG84: =IF(AND($X84<>"",$Y84<>""),SUM(INDIRECT(ADDRESS(LOOKUP(1E+307,$X$33:$X83,$AD$33:$AD83)+1,7,TRUE),TRUE):G84),AG85) -> 0 | AH84: =IF(AND($X84<>"",$Y84<>""),SUM(INDIRECT(ADDRESS(LOOKUP(1E+307,$Y$33:$Y83,$AD$33:$AD83)+1,8,TRUE),TRUE):H84),AH85) -> 0 | AI84: =IF(AND($X84<>"",$Y84<>""),X84-AG84-INDIRECT(ADDRESS(LOOKUP(1E+307,$X$33:$X83,$AD$33:$AD83),24,TRUE),TRUE),AI85) -> 0 | AJ84: =IF(AND($X84<>"",$Y84<>""),Y84-AH84-INDIRECT(ADDRESS(LOOKUP(1E+307,$X$33:$X83,$AD$33:$AD83),25,TRUE),TRUE),AJ85) -> 0 | AM84: 0 | AN84: 0 | AP84: -1 | AQ84: -1 | AR84: -1 | AS84: -1 | AX84: 0 | AY84: 0 | BD84: 0 | BE84: 0 | BF84: 1 | BG84: 0 | BH84: 1 | BM84: =IF(BK84<>"",POWER((SUM($BK$34:BK83))+(BK84/2)-(0.5*SUM($BK$34:$BK$132)),2),0) -> 0 | BN84: =IF(BL84<>"",POWER(0.5*SUM($BL$34:$BL$132)-SUM($BL$34:BL83)-(0.5*BL84),2),0) -> 0
A85: =IF($F85="","",IF($A$1=PGZ,"0",52)) ->  | B85: =IF($F85="","",IF($A$1=PGZ,52,IF(AND($A$1=PGG,T85=1),1,53))) ->  | K85: =IF(AND($X85<>"",$Y85<>""),$X85,IF(Horizontaldistanz="","",IF(OR($A$1=PGG,$A$1=LXE),($K84+dY-Fehler_Y),IF(OR($A$1=PGO,$A$1=LNE),($K84+dY),IF($A$1=PGZ,(Horizontaldistanz*SIN(Richtung*Winkelmaß_Hz)+LOOKUP(1E+307,$X$33:$X84,$X$33:$X84)),"Err"))))) ->  | L85: =IF(AND($X85<>"",$Y85<>""),$Y85,IF(Horizontaldistanz="","",IF(OR($A$1=PGG,$A$1=LXE),($L84+dX-Fehler_X),IF(OR($A$1=PGO,$A$1=LNE),($L84+dX),IF($A$1=PGZ,(Horizontaldistanz*COS(Richtung*Winkelmaß_Hz)+LOOKUP(1E+307,$Y$33:$Y84,$Y$33:$Y84)),"Err"))))) ->  | M85: 0 | N85: -1 | O85: -1 | P85: Amplitude | Q85: Maßstäbe | R85: 0 | S85: 53 | T85: =IF($F85="","",IF($A$1=PGZ,"0",50)) ->  | U85: =IF($F85="","",IF($A$1=PGZ,50,IF(AND($A$1=PGG,AM85=1),1,51))) ->  | V85: =IF($F85="","",IF($A$1=PGZ,"0",52)) ->  | W85: =IF($F85="","",IF($A$1=PGZ,52,IF(AND($A$1=PGG,AO85=1),1,53))) ->  | AC85: 0 | AD85: =ROW() -> 85 | AF85: =IF(AND($X85<>"",$Y85<>""),SUM(INDIRECT(ADDRESS(LOOKUP(1E+307,$Y$33:$Y84,$AD$33:$AD84)+1,31,TRUE),TRUE):AE85),AF86) -> 0 | AG85: =IF(AND($X85<>"",$Y85<>""),SUM(INDIRECT(ADDRESS(LOOKUP(1E+307,$X$33:$X84,$AD$33:$AD84)+1,7,TRUE),TRUE):G85),AG86) -> 0 | AH85: =IF(AND($X85<>"",$Y85<>""),SUM(INDIRECT(ADDRESS(LOOKUP(1E+307,$Y$33:$Y84,$AD$33:$AD84)+1,8,TRUE),TRUE):H85),AH86) -> 0 | AI85: =IF(AND($X85<>"",$Y85<>""),X85-AG85-INDIRECT(ADDRESS(LOOKUP(1E+307,$X$33:$X84,$AD$33:$AD84),24,TRUE),TRUE),AI86) -> 0 | AJ85: =IF(AND($X85<>"",$Y85<>""),Y85-AH85-INDIRECT(ADDRESS(LOOKUP(1E+307,$X$33:$X84,$AD$33:$AD84),25,TRUE),TRUE),AJ86) -> 0 | AM85: 0 | AN85: 0 | AP85: -1 | AQ85: -1 | AR85: -1 | AS85: -1 | AX85: 0 | AY85: 0 | BD85: 0 | BE85: 0 | BF85: 1 | BG85: 0 | BH85: 1 | BM85: =IF(BK85<>"",POWER((SUM($BK$34:BK84))+(BK85/2)-(0.5*SUM($BK$34:$BK$132)),2),0) -> 0 | BN85: =IF(BL85<>"",POWER(0.5*SUM($BL$34:$BL$132)-SUM($BL$34:BL84)-(0.5*BL85),2),0) -> 0
A86: =IF($F86="","",IF($A$1=PGZ,"0",53)) ->  | B86: =IF($F86="","",IF($A$1=PGZ,53,IF(AND($A$1=PGG,T86=1),1,54))) ->  | K86: =IF(AND($X86<>"",$Y86<>""),$X86,IF(Horizontaldistanz="","",IF(OR($A$1=PGG,$A$1=LXE),($K85+dY-Fehler_Y),IF(OR($A$1=PGO,$A$1=LNE),($K85+dY),IF($A$1=PGZ,(Horizontaldistanz*SIN(Richtung*Winkelmaß_Hz)+LOOKUP(1E+307,$X$33:$X85,$X$33:$X85)),"Err"))))) ->  | L86: =IF(AND($X86<>"",$Y86<>""),$Y86,IF(Horizontaldistanz="","",IF(OR($A$1=PGG,$A$1=LXE),($L85+dX-Fehler_X),IF(OR($A$1=PGO,$A$1=LNE),($L85+dX),IF($A$1=PGZ,(Horizontaldistanz*COS(Richtung*Winkelmaß_Hz)+LOOKUP(1E+307,$Y$33:$Y85,$Y$33:$Y85)),"Err"))))) ->  | M86: 0 | N86: -1 | O86: -1 | P86: 0 | Q86: 10 | R86: 0 | S86: 54 | T86: =IF($F86="","",IF($A$1=PGZ,"0",51)) ->  | U86: =IF($F86="","",IF($A$1=PGZ,51,IF(AND($A$1=PGG,AM86=1),1,52))) ->  | V86: =IF($F86="","",IF($A$1=PGZ,"0",53)) ->  | W86: =IF($F86="","",IF($A$1=PGZ,53,IF(AND($A$1=PGG,AO86=1),1,54))) ->  | AC86: 0 | AD86: =ROW() -> 86 | AF86: =IF(AND($X86<>"",$Y86<>""),SUM(INDIRECT(ADDRESS(LOOKUP(1E+307,$Y$33:$Y85,$AD$33:$AD85)+1,31,TRUE),TRUE):AE86),AF87) -> 0 | AG86: =IF(AND($X86<>"",$Y86<>""),SUM(INDIRECT(ADDRESS(LOOKUP(1E+307,$X$33:$X85,$AD$33:$AD85)+1,7,TRUE),TRUE):G86),AG87) -> 0 | AH86: =IF(AND($X86<>"",$Y86<>""),SUM(INDIRECT(ADDRESS(LOOKUP(1E+307,$Y$33:$Y85,$AD$33:$AD85)+1,8,TRUE),TRUE):H86),AH87) -> 0 | AI86: =IF(AND($X86<>"",$Y86<>""),X86-AG86-INDIRECT(ADDRESS(LOOKUP(1E+307,$X$33:$X85,$AD$33:$AD85),24,TRUE),TRUE),AI87) -> 0 | AJ86: =IF(AND($X86<>"",$Y86<>""),Y86-AH86-INDIRECT(ADDRESS(LOOKUP(1E+307,$X$33:$X85,$AD$33:$AD85),25,TRUE),TRUE),AJ87) -> 0 | AM86: 0 | AN86: 0 | AP86: -1 | AQ86: -1 | AR86: -1 | AS86: -1 | AX86: 0 | AY86: 0 | BD86: 0 | BE86: 0 | BF86: 1 | BG86: 0 | BH86: 1 | BM86: =IF(BK86<>"",POWER((SUM($BK$34:BK85))+(BK86/2)-(0.5*SUM($BK$34:$BK$132)),2),0) -> 0 | BN86: =IF(BL86<>"",POWER(0.5*SUM($BL$34:$BL$132)-SUM($BL$34:BL85)-(0.5*BL86),2),0) -> 0
A87: =IF($F87="","",IF($A$1=PGZ,"0",54)) ->  | B87: =IF($F87="","",IF($A$1=PGZ,54,IF(AND($A$1=PGG,T87=1),1,55))) ->  | K87: =IF(AND($X87<>"",$Y87<>""),$X87,IF(Horizontaldistanz="","",IF(OR($A$1=PGG,$A$1=LXE),($K86+dY-Fehler_Y),IF(OR($A$1=PGO,$A$1=LNE),($K86+dY),IF($A$1=PGZ,(Horizontaldistanz*SIN(Richtung*Winkelmaß_Hz)+LOOKUP(1E+307,$X$33:$X86,$X$33:$X86)),"Err"))))) ->  | L87: =IF(AND($X87<>"",$Y87<>""),$Y87,IF(Horizontaldistanz="","",IF(OR($A$1=PGG,$A$1=LXE),($L86+dX-Fehler_X),IF(OR($A$1=PGO,$A$1=LNE),($L86+dX),IF($A$1=PGZ,(Horizontaldistanz*COS(Richtung*Winkelmaß_Hz)+LOOKUP(1E+307,$Y$33:$Y86,$Y$33:$Y86)),"Err"))))) ->  | M87: 0 | N87: -1 | O87: -1 | P87: 1 | Q87: 25 | R87: 0 | S87: 55 | T87: =IF($F87="","",IF($A$1=PGZ,"0",52)) ->  | U87: =IF($F87="","",IF($A$1=PGZ,52,IF(AND($A$1=PGG,AM87=1),1,53))) ->  | V87: =IF($F87="","",IF($A$1=PGZ,"0",54)) ->  | W87: =IF($F87="","",IF($A$1=PGZ,54,IF(AND($A$1=PGG,AO87=1),1,55))) ->  | AC87: 0 | AD87: =ROW() -> 87 | AF87: =IF(AND($X87<>"",$Y87<>""),SUM(INDIRECT(ADDRESS(LOOKUP(1E+307,$Y$33:$Y86,$AD$33:$AD86)+1,31,TRUE),TRUE):AE87),AF88) -> 0 | AG87: =IF(AND($X87<>"",$Y87<>""),SUM(INDIRECT(ADDRESS(LOOKUP(1E+307,$X$33:$X86,$AD$33:$AD86)+1,7,TRUE),TRUE):G87),AG88) -> 0 | AH87: =IF(AND($X87<>"",$Y87<>""),SUM(INDIRECT(ADDRESS(LOOKUP(1E+307,$Y$33:$Y86,$AD$33:$AD86)+1,8,TRUE),TRUE):H87),AH88) -> 0 | AI87: =IF(AND($X87<>"",$Y87<>""),X87-AG87-INDIRECT(ADDRESS(LOOKUP(1E+307,$X$33:$X86,$AD$33:$AD86),24,TRUE),TRUE),AI88) -> 0 | AJ87: =IF(AND($X87<>"",$Y87<>""),Y87-AH87-INDIRECT(ADDRESS(LOOKUP(1E+307,$X$33:$X86,$AD$33:$AD86),25,TRUE),TRUE),AJ88) -> 0 | AM87: 0 | AN87: 0 | AP87: -1 | AQ87: -1 | AR87: -1 | AS87: -1 | AX87: 0 | AY87: 0 | BD87: 0 | BE87: 0 | BF87: 1 | BG87: 0 | BH87: 1 | BM87: =IF(BK87<>"",POWER((SUM($BK$34:BK86))+(BK87/2)-(0.5*SUM($BK$34:$BK$132)),2),0) -> 0 | BN87: =IF(BL87<>"",POWER(0.5*SUM($BL$34:$BL$132)-SUM($BL$34:BL86)-(0.5*BL87),2),0) -> 0
A88: =IF($F88="","",IF($A$1=PGZ,"0",55)) ->  | B88: =IF($F88="","",IF($A$1=PGZ,55,IF(AND($A$1=PGG,T88=1),1,56))) ->  | K88: =IF(AND($X88<>"",$Y88<>""),$X88,IF(Horizontaldistanz="","",IF(OR($A$1=PGG,$A$1=LXE),($K87+dY-Fehler_Y),IF(OR($A$1=PGO,$A$1=LNE),($K87+dY),IF($A$1=PGZ,(Horizontaldistanz*SIN(Richtung*Winkelmaß_Hz)+LOOKUP(1E+307,$X$33:$X87,$X$33:$X87)),"Err"))))) ->  | L88: =IF(AND($X88<>"",$Y88<>""),$Y88,IF(Horizontaldistanz="","",IF(OR($A$1=PGG,$A$1=LXE),($L87+dX-Fehler_X),IF(OR($A$1=PGO,$A$1=LNE),($L87+dX),IF($A$1=PGZ,(Horizontaldistanz*COS(Richtung*Winkelmaß_Hz)+LOOKUP(1E+307,$Y$33:$Y87,$Y$33:$Y87)),"Err"))))) ->  | M88: 0 | N88: -1 | O88: -1 | P88: 2.5 | Q88: 50 | R88: 0 | S88: 56 | T88: =IF($F88="","",IF($A$1=PGZ,"0",53)) ->  | U88: =IF($F88="","",IF($A$1=PGZ,53,IF(AND($A$1=PGG,AM88=1),1,54))) ->  | V88: =IF($F88="","",IF($A$1=PGZ,"0",55)) ->  | W88: =IF($F88="","",IF($A$1=PGZ,55,IF(AND($A$1=PGG,AO88=1),1,56))) ->  | AC88: 0 | AD88: =ROW() -> 88 | AF88: =IF(AND($X88<>"",$Y88<>""),SUM(INDIRECT(ADDRESS(LOOKUP(1E+307,$Y$33:$Y87,$AD$33:$AD87)+1,31,TRUE),TRUE):AE88),AF89) -> 0 | AG88: =IF(AND($X88<>"",$Y88<>""),SUM(INDIRECT(ADDRESS(LOOKUP(1E+307,$X$33:$X87,$AD$33:$AD87)+1,7,TRUE),TRUE):G88),AG89) -> 0 | AH88: =IF(AND($X88<>"",$Y88<>""),SUM(INDIRECT(ADDRESS(LOOKUP(1E+307,$Y$33:$Y87,$AD$33:$AD87)+1,8,TRUE),TRUE):H88),AH89) -> 0 | AI88: =IF(AND($X88<>"",$Y88<>""),X88-AG88-INDIRECT(ADDRESS(LOOKUP(1E+307,$X$33:$X87,$AD$33:$AD87),24,TRUE),TRUE),AI89) -> 0 | AJ88: =IF(AND($X88<>"",$Y88<>""),Y88-AH88-INDIRECT(ADDRESS(LOOKUP(1E+307,$X$33:$X87,$AD$33:$AD87),25,TRUE),TRUE),AJ89) -> 0 | AM88: 0 | AN88: 0 | AP88: -1 | AQ88: -1 | AR88: -1 | AS88: -1 | AX88: 0 | AY88: 0 | BD88: 0 | BE88: 0 | BF88: 1 | BG88: 0 | BH88: 1 | BM88: =IF(BK88<>"",POWER((SUM($BK$34:BK87))+(BK88/2)-(0.5*SUM($BK$34:$BK$132)),2),0) -> 0 | BN88: =IF(BL88<>"",POWER(0.5*SUM($BL$34:$BL$132)-SUM($BL$34:BL87)-(0.5*BL88),2),0) -> 0
A89: =IF($F89="","",IF($A$1=PGZ,"0",56)) ->  | B89: =IF($F89="","",IF($A$1=PGZ,56,IF(AND($A$1=PGG,T89=1),1,57))) ->  | K89: =IF(AND($X89<>"",$Y89<>""),$X89,IF(Horizontaldistanz="","",IF(OR($A$1=PGG,$A$1=LXE),($K88+dY-Fehler_Y),IF(OR($A$1=PGO,$A$1=LNE),($K88+dY),IF($A$1=PGZ,(Horizontaldistanz*SIN(Richtung*Winkelmaß_Hz)+LOOKUP(1E+307,$X$33:$X88,$X$33:$X88)),"Err"))))) ->  | L89: =IF(AND($X89<>"",$Y89<>""),$Y89,IF(Horizontaldistanz="","",IF(OR($A$1=PGG,$A$1=LXE),($L88+dX-Fehler_X),IF(OR($A$1=PGO,$A$1=LNE),($L88+dX),IF($A$1=PGZ,(Horizontaldistanz*COS(Richtung*Winkelmaß_Hz)+LOOKUP(1E+307,$Y$33:$Y88,$Y$33:$Y88)),"Err"))))) ->  | M89: 0 | N89: -1 | O89: -1 | P89: 5 | Q89: 75 | R89: 0 | S89: 57 | T89: =IF($F89="","",IF($A$1=PGZ,"0",54)) ->  | U89: =IF($F89="","",IF($A$1=PGZ,54,IF(AND($A$1=PGG,AM89=1),1,55))) ->  | V89: =IF($F89="","",IF($A$1=PGZ,"0",56)) ->  | W89: =IF($F89="","",IF($A$1=PGZ,56,IF(AND($A$1=PGG,AO89=1),1,57))) ->  | AC89: 0 | AD89: =ROW() -> 89 | AF89: =IF(AND($X89<>"",$Y89<>""),SUM(INDIRECT(ADDRESS(LOOKUP(1E+307,$Y$33:$Y88,$AD$33:$AD88)+1,31,TRUE),TRUE):AE89),AF90) -> 0 | AG89: =IF(AND($X89<>"",$Y89<>""),SUM(INDIRECT(ADDRESS(LOOKUP(1E+307,$X$33:$X88,$AD$33:$AD88)+1,7,TRUE),TRUE):G89),AG90) -> 0 | AH89: =IF(AND($X89<>"",$Y89<>""),SUM(INDIRECT(ADDRESS(LOOKUP(1E+307,$Y$33:$Y88,$AD$33:$AD88)+1,8,TRUE),TRUE):H89),AH90) -> 0 | AI89: =IF(AND($X89<>"",$Y89<>""),X89-AG89-INDIRECT(ADDRESS(LOOKUP(1E+307,$X$33:$X88,$AD$33:$AD88),24,TRUE),TRUE),AI90) -> 0 | AJ89: =IF(AND($X89<>"",$Y89<>""),Y89-AH89-INDIRECT(ADDRESS(LOOKUP(1E+307,$X$33:$X88,$AD$33:$AD88),25,TRUE),TRUE),AJ90) -> 0 | AM89: 0 | AN89: 0 | AP89: -1 | AQ89: -1 | AR89: -1 | AS89: -1 | AX89: 0 | AY89: 0 | BD89: 0 | BE89: 0 | BF89: 1 | BG89: 0 | BH89: 1 | BM89: =IF(BK89<>"",POWER((SUM($BK$34:BK88))+(BK89/2)-(0.5*SUM($BK$34:$BK$132)),2),0) -> 0 | BN89: =IF(BL89<>"",POWER(0.5*SUM($BL$34:$BL$132)-SUM($BL$34:BL88)-(0.5*BL89),2),0) -> 0
A90: =IF($F90="","",IF($A$1=PGZ,"0",57)) ->  | B90: =IF($F90="","",IF($A$1=PGZ,57,IF(AND($A$1=PGG,T90=1),1,58))) ->  | K90: =IF(AND($X90<>"",$Y90<>""),$X90,IF(Horizontaldistanz="","",IF(OR($A$1=PGG,$A$1=LXE),($K89+dY-Fehler_Y),IF(OR($A$1=PGO,$A$1=LNE),($K89+dY),IF($A$1=PGZ,(Horizontaldistanz*SIN(Richtung*Winkelmaß_Hz)+LOOKUP(1E+307,$X$33:$X89,$X$33:$X89)),"Err"))))) ->  | L90: =IF(AND($X90<>"",$Y90<>""),$Y90,IF(Horizontaldistanz="","",IF(OR($A$1=PGG,$A$1=LXE),($L89+dX-Fehler_X),IF(OR($A$1=PGO,$A$1=LNE),($L89+dX),IF($A$1=PGZ,(Horizontaldistanz*COS(Richtung*Winkelmaß_Hz)+LOOKUP(1E+307,$Y$33:$Y89,$Y$33:$Y89)),"Err"))))) ->  | M90: 0 | N90: -1 | O90: -1 | P90: 7.5 | Q90: 100 | R90: 0 | S90: 58 | T90: =IF($F90="","",IF($A$1=PGZ,"0",55)) ->  | U90: =IF($F90="","",IF($A$1=PGZ,55,IF(AND($A$1=PGG,AM90=1),1,56))) ->  | V90: =IF($F90="","",IF($A$1=PGZ,"0",57)) ->  | W90: =IF($F90="","",IF($A$1=PGZ,57,IF(AND($A$1=PGG,AO90=1),1,58))) ->  | AC90: 0 | AD90: =ROW() -> 90 | AF90: =IF(AND($X90<>"",$Y90<>""),SUM(INDIRECT(ADDRESS(LOOKUP(1E+307,$Y$33:$Y89,$AD$33:$AD89)+1,31,TRUE),TRUE):AE90),AF91) -> 0 | AG90: =IF(AND($X90<>"",$Y90<>""),SUM(INDIRECT(ADDRESS(LOOKUP(1E+307,$X$33:$X89,$AD$33:$AD89)+1,7,TRUE),TRUE):G90),AG91) -> 0 | AH90: =IF(AND($X90<>"",$Y90<>""),SUM(INDIRECT(ADDRESS(LOOKUP(1E+307,$Y$33:$Y89,$AD$33:$AD89)+1,8,TRUE),TRUE):H90),AH91) -> 0 | AI90: =IF(AND($X90<>"",$Y90<>""),X90-AG90-INDIRECT(ADDRESS(LOOKUP(1E+307,$X$33:$X89,$AD$33:$AD89),24,TRUE),TRUE),AI91) -> 0 | AJ90: =IF(AND($X90<>"",$Y90<>""),Y90-AH90-INDIRECT(ADDRESS(LOOKUP(1E+307,$X$33:$X89,$AD$33:$AD89),25,TRUE),TRUE),AJ91) -> 0 | AM90: 0 | AN90: 0 | AP90: -1 | AQ90: -1 | AR90: -1 | AS90: -1 | AX90: 0 | AY90: 0 | BD90: 0 | BE90: 0 | BF90: 1 | BG90: 0 | BH90: 1 | BM90: =IF(BK90<>"",POWER((SUM($BK$34:BK89))+(BK90/2)-(0.5*SUM($BK$34:$BK$132)),2),0) -> 0 | BN90: =IF(BL90<>"",POWER(0.5*SUM($BL$34:$BL$132)-SUM($BL$34:BL89)-(0.5*BL90),2),0) -> 0
A91: =IF($F91="","",IF($A$1=PGZ,"0",58)) ->  | B91: =IF($F91="","",IF($A$1=PGZ,58,IF(AND($A$1=PGG,T91=1),1,59))) ->  | K91: =IF(AND($X91<>"",$Y91<>""),$X91,IF(Horizontaldistanz="","",IF(OR($A$1=PGG,$A$1=LXE),($K90+dY-Fehler_Y),IF(OR($A$1=PGO,$A$1=LNE),($K90+dY),IF($A$1=PGZ,(Horizontaldistanz*SIN(Richtung*Winkelmaß_Hz)+LOOKUP(1E+307,$X$33:$X90,$X$33:$X90)),"Err"))))) ->  | L91: =IF(AND($X91<>"",$Y91<>""),$Y91,IF(Horizontaldistanz="","",IF(OR($A$1=PGG,$A$1=LXE),($L90+dX-Fehler_X),IF(OR($A$1=PGO,$A$1=LNE),($L90+dX),IF($A$1=PGZ,(Horizontaldistanz*COS(Richtung*Winkelmaß_Hz)+LOOKUP(1E+307,$Y$33:$Y90,$Y$33:$Y90)),"Err"))))) ->  | M91: 0 | N91: -1 | O91: -1 | P91: 10 | Q91: 250 | R91: 0 | S91: 59 | T91: =IF($F91="","",IF($A$1=PGZ,"0",56)) ->  | U91: =IF($F91="","",IF($A$1=PGZ,56,IF(AND($A$1=PGG,AM91=1),1,57))) ->  | V91: =IF($F91="","",IF($A$1=PGZ,"0",58)) ->  | W91: =IF($F91="","",IF($A$1=PGZ,58,IF(AND($A$1=PGG,AO91=1),1,59))) ->  | AC91: 0 | AD91: =ROW() -> 91 | AF91: =IF(AND($X91<>"",$Y91<>""),SUM(INDIRECT(ADDRESS(LOOKUP(1E+307,$Y$33:$Y90,$AD$33:$AD90)+1,31,TRUE),TRUE):AE91),AF92) -> 0 | AG91: =IF(AND($X91<>"",$Y91<>""),SUM(INDIRECT(ADDRESS(LOOKUP(1E+307,$X$33:$X90,$AD$33:$AD90)+1,7,TRUE),TRUE):G91),AG92) -> 0 | AH91: =IF(AND($X91<>"",$Y91<>""),SUM(INDIRECT(ADDRESS(LOOKUP(1E+307,$Y$33:$Y90,$AD$33:$AD90)+1,8,TRUE),TRUE):H91),AH92) -> 0 | AI91: =IF(AND($X91<>"",$Y91<>""),X91-AG91-INDIRECT(ADDRESS(LOOKUP(1E+307,$X$33:$X90,$AD$33:$AD90),24,TRUE),TRUE),AI92) -> 0 | AJ91: =IF(AND($X91<>"",$Y91<>""),Y91-AH91-INDIRECT(ADDRESS(LOOKUP(1E+307,$X$33:$X90,$AD$33:$AD90),25,TRUE),TRUE),AJ92) -> 0 | AM91: 0 | AN91: 0 | AP91: -1 | AQ91: -1 | AR91: -1 | AS91: -1 | AX91: 0 | AY91: 0 | BD91: 0 | BE91: 0 | BF91: 1 | BG91: 0 | BH91: 1 | BM91: =IF(BK91<>"",POWER((SUM($BK$34:BK90))+(BK91/2)-(0.5*SUM($BK$34:$BK$132)),2),0) -> 0 | BN91: =IF(BL91<>"",POWER(0.5*SUM($BL$34:$BL$132)-SUM($BL$34:BL90)-(0.5*BL91),2),0) -> 0
A92: =IF($F92="","",IF($A$1=PGZ,"0",59)) ->  | B92: =IF($F92="","",IF($A$1=PGZ,59,IF(AND($A$1=PGG,T92=1),1,60))) ->  | K92: =IF(AND($X92<>"",$Y92<>""),$X92,IF(Horizontaldistanz="","",IF(OR($A$1=PGG,$A$1=LXE),($K91+dY-Fehler_Y),IF(OR($A$1=PGO,$A$1=LNE),($K91+dY),IF($A$1=PGZ,(Horizontaldistanz*SIN(Richtung*Winkelmaß_Hz)+LOOKUP(1E+307,$X$33:$X91,$X$33:$X91)),"Err"))))) ->  | L92: =IF(AND($X92<>"",$Y92<>""),$Y92,IF(Horizontaldistanz="","",IF(OR($A$1=PGG,$A$1=LXE),($L91+dX-Fehler_X),IF(OR($A$1=PGO,$A$1=LNE),($L91+dX),IF($A$1=PGZ,(Horizontaldistanz*COS(Richtung*Winkelmaß_Hz)+LOOKUP(1E+307,$Y$33:$Y91,$Y$33:$Y91)),"Err"))))) ->  | M92: 0 | N92: -1 | O92: -1 | P92: 25 | Q92: 500 | R92: 0 | S92: 60 | T92: =IF($F92="","",IF($A$1=PGZ,"0",57)) ->  | U92: =IF($F92="","",IF($A$1=PGZ,57,IF(AND($A$1=PGG,AM92=1),1,58))) ->  | V92: =IF($F92="","",IF($A$1=PGZ,"0",59)) ->  | W92: =IF($F92="","",IF($A$1=PGZ,59,IF(AND($A$1=PGG,AO92=1),1,60))) ->  | AC92: 0 | AD92: =ROW() -> 92 | AF92: =IF(AND($X92<>"",$Y92<>""),SUM(INDIRECT(ADDRESS(LOOKUP(1E+307,$Y$33:$Y91,$AD$33:$AD91)+1,31,TRUE),TRUE):AE92),AF93) -> 0 | AG92: =IF(AND($X92<>"",$Y92<>""),SUM(INDIRECT(ADDRESS(LOOKUP(1E+307,$X$33:$X91,$AD$33:$AD91)+1,7,TRUE),TRUE):G92),AG93) -> 0 | AH92: =IF(AND($X92<>"",$Y92<>""),SUM(INDIRECT(ADDRESS(LOOKUP(1E+307,$Y$33:$Y91,$AD$33:$AD91)+1,8,TRUE),TRUE):H92),AH93) -> 0 | AI92: =IF(AND($X92<>"",$Y92<>""),X92-AG92-INDIRECT(ADDRESS(LOOKUP(1E+307,$X$33:$X91,$AD$33:$AD91),24,TRUE),TRUE),AI93) -> 0 | AJ92: =IF(AND($X92<>"",$Y92<>""),Y92-AH92-INDIRECT(ADDRESS(LOOKUP(1E+307,$X$33:$X91,$AD$33:$AD91),25,TRUE),TRUE),AJ93) -> 0 | AM92: 0 | AN92: 0 | AP92: -1 | AQ92: -1 | AR92: -1 | AS92: -1 | AX92: 0 | AY92: 0 | BD92: 0 | BE92: 0 | BF92: 1 | BG92: 0 | BH92: 1 | BM92: =IF(BK92<>"",POWER((SUM($BK$34:BK91))+(BK92/2)-(0.5*SUM($BK$34:$BK$132)),2),0) -> 0 | BN92: =IF(BL92<>"",POWER(0.5*SUM($BL$34:$BL$132)-SUM($BL$34:BL91)-(0.5*BL92),2),0) -> 0
A93: =IF($F93="","",IF($A$1=PGZ,"0",60)) ->  | B93: =IF($F93="","",IF($A$1=PGZ,60,IF(AND($A$1=PGG,T93=1),1,61))) ->  | K93: =IF(AND($X93<>"",$Y93<>""),$X93,IF(Horizontaldistanz="","",IF(OR($A$1=PGG,$A$1=LXE),($K92+dY-Fehler_Y),IF(OR($A$1=PGO,$A$1=LNE),($K92+dY),IF($A$1=PGZ,(Horizontaldistanz*SIN(Richtung*Winkelmaß_Hz)+LOOKUP(1E+307,$X$33:$X92,$X$33:$X92)),"Err"))))) ->  | L93: =IF(AND($X93<>"",$Y93<>""),$Y93,IF(Horizontaldistanz="","",IF(OR($A$1=PGG,$A$1=LXE),($L92+dX-Fehler_X),IF(OR($A$1=PGO,$A$1=LNE),($L92+dX),IF($A$1=PGZ,(Horizontaldistanz*COS(Richtung*Winkelmaß_Hz)+LOOKUP(1E+307,$Y$33:$Y92,$Y$33:$Y92)),"Err"))))) ->  | M93: 0 | N93: -1 | O93: -1 | P93: 50 | Q93: 750 | R93: 0 | S93: 61 | T93: =IF($F93="","",IF($A$1=PGZ,"0",58)) ->  | U93: =IF($F93="","",IF($A$1=PGZ,58,IF(AND($A$1=PGG,AM93=1),1,59))) ->  | V93: =IF($F93="","",IF($A$1=PGZ,"0",60)) ->  | W93: =IF($F93="","",IF($A$1=PGZ,60,IF(AND($A$1=PGG,AO93=1),1,61))) ->  | AC93: 0 | AD93: =ROW() -> 93 | AF93: =IF(AND($X93<>"",$Y93<>""),SUM(INDIRECT(ADDRESS(LOOKUP(1E+307,$Y$33:$Y92,$AD$33:$AD92)+1,31,TRUE),TRUE):AE93),AF94) -> 0 | AG93: =IF(AND($X93<>"",$Y93<>""),SUM(INDIRECT(ADDRESS(LOOKUP(1E+307,$X$33:$X92,$AD$33:$AD92)+1,7,TRUE),TRUE):G93),AG94) -> 0 | AH93: =IF(AND($X93<>"",$Y93<>""),SUM(INDIRECT(ADDRESS(LOOKUP(1E+307,$Y$33:$Y92,$AD$33:$AD92)+1,8,TRUE),TRUE):H93),AH94) -> 0 | AI93: =IF(AND($X93<>"",$Y93<>""),X93-AG93-INDIRECT(ADDRESS(LOOKUP(1E+307,$X$33:$X92,$AD$33:$AD92),24,TRUE),TRUE),AI94) -> 0 | AJ93: =IF(AND($X93<>"",$Y93<>""),Y93-AH93-INDIRECT(ADDRESS(LOOKUP(1E+307,$X$33:$X92,$AD$33:$AD92),25,TRUE),TRUE),AJ94) -> 0 | AM93: 0 | AN93: 0 | AP93: -1 | AQ93: -1 | AR93: -1 | AS93: -1 | AX93: 0 | AY93: 0 | BD93: 0 | BE93: 0 | BF93: 1 | BG93: 0 | BH93: 1 | BM93: =IF(BK93<>"",POWER((SUM($BK$34:BK92))+(BK93/2)-(0.5*SUM($BK$34:$BK$132)),2),0) -> 0 | BN93: =IF(BL93<>"",POWER(0.5*SUM($BL$34:$BL$132)-SUM($BL$34:BL92)-(0.5*BL93),2),0) -> 0
A94: =IF($F94="","",IF($A$1=PGZ,"0",61)) ->  | B94: =IF($F94="","",IF($A$1=PGZ,61,IF(AND($A$1=PGG,T94=1),1,62))) ->  | K94: =IF(AND($X94<>"",$Y94<>""),$X94,IF(Horizontaldistanz="","",IF(OR($A$1=PGG,$A$1=LXE),($K93+dY-Fehler_Y),IF(OR($A$1=PGO,$A$1=LNE),($K93+dY),IF($A$1=PGZ,(Horizontaldistanz*SIN(Richtung*Winkelmaß_Hz)+LOOKUP(1E+307,$X$33:$X93,$X$33:$X93)),"Err"))))) ->  | L94: =IF(AND($X94<>"",$Y94<>""),$Y94,IF(Horizontaldistanz="","",IF(OR($A$1=PGG,$A$1=LXE),($L93+dX-Fehler_X),IF(OR($A$1=PGO,$A$1=LNE),($L93+dX),IF($A$1=PGZ,(Horizontaldistanz*COS(Richtung*Winkelmaß_Hz)+LOOKUP(1E+307,$Y$33:$Y93,$Y$33:$Y93)),"Err"))))) ->  | M94: 0 | N94: -1 | O94: -1 | P94: 75 | Q94: 1000 | R94: 0 | S94: 62 | T94: =IF($F94="","",IF($A$1=PGZ,"0",59)) ->  | U94: =IF($F94="","",IF($A$1=PGZ,59,IF(AND($A$1=PGG,AM94=1),1,60))) ->  | V94: =IF($F94="","",IF($A$1=PGZ,"0",61)) ->  | W94: =IF($F94="","",IF($A$1=PGZ,61,IF(AND($A$1=PGG,AO94=1),1,62))) ->  | AC94: 0 | AD94: =ROW() -> 94 | AF94: =IF(AND($X94<>"",$Y94<>""),SUM(INDIRECT(ADDRESS(LOOKUP(1E+307,$Y$33:$Y93,$AD$33:$AD93)+1,31,TRUE),TRUE):AE94),AF95) -> 0 | AG94: =IF(AND($X94<>"",$Y94<>""),SUM(INDIRECT(ADDRESS(LOOKUP(1E+307,$X$33:$X93,$AD$33:$AD93)+1,7,TRUE),TRUE):G94),AG95) -> 0 | AH94: =IF(AND($X94<>"",$Y94<>""),SUM(INDIRECT(ADDRESS(LOOKUP(1E+307,$Y$33:$Y93,$AD$33:$AD93)+1,8,TRUE),TRUE):H94),AH95) -> 0 | AI94: =IF(AND($X94<>"",$Y94<>""),X94-AG94-INDIRECT(ADDRESS(LOOKUP(1E+307,$X$33:$X93,$AD$33:$AD93),24,TRUE),TRUE),AI95) -> 0 | AJ94: =IF(AND($X94<>"",$Y94<>""),Y94-AH94-INDIRECT(ADDRESS(LOOKUP(1E+307,$X$33:$X93,$AD$33:$AD93),25,TRUE),TRUE),AJ95) -> 0 | AM94: 0 | AN94: 0 | AP94: -1 | AQ94: -1 | AR94: -1 | AS94: -1 | AX94: 0 | AY94: 0 | BD94: 0 | BE94: 0 | BF94: 1 | BG94: 0 | BH94: 1 | BM94: =IF(BK94<>"",POWER((SUM($BK$34:BK93))+(BK94/2)-(0.5*SUM($BK$34:$BK$132)),2),0) -> 0 | BN94: =IF(BL94<>"",POWER(0.5*SUM($BL$34:$BL$132)-SUM($BL$34:BL93)-(0.5*BL94),2),0) -> 0
A95: =IF($F95="","",IF($A$1=PGZ,"0",62)) ->  | B95: =IF($F95="","",IF($A$1=PGZ,62,IF(AND($A$1=PGG,T95=1),1,63))) ->  | K95: =IF(AND($X95<>"",$Y95<>""),$X95,IF(Horizontaldistanz="","",IF(OR($A$1=PGG,$A$1=LXE),($K94+dY-Fehler_Y),IF(OR($A$1=PGO,$A$1=LNE),($K94+dY),IF($A$1=PGZ,(Horizontaldistanz*SIN(Richtung*Winkelmaß_Hz)+LOOKUP(1E+307,$X$33:$X94,$X$33:$X94)),"Err"))))) ->  | L95: =IF(AND($X95<>"",$Y95<>""),$Y95,IF(Horizontaldistanz="","",IF(OR($A$1=PGG,$A$1=LXE),($L94+dX-Fehler_X),IF(OR($A$1=PGO,$A$1=LNE),($L94+dX),IF($A$1=PGZ,(Horizontaldistanz*COS(Richtung*Winkelmaß_Hz)+LOOKUP(1E+307,$Y$33:$Y94,$Y$33:$Y94)),"Err"))))) ->  | M95: 0 | N95: -1 | O95: -1 | P95: 100 | Q95: 2500 | R95: 0 | S95: 63 | T95: =IF($F95="","",IF($A$1=PGZ,"0",60)) ->  | U95: =IF($F95="","",IF($A$1=PGZ,60,IF(AND($A$1=PGG,AM95=1),1,61))) ->  | V95: =IF($F95="","",IF($A$1=PGZ,"0",62)) ->  | W95: =IF($F95="","",IF($A$1=PGZ,62,IF(AND($A$1=PGG,AO95=1),1,63))) ->  | AC95: 0 | AD95: =ROW() -> 95 | AF95: =IF(AND($X95<>"",$Y95<>""),SUM(INDIRECT(ADDRESS(LOOKUP(1E+307,$Y$33:$Y94,$AD$33:$AD94)+1,31,TRUE),TRUE):AE95),AF96) -> 0 | AG95: =IF(AND($X95<>"",$Y95<>""),SUM(INDIRECT(ADDRESS(LOOKUP(1E+307,$X$33:$X94,$AD$33:$AD94)+1,7,TRUE),TRUE):G95),AG96) -> 0 | AH95: =IF(AND($X95<>"",$Y95<>""),SUM(INDIRECT(ADDRESS(LOOKUP(1E+307,$Y$33:$Y94,$AD$33:$AD94)+1,8,TRUE),TRUE):H95),AH96) -> 0 | AI95: =IF(AND($X95<>"",$Y95<>""),X95-AG95-INDIRECT(ADDRESS(LOOKUP(1E+307,$X$33:$X94,$AD$33:$AD94),24,TRUE),TRUE),AI96) -> 0 | AJ95: =IF(AND($X95<>"",$Y95<>""),Y95-AH95-INDIRECT(ADDRESS(LOOKUP(1E+307,$X$33:$X94,$AD$33:$AD94),25,TRUE),TRUE),AJ96) -> 0 | AM95: 0 | AN95: 0 | AP95: -1 | AQ95: -1 | AR95: -1 | AS95: -1 | AX95: 0 | AY95: 0 | BD95: 0 | BE95: 0 | BF95: 1 | BG95: 0 | BH95: 1 | BM95: =IF(BK95<>"",POWER((SUM($BK$34:BK94))+(BK95/2)-(0.5*SUM($BK$34:$BK$132)),2),0) -> 0 | BN95: =IF(BL95<>"",POWER(0.5*SUM($BL$34:$BL$132)-SUM($BL$34:BL94)-(0.5*BL95),2),0) -> 0
A96: =IF($F96="","",IF($A$1=PGZ,"0",63)) ->  | B96: =IF($F96="","",IF($A$1=PGZ,63,IF(AND($A$1=PGG,T96=1),1,64))) ->  | K96: =IF(AND($X96<>"",$Y96<>""),$X96,IF(Horizontaldistanz="","",IF(OR($A$1=PGG,$A$1=LXE),($K95+dY-Fehler_Y),IF(OR($A$1=PGO,$A$1=LNE),($K95+dY),IF($A$1=PGZ,(Horizontaldistanz*SIN(Richtung*Winkelmaß_Hz)+LOOKUP(1E+307,$X$33:$X95,$X$33:$X95)),"Err"))))) ->  | L96: =IF(AND($X96<>"",$Y96<>""),$Y96,IF(Horizontaldistanz="","",IF(OR($A$1=PGG,$A$1=LXE),($L95+dX-Fehler_X),IF(OR($A$1=PGO,$A$1=LNE),($L95+dX),IF($A$1=PGZ,(Horizontaldistanz*COS(Richtung*Winkelmaß_Hz)+LOOKUP(1E+307,$Y$33:$Y95,$Y$33:$Y95)),"Err"))))) ->  | M96: 0 | N96: -1 | O96: -1 | P96: 250 | Q96: 5000 | R96: 0 | S96: 64 | T96: =IF($F96="","",IF($A$1=PGZ,"0",61)) ->  | U96: =IF($F96="","",IF($A$1=PGZ,61,IF(AND($A$1=PGG,AM96=1),1,62))) ->  | V96: =IF($F96="","",IF($A$1=PGZ,"0",63)) ->  | W96: =IF($F96="","",IF($A$1=PGZ,63,IF(AND($A$1=PGG,AO96=1),1,64))) ->  | AC96: 0 | AD96: =ROW() -> 96 | AF96: =IF(AND($X96<>"",$Y96<>""),SUM(INDIRECT(ADDRESS(LOOKUP(1E+307,$Y$33:$Y95,$AD$33:$AD95)+1,31,TRUE),TRUE):AE96),AF97) -> 0 | AG96: =IF(AND($X96<>"",$Y96<>""),SUM(INDIRECT(ADDRESS(LOOKUP(1E+307,$X$33:$X95,$AD$33:$AD95)+1,7,TRUE),TRUE):G96),AG97) -> 0 | AH96: =IF(AND($X96<>"",$Y96<>""),SUM(INDIRECT(ADDRESS(LOOKUP(1E+307,$Y$33:$Y95,$AD$33:$AD95)+1,8,TRUE),TRUE):H96),AH97) -> 0 | AI96: =IF(AND($X96<>"",$Y96<>""),X96-AG96-INDIRECT(ADDRESS(LOOKUP(1E+307,$X$33:$X95,$AD$33:$AD95),24,TRUE),TRUE),AI97) -> 0 | AJ96: =IF(AND($X96<>"",$Y96<>""),Y96-AH96-INDIRECT(ADDRESS(LOOKUP(1E+307,$X$33:$X95,$AD$33:$AD95),25,TRUE),TRUE),AJ97) -> 0 | AM96: 0 | AN96: 0 | AP96: -1 | AQ96: -1 | AR96: -1 | AS96: -1 | AX96: 0 | AY96: 0 | BD96: 0 | BE96: 0 | BF96: 1 | BG96: 0 | BH96: 1 | BM96: =IF(BK96<>"",POWER((SUM($BK$34:BK95))+(BK96/2)-(0.5*SUM($BK$34:$BK$132)),2),0) -> 0 | BN96: =IF(BL96<>"",POWER(0.5*SUM($BL$34:$BL$132)-SUM($BL$34:BL95)-(0.5*BL96),2),0) -> 0
A97: =IF($F97="","",IF($A$1=PGZ,"0",64)) ->  | B97: =IF($F97="","",IF($A$1=PGZ,64,IF(AND($A$1=PGG,T97=1),1,65))) ->  | K97: =IF(AND($X97<>"",$Y97<>""),$X97,IF(Horizontaldistanz="","",IF(OR($A$1=PGG,$A$1=LXE),($K96+dY-Fehler_Y),IF(OR($A$1=PGO,$A$1=LNE),($K96+dY),IF($A$1=PGZ,(Horizontaldistanz*SIN(Richtung*Winkelmaß_Hz)+LOOKUP(1E+307,$X$33:$X96,$X$33:$X96)),"Err"))))) ->  | L97: =IF(AND($X97<>"",$Y97<>""),$Y97,IF(Horizontaldistanz="","",IF(OR($A$1=PGG,$A$1=LXE),($L96+dX-Fehler_X),IF(OR($A$1=PGO,$A$1=LNE),($L96+dX),IF($A$1=PGZ,(Horizontaldistanz*COS(Richtung*Winkelmaß_Hz)+LOOKUP(1E+307,$Y$33:$Y96,$Y$33:$Y96)),"Err"))))) ->  | M97: 0 | N97: -1 | O97: -1 | P97: 500 | Q97: 7500 | R97: 0 | S97: 65 | T97: =IF($F97="","",IF($A$1=PGZ,"0",62)) ->  | U97: =IF($F97="","",IF($A$1=PGZ,62,IF(AND($A$1=PGG,AM97=1),1,63))) ->  | V97: =IF($F97="","",IF($A$1=PGZ,"0",64)) ->  | W97: =IF($F97="","",IF($A$1=PGZ,64,IF(AND($A$1=PGG,AO97=1),1,65))) ->  | AC97: 0 | AD97: =ROW() -> 97 | AF97: =IF(AND($X97<>"",$Y97<>""),SUM(INDIRECT(ADDRESS(LOOKUP(1E+307,$Y$33:$Y96,$AD$33:$AD96)+1,31,TRUE),TRUE):AE97),AF98) -> 0 | AG97: =IF(AND($X97<>"",$Y97<>""),SUM(INDIRECT(ADDRESS(LOOKUP(1E+307,$X$33:$X96,$AD$33:$AD96)+1,7,TRUE),TRUE):G97),AG98) -> 0 | AH97: =IF(AND($X97<>"",$Y97<>""),SUM(INDIRECT(ADDRESS(LOOKUP(1E+307,$Y$33:$Y96,$AD$33:$AD96)+1,8,TRUE),TRUE):H97),AH98) -> 0 | AI97: =IF(AND($X97<>"",$Y97<>""),X97-AG97-INDIRECT(ADDRESS(LOOKUP(1E+307,$X$33:$X96,$AD$33:$AD96),24,TRUE),TRUE),AI98) -> 0 | AJ97: =IF(AND($X97<>"",$Y97<>""),Y97-AH97-INDIRECT(ADDRESS(LOOKUP(1E+307,$X$33:$X96,$AD$33:$AD96),25,TRUE),TRUE),AJ98) -> 0 | AM97: 0 | AN97: 0 | AP97: -1 | AQ97: -1 | AR97: -1 | AS97: -1 | AX97: 0 | AY97: 0 | BD97: 0 | BE97: 0 | BF97: 1 | BG97: 0 | BH97: 1 | BM97: =IF(BK97<>"",POWER((SUM($BK$34:BK96))+(BK97/2)-(0.5*SUM($BK$34:$BK$132)),2),0) -> 0 | BN97: =IF(BL97<>"",POWER(0.5*SUM($BL$34:$BL$132)-SUM($BL$34:BL96)-(0.5*BL97),2),0) -> 0
A98: =IF($F98="","",IF($A$1=PGZ,"0",65)) ->  | B98: =IF($F98="","",IF($A$1=PGZ,65,IF(AND($A$1=PGG,T98=1),1,66))) ->  | F98: =IF(Strecke<>"",IF(OR(Winkelmaß_Neigung=Prozent,Winkelmaß_Neigung=PRZ),Strecke*COS(ATAN(Neigung/100)),Strecke*COS((Neigung+Neigung_a_oder_z)*Winkelmaß_Vt)),"") ->  | G98: =IF(Horizontaldistanz="","",Horizontaldistanz*SIN(Richtung*Winkelmaß_Hz)) ->  | H98: =IF(Horizontaldistanz="","",Horizontaldistanz*COS(Richtung*Winkelmaß_Hz)) ->  | I98: =IF(Horizontaldistanz="","",IF(AND($A$1=PGG,$P$70="normal"),SUM(dY)/SUM(Horizontaldistanz)*Horizontaldistanz,IF($A$1=LXE,AM98,0))) ->  | J98: =IF(Horizontaldistanz="","",IF(AND($A$1=PGG,$P$70="normal"),SUM(dX)/SUM(Horizontaldistanz)*Horizontaldistanz,IF($A$1=LXE,AN98,0))) ->  | K98: =IF(AND($X98<>"",$Y98<>""),$X98,IF(Horizontaldistanz="","",IF(OR($A$1=PGG,$A$1=LXE),($K97+dY-Fehler_Y),IF(OR($A$1=PGO,$A$1=LNE),($K97+dY),IF($A$1=PGZ,(Horizontaldistanz*SIN(Richtung*Winkelmaß_Hz)+LOOKUP(1E+307,$X$33:$X97,$X$33:$X97)),"Err"))))) ->  | L98: =IF(AND($X98<>"",$Y98<>""),$Y98,IF(Horizontaldistanz="","",IF(OR($A$1=PGG,$A$1=LXE),($L97+dX-Fehler_X),IF(OR($A$1=PGO,$A$1=LNE),($L97+dX),IF($A$1=PGZ,(Horizontaldistanz*COS(Richtung*Winkelmaß_Hz)+LOOKUP(1E+307,$Y$33:$Y97,$Y$33:$Y97)),"Err"))))) ->  | M98: 0 | N98: =IF(Ost = "",$N97,(L98+N$135)/($P$44/100)+$P$50) -> -1 | O98: =IF(Nord="",$O97,(K98+O$135)/($P$44/100)+$P$51) -> -1 | P98: 750 | Q98: 10000 | R98: =IF(Ost="",0,SQRT(POWER($K98-$K97,2)+POWER($L98-$L97,2))) -> 0 | S98: 66 | T98: =IF($F98="","",IF($A$1=PGZ,"0",63)) ->  | U98: =IF($F98="","",IF($A$1=PGZ,63,IF(AND($A$1=PGG,AM98=1),1,64))) ->  | V98: =IF($F98="","",IF($A$1=PGZ,"0",65)) ->  | W98: =IF($F98="","",IF($A$1=PGZ,65,IF(AND($A$1=PGG,AO98=1),1,66))) ->  | AC98: 0 | AD98: =ROW() -> 98 | AE98: =Horizontaldistanz ->  | AF98: =IF(AND($X98<>"",$Y98<>""),SUM(INDIRECT(ADDRESS(LOOKUP(1E+307,$Y$33:$Y97,$AD$33:$AD97)+1,31,TRUE),TRUE):AE98),AF99) -> 0 | AG98: =IF(AND($X98<>"",$Y98<>""),SUM(INDIRECT(ADDRESS(LOOKUP(1E+307,$X$33:$X97,$AD$33:$AD97)+1,7,TRUE),TRUE):G98),AG99) -> 0 | AH98: =IF(AND($X98<>"",$Y98<>""),SUM(INDIRECT(ADDRESS(LOOKUP(1E+307,$Y$33:$Y97,$AD$33:$AD97)+1,8,TRUE),TRUE):H98),AH99) -> 0 | AI98: =IF(AND($X98<>"",$Y98<>""),X98-AG98-INDIRECT(ADDRESS(LOOKUP(1E+307,$X$33:$X97,$AD$33:$AD97),24,TRUE),TRUE),AI99) -> 0 | AJ98: =IF(AND($X98<>"",$Y98<>""),Y98-AH98-INDIRECT(ADDRESS(LOOKUP(1E+307,$X$33:$X97,$AD$33:$AD97),25,TRUE),TRUE),AJ99) -> 0 | AK98: =($AI98/AF98)*AE98 ->  | AL98: =($AJ98/AF98)*AE98 ->  | AM98: 0 | AN98: 0 | AO98: =IF(AND($X98<>"",$Y98<>""),SQRT(POWER(AI98,2)+POWER(AJ98,2))/AF98,"") ->  | AP98: =IF(AND($A$1= LXE,AND(NOT(ISBLANK(X98)),NOT(ISBLANK(Y98)))),$N98,-1) -> -1 | AQ98: =IF(AND($A$1= LXE,AND(NOT(ISBLANK(X98)),NOT(ISBLANK(Y98)))),$O98,-1) -> -1 | AR98: =IF($S98=2,IF($A$1=PGO,(N$33+N98)/2,IF($A$1=PGZ,(N$34+N98)/2,-1)),(N97+N98)/2) -> -1 | AS98: =IF($S98=2,IF($A$1=PGO,(O$33+O98)/2,IF($A$1=PGZ,(O$34+O98)/2,-1)),(O97+O98)/2) -> -1 | AX98: =IF(Richtung<>"",POWER(COS(Richtung*Winkelmaß_Hz)*Horizontaldistanz,2),0) -> 0 | AY98: =IF(Richtung<>"",POWER(SIN(Richtung*Winkelmaß_Hz)*Horizontaldistanz,2),0) -> 0 | BC98: =Strecke*$BC$33 ->  | BD98: =BD97*Winkelmaß_Vt -> 0 | BE98: =IF(OR(Winkelmaß_Neigung=Prozent,Winkelmaß_Neigung=PRZ),SIN(ATAN(Neigung/100)),SIN((Neigung+Neigung_a_oder_z)*Winkelmaß_Vt)) -> 0 | BF98: =IF(OR(Winkelmaß_Neigung=Prozent,Winkelmaß_Neigung=PRZ),COS(ATAN(Neigung/100)),COS((Neigung+Neigung_a_oder_z)*Winkelmaß_Vt)) -> 1 | BG98: =SIN(Richtung*Winkelmaß_Hz) -> 0 | BH98: =COS(Richtung*Winkelmaß_Hz) -> 1 | BI98: =POWER($BF98*$BG98,2) * POWER($BC98,2)+POWER((Strecke*$BE98*$BG98),2)*POWER($BD98,2)+POWER((Strecke*$BF98*$BH98),2)* POWER($BB98,2) ->  | BJ98: =POWER($BF98*$BH98,2)*$BC98+POWER(Strecke*$BE98*BH98,2)*POWER($BD98,2)+POWER(Strecke*$BF98*$BG98,2)*POWER(BB98,2) ->  | BK98: =K98 ->  | BL98: =L98 ->  | BM98: =IF(BK98<>"",POWER((SUM($BK$34:BK97))+(BK98/2)-(0.5*SUM($BK$34:$BK$132)),2),0) -> 0 | BN98: =IF(BL98<>"",POWER(0.5*SUM($BL$34:$BL$132)-SUM($BL$34:BL97)-(0.5*BL98),2),0) -> 0
A99: =IF($F99="","",IF($A$1=PGZ,"0",66)) ->  | B99: =IF($F99="","",IF($A$1=PGZ,66,IF(AND($A$1=PGG,T99=1),1,67))) ->  | K99: =IF(AND($X99<>"",$Y99<>""),$X99,IF(Horizontaldistanz="","",IF(OR($A$1=PGG,$A$1=LXE),($K98+dY-Fehler_Y),IF(OR($A$1=PGO,$A$1=LNE),($K98+dY),IF($A$1=PGZ,(Horizontaldistanz*SIN(Richtung*Winkelmaß_Hz)+LOOKUP(1E+307,$X$33:$X98,$X$33:$X98)),"Err"))))) ->  | L99: =IF(AND($X99<>"",$Y99<>""),$Y99,IF(Horizontaldistanz="","",IF(OR($A$1=PGG,$A$1=LXE),($L98+dX-Fehler_X),IF(OR($A$1=PGO,$A$1=LNE),($L98+dX),IF($A$1=PGZ,(Horizontaldistanz*COS(Richtung*Winkelmaß_Hz)+LOOKUP(1E+307,$Y$33:$Y98,$Y$33:$Y98)),"Err"))))) ->  | M99: =IF(Ost="",0,K98*L99-L98*K99) -> 0 | N99: -1 | O99: -1 | P99: 1000 | Q99: 25000 | R99: 0 | S99: 67 | T99: =IF($F99="","",IF($A$1=PGZ,"0",64)) ->  | U99: =IF($F99="","",IF($A$1=PGZ,64,IF(AND($A$1=PGG,AM99=1),1,65))) ->  | V99: =IF($F99="","",IF($A$1=PGZ,"0",66)) ->  | W99: =IF($F99="","",IF($A$1=PGZ,66,IF(AND($A$1=PGG,AO99=1),1,67))) ->  | AA99: =IF(Horizontaldistanz ="","",$AA98+dY) ->  | AB99: =IF(Horizontaldistanz ="","",$AB98+dX) ->  | AC99: =IF(Ost="",0,AA98*AB99-AB98*AA99) -> 0 | AD99: =ROW() -> 99 | AF99: =IF(AND($X99<>"",$Y99<>""),SUM(INDIRECT(ADDRESS(LOOKUP(1E+307,$Y$33:$Y98,$AD$33:$AD98)+1,31,TRUE),TRUE):AE99),AF100) -> 0 | AG99: =IF(AND($X99<>"",$Y99<>""),SUM(INDIRECT(ADDRESS(LOOKUP(1E+307,$X$33:$X98,$AD$33:$AD98)+1,7,TRUE),TRUE):G99),AG100) -> 0 | AH99: =IF(AND($X99<>"",$Y99<>""),SUM(INDIRECT(ADDRESS(LOOKUP(1E+307,$Y$33:$Y98,$AD$33:$AD98)+1,8,TRUE),TRUE):H99),AH100) -> 0 | AI99: =IF(AND($X99<>"",$Y99<>""),X99-AG99-INDIRECT(ADDRESS(LOOKUP(1E+307,$X$33:$X98,$AD$33:$AD98),24,TRUE),TRUE),AI100) -> 0 | AJ99: =IF(AND($X99<>"",$Y99<>""),Y99-AH99-INDIRECT(ADDRESS(LOOKUP(1E+307,$X$33:$X98,$AD$33:$AD98),25,TRUE),TRUE),AJ100) -> 0 | AM99: =IF(NOT(ISERROR(AK99)),-AK99,0) -> 0 | AN99: =IF(NOT(ISERROR(AL99)),-AL99,0) -> 0 | AP99: -1 | AQ99: -1 | AR99: -1 | AS99: -1 | AU99: =IF(Ost="",IF($F98<>"",IF($A$1=PGO,$D$133,IF($A$1=PGZ,$AU$133,"")),""),SQRT(POWER($K99-$K98,2)+POWER($L99-$L98,2))) ->  | AX99: 0 | AY99: 0 | BB99: =BB98 ->  | BD99: 0 | BE99: 0 | BF99: 1 | BG99: 0 | BH99: 1 | BM99: =IF(BK99<>"",POWER((SUM($BK$34:BK98))+(BK99/2)-(0.5*SUM($BK$34:$BK$132)),2),0) -> 0 | BN99: =IF(BL99<>"",POWER(0.5*SUM($BL$34:$BL$132)-SUM($BL$34:BL98)-(0.5*BL99),2),0) -> 0
A100: =IF($F100="","",IF($A$1=PGZ,"0",67)) ->  | B100: =IF($F100="","",IF($A$1=PGZ,67,IF(AND($A$1=PGG,T100=1),1,68))) ->  | K100: =IF(AND($X100<>"",$Y100<>""),$X100,IF(Horizontaldistanz="","",IF(OR($A$1=PGG,$A$1=LXE),($K99+dY-Fehler_Y),IF(OR($A$1=PGO,$A$1=LNE),($K99+dY),IF($A$1=PGZ,(Horizontaldistanz*SIN(Richtung*Winkelmaß_Hz)+LOOKUP(1E+307,$X$33:$X99,$X$33:$X99)),"Err"))))) ->  | L100: =IF(AND($X100<>"",$Y100<>""),$Y100,IF(Horizontaldistanz="","",IF(OR($A$1=PGG,$A$1=LXE),($L99+dX-Fehler_X),IF(OR($A$1=PGO,$A$1=LNE),($L99+dX),IF($A$1=PGZ,(Horizontaldistanz*COS(Richtung*Winkelmaß_Hz)+LOOKUP(1E+307,$Y$33:$Y99,$Y$33:$Y99)),"Err"))))) ->  | M100: 0 | N100: -1 | O100: -1 | P100: 2500 | Q100: 50000 | R100: 0 | S100: =IF(AND(K101="",L101=""),IF(AND(K101="",L101="",K100="",L100=""),S99+1,1),0) -> 68 | T100: =IF($F100="","",IF($A$1=PGZ,"0",65)) ->  | U100: =IF($F100="","",IF($A$1=PGZ,65,IF(AND($A$1=PGG,AM100=1),1,66))) ->  | V100: =IF($F100="","",IF($A$1=PGZ,"0",67)) ->  | W100: =IF($F100="","",IF($A$1=PGZ,67,IF(AND($A$1=PGG,AO100=1),1,68))) ->  | AC100: 0 | AD100: =ROW() -> 100 | AF100: =IF(AND($X100<>"",$Y100<>""),SUM(INDIRECT(ADDRESS(LOOKUP(1E+307,$Y$33:$Y99,$AD$33:$AD99)+1,31,TRUE),TRUE):AE100),AF101) -> 0 | AG100: =IF(AND($X100<>"",$Y100<>""),SUM(INDIRECT(ADDRESS(LOOKUP(1E+307,$X$33:$X99,$AD$33:$AD99)+1,7,TRUE),TRUE):G100),AG101) -> 0 | AH100: =IF(AND($X100<>"",$Y100<>""),SUM(INDIRECT(ADDRESS(LOOKUP(1E+307,$Y$33:$Y99,$AD$33:$AD99)+1,8,TRUE),TRUE):H100),AH101) -> 0 | AI100: =IF(AND($X100<>"",$Y100<>""),X100-AG100-INDIRECT(ADDRESS(LOOKUP(1E+307,$X$33:$X99,$AD$33:$AD99),24,TRUE),TRUE),AI101) -> 0 | AJ100: =IF(AND($X100<>"",$Y100<>""),Y100-AH100-INDIRECT(ADDRESS(LOOKUP(1E+307,$X$33:$X99,$AD$33:$AD99),25,TRUE),TRUE),AJ101) -> 0 | AM100: 0 | AN100: 0 | AP100: -1 | AQ100: -1 | AR100: -1 | AS100: -1 | AX100: 0 | AY100: 0 | BD100: 0 | BE100: 0 | BF100: 1 | BG100: 0 | BH100: 1 | BM100: =IF(BK100<>"",POWER((SUM($BK$34:BK99))+(BK100/2)-(0.5*SUM($BK$34:$BK$132)),2),0) -> 0 | BN100: =IF(BL100<>"",POWER(0.5*SUM($BL$34:$BL$132)-SUM($BL$34:BL99)-(0.5*BL100),2),0) -> 0
A101: =IF($F101="","",IF($A$1=PGZ,"0",68)) ->  | B101: =IF($F101="","",IF($A$1=PGZ,68,IF(AND($A$1=PGG,T101=1),1,69))) ->  | K101: =IF(AND($X101<>"",$Y101<>""),$X101,IF(Horizontaldistanz="","",IF(OR($A$1=PGG,$A$1=LXE),($K100+dY-Fehler_Y),IF(OR($A$1=PGO,$A$1=LNE),($K100+dY),IF($A$1=PGZ,(Horizontaldistanz*SIN(Richtung*Winkelmaß_Hz)+LOOKUP(1E+307,$X$33:$X100,$X$33:$X100)),"Err"))))) ->  | L101: =IF(AND($X101<>"",$Y101<>""),$Y101,IF(Horizontaldistanz="","",IF(OR($A$1=PGG,$A$1=LXE),($L100+dX-Fehler_X),IF(OR($A$1=PGO,$A$1=LNE),($L100+dX),IF($A$1=PGZ,(Horizontaldistanz*COS(Richtung*Winkelmaß_Hz)+LOOKUP(1E+307,$Y$33:$Y100,$Y$33:$Y100)),"Err"))))) ->  | M101: 0 | N101: -1 | O101: -1 | P101: 5000 | Q101: 75000 | R101: 0 | S101: 69 | T101: =IF($F101="","",IF($A$1=PGZ,"0",66)) ->  | U101: =IF($F101="","",IF($A$1=PGZ,66,IF(AND($A$1=PGG,AM101=1),1,67))) ->  | V101: =IF($F101="","",IF($A$1=PGZ,"0",68)) ->  | W101: =IF($F101="","",IF($A$1=PGZ,68,IF(AND($A$1=PGG,AO101=1),1,69))) ->  | AC101: 0 | AD101: =ROW() -> 101 | AF101: =IF(AND($X101<>"",$Y101<>""),SUM(INDIRECT(ADDRESS(LOOKUP(1E+307,$Y$33:$Y100,$AD$33:$AD100)+1,31,TRUE),TRUE):AE101),AF102) -> 0 | AG101: =IF(AND($X101<>"",$Y101<>""),SUM(INDIRECT(ADDRESS(LOOKUP(1E+307,$X$33:$X100,$AD$33:$AD100)+1,7,TRUE),TRUE):G101),AG102) -> 0 | AH101: =IF(AND($X101<>"",$Y101<>""),SUM(INDIRECT(ADDRESS(LOOKUP(1E+307,$Y$33:$Y100,$AD$33:$AD100)+1,8,TRUE),TRUE):H101),AH102) -> 0 | AI101: =IF(AND($X101<>"",$Y101<>""),X101-AG101-INDIRECT(ADDRESS(LOOKUP(1E+307,$X$33:$X100,$AD$33:$AD100),24,TRUE),TRUE),AI102) -> 0 | AJ101: =IF(AND($X101<>"",$Y101<>""),Y101-AH101-INDIRECT(ADDRESS(LOOKUP(1E+307,$X$33:$X100,$AD$33:$AD100),25,TRUE),TRUE),AJ102) -> 0 | AM101: Expertenmodus | AN101: 0 | AP101: -1 | AQ101: -1 | AR101: -1 | AS101: -1 | AX101: 0 | AY101: 0 | BD101: 0 | BE101: 0 | BF101: 1 | BG101: 0 | BH101: 1 | BM101: =IF(BK101<>"",POWER((SUM($BK$34:BK100))+(BK101/2)-(0.5*SUM($BK$34:$BK$132)),2),0) -> 0 | BN101: =IF(BL101<>"",POWER(0.5*SUM($BL$34:$BL$132)-SUM($BL$34:BL100)-(0.5*BL101),2),0) -> 0
A102: =IF($F102="","",IF($A$1=PGZ,"0",69)) ->  | B102: =IF($F102="","",IF($A$1=PGZ,69,IF(AND($A$1=PGG,T102=1),1,70))) ->  | K102: =IF(AND($X102<>"",$Y102<>""),$X102,IF(Horizontaldistanz="","",IF(OR($A$1=PGG,$A$1=LXE),($K101+dY-Fehler_Y),IF(OR($A$1=PGO,$A$1=LNE),($K101+dY),IF($A$1=PGZ,(Horizontaldistanz*SIN(Richtung*Winkelmaß_Hz)+LOOKUP(1E+307,$X$33:$X101,$X$33:$X101)),"Err"))))) ->  | L102: =IF(AND($X102<>"",$Y102<>""),$Y102,IF(Horizontaldistanz="","",IF(OR($A$1=PGG,$A$1=LXE),($L101+dX-Fehler_X),IF(OR($A$1=PGO,$A$1=LNE),($L101+dX),IF($A$1=PGZ,(Horizontaldistanz*COS(Richtung*Winkelmaß_Hz)+LOOKUP(1E+307,$Y$33:$Y101,$Y$33:$Y101)),"Err"))))) ->  | M102: 0 | N102: -1 | O102: -1 | P102: 7500 | Q102: 100000 | R102: 0 | S102: 70 | T102: =IF($F102="","",IF($A$1=PGZ,"0",67)) ->  | U102: =IF($F102="","",IF($A$1=PGZ,67,IF(AND($A$1=PGG,AM102=1),1,68))) ->  | V102: =IF($F102="","",IF($A$1=PGZ,"0",69)) ->  | W102: =IF($F102="","",IF($A$1=PGZ,69,IF(AND($A$1=PGG,AO102=1),1,70))) ->  | AC102: 0 | AD102: =ROW() -> 102 | AF102: =IF(AND($X102<>"",$Y102<>""),SUM(INDIRECT(ADDRESS(LOOKUP(1E+307,$Y$33:$Y101,$AD$33:$AD101)+1,31,TRUE),TRUE):AE102),AF103) -> 0 | AG102: =IF(AND($X102<>"",$Y102<>""),SUM(INDIRECT(ADDRESS(LOOKUP(1E+307,$X$33:$X101,$AD$33:$AD101)+1,7,TRUE),TRUE):G102),AG103) -> 0 | AH102: =IF(AND($X102<>"",$Y102<>""),SUM(INDIRECT(ADDRESS(LOOKUP(1E+307,$Y$33:$Y101,$AD$33:$AD101)+1,8,TRUE),TRUE):H102),AH103) -> 0 | AI102: =IF(AND($X102<>"",$Y102<>""),X102-AG102-INDIRECT(ADDRESS(LOOKUP(1E+307,$X$33:$X101,$AD$33:$AD101),24,TRUE),TRUE),AI103) -> 0 | AJ102: =IF(AND($X102<>"",$Y102<>""),Y102-AH102-INDIRECT(ADDRESS(LOOKUP(1E+307,$X$33:$X101,$AD$33:$AD101),25,TRUE),TRUE),AJ103) -> 0 | AM102: 0 | AN102: 0 | AP102: -1 | AQ102: -1 | AR102: -1 | AS102: -1 | AX102: 0 | AY102: 0 | BD102: 0 | BE102: 0 | BF102: 1 | BG102: 0 | BH102: 1 | BM102: =IF(BK102<>"",POWER((SUM($BK$34:BK101))+(BK102/2)-(0.5*SUM($BK$34:$BK$132)),2),0) -> 0 | BN102: =IF(BL102<>"",POWER(0.5*SUM($BL$34:$BL$132)-SUM($BL$34:BL101)-(0.5*BL102),2),0) -> 0
A103: =IF($F103="","",IF($A$1=PGZ,"0",70)) ->  | B103: =IF($F103="","",IF($A$1=PGZ,70,IF(AND($A$1=PGG,T103=1),1,71))) ->  | K103: =IF(AND($X103<>"",$Y103<>""),$X103,IF(Horizontaldistanz="","",IF(OR($A$1=PGG,$A$1=LXE),($K102+dY-Fehler_Y),IF(OR($A$1=PGO,$A$1=LNE),($K102+dY),IF($A$1=PGZ,(Horizontaldistanz*SIN(Richtung*Winkelmaß_Hz)+LOOKUP(1E+307,$X$33:$X102,$X$33:$X102)),"Err"))))) ->  | L103: =IF(AND($X103<>"",$Y103<>""),$Y103,IF(Horizontaldistanz="","",IF(OR($A$1=PGG,$A$1=LXE),($L102+dX-Fehler_X),IF(OR($A$1=PGO,$A$1=LNE),($L102+dX),IF($A$1=PGZ,(Horizontaldistanz*COS(Richtung*Winkelmaß_Hz)+LOOKUP(1E+307,$Y$33:$Y102,$Y$33:$Y102)),"Err"))))) ->  | M103: 0 | N103: -1 | O103: -1 | P103: 10000 | Q103: 250000 | R103: 0 | S103: 71 | T103: =IF($F103="","",IF($A$1=PGZ,"0",68)) ->  | U103: =IF($F103="","",IF($A$1=PGZ,68,IF(AND($A$1=PGG,AM103=1),1,69))) ->  | V103: =IF($F103="","",IF($A$1=PGZ,"0",70)) ->  | W103: =IF($F103="","",IF($A$1=PGZ,70,IF(AND($A$1=PGG,AO103=1),1,71))) ->  | AC103: 0 | AD103: =ROW() -> 103 | AF103: =IF(AND($X103<>"",$Y103<>""),SUM(INDIRECT(ADDRESS(LOOKUP(1E+307,$Y$33:$Y102,$AD$33:$AD102)+1,31,TRUE),TRUE):AE103),AF104) -> 0 | AG103: =IF(AND($X103<>"",$Y103<>""),SUM(INDIRECT(ADDRESS(LOOKUP(1E+307,$X$33:$X102,$AD$33:$AD102)+1,7,TRUE),TRUE):G103),AG104) -> 0 | AH103: =IF(AND($X103<>"",$Y103<>""),SUM(INDIRECT(ADDRESS(LOOKUP(1E+307,$Y$33:$Y102,$AD$33:$AD102)+1,8,TRUE),TRUE):H103),AH104) -> 0 | AI103: =IF(AND($X103<>"",$Y103<>""),X103-AG103-INDIRECT(ADDRESS(LOOKUP(1E+307,$X$33:$X102,$AD$33:$AD102),24,TRUE),TRUE),AI104) -> 0 | AJ103: =IF(AND($X103<>"",$Y103<>""),Y103-AH103-INDIRECT(ADDRESS(LOOKUP(1E+307,$X$33:$X102,$AD$33:$AD102),25,TRUE),TRUE),AJ104) -> 0 | AM103: 0 | AN103: 0 | AP103: -1 | AQ103: -1 | AR103: -1 | AS103: -1 | AX103: 0 | AY103: 0 | BD103: 0 | BE103: 0 | BF103: 1 | BG103: 0 | BH103: 1 | BM103: =IF(BK103<>"",POWER((SUM($BK$34:BK102))+(BK103/2)-(0.5*SUM($BK$34:$BK$132)),2),0) -> 0 | BN103: =IF(BL103<>"",POWER(0.5*SUM($BL$34:$BL$132)-SUM($BL$34:BL102)-(0.5*BL103),2),0) -> 0
A104: =IF($F104="","",IF($A$1=PGZ,"0",71)) ->  | B104: =IF($F104="","",IF($A$1=PGZ,71,IF(AND($A$1=PGG,T104=1),1,72))) ->  | K104: =IF(AND($X104<>"",$Y104<>""),$X104,IF(Horizontaldistanz="","",IF(OR($A$1=PGG,$A$1=LXE),($K103+dY-Fehler_Y),IF(OR($A$1=PGO,$A$1=LNE),($K103+dY),IF($A$1=PGZ,(Horizontaldistanz*SIN(Richtung*Winkelmaß_Hz)+LOOKUP(1E+307,$X$33:$X103,$X$33:$X103)),"Err"))))) ->  | L104: =IF(AND($X104<>"",$Y104<>""),$Y104,IF(Horizontaldistanz="","",IF(OR($A$1=PGG,$A$1=LXE),($L103+dX-Fehler_X),IF(OR($A$1=PGO,$A$1=LNE),($L103+dX),IF($A$1=PGZ,(Horizontaldistanz*COS(Richtung*Winkelmaß_Hz)+LOOKUP(1E+307,$Y$33:$Y103,$Y$33:$Y103)),"Err"))))) ->  | M104: 0 | N104: -1 | O104: -1 | P104: 25000 | Q104: 500000 | R104: 0 | S104: 72 | T104: =IF($F104="","",IF($A$1=PGZ,"0",69)) ->  | U104: =IF($F104="","",IF($A$1=PGZ,69,IF(AND($A$1=PGG,AM104=1),1,70))) ->  | V104: =IF($F104="","",IF($A$1=PGZ,"0",71)) ->  | W104: =IF($F104="","",IF($A$1=PGZ,71,IF(AND($A$1=PGG,AO104=1),1,72))) ->  | AC104: 0 | AD104: =ROW() -> 104 | AF104: =IF(AND($X104<>"",$Y104<>""),SUM(INDIRECT(ADDRESS(LOOKUP(1E+307,$Y$33:$Y103,$AD$33:$AD103)+1,31,TRUE),TRUE):AE104),AF105) -> 0 | AG104: =IF(AND($X104<>"",$Y104<>""),SUM(INDIRECT(ADDRESS(LOOKUP(1E+307,$X$33:$X103,$AD$33:$AD103)+1,7,TRUE),TRUE):G104),AG105) -> 0 | AH104: =IF(AND($X104<>"",$Y104<>""),SUM(INDIRECT(ADDRESS(LOOKUP(1E+307,$Y$33:$Y103,$AD$33:$AD103)+1,8,TRUE),TRUE):H104),AH105) -> 0 | AI104: =IF(AND($X104<>"",$Y104<>""),X104-AG104-INDIRECT(ADDRESS(LOOKUP(1E+307,$X$33:$X103,$AD$33:$AD103),24,TRUE),TRUE),AI105) -> 0 | AJ104: =IF(AND($X104<>"",$Y104<>""),Y104-AH104-INDIRECT(ADDRESS(LOOKUP(1E+307,$X$33:$X103,$AD$33:$AD103),25,TRUE),TRUE),AJ105) -> 0 | AM104: 0 | AN104: 0 | AP104: -1 | AQ104: -1 | AR104: -1 | AS104: -1 | AX104: 0 | AY104: 0 | BD104: 0 | BE104: 0 | BF104: 1 | BG104: 0 | BH104: 1 | BM104: =IF(BK104<>"",POWER((SUM($BK$34:BK103))+(BK104/2)-(0.5*SUM($BK$34:$BK$132)),2),0) -> 0 | BN104: =IF(BL104<>"",POWER(0.5*SUM($BL$34:$BL$132)-SUM($BL$34:BL103)-(0.5*BL104),2),0) -> 0
A105: =IF($F105="","",IF($A$1=PGZ,"0",72)) ->  | B105: =IF($F105="","",IF($A$1=PGZ,72,IF(AND($A$1=PGG,T105=1),1,73))) ->  | K105: =IF(AND($X105<>"",$Y105<>""),$X105,IF(Horizontaldistanz="","",IF(OR($A$1=PGG,$A$1=LXE),($K104+dY-Fehler_Y),IF(OR($A$1=PGO,$A$1=LNE),($K104+dY),IF($A$1=PGZ,(Horizontaldistanz*SIN(Richtung*Winkelmaß_Hz)+LOOKUP(1E+307,$X$33:$X104,$X$33:$X104)),"Err"))))) ->  | L105: =IF(AND($X105<>"",$Y105<>""),$Y105,IF(Horizontaldistanz="","",IF(OR($A$1=PGG,$A$1=LXE),($L104+dX-Fehler_X),IF(OR($A$1=PGO,$A$1=LNE),($L104+dX),IF($A$1=PGZ,(Horizontaldistanz*COS(Richtung*Winkelmaß_Hz)+LOOKUP(1E+307,$Y$33:$Y104,$Y$33:$Y104)),"Err"))))) ->  | M105: 0 | N105: -1 | O105: -1 | P105: 50000 | Q105: 750000 | R105: 0 | S105: 73 | T105: =IF($F105="","",IF($A$1=PGZ,"0",70)) ->  | U105: =IF($F105="","",IF($A$1=PGZ,70,IF(AND($A$1=PGG,AM105=1),1,71))) ->  | V105: =IF($F105="","",IF($A$1=PGZ,"0",72)) ->  | W105: =IF($F105="","",IF($A$1=PGZ,72,IF(AND($A$1=PGG,AO105=1),1,73))) ->  | AC105: 0 | AD105: =ROW() -> 105 | AF105: =IF(AND($X105<>"",$Y105<>""),SUM(INDIRECT(ADDRESS(LOOKUP(1E+307,$Y$33:$Y104,$AD$33:$AD104)+1,31,TRUE),TRUE):AE105),AF106) -> 0 | AG105: =IF(AND($X105<>"",$Y105<>""),SUM(INDIRECT(ADDRESS(LOOKUP(1E+307,$X$33:$X104,$AD$33:$AD104)+1,7,TRUE),TRUE):G105),AG106) -> 0 | AH105: =IF(AND($X105<>"",$Y105<>""),SUM(INDIRECT(ADDRESS(LOOKUP(1E+307,$Y$33:$Y104,$AD$33:$AD104)+1,8,TRUE),TRUE):H105),AH106) -> 0 | AI105: =IF(AND($X105<>"",$Y105<>""),X105-AG105-INDIRECT(ADDRESS(LOOKUP(1E+307,$X$33:$X104,$AD$33:$AD104),24,TRUE),TRUE),AI106) -> 0 | AJ105: =IF(AND($X105<>"",$Y105<>""),Y105-AH105-INDIRECT(ADDRESS(LOOKUP(1E+307,$X$33:$X104,$AD$33:$AD104),25,TRUE),TRUE),AJ106) -> 0 | AM105: 0 | AN105: 0 | AP105: -1 | AQ105: -1 | AR105: -1 | AS105: -1 | AX105: 0 | AY105: 0 | BD105: 0 | BE105: 0 | BF105: 1 | BG105: 0 | BH105: 1 | BM105: =IF(BK105<>"",POWER((SUM($BK$34:BK104))+(BK105/2)-(0.5*SUM($BK$34:$BK$132)),2),0) -> 0 | BN105: =IF(BL105<>"",POWER(0.5*SUM($BL$34:$BL$132)-SUM($BL$34:BL104)-(0.5*BL105),2),0) -> 0 | BO105: =BM105*BI105 ->  | BP105: =BN105*BJ105 -> 
A106: =IF($F106="","",IF($A$1=PGZ,"0",73)) ->  | B106: =IF($F106="","",IF($A$1=PGZ,73,IF(AND($A$1=PGG,T106=1),1,74))) ->  | K106: =IF(AND($X106<>"",$Y106<>""),$X106,IF(Horizontaldistanz="","",IF(OR($A$1=PGG,$A$1=LXE),($K105+dY-Fehler_Y),IF(OR($A$1=PGO,$A$1=LNE),($K105+dY),IF($A$1=PGZ,(Horizontaldistanz*SIN(Richtung*Winkelmaß_Hz)+LOOKUP(1E+307,$X$33:$X105,$X$33:$X105)),"Err"))))) ->  | L106: =IF(AND($X106<>"",$Y106<>""),$Y106,IF(Horizontaldistanz="","",IF(OR($A$1=PGG,$A$1=LXE),($L105+dX-Fehler_X),IF(OR($A$1=PGO,$A$1=LNE),($L105+dX),IF($A$1=PGZ,(Horizontaldistanz*COS(Richtung*Winkelmaß_Hz)+LOOKUP(1E+307,$Y$33:$Y105,$Y$33:$Y105)),"Err"))))) ->  | M106: 0 | N106: -1 | O106: -1 | R106: 0 | S106: 74 | T106: =IF($F106="","",IF($A$1=PGZ,"0",71)) ->  | U106: =IF($F106="","",IF($A$1=PGZ,71,IF(AND($A$1=PGG,AM106=1),1,72))) ->  | V106: =IF($F106="","",IF($A$1=PGZ,"0",73)) ->  | W106: =IF($F106="","",IF($A$1=PGZ,73,IF(AND($A$1=PGG,AO106=1),1,74))) ->  | AC106: 0 | AD106: =ROW() -> 106 | AF106: =IF(AND($X106<>"",$Y106<>""),SUM(INDIRECT(ADDRESS(LOOKUP(1E+307,$Y$33:$Y105,$AD$33:$AD105)+1,31,TRUE),TRUE):AE106),AF107) -> 0 | AG106: =IF(AND($X106<>"",$Y106<>""),SUM(INDIRECT(ADDRESS(LOOKUP(1E+307,$X$33:$X105,$AD$33:$AD105)+1,7,TRUE),TRUE):G106),AG107) -> 0 | AH106: =IF(AND($X106<>"",$Y106<>""),SUM(INDIRECT(ADDRESS(LOOKUP(1E+307,$Y$33:$Y105,$AD$33:$AD105)+1,8,TRUE),TRUE):H106),AH107) -> 0 | AI106: =IF(AND($X106<>"",$Y106<>""),X106-AG106-INDIRECT(ADDRESS(LOOKUP(1E+307,$X$33:$X105,$AD$33:$AD105),24,TRUE),TRUE),AI107) -> 0 | AJ106: =IF(AND($X106<>"",$Y106<>""),Y106-AH106-INDIRECT(ADDRESS(LOOKUP(1E+307,$X$33:$X105,$AD$33:$AD105),25,TRUE),TRUE),AJ107) -> 0 | AM106: 0 | AN106: 0 | AP106: -1 | AQ106: -1 | AR106: -1 | AS106: -1 | AX106: 0 | AY106: 0 | BD106: 0 | BE106: 0 | BF106: 1 | BG106: 0 | BH106: 1 | BM106: =IF(BK106<>"",POWER((SUM($BK$34:BK105))+(BK106/2)-(0.5*SUM($BK$34:$BK$132)),2),0) -> 0 | BN106: =IF(BL106<>"",POWER(0.5*SUM($BL$34:$BL$132)-SUM($BL$34:BL105)-(0.5*BL106),2),0) -> 0
A107: =IF($F107="","",IF($A$1=PGZ,"0",74)) ->  | B107: =IF($F107="","",IF($A$1=PGZ,74,IF(AND($A$1=PGG,T107=1),1,75))) ->  | K107: =IF(AND($X107<>"",$Y107<>""),$X107,IF(Horizontaldistanz="","",IF(OR($A$1=PGG,$A$1=LXE),($K106+dY-Fehler_Y),IF(OR($A$1=PGO,$A$1=LNE),($K106+dY),IF($A$1=PGZ,(Horizontaldistanz*SIN(Richtung*Winkelmaß_Hz)+LOOKUP(1E+307,$X$33:$X106,$X$33:$X106)),"Err"))))) ->  | L107: =IF(AND($X107<>"",$Y107<>""),$Y107,IF(Horizontaldistanz="","",IF(OR($A$1=PGG,$A$1=LXE),($L106+dX-Fehler_X),IF(OR($A$1=PGO,$A$1=LNE),($L106+dX),IF($A$1=PGZ,(Horizontaldistanz*COS(Richtung*Winkelmaß_Hz)+LOOKUP(1E+307,$Y$33:$Y106,$Y$33:$Y106)),"Err"))))) ->  | M107: 0 | N107: -1 | O107: -1 | P107: Anzeige im Diag | R107: 0 | S107: 75 | T107: =IF($F107="","",IF($A$1=PGZ,"0",72)) ->  | U107: =IF($F107="","",IF($A$1=PGZ,72,IF(AND($A$1=PGG,AM107=1),1,73))) ->  | V107: =IF($F107="","",IF($A$1=PGZ,"0",74)) ->  | W107: =IF($F107="","",IF($A$1=PGZ,74,IF(AND($A$1=PGG,AO107=1),1,75))) ->  | AC107: 0 | AD107: =ROW() -> 107 | AF107: =IF(AND($X107<>"",$Y107<>""),SUM(INDIRECT(ADDRESS(LOOKUP(1E+307,$Y$33:$Y106,$AD$33:$AD106)+1,31,TRUE),TRUE):AE107),AF108) -> 0 | AG107: =IF(AND($X107<>"",$Y107<>""),SUM(INDIRECT(ADDRESS(LOOKUP(1E+307,$X$33:$X106,$AD$33:$AD106)+1,7,TRUE),TRUE):G107),AG108) -> 0 | AH107: =IF(AND($X107<>"",$Y107<>""),SUM(INDIRECT(ADDRESS(LOOKUP(1E+307,$Y$33:$Y106,$AD$33:$AD106)+1,8,TRUE),TRUE):H107),AH108) -> 0 | AI107: =IF(AND($X107<>"",$Y107<>""),X107-AG107-INDIRECT(ADDRESS(LOOKUP(1E+307,$X$33:$X106,$AD$33:$AD106),24,TRUE),TRUE),AI108) -> 0 | AJ107: =IF(AND($X107<>"",$Y107<>""),Y107-AH107-INDIRECT(ADDRESS(LOOKUP(1E+307,$X$33:$X106,$AD$33:$AD106),25,TRUE),TRUE),AJ108) -> 0 | AM107: 0 | AN107: 0 | AP107: -1 | AQ107: -1 | AR107: -1 | AS107: -1 | AX107: 0 | AY107: 0 | BD107: 0 | BE107: 0 | BF107: 1 | BG107: 0 | BH107: 1 | BM107: =IF(BK107<>"",POWER((SUM($BK$34:BK106))+(BK107/2)-(0.5*SUM($BK$34:$BK$132)),2),0) -> 0 | BN107: =IF(BL107<>"",POWER(0.5*SUM($BL$34:$BL$132)-SUM($BL$34:BL106)-(0.5*BL107),2),0) -> 0
A108: =IF($F108="","",IF($A$1=PGZ,"0",75)) ->  | B108: =IF($F108="","",IF($A$1=PGZ,75,IF(AND($A$1=PGG,T108=1),1,76))) ->  | K108: =IF(AND($X108<>"",$Y108<>""),$X108,IF(Horizontaldistanz="","",IF(OR($A$1=PGG,$A$1=LXE),($K107+dY-Fehler_Y),IF(OR($A$1=PGO,$A$1=LNE),($K107+dY),IF($A$1=PGZ,(Horizontaldistanz*SIN(Richtung*Winkelmaß_Hz)+LOOKUP(1E+307,$X$33:$X107,$X$33:$X107)),"Err"))))) ->  | L108: =IF(AND($X108<>"",$Y108<>""),$Y108,IF(Horizontaldistanz="","",IF(OR($A$1=PGG,$A$1=LXE),($L107+dX-Fehler_X),IF(OR($A$1=PGO,$A$1=LNE),($L107+dX),IF($A$1=PGZ,(Horizontaldistanz*COS(Richtung*Winkelmaß_Hz)+LOOKUP(1E+307,$Y$33:$Y107,$Y$33:$Y107)),"Err"))))) ->  | M108: 0 | N108: -1 | O108: -1 | P108: =IF($P$70<>"normal","Flächenberechnung deaktiviert",$P$109) -> Geben Sie mindestens 3 Punkte ein. | R108: 0 | S108: 76 | T108: =IF($F108="","",IF($A$1=PGZ,"0",73)) ->  | U108: =IF($F108="","",IF($A$1=PGZ,73,IF(AND($A$1=PGG,AM108=1),1,74))) ->  | V108: =IF($F108="","",IF($A$1=PGZ,"0",75)) ->  | W108: =IF($F108="","",IF($A$1=PGZ,75,IF(AND($A$1=PGG,AO108=1),1,76))) ->  | AC108: 0 | AD108: =ROW() -> 108 | AF108: =IF(AND($X108<>"",$Y108<>""),SUM(INDIRECT(ADDRESS(LOOKUP(1E+307,$Y$33:$Y107,$AD$33:$AD107)+1,31,TRUE),TRUE):AE108),AF109) -> 0 | AG108: =IF(AND($X108<>"",$Y108<>""),SUM(INDIRECT(ADDRESS(LOOKUP(1E+307,$X$33:$X107,$AD$33:$AD107)+1,7,TRUE),TRUE):G108),AG109) -> 0 | AH108: =IF(AND($X108<>"",$Y108<>""),SUM(INDIRECT(ADDRESS(LOOKUP(1E+307,$Y$33:$Y107,$AD$33:$AD107)+1,8,TRUE),TRUE):H108),AH109) -> 0 | AI108: =IF(AND($X108<>"",$Y108<>""),X108-AG108-INDIRECT(ADDRESS(LOOKUP(1E+307,$X$33:$X107,$AD$33:$AD107),24,TRUE),TRUE),AI109) -> 0 | AJ108: =IF(AND($X108<>"",$Y108<>""),Y108-AH108-INDIRECT(ADDRESS(LOOKUP(1E+307,$X$33:$X107,$AD$33:$AD107),25,TRUE),TRUE),AJ109) -> 0 | AM108: 0 | AN108: 0 | AP108: -1 | AQ108: -1 | AR108: -1 | AS108: -1 | AX108: 0 | AY108: 0 | BD108: 0 | BE108: 0 | BF108: 1 | BG108: 0 | BH108: 1 | BM108: =IF(BK108<>"",POWER((SUM($BK$34:BK107))+(BK108/2)-(0.5*SUM($BK$34:$BK$132)),2),0) -> 0 | BN108: =IF(BL108<>"",POWER(0.5*SUM($BL$34:$BL$132)-SUM($BL$34:BL107)-(0.5*BL108),2),0) -> 0
A109: =IF($F109="","",IF($A$1=PGZ,"0",76)) ->  | B109: =IF($F109="","",IF($A$1=PGZ,76,IF(AND($A$1=PGG,T109=1),1,77))) ->  | K109: =IF(AND($X109<>"",$Y109<>""),$X109,IF(Horizontaldistanz="","",IF(OR($A$1=PGG,$A$1=LXE),($K108+dY-Fehler_Y),IF(OR($A$1=PGO,$A$1=LNE),($K108+dY),IF($A$1=PGZ,(Horizontaldistanz*SIN(Richtung*Winkelmaß_Hz)+LOOKUP(1E+307,$X$33:$X108,$X$33:$X108)),"Err"))))) ->  | L109: =IF(AND($X109<>"",$Y109<>""),$Y109,IF(Horizontaldistanz="","",IF(OR($A$1=PGG,$A$1=LXE),($L108+dX-Fehler_X),IF(OR($A$1=PGO,$A$1=LNE),($L108+dX),IF($A$1=PGZ,(Horizontaldistanz*COS(Richtung*Winkelmaß_Hz)+LOOKUP(1E+307,$Y$33:$Y108,$Y$33:$Y108)),"Err"))))) ->  | M109: 0 | N109: -1 | O109: -1 | P109: =IF(AND($F$36="",$A$1=PGG),"Geben Sie mindestens 3 Punkte ein.",IF(AND($F$36="",OR($A$1=PGO,$A$1=PGZ)),"Geben Sie mindestens 2 Punkte ein.",IF(AND($F$34="",$A$1=LNE),"Geben Sie mindestens einen Punkt ein.",$P$110))) -> Geben Sie mindestens 3 Punkte ein. | R109: 0 | S109: 77 | T109: =IF($F109="","",IF($A$1=PGZ,"0",74)) ->  | U109: =IF($F109="","",IF($A$1=PGZ,74,IF(AND($A$1=PGG,AM109=1),1,75))) ->  | V109: =IF($F109="","",IF($A$1=PGZ,"0",76)) ->  | W109: =IF($F109="","",IF($A$1=PGZ,76,IF(AND($A$1=PGG,AO109=1),1,77))) ->  | AC109: 0 | AD109: =ROW() -> 109 | AF109: =IF(AND($X109<>"",$Y109<>""),SUM(INDIRECT(ADDRESS(LOOKUP(1E+307,$Y$33:$Y108,$AD$33:$AD108)+1,31,TRUE),TRUE):AE109),AF110) -> 0 | AG109: =IF(AND($X109<>"",$Y109<>""),SUM(INDIRECT(ADDRESS(LOOKUP(1E+307,$X$33:$X108,$AD$33:$AD108)+1,7,TRUE),TRUE):G109),AG110) -> 0 | AH109: =IF(AND($X109<>"",$Y109<>""),SUM(INDIRECT(ADDRESS(LOOKUP(1E+307,$Y$33:$Y108,$AD$33:$AD108)+1,8,TRUE),TRUE):H109),AH110) -> 0 | AI109: =IF(AND($X109<>"",$Y109<>""),X109-AG109-INDIRECT(ADDRESS(LOOKUP(1E+307,$X$33:$X108,$AD$33:$AD108),24,TRUE),TRUE),AI110) -> 0 | AJ109: =IF(AND($X109<>"",$Y109<>""),Y109-AH109-INDIRECT(ADDRESS(LOOKUP(1E+307,$X$33:$X108,$AD$33:$AD108),25,TRUE),TRUE),AJ110) -> 0 | AM109: 0 | AN109: 0 | AP109: -1 | AQ109: -1 | AR109: -1 | AS109: -1 | AX109: 0 | AY109: 0 | BD109: 0 | BE109: 0 | BF109: 1 | BG109: 0 | BH109: 1 | BM109: =IF(BK109<>"",POWER((SUM($BK$34:BK108))+(BK109/2)-(0.5*SUM($BK$34:$BK$132)),2),0) -> 0 | BN109: =IF(BL109<>"",POWER(0.5*SUM($BL$34:$BL$132)-SUM($BL$34:BL108)-(0.5*BL109),2),0) -> 0
A110: =IF($F110="","",IF($A$1=PGZ,"0",77)) ->  | B110: =IF($F110="","",IF($A$1=PGZ,77,IF(AND($A$1=PGG,T110=1),1,78))) ->  | K110: =IF(AND($X110<>"",$Y110<>""),$X110,IF(Horizontaldistanz="","",IF(OR($A$1=PGG,$A$1=LXE),($K109+dY-Fehler_Y),IF(OR($A$1=PGO,$A$1=LNE),($K109+dY),IF($A$1=PGZ,(Horizontaldistanz*SIN(Richtung*Winkelmaß_Hz)+LOOKUP(1E+307,$X$33:$X109,$X$33:$X109)),"Err"))))) ->  | L110: =IF(AND($X110<>"",$Y110<>""),$Y110,IF(Horizontaldistanz="","",IF(OR($A$1=PGG,$A$1=LXE),($L109+dX-Fehler_X),IF(OR($A$1=PGO,$A$1=LNE),($L109+dX),IF($A$1=PGZ,(Horizontaldistanz*COS(Richtung*Winkelmaß_Hz)+LOOKUP(1E+307,$Y$33:$Y109,$Y$33:$Y109)),"Err"))))) ->  | M110: 0 | N110: -1 | O110: -1 | P110: =IF($A$1=LNE,("Die gemessene Länge beträgt "&ROUND(SUM(Strecke)/1000,3)&" km"),("Die gemessene Fläche beträgt "&ROUNDDOWN($P$53/10000,3)&" ha.")) -> Die gemessene Fläche beträgt 0 ha. | R110: 0 | S110: 78 | T110: =IF($F110="","",IF($A$1=PGZ,"0",75)) ->  | U110: =IF($F110="","",IF($A$1=PGZ,75,IF(AND($A$1=PGG,AM110=1),1,76))) ->  | V110: =IF($F110="","",IF($A$1=PGZ,"0",77)) ->  | W110: =IF($F110="","",IF($A$1=PGZ,77,IF(AND($A$1=PGG,AO110=1),1,78))) ->  | AC110: 0 | AD110: =ROW() -> 110 | AF110: =IF(AND($X110<>"",$Y110<>""),SUM(INDIRECT(ADDRESS(LOOKUP(1E+307,$Y$33:$Y109,$AD$33:$AD109)+1,31,TRUE),TRUE):AE110),AF111) -> 0 | AG110: =IF(AND($X110<>"",$Y110<>""),SUM(INDIRECT(ADDRESS(LOOKUP(1E+307,$X$33:$X109,$AD$33:$AD109)+1,7,TRUE),TRUE):G110),AG111) -> 0 | AH110: =IF(AND($X110<>"",$Y110<>""),SUM(INDIRECT(ADDRESS(LOOKUP(1E+307,$Y$33:$Y109,$AD$33:$AD109)+1,8,TRUE),TRUE):H110),AH111) -> 0 | AI110: =IF(AND($X110<>"",$Y110<>""),X110-AG110-INDIRECT(ADDRESS(LOOKUP(1E+307,$X$33:$X109,$AD$33:$AD109),24,TRUE),TRUE),AI111) -> 0 | AJ110: =IF(AND($X110<>"",$Y110<>""),Y110-AH110-INDIRECT(ADDRESS(LOOKUP(1E+307,$X$33:$X109,$AD$33:$AD109),25,TRUE),TRUE),AJ111) -> 0 | AM110: 0 | AN110: 0 | AP110: -1 | AQ110: -1 | AR110: -1 | AS110: -1 | AX110: 0 | AY110: 0 | BD110: 0 | BE110: 0 | BF110: 1 | BG110: 0 | BH110: 1 | BM110: =IF(BK110<>"",POWER((SUM($BK$34:BK109))+(BK110/2)-(0.5*SUM($BK$34:$BK$132)),2),0) -> 0 | BN110: =IF(BL110<>"",POWER(0.5*SUM($BL$34:$BL$132)-SUM($BL$34:BL109)-(0.5*BL110),2),0) -> 0
A111: =IF($F111="","",IF($A$1=PGZ,"0",78)) ->  | B111: =IF($F111="","",IF($A$1=PGZ,78,IF(AND($A$1=PGG,T111=1),1,79))) ->  | K111: =IF(AND($X111<>"",$Y111<>""),$X111,IF(Horizontaldistanz="","",IF(OR($A$1=PGG,$A$1=LXE),($K110+dY-Fehler_Y),IF(OR($A$1=PGO,$A$1=LNE),($K110+dY),IF($A$1=PGZ,(Horizontaldistanz*SIN(Richtung*Winkelmaß_Hz)+LOOKUP(1E+307,$X$33:$X110,$X$33:$X110)),"Err"))))) ->  | L111: =IF(AND($X111<>"",$Y111<>""),$Y111,IF(Horizontaldistanz="","",IF(OR($A$1=PGG,$A$1=LXE),($L110+dX-Fehler_X),IF(OR($A$1=PGO,$A$1=LNE),($L110+dX),IF($A$1=PGZ,(Horizontaldistanz*COS(Richtung*Winkelmaß_Hz)+LOOKUP(1E+307,$Y$33:$Y110,$Y$33:$Y110)),"Err"))))) ->  | M111: 0 | N111: -1 | O111: -1 | R111: 0 | S111: 79 | T111: =IF($F111="","",IF($A$1=PGZ,"0",76)) ->  | U111: =IF($F111="","",IF($A$1=PGZ,76,IF(AND($A$1=PGG,AM111=1),1,77))) ->  | V111: =IF($F111="","",IF($A$1=PGZ,"0",78)) ->  | W111: =IF($F111="","",IF($A$1=PGZ,78,IF(AND($A$1=PGG,AO111=1),1,79))) ->  | AC111: 0 | AD111: =ROW() -> 111 | AF111: =IF(AND($X111<>"",$Y111<>""),SUM(INDIRECT(ADDRESS(LOOKUP(1E+307,$Y$33:$Y110,$AD$33:$AD110)+1,31,TRUE),TRUE):AE111),AF112) -> 0 | AG111: =IF(AND($X111<>"",$Y111<>""),SUM(INDIRECT(ADDRESS(LOOKUP(1E+307,$X$33:$X110,$AD$33:$AD110)+1,7,TRUE),TRUE):G111),AG112) -> 0 | AH111: =IF(AND($X111<>"",$Y111<>""),SUM(INDIRECT(ADDRESS(LOOKUP(1E+307,$Y$33:$Y110,$AD$33:$AD110)+1,8,TRUE),TRUE):H111),AH112) -> 0 | AI111: =IF(AND($X111<>"",$Y111<>""),X111-AG111-INDIRECT(ADDRESS(LOOKUP(1E+307,$X$33:$X110,$AD$33:$AD110),24,TRUE),TRUE),AI112) -> 0 | AJ111: =IF(AND($X111<>"",$Y111<>""),Y111-AH111-INDIRECT(ADDRESS(LOOKUP(1E+307,$X$33:$X110,$AD$33:$AD110),25,TRUE),TRUE),AJ112) -> 0 | AM111: 0 | AN111: 0 | AP111: -1 | AQ111: -1 | AR111: -1 | AS111: -1 | AX111: 0 | AY111: 0 | BD111: 0 | BE111: 0 | BF111: 1 | BG111: 0 | BH111: 1 | BM111: =IF(BK111<>"",POWER((SUM($BK$34:BK110))+(BK111/2)-(0.5*SUM($BK$34:$BK$132)),2),0) -> 0 | BN111: =IF(BL111<>"",POWER(0.5*SUM($BL$34:$BL$132)-SUM($BL$34:BL110)-(0.5*BL111),2),0) -> 0
A112: =IF($F112="","",IF($A$1=PGZ,"0",79)) ->  | B112: =IF($F112="","",IF($A$1=PGZ,79,IF(AND($A$1=PGG,T112=1),1,80))) ->  | K112: =IF(AND($X112<>"",$Y112<>""),$X112,IF(Horizontaldistanz="","",IF(OR($A$1=PGG,$A$1=LXE),($K111+dY-Fehler_Y),IF(OR($A$1=PGO,$A$1=LNE),($K111+dY),IF($A$1=PGZ,(Horizontaldistanz*SIN(Richtung*Winkelmaß_Hz)+LOOKUP(1E+307,$X$33:$X111,$X$33:$X111)),"Err"))))) ->  | L112: =IF(AND($X112<>"",$Y112<>""),$Y112,IF(Horizontaldistanz="","",IF(OR($A$1=PGG,$A$1=LXE),($L111+dX-Fehler_X),IF(OR($A$1=PGO,$A$1=LNE),($L111+dX),IF($A$1=PGZ,(Horizontaldistanz*COS(Richtung*Winkelmaß_Hz)+LOOKUP(1E+307,$Y$33:$Y111,$Y$33:$Y111)),"Err"))))) ->  | M112: 0 | N112: -1 | O112: -1 | R112: 0 | S112: 80 | T112: =IF($F112="","",IF($A$1=PGZ,"0",77)) ->  | U112: =IF($F112="","",IF($A$1=PGZ,77,IF(AND($A$1=PGG,AM112=1),1,78))) ->  | V112: =IF($F112="","",IF($A$1=PGZ,"0",79)) ->  | W112: =IF($F112="","",IF($A$1=PGZ,79,IF(AND($A$1=PGG,AO112=1),1,80))) ->  | AC112: 0 | AD112: =ROW() -> 112 | AF112: =IF(AND($X112<>"",$Y112<>""),SUM(INDIRECT(ADDRESS(LOOKUP(1E+307,$Y$33:$Y111,$AD$33:$AD111)+1,31,TRUE),TRUE):AE112),AF113) -> 0 | AG112: =IF(AND($X112<>"",$Y112<>""),SUM(INDIRECT(ADDRESS(LOOKUP(1E+307,$X$33:$X111,$AD$33:$AD111)+1,7,TRUE),TRUE):G112),AG113) -> 0 | AH112: =IF(AND($X112<>"",$Y112<>""),SUM(INDIRECT(ADDRESS(LOOKUP(1E+307,$Y$33:$Y111,$AD$33:$AD111)+1,8,TRUE),TRUE):H112),AH113) -> 0 | AI112: =IF(AND($X112<>"",$Y112<>""),X112-AG112-INDIRECT(ADDRESS(LOOKUP(1E+307,$X$33:$X111,$AD$33:$AD111),24,TRUE),TRUE),AI113) -> 0 | AJ112: =IF(AND($X112<>"",$Y112<>""),Y112-AH112-INDIRECT(ADDRESS(LOOKUP(1E+307,$X$33:$X111,$AD$33:$AD111),25,TRUE),TRUE),AJ113) -> 0 | AM112: 0 | AN112: 0 | AP112: -1 | AQ112: -1 | AR112: -1 | AS112: -1 | AX112: 0 | AY112: 0 | BD112: 0 | BE112: 0 | BF112: 1 | BG112: 0 | BH112: 1 | BM112: =IF(BK112<>"",POWER((SUM($BK$34:BK111))+(BK112/2)-(0.5*SUM($BK$34:$BK$132)),2),0) -> 0 | BN112: =IF(BL112<>"",POWER(0.5*SUM($BL$34:$BL$132)-SUM($BL$34:BL111)-(0.5*BL112),2),0) -> 0
A113: =IF($F113="","",IF($A$1=PGZ,"0",80)) ->  | B113: =IF($F113="","",IF($A$1=PGZ,80,IF(AND($A$1=PGG,T113=1),1,81))) ->  | K113: =IF(AND($X113<>"",$Y113<>""),$X113,IF(Horizontaldistanz="","",IF(OR($A$1=PGG,$A$1=LXE),($K112+dY-Fehler_Y),IF(OR($A$1=PGO,$A$1=LNE),($K112+dY),IF($A$1=PGZ,(Horizontaldistanz*SIN(Richtung*Winkelmaß_Hz)+LOOKUP(1E+307,$X$33:$X112,$X$33:$X112)),"Err"))))) ->  | L113: =IF(AND($X113<>"",$Y113<>""),$Y113,IF(Horizontaldistanz="","",IF(OR($A$1=PGG,$A$1=LXE),($L112+dX-Fehler_X),IF(OR($A$1=PGO,$A$1=LNE),($L112+dX),IF($A$1=PGZ,(Horizontaldistanz*COS(Richtung*Winkelmaß_Hz)+LOOKUP(1E+307,$Y$33:$Y112,$Y$33:$Y112)),"Err"))))) ->  | M113: 0 | N113: -1 | O113: -1 | R113: 0 | S113: 81 | T113: =IF($F113="","",IF($A$1=PGZ,"0",78)) ->  | U113: =IF($F113="","",IF($A$1=PGZ,78,IF(AND($A$1=PGG,AM113=1),1,79))) ->  | V113: =IF($F113="","",IF($A$1=PGZ,"0",80)) ->  | W113: =IF($F113="","",IF($A$1=PGZ,80,IF(AND($A$1=PGG,AO113=1),1,81))) ->  | AC113: 0 | AD113: =ROW() -> 113 | AF113: =IF(AND($X113<>"",$Y113<>""),SUM(INDIRECT(ADDRESS(LOOKUP(1E+307,$Y$33:$Y112,$AD$33:$AD112)+1,31,TRUE),TRUE):AE113),AF114) -> 0 | AG113: =IF(AND($X113<>"",$Y113<>""),SUM(INDIRECT(ADDRESS(LOOKUP(1E+307,$X$33:$X112,$AD$33:$AD112)+1,7,TRUE),TRUE):G113),AG114) -> 0 | AH113: =IF(AND($X113<>"",$Y113<>""),SUM(INDIRECT(ADDRESS(LOOKUP(1E+307,$Y$33:$Y112,$AD$33:$AD112)+1,8,TRUE),TRUE):H113),AH114) -> 0 | AI113: =IF(AND($X113<>"",$Y113<>""),X113-AG113-INDIRECT(ADDRESS(LOOKUP(1E+307,$X$33:$X112,$AD$33:$AD112),24,TRUE),TRUE),AI114) -> 0 | AJ113: =IF(AND($X113<>"",$Y113<>""),Y113-AH113-INDIRECT(ADDRESS(LOOKUP(1E+307,$X$33:$X112,$AD$33:$AD112),25,TRUE),TRUE),AJ114) -> 0 | AM113: 0 | AN113: 0 | AP113: -1 | AQ113: -1 | AR113: -1 | AS113: -1 | AX113: 0 | AY113: 0 | BD113: 0 | BE113: 0 | BF113: 1 | BG113: 0 | BH113: 1 | BM113: =IF(BK113<>"",POWER((SUM($BK$34:BK112))+(BK113/2)-(0.5*SUM($BK$34:$BK$132)),2),0) -> 0 | BN113: =IF(BL113<>"",POWER(0.5*SUM($BL$34:$BL$132)-SUM($BL$34:BL112)-(0.5*BL113),2),0) -> 0
A114: =IF($F114="","",IF($A$1=PGZ,"0",81)) ->  | B114: =IF($F114="","",IF($A$1=PGZ,81,IF(AND($A$1=PGG,T114=1),1,82))) ->  | K114: =IF(AND($X114<>"",$Y114<>""),$X114,IF(Horizontaldistanz="","",IF(OR($A$1=PGG,$A$1=LXE),($K113+dY-Fehler_Y),IF(OR($A$1=PGO,$A$1=LNE),($K113+dY),IF($A$1=PGZ,(Horizontaldistanz*SIN(Richtung*Winkelmaß_Hz)+LOOKUP(1E+307,$X$33:$X113,$X$33:$X113)),"Err"))))) ->  | L114: =IF(AND($X114<>"",$Y114<>""),$Y114,IF(Horizontaldistanz="","",IF(OR($A$1=PGG,$A$1=LXE),($L113+dX-Fehler_X),IF(OR($A$1=PGO,$A$1=LNE),($L113+dX),IF($A$1=PGZ,(Horizontaldistanz*COS(Richtung*Winkelmaß_Hz)+LOOKUP(1E+307,$Y$33:$Y113,$Y$33:$Y113)),"Err"))))) ->  | M114: 0 | N114: -1 | O114: -1 | R114: 0 | S114: 82 | T114: =IF($F114="","",IF($A$1=PGZ,"0",79)) ->  | U114: =IF($F114="","",IF($A$1=PGZ,79,IF(AND($A$1=PGG,AM114=1),1,80))) ->  | V114: =IF($F114="","",IF($A$1=PGZ,"0",81)) ->  | W114: =IF($F114="","",IF($A$1=PGZ,81,IF(AND($A$1=PGG,AO114=1),1,82))) ->  | AC114: 0 | AD114: =ROW() -> 114 | AF114: =IF(AND($X114<>"",$Y114<>""),SUM(INDIRECT(ADDRESS(LOOKUP(1E+307,$Y$33:$Y113,$AD$33:$AD113)+1,31,TRUE),TRUE):AE114),AF115) -> 0 | AG114: =IF(AND($X114<>"",$Y114<>""),SUM(INDIRECT(ADDRESS(LOOKUP(1E+307,$X$33:$X113,$AD$33:$AD113)+1,7,TRUE),TRUE):G114),AG115) -> 0 | AH114: =IF(AND($X114<>"",$Y114<>""),SUM(INDIRECT(ADDRESS(LOOKUP(1E+307,$Y$33:$Y113,$AD$33:$AD113)+1,8,TRUE),TRUE):H114),AH115) -> 0 | AI114: =IF(AND($X114<>"",$Y114<>""),X114-AG114-INDIRECT(ADDRESS(LOOKUP(1E+307,$X$33:$X113,$AD$33:$AD113),24,TRUE),TRUE),AI115) -> 0 | AJ114: =IF(AND($X114<>"",$Y114<>""),Y114-AH114-INDIRECT(ADDRESS(LOOKUP(1E+307,$X$33:$X113,$AD$33:$AD113),25,TRUE),TRUE),AJ115) -> 0 | AM114: 0 | AN114: 0 | AP114: -1 | AQ114: -1 | AR114: -1 | AS114: -1 | AX114: 0 | AY114: 0 | BD114: 0 | BE114: 0 | BF114: 1 | BG114: 0 | BH114: 1 | BM114: =IF(BK114<>"",POWER((SUM($BK$34:BK113))+(BK114/2)-(0.5*SUM($BK$34:$BK$132)),2),0) -> 0 | BN114: =IF(BL114<>"",POWER(0.5*SUM($BL$34:$BL$132)-SUM($BL$34:BL113)-(0.5*BL114),2),0) -> 0
A115: =IF($F115="","",IF($A$1=PGZ,"0",82)) ->  | B115: =IF($F115="","",IF($A$1=PGZ,82,IF(AND($A$1=PGG,T115=1),1,83))) ->  | K115: =IF(AND($X115<>"",$Y115<>""),$X115,IF(Horizontaldistanz="","",IF(OR($A$1=PGG,$A$1=LXE),($K114+dY-Fehler_Y),IF(OR($A$1=PGO,$A$1=LNE),($K114+dY),IF($A$1=PGZ,(Horizontaldistanz*SIN(Richtung*Winkelmaß_Hz)+LOOKUP(1E+307,$X$33:$X114,$X$33:$X114)),"Err"))))) ->  | L115: =IF(AND($X115<>"",$Y115<>""),$Y115,IF(Horizontaldistanz="","",IF(OR($A$1=PGG,$A$1=LXE),($L114+dX-Fehler_X),IF(OR($A$1=PGO,$A$1=LNE),($L114+dX),IF($A$1=PGZ,(Horizontaldistanz*COS(Richtung*Winkelmaß_Hz)+LOOKUP(1E+307,$Y$33:$Y114,$Y$33:$Y114)),"Err"))))) ->  | M115: 0 | N115: -1 | O115: -1 | R115: 0 | S115: 83 | T115: =IF($F115="","",IF($A$1=PGZ,"0",80)) ->  | U115: =IF($F115="","",IF($A$1=PGZ,80,IF(AND($A$1=PGG,AM115=1),1,81))) ->  | V115: =IF($F115="","",IF($A$1=PGZ,"0",82)) ->  | W115: =IF($F115="","",IF($A$1=PGZ,82,IF(AND($A$1=PGG,AO115=1),1,83))) ->  | AC115: 0 | AD115: =ROW() -> 115 | AF115: =IF(AND($X115<>"",$Y115<>""),SUM(INDIRECT(ADDRESS(LOOKUP(1E+307,$Y$33:$Y114,$AD$33:$AD114)+1,31,TRUE),TRUE):AE115),AF116) -> 0 | AG115: =IF(AND($X115<>"",$Y115<>""),SUM(INDIRECT(ADDRESS(LOOKUP(1E+307,$X$33:$X114,$AD$33:$AD114)+1,7,TRUE),TRUE):G115),AG116) -> 0 | AH115: =IF(AND($X115<>"",$Y115<>""),SUM(INDIRECT(ADDRESS(LOOKUP(1E+307,$Y$33:$Y114,$AD$33:$AD114)+1,8,TRUE),TRUE):H115),AH116) -> 0 | AI115: =IF(AND($X115<>"",$Y115<>""),X115-AG115-INDIRECT(ADDRESS(LOOKUP(1E+307,$X$33:$X114,$AD$33:$AD114),24,TRUE),TRUE),AI116) -> 0 | AJ115: =IF(AND($X115<>"",$Y115<>""),Y115-AH115-INDIRECT(ADDRESS(LOOKUP(1E+307,$X$33:$X114,$AD$33:$AD114),25,TRUE),TRUE),AJ116) -> 0 | AM115: 0 | AN115: 0 | AP115: -1 | AQ115: -1 | AR115: -1 | AS115: -1 | AX115: 0 | AY115: 0 | BD115: 0 | BE115: 0 | BF115: 1 | BG115: 0 | BH115: 1 | BM115: =IF(BK115<>"",POWER((SUM($BK$34:BK114))+(BK115/2)-(0.5*SUM($BK$34:$BK$132)),2),0) -> 0 | BN115: =IF(BL115<>"",POWER(0.5*SUM($BL$34:$BL$132)-SUM($BL$34:BL114)-(0.5*BL115),2),0) -> 0
A116: =IF($F116="","",IF($A$1=PGZ,"0",83)) ->  | B116: =IF($F116="","",IF($A$1=PGZ,83,IF(AND($A$1=PGG,T116=1),1,84))) ->  | K116: =IF(AND($X116<>"",$Y116<>""),$X116,IF(Horizontaldistanz="","",IF(OR($A$1=PGG,$A$1=LXE),($K115+dY-Fehler_Y),IF(OR($A$1=PGO,$A$1=LNE),($K115+dY),IF($A$1=PGZ,(Horizontaldistanz*SIN(Richtung*Winkelmaß_Hz)+LOOKUP(1E+307,$X$33:$X115,$X$33:$X115)),"Err"))))) ->  | L116: =IF(AND($X116<>"",$Y116<>""),$Y116,IF(Horizontaldistanz="","",IF(OR($A$1=PGG,$A$1=LXE),($L115+dX-Fehler_X),IF(OR($A$1=PGO,$A$1=LNE),($L115+dX),IF($A$1=PGZ,(Horizontaldistanz*COS(Richtung*Winkelmaß_Hz)+LOOKUP(1E+307,$Y$33:$Y115,$Y$33:$Y115)),"Err"))))) ->  | M116: 0 | N116: -1 | O116: -1 | R116: 0 | S116: 84 | T116: =IF($F116="","",IF($A$1=PGZ,"0",81)) ->  | U116: =IF($F116="","",IF($A$1=PGZ,81,IF(AND($A$1=PGG,AM116=1),1,82))) ->  | V116: =IF($F116="","",IF($A$1=PGZ,"0",83)) ->  | W116: =IF($F116="","",IF($A$1=PGZ,83,IF(AND($A$1=PGG,AO116=1),1,84))) ->  | AC116: 0 | AD116: =ROW() -> 116 | AF116: =IF(AND($X116<>"",$Y116<>""),SUM(INDIRECT(ADDRESS(LOOKUP(1E+307,$Y$33:$Y115,$AD$33:$AD115)+1,31,TRUE),TRUE):AE116),AF117) -> 0 | AG116: =IF(AND($X116<>"",$Y116<>""),SUM(INDIRECT(ADDRESS(LOOKUP(1E+307,$X$33:$X115,$AD$33:$AD115)+1,7,TRUE),TRUE):G116),AG117) -> 0 | AH116: =IF(AND($X116<>"",$Y116<>""),SUM(INDIRECT(ADDRESS(LOOKUP(1E+307,$Y$33:$Y115,$AD$33:$AD115)+1,8,TRUE),TRUE):H116),AH117) -> 0 | AI116: =IF(AND($X116<>"",$Y116<>""),X116-AG116-INDIRECT(ADDRESS(LOOKUP(1E+307,$X$33:$X115,$AD$33:$AD115),24,TRUE),TRUE),AI117) -> 0 | AJ116: =IF(AND($X116<>"",$Y116<>""),Y116-AH116-INDIRECT(ADDRESS(LOOKUP(1E+307,$X$33:$X115,$AD$33:$AD115),25,TRUE),TRUE),AJ117) -> 0 | AM116: 0 | AN116: 0 | AP116: -1 | AQ116: -1 | AR116: -1 | AS116: -1 | AX116: 0 | AY116: 0 | BD116: 0 | BE116: 0 | BF116: 1 | BG116: 0 | BH116: 1 | BM116: =IF(BK116<>"",POWER((SUM($BK$34:BK115))+(BK116/2)-(0.5*SUM($BK$34:$BK$132)),2),0) -> 0 | BN116: =IF(BL116<>"",POWER(0.5*SUM($BL$34:$BL$132)-SUM($BL$34:BL115)-(0.5*BL116),2),0) -> 0
A117: =IF($F117="","",IF($A$1=PGZ,"0",84)) ->  | B117: =IF($F117="","",IF($A$1=PGZ,84,IF(AND($A$1=PGG,T117=1),1,85))) ->  | K117: =IF(AND($X117<>"",$Y117<>""),$X117,IF(Horizontaldistanz="","",IF(OR($A$1=PGG,$A$1=LXE),($K116+dY-Fehler_Y),IF(OR($A$1=PGO,$A$1=LNE),($K116+dY),IF($A$1=PGZ,(Horizontaldistanz*SIN(Richtung*Winkelmaß_Hz)+LOOKUP(1E+307,$X$33:$X116,$X$33:$X116)),"Err"))))) ->  | L117: =IF(AND($X117<>"",$Y117<>""),$Y117,IF(Horizontaldistanz="","",IF(OR($A$1=PGG,$A$1=LXE),($L116+dX-Fehler_X),IF(OR($A$1=PGO,$A$1=LNE),($L116+dX),IF($A$1=PGZ,(Horizontaldistanz*COS(Richtung*Winkelmaß_Hz)+LOOKUP(1E+307,$Y$33:$Y116,$Y$33:$Y116)),"Err"))))) ->  | M117: 0 | N117: -1 | O117: -1 | R117: 0 | S117: 85 | T117: =IF($F117="","",IF($A$1=PGZ,"0",82)) ->  | U117: =IF($F117="","",IF($A$1=PGZ,82,IF(AND($A$1=PGG,AM117=1),1,83))) ->  | V117: =IF($F117="","",IF($A$1=PGZ,"0",84)) ->  | W117: =IF($F117="","",IF($A$1=PGZ,84,IF(AND($A$1=PGG,AO117=1),1,85))) ->  | AC117: 0 | AD117: =ROW() -> 117 | AF117: =IF(AND($X117<>"",$Y117<>""),SUM(INDIRECT(ADDRESS(LOOKUP(1E+307,$Y$33:$Y116,$AD$33:$AD116)+1,31,TRUE),TRUE):AE117),AF118) -> 0 | AG117: =IF(AND($X117<>"",$Y117<>""),SUM(INDIRECT(ADDRESS(LOOKUP(1E+307,$X$33:$X116,$AD$33:$AD116)+1,7,TRUE),TRUE):G117),AG118) -> 0 | AH117: =IF(AND($X117<>"",$Y117<>""),SUM(INDIRECT(ADDRESS(LOOKUP(1E+307,$Y$33:$Y116,$AD$33:$AD116)+1,8,TRUE),TRUE):H117),AH118) -> 0 | AI117: =IF(AND($X117<>"",$Y117<>""),X117-AG117-INDIRECT(ADDRESS(LOOKUP(1E+307,$X$33:$X116,$AD$33:$AD116),24,TRUE),TRUE),AI118) -> 0 | AJ117: =IF(AND($X117<>"",$Y117<>""),Y117-AH117-INDIRECT(ADDRESS(LOOKUP(1E+307,$X$33:$X116,$AD$33:$AD116),25,TRUE),TRUE),AJ118) -> 0 | AM117: 0 | AN117: 0 | AP117: -1 | AQ117: -1 | AR117: -1 | AS117: -1 | AX117: 0 | AY117: 0 | BD117: 0 | BE117: 0 | BF117: 1 | BG117: 0 | BH117: 1 | BM117: =IF(BK117<>"",POWER((SUM($BK$34:BK116))+(BK117/2)-(0.5*SUM($BK$34:$BK$132)),2),0) -> 0 | BN117: =IF(BL117<>"",POWER(0.5*SUM($BL$34:$BL$132)-SUM($BL$34:BL116)-(0.5*BL117),2),0) -> 0
A118: =IF($F118="","",IF($A$1=PGZ,"0",85)) ->  | B118: =IF($F118="","",IF($A$1=PGZ,85,IF(AND($A$1=PGG,T118=1),1,86))) ->  | K118: =IF(AND($X118<>"",$Y118<>""),$X118,IF(Horizontaldistanz="","",IF(OR($A$1=PGG,$A$1=LXE),($K117+dY-Fehler_Y),IF(OR($A$1=PGO,$A$1=LNE),($K117+dY),IF($A$1=PGZ,(Horizontaldistanz*SIN(Richtung*Winkelmaß_Hz)+LOOKUP(1E+307,$X$33:$X117,$X$33:$X117)),"Err"))))) ->  | L118: =IF(AND($X118<>"",$Y118<>""),$Y118,IF(Horizontaldistanz="","",IF(OR($A$1=PGG,$A$1=LXE),($L117+dX-Fehler_X),IF(OR($A$1=PGO,$A$1=LNE),($L117+dX),IF($A$1=PGZ,(Horizontaldistanz*COS(Richtung*Winkelmaß_Hz)+LOOKUP(1E+307,$Y$33:$Y117,$Y$33:$Y117)),"Err"))))) ->  | M118: 0 | N118: -1 | O118: -1 | R118: 0 | S118: 86 | T118: =IF($F118="","",IF($A$1=PGZ,"0",83)) ->  | U118: =IF($F118="","",IF($A$1=PGZ,83,IF(AND($A$1=PGG,AM118=1),1,84))) ->  | V118: =IF($F118="","",IF($A$1=PGZ,"0",85)) ->  | W118: =IF($F118="","",IF($A$1=PGZ,85,IF(AND($A$1=PGG,AO118=1),1,86))) ->  | AC118: 0 | AD118: =ROW() -> 118 | AF118: =IF(AND($X118<>"",$Y118<>""),SUM(INDIRECT(ADDRESS(LOOKUP(1E+307,$Y$33:$Y117,$AD$33:$AD117)+1,31,TRUE),TRUE):AE118),AF119) -> 0 | AG118: =IF(AND($X118<>"",$Y118<>""),SUM(INDIRECT(ADDRESS(LOOKUP(1E+307,$X$33:$X117,$AD$33:$AD117)+1,7,TRUE),TRUE):G118),AG119) -> 0 | AH118: =IF(AND($X118<>"",$Y118<>""),SUM(INDIRECT(ADDRESS(LOOKUP(1E+307,$Y$33:$Y117,$AD$33:$AD117)+1,8,TRUE),TRUE):H118),AH119) -> 0 | AI118: =IF(AND($X118<>"",$Y118<>""),X118-AG118-INDIRECT(ADDRESS(LOOKUP(1E+307,$X$33:$X117,$AD$33:$AD117),24,TRUE),TRUE),AI119) -> 0 | AJ118: =IF(AND($X118<>"",$Y118<>""),Y118-AH118-INDIRECT(ADDRESS(LOOKUP(1E+307,$X$33:$X117,$AD$33:$AD117),25,TRUE),TRUE),AJ119) -> 0 | AM118: 0 | AN118: 0 | AP118: -1 | AQ118: -1 | AR118: -1 | AS118: -1 | AX118: 0 | AY118: 0 | BD118: 0 | BE118: 0 | BF118: 1 | BG118: 0 | BH118: 1 | BM118: =IF(BK118<>"",POWER((SUM($BK$34:BK117))+(BK118/2)-(0.5*SUM($BK$34:$BK$132)),2),0) -> 0 | BN118: =IF(BL118<>"",POWER(0.5*SUM($BL$34:$BL$132)-SUM($BL$34:BL117)-(0.5*BL118),2),0) -> 0
A119: =IF($F119="","",IF($A$1=PGZ,"0",86)) ->  | B119: =IF($F119="","",IF($A$1=PGZ,86,IF(AND($A$1=PGG,T119=1),1,87))) ->  | K119: =IF(AND($X119<>"",$Y119<>""),$X119,IF(Horizontaldistanz="","",IF(OR($A$1=PGG,$A$1=LXE),($K118+dY-Fehler_Y),IF(OR($A$1=PGO,$A$1=LNE),($K118+dY),IF($A$1=PGZ,(Horizontaldistanz*SIN(Richtung*Winkelmaß_Hz)+LOOKUP(1E+307,$X$33:$X118,$X$33:$X118)),"Err"))))) ->  | L119: =IF(AND($X119<>"",$Y119<>""),$Y119,IF(Horizontaldistanz="","",IF(OR($A$1=PGG,$A$1=LXE),($L118+dX-Fehler_X),IF(OR($A$1=PGO,$A$1=LNE),($L118+dX),IF($A$1=PGZ,(Horizontaldistanz*COS(Richtung*Winkelmaß_Hz)+LOOKUP(1E+307,$Y$33:$Y118,$Y$33:$Y118)),"Err"))))) ->  | M119: 0 | N119: -1 | O119: -1 | R119: 0 | S119: 87 | T119: =IF($F119="","",IF($A$1=PGZ,"0",84)) ->  | U119: =IF($F119="","",IF($A$1=PGZ,84,IF(AND($A$1=PGG,AM119=1),1,85))) ->  | V119: =IF($F119="","",IF($A$1=PGZ,"0",86)) ->  | W119: =IF($F119="","",IF($A$1=PGZ,86,IF(AND($A$1=PGG,AO119=1),1,87))) ->  | AC119: 0 | AD119: =ROW() -> 119 | AF119: =IF(AND($X119<>"",$Y119<>""),SUM(INDIRECT(ADDRESS(LOOKUP(1E+307,$Y$33:$Y118,$AD$33:$AD118)+1,31,TRUE),TRUE):AE119),AF120) -> 0 | AG119: =IF(AND($X119<>"",$Y119<>""),SUM(INDIRECT(ADDRESS(LOOKUP(1E+307,$X$33:$X118,$AD$33:$AD118)+1,7,TRUE),TRUE):G119),AG120) -> 0 | AH119: =IF(AND($X119<>"",$Y119<>""),SUM(INDIRECT(ADDRESS(LOOKUP(1E+307,$Y$33:$Y118,$AD$33:$AD118)+1,8,TRUE),TRUE):H119),AH120) -> 0 | AI119: =IF(AND($X119<>"",$Y119<>""),X119-AG119-INDIRECT(ADDRESS(LOOKUP(1E+307,$X$33:$X118,$AD$33:$AD118),24,TRUE),TRUE),AI120) -> 0 | AJ119: =IF(AND($X119<>"",$Y119<>""),Y119-AH119-INDIRECT(ADDRESS(LOOKUP(1E+307,$X$33:$X118,$AD$33:$AD118),25,TRUE),TRUE),AJ120) -> 0 | AM119: 0 | AN119: 0 | AP119: -1 | AQ119: -1 | AR119: -1 | AS119: -1 | AX119: 0 | AY119: 0 | BD119: 0 | BE119: 0 | BF119: 1 | BG119: 0 | BH119: 1 | BM119: =IF(BK119<>"",POWER((SUM($BK$34:BK118))+(BK119/2)-(0.5*SUM($BK$34:$BK$132)),2),0) -> 0 | BN119: =IF(BL119<>"",POWER(0.5*SUM($BL$34:$BL$132)-SUM($BL$34:BL118)-(0.5*BL119),2),0) -> 0
A120: =IF($F120="","",IF($A$1=PGZ,"0",87)) ->  | B120: =IF($F120="","",IF($A$1=PGZ,87,IF(AND($A$1=PGG,T120=1),1,88))) ->  | K120: =IF(AND($X120<>"",$Y120<>""),$X120,IF(Horizontaldistanz="","",IF(OR($A$1=PGG,$A$1=LXE),($K119+dY-Fehler_Y),IF(OR($A$1=PGO,$A$1=LNE),($K119+dY),IF($A$1=PGZ,(Horizontaldistanz*SIN(Richtung*Winkelmaß_Hz)+LOOKUP(1E+307,$X$33:$X119,$X$33:$X119)),"Err"))))) ->  | L120: =IF(AND($X120<>"",$Y120<>""),$Y120,IF(Horizontaldistanz="","",IF(OR($A$1=PGG,$A$1=LXE),($L119+dX-Fehler_X),IF(OR($A$1=PGO,$A$1=LNE),($L119+dX),IF($A$1=PGZ,(Horizontaldistanz*COS(Richtung*Winkelmaß_Hz)+LOOKUP(1E+307,$Y$33:$Y119,$Y$33:$Y119)),"Err"))))) ->  | M120: 0 | N120: -1 | O120: -1 | R120: 0 | S120: 88 | T120: =IF($F120="","",IF($A$1=PGZ,"0",85)) ->  | U120: =IF($F120="","",IF($A$1=PGZ,85,IF(AND($A$1=PGG,AM120=1),1,86))) ->  | V120: =IF($F120="","",IF($A$1=PGZ,"0",87)) ->  | W120: =IF($F120="","",IF($A$1=PGZ,87,IF(AND($A$1=PGG,AO120=1),1,88))) ->  | AC120: 0 | AD120: =ROW() -> 120 | AF120: =IF(AND($X120<>"",$Y120<>""),SUM(INDIRECT(ADDRESS(LOOKUP(1E+307,$Y$33:$Y119,$AD$33:$AD119)+1,31,TRUE),TRUE):AE120),AF121) -> 0 | AG120: =IF(AND($X120<>"",$Y120<>""),SUM(INDIRECT(ADDRESS(LOOKUP(1E+307,$X$33:$X119,$AD$33:$AD119)+1,7,TRUE),TRUE):G120),AG121) -> 0 | AH120: =IF(AND($X120<>"",$Y120<>""),SUM(INDIRECT(ADDRESS(LOOKUP(1E+307,$Y$33:$Y119,$AD$33:$AD119)+1,8,TRUE),TRUE):H120),AH121) -> 0 | AI120: =IF(AND($X120<>"",$Y120<>""),X120-AG120-INDIRECT(ADDRESS(LOOKUP(1E+307,$X$33:$X119,$AD$33:$AD119),24,TRUE),TRUE),AI121) -> 0 | AJ120: =IF(AND($X120<>"",$Y120<>""),Y120-AH120-INDIRECT(ADDRESS(LOOKUP(1E+307,$X$33:$X119,$AD$33:$AD119),25,TRUE),TRUE),AJ121) -> 0 | AM120: 0 | AN120: 0 | AP120: -1 | AQ120: -1 | AR120: -1 | AS120: -1 | AX120: 0 | AY120: 0 | BD120: 0 | BE120: 0 | BF120: 1 | BG120: 0 | BH120: 1 | BM120: =IF(BK120<>"",POWER((SUM($BK$34:BK119))+(BK120/2)-(0.5*SUM($BK$34:$BK$132)),2),0) -> 0 | BN120: =IF(BL120<>"",POWER(0.5*SUM($BL$34:$BL$132)-SUM($BL$34:BL119)-(0.5*BL120),2),0) -> 0
A121: =IF($F121="","",IF($A$1=PGZ,"0",88)) ->  | B121: =IF($F121="","",IF($A$1=PGZ,88,IF(AND($A$1=PGG,T121=1),1,89))) ->  | K121: =IF(AND($X121<>"",$Y121<>""),$X121,IF(Horizontaldistanz="","",IF(OR($A$1=PGG,$A$1=LXE),($K120+dY-Fehler_Y),IF(OR($A$1=PGO,$A$1=LNE),($K120+dY),IF($A$1=PGZ,(Horizontaldistanz*SIN(Richtung*Winkelmaß_Hz)+LOOKUP(1E+307,$X$33:$X120,$X$33:$X120)),"Err"))))) ->  | L121: =IF(AND($X121<>"",$Y121<>""),$Y121,IF(Horizontaldistanz="","",IF(OR($A$1=PGG,$A$1=LXE),($L120+dX-Fehler_X),IF(OR($A$1=PGO,$A$1=LNE),($L120+dX),IF($A$1=PGZ,(Horizontaldistanz*COS(Richtung*Winkelmaß_Hz)+LOOKUP(1E+307,$Y$33:$Y120,$Y$33:$Y120)),"Err"))))) ->  | M121: 0 | N121: -1 | O121: -1 | R121: 0 | S121: 89 | T121: =IF($F121="","",IF($A$1=PGZ,"0",86)) ->  | U121: =IF($F121="","",IF($A$1=PGZ,86,IF(AND($A$1=PGG,AM121=1),1,87))) ->  | V121: =IF($F121="","",IF($A$1=PGZ,"0",88)) ->  | W121: =IF($F121="","",IF($A$1=PGZ,88,IF(AND($A$1=PGG,AO121=1),1,89))) ->  | AC121: 0 | AD121: =ROW() -> 121 | AF121: =IF(AND($X121<>"",$Y121<>""),SUM(INDIRECT(ADDRESS(LOOKUP(1E+307,$Y$33:$Y120,$AD$33:$AD120)+1,31,TRUE),TRUE):AE121),AF122) -> 0 | AG121: =IF(AND($X121<>"",$Y121<>""),SUM(INDIRECT(ADDRESS(LOOKUP(1E+307,$X$33:$X120,$AD$33:$AD120)+1,7,TRUE),TRUE):G121),AG122) -> 0 | AH121: =IF(AND($X121<>"",$Y121<>""),SUM(INDIRECT(ADDRESS(LOOKUP(1E+307,$Y$33:$Y120,$AD$33:$AD120)+1,8,TRUE),TRUE):H121),AH122) -> 0 | AI121: =IF(AND($X121<>"",$Y121<>""),X121-AG121-INDIRECT(ADDRESS(LOOKUP(1E+307,$X$33:$X120,$AD$33:$AD120),24,TRUE),TRUE),AI122) -> 0 | AJ121: =IF(AND($X121<>"",$Y121<>""),Y121-AH121-INDIRECT(ADDRESS(LOOKUP(1E+307,$X$33:$X120,$AD$33:$AD120),25,TRUE),TRUE),AJ122) -> 0 | AM121: 0 | AN121: 0 | AP121: -1 | AQ121: -1 | AR121: -1 | AS121: -1 | AX121: 0 | AY121: 0 | BD121: 0 | BE121: 0 | BF121: 1 | BG121: 0 | BH121: 1 | BM121: =IF(BK121<>"",POWER((SUM($BK$34:BK120))+(BK121/2)-(0.5*SUM($BK$34:$BK$132)),2),0) -> 0 | BN121: =IF(BL121<>"",POWER(0.5*SUM($BL$34:$BL$132)-SUM($BL$34:BL120)-(0.5*BL121),2),0) -> 0
A122: =IF($F122="","",IF($A$1=PGZ,"0",89)) ->  | B122: =IF($F122="","",IF($A$1=PGZ,89,IF(AND($A$1=PGG,T122=1),1,90))) ->  | K122: =IF(AND($X122<>"",$Y122<>""),$X122,IF(Horizontaldistanz="","",IF(OR($A$1=PGG,$A$1=LXE),($K121+dY-Fehler_Y),IF(OR($A$1=PGO,$A$1=LNE),($K121+dY),IF($A$1=PGZ,(Horizontaldistanz*SIN(Richtung*Winkelmaß_Hz)+LOOKUP(1E+307,$X$33:$X121,$X$33:$X121)),"Err"))))) ->  | L122: =IF(AND($X122<>"",$Y122<>""),$Y122,IF(Horizontaldistanz="","",IF(OR($A$1=PGG,$A$1=LXE),($L121+dX-Fehler_X),IF(OR($A$1=PGO,$A$1=LNE),($L121+dX),IF($A$1=PGZ,(Horizontaldistanz*COS(Richtung*Winkelmaß_Hz)+LOOKUP(1E+307,$Y$33:$Y121,$Y$33:$Y121)),"Err"))))) ->  | M122: 0 | N122: -1 | O122: -1 | R122: 0 | S122: 90 | T122: =IF($F122="","",IF($A$1=PGZ,"0",87)) ->  | U122: =IF($F122="","",IF($A$1=PGZ,87,IF(AND($A$1=PGG,AM122=1),1,88))) ->  | V122: =IF($F122="","",IF($A$1=PGZ,"0",89)) ->  | W122: =IF($F122="","",IF($A$1=PGZ,89,IF(AND($A$1=PGG,AO122=1),1,90))) ->  | AC122: 0 | AD122: =ROW() -> 122 | AF122: =IF(AND($X122<>"",$Y122<>""),SUM(INDIRECT(ADDRESS(LOOKUP(1E+307,$Y$33:$Y121,$AD$33:$AD121)+1,31,TRUE),TRUE):AE122),AF123) -> 0 | AG122: =IF(AND($X122<>"",$Y122<>""),SUM(INDIRECT(ADDRESS(LOOKUP(1E+307,$X$33:$X121,$AD$33:$AD121)+1,7,TRUE),TRUE):G122),AG123) -> 0 | AH122: =IF(AND($X122<>"",$Y122<>""),SUM(INDIRECT(ADDRESS(LOOKUP(1E+307,$Y$33:$Y121,$AD$33:$AD121)+1,8,TRUE),TRUE):H122),AH123) -> 0 | AI122: =IF(AND($X122<>"",$Y122<>""),X122-AG122-INDIRECT(ADDRESS(LOOKUP(1E+307,$X$33:$X121,$AD$33:$AD121),24,TRUE),TRUE),AI123) -> 0 | AJ122: =IF(AND($X122<>"",$Y122<>""),Y122-AH122-INDIRECT(ADDRESS(LOOKUP(1E+307,$X$33:$X121,$AD$33:$AD121),25,TRUE),TRUE),AJ123) -> 0 | AM122: 0 | AN122: 0 | AP122: -1 | AQ122: -1 | AR122: -1 | AS122: -1 | AX122: 0 | AY122: 0 | BD122: 0 | BE122: 0 | BF122: 1 | BG122: 0 | BH122: 1 | BM122: =IF(BK122<>"",POWER((SUM($BK$34:BK121))+(BK122/2)-(0.5*SUM($BK$34:$BK$132)),2),0) -> 0 | BN122: =IF(BL122<>"",POWER(0.5*SUM($BL$34:$BL$132)-SUM($BL$34:BL121)-(0.5*BL122),2),0) -> 0
A123: =IF($F123="","",IF($A$1=PGZ,"0",90)) ->  | B123: =IF($F123="","",IF($A$1=PGZ,90,IF(AND($A$1=PGG,T123=1),1,91))) ->  | K123: =IF(AND($X123<>"",$Y123<>""),$X123,IF(Horizontaldistanz="","",IF(OR($A$1=PGG,$A$1=LXE),($K122+dY-Fehler_Y),IF(OR($A$1=PGO,$A$1=LNE),($K122+dY),IF($A$1=PGZ,(Horizontaldistanz*SIN(Richtung*Winkelmaß_Hz)+LOOKUP(1E+307,$X$33:$X122,$X$33:$X122)),"Err"))))) ->  | L123: =IF(AND($X123<>"",$Y123<>""),$Y123,IF(Horizontaldistanz="","",IF(OR($A$1=PGG,$A$1=LXE),($L122+dX-Fehler_X),IF(OR($A$1=PGO,$A$1=LNE),($L122+dX),IF($A$1=PGZ,(Horizontaldistanz*COS(Richtung*Winkelmaß_Hz)+LOOKUP(1E+307,$Y$33:$Y122,$Y$33:$Y122)),"Err"))))) ->  | M123: 0 | N123: -1 | O123: -1 | R123: 0 | S123: 91 | T123: =IF($F123="","",IF($A$1=PGZ,"0",88)) ->  | U123: =IF($F123="","",IF($A$1=PGZ,88,IF(AND($A$1=PGG,AM123=1),1,89))) ->  | V123: =IF($F123="","",IF($A$1=PGZ,"0",90)) ->  | W123: =IF($F123="","",IF($A$1=PGZ,90,IF(AND($A$1=PGG,AO123=1),1,91))) ->  | AC123: 0 | AD123: =ROW() -> 123 | AF123: =IF(AND($X123<>"",$Y123<>""),SUM(INDIRECT(ADDRESS(LOOKUP(1E+307,$Y$33:$Y122,$AD$33:$AD122)+1,31,TRUE),TRUE):AE123),AF124) -> 0 | AG123: =IF(AND($X123<>"",$Y123<>""),SUM(INDIRECT(ADDRESS(LOOKUP(1E+307,$X$33:$X122,$AD$33:$AD122)+1,7,TRUE),TRUE):G123),AG124) -> 0 | AH123: =IF(AND($X123<>"",$Y123<>""),SUM(INDIRECT(ADDRESS(LOOKUP(1E+307,$Y$33:$Y122,$AD$33:$AD122)+1,8,TRUE),TRUE):H123),AH124) -> 0 | AI123: =IF(AND($X123<>"",$Y123<>""),X123-AG123-INDIRECT(ADDRESS(LOOKUP(1E+307,$X$33:$X122,$AD$33:$AD122),24,TRUE),TRUE),AI124) -> 0 | AJ123: =IF(AND($X123<>"",$Y123<>""),Y123-AH123-INDIRECT(ADDRESS(LOOKUP(1E+307,$X$33:$X122,$AD$33:$AD122),25,TRUE),TRUE),AJ124) -> 0 | AM123: 0 | AN123: 0 | AP123: -1 | AQ123: -1 | AR123: -1 | AS123: -1 | AX123: 0 | AY123: 0 | BD123: 0 | BE123: 0 | BF123: 1 | BG123: 0 | BH123: 1 | BM123: =IF(BK123<>"",POWER((SUM($BK$34:BK122))+(BK123/2)-(0.5*SUM($BK$34:$BK$132)),2),0) -> 0 | BN123: =IF(BL123<>"",POWER(0.5*SUM($BL$34:$BL$132)-SUM($BL$34:BL122)-(0.5*BL123),2),0) -> 0
A124: =IF($F124="","",IF($A$1=PGZ,"0",91)) ->  | B124: =IF($F124="","",IF($A$1=PGZ,91,IF(AND($A$1=PGG,T124=1),1,92))) ->  | K124: =IF(AND($X124<>"",$Y124<>""),$X124,IF(Horizontaldistanz="","",IF(OR($A$1=PGG,$A$1=LXE),($K123+dY-Fehler_Y),IF(OR($A$1=PGO,$A$1=LNE),($K123+dY),IF($A$1=PGZ,(Horizontaldistanz*SIN(Richtung*Winkelmaß_Hz)+LOOKUP(1E+307,$X$33:$X123,$X$33:$X123)),"Err"))))) ->  | L124: =IF(AND($X124<>"",$Y124<>""),$Y124,IF(Horizontaldistanz="","",IF(OR($A$1=PGG,$A$1=LXE),($L123+dX-Fehler_X),IF(OR($A$1=PGO,$A$1=LNE),($L123+dX),IF($A$1=PGZ,(Horizontaldistanz*COS(Richtung*Winkelmaß_Hz)+LOOKUP(1E+307,$Y$33:$Y123,$Y$33:$Y123)),"Err"))))) ->  | M124: 0 | N124: -1 | O124: -1 | R124: 0 | S124: 92 | T124: =IF($F124="","",IF($A$1=PGZ,"0",89)) ->  | U124: =IF($F124="","",IF($A$1=PGZ,89,IF(AND($A$1=PGG,AM124=1),1,90))) ->  | V124: =IF($F124="","",IF($A$1=PGZ,"0",91)) ->  | W124: =IF($F124="","",IF($A$1=PGZ,91,IF(AND($A$1=PGG,AO124=1),1,92))) ->  | AC124: 0 | AD124: =ROW() -> 124 | AF124: =IF(AND($X124<>"",$Y124<>""),SUM(INDIRECT(ADDRESS(LOOKUP(1E+307,$Y$33:$Y123,$AD$33:$AD123)+1,31,TRUE),TRUE):AE124),AF125) -> 0 | AG124: =IF(AND($X124<>"",$Y124<>""),SUM(INDIRECT(ADDRESS(LOOKUP(1E+307,$X$33:$X123,$AD$33:$AD123)+1,7,TRUE),TRUE):G124),AG125) -> 0 | AH124: =IF(AND($X124<>"",$Y124<>""),SUM(INDIRECT(ADDRESS(LOOKUP(1E+307,$Y$33:$Y123,$AD$33:$AD123)+1,8,TRUE),TRUE):H124),AH125) -> 0 | AI124: =IF(AND($X124<>"",$Y124<>""),X124-AG124-INDIRECT(ADDRESS(LOOKUP(1E+307,$X$33:$X123,$AD$33:$AD123),24,TRUE),TRUE),AI125) -> 0 | AJ124: =IF(AND($X124<>"",$Y124<>""),Y124-AH124-INDIRECT(ADDRESS(LOOKUP(1E+307,$X$33:$X123,$AD$33:$AD123),25,TRUE),TRUE),AJ125) -> 0 | AM124: 0 | AN124: 0 | AP124: -1 | AQ124: -1 | AR124: -1 | AS124: -1 | AX124: 0 | AY124: 0 | BD124: 0 | BE124: 0 | BF124: 1 | BG124: 0 | BH124: 1 | BM124: =IF(BK124<>"",POWER((SUM($BK$34:BK123))+(BK124/2)-(0.5*SUM($BK$34:$BK$132)),2),0) -> 0 | BN124: =IF(BL124<>"",POWER(0.5*SUM($BL$34:$BL$132)-SUM($BL$34:BL123)-(0.5*BL124),2),0) -> 0
A125: =IF($F125="","",IF($A$1=PGZ,"0",92)) ->  | B125: =IF($F125="","",IF($A$1=PGZ,92,IF(AND($A$1=PGG,T125=1),1,93))) ->  | K125: =IF(AND($X125<>"",$Y125<>""),$X125,IF(Horizontaldistanz="","",IF(OR($A$1=PGG,$A$1=LXE),($K124+dY-Fehler_Y),IF(OR($A$1=PGO,$A$1=LNE),($K124+dY),IF($A$1=PGZ,(Horizontaldistanz*SIN(Richtung*Winkelmaß_Hz)+LOOKUP(1E+307,$X$33:$X124,$X$33:$X124)),"Err"))))) ->  | L125: =IF(AND($X125<>"",$Y125<>""),$Y125,IF(Horizontaldistanz="","",IF(OR($A$1=PGG,$A$1=LXE),($L124+dX-Fehler_X),IF(OR($A$1=PGO,$A$1=LNE),($L124+dX),IF($A$1=PGZ,(Horizontaldistanz*COS(Richtung*Winkelmaß_Hz)+LOOKUP(1E+307,$Y$33:$Y124,$Y$33:$Y124)),"Err"))))) ->  | M125: 0 | N125: -1 | O125: -1 | R125: 0 | S125: 93 | T125: =IF($F125="","",IF($A$1=PGZ,"0",90)) ->  | U125: =IF($F125="","",IF($A$1=PGZ,90,IF(AND($A$1=PGG,AM125=1),1,91))) ->  | V125: =IF($F125="","",IF($A$1=PGZ,"0",92)) ->  | W125: =IF($F125="","",IF($A$1=PGZ,92,IF(AND($A$1=PGG,AO125=1),1,93))) ->  | AC125: 0 | AD125: =ROW() -> 125 | AF125: =IF(AND($X125<>"",$Y125<>""),SUM(INDIRECT(ADDRESS(LOOKUP(1E+307,$Y$33:$Y124,$AD$33:$AD124)+1,31,TRUE),TRUE):AE125),AF126) -> 0 | AG125: =IF(AND($X125<>"",$Y125<>""),SUM(INDIRECT(ADDRESS(LOOKUP(1E+307,$X$33:$X124,$AD$33:$AD124)+1,7,TRUE),TRUE):G125),AG126) -> 0 | AH125: =IF(AND($X125<>"",$Y125<>""),SUM(INDIRECT(ADDRESS(LOOKUP(1E+307,$Y$33:$Y124,$AD$33:$AD124)+1,8,TRUE),TRUE):H125),AH126) -> 0 | AI125: =IF(AND($X125<>"",$Y125<>""),X125-AG125-INDIRECT(ADDRESS(LOOKUP(1E+307,$X$33:$X124,$AD$33:$AD124),24,TRUE),TRUE),AI126) -> 0 | AJ125: =IF(AND($X125<>"",$Y125<>""),Y125-AH125-INDIRECT(ADDRESS(LOOKUP(1E+307,$X$33:$X124,$AD$33:$AD124),25,TRUE),TRUE),AJ126) -> 0 | AM125: 0 | AN125: 0 | AP125: -1 | AQ125: -1 | AR125: -1 | AS125: -1 | AX125: 0 | AY125: 0 | BD125: 0 | BE125: 0 | BF125: 1 | BG125: 0 | BH125: 1 | BM125: =IF(BK125<>"",POWER((SUM($BK$34:BK124))+(BK125/2)-(0.5*SUM($BK$34:$BK$132)),2),0) -> 0 | BN125: =IF(BL125<>"",POWER(0.5*SUM($BL$34:$BL$132)-SUM($BL$34:BL124)-(0.5*BL125),2),0) -> 0
A126: =IF($F126="","",IF($A$1=PGZ,"0",93)) ->  | B126: =IF($F126="","",IF($A$1=PGZ,93,IF(AND($A$1=PGG,T126=1),1,94))) ->  | K126: =IF(AND($X126<>"",$Y126<>""),$X126,IF(Horizontaldistanz="","",IF(OR($A$1=PGG,$A$1=LXE),($K125+dY-Fehler_Y),IF(OR($A$1=PGO,$A$1=LNE),($K125+dY),IF($A$1=PGZ,(Horizontaldistanz*SIN(Richtung*Winkelmaß_Hz)+LOOKUP(1E+307,$X$33:$X125,$X$33:$X125)),"Err"))))) ->  | L126: =IF(AND($X126<>"",$Y126<>""),$Y126,IF(Horizontaldistanz="","",IF(OR($A$1=PGG,$A$1=LXE),($L125+dX-Fehler_X),IF(OR($A$1=PGO,$A$1=LNE),($L125+dX),IF($A$1=PGZ,(Horizontaldistanz*COS(Richtung*Winkelmaß_Hz)+LOOKUP(1E+307,$Y$33:$Y125,$Y$33:$Y125)),"Err"))))) ->  | M126: 0 | N126: -1 | O126: -1 | P126: Berechnung Schlussvektor | R126: 0 | S126: 94 | T126: =IF($F126="","",IF($A$1=PGZ,"0",91)) ->  | U126: =IF($F126="","",IF($A$1=PGZ,91,IF(AND($A$1=PGG,AM126=1),1,92))) ->  | V126: =IF($F126="","",IF($A$1=PGZ,"0",93)) ->  | W126: =IF($F126="","",IF($A$1=PGZ,93,IF(AND($A$1=PGG,AO126=1),1,94))) ->  | AC126: 0 | AD126: =ROW() -> 126 | AF126: =IF(AND($X126<>"",$Y126<>""),SUM(INDIRECT(ADDRESS(LOOKUP(1E+307,$Y$33:$Y125,$AD$33:$AD125)+1,31,TRUE),TRUE):AE126),AF127) -> 0 | AG126: =IF(AND($X126<>"",$Y126<>""),SUM(INDIRECT(ADDRESS(LOOKUP(1E+307,$X$33:$X125,$AD$33:$AD125)+1,7,TRUE),TRUE):G126),AG127) -> 0 | AH126: =IF(AND($X126<>"",$Y126<>""),SUM(INDIRECT(ADDRESS(LOOKUP(1E+307,$Y$33:$Y125,$AD$33:$AD125)+1,8,TRUE),TRUE):H126),AH127) -> 0 | AI126: =IF(AND($X126<>"",$Y126<>""),X126-AG126-INDIRECT(ADDRESS(LOOKUP(1E+307,$X$33:$X125,$AD$33:$AD125),24,TRUE),TRUE),AI127) -> 0 | AJ126: =IF(AND($X126<>"",$Y126<>""),Y126-AH126-INDIRECT(ADDRESS(LOOKUP(1E+307,$X$33:$X125,$AD$33:$AD125),25,TRUE),TRUE),AJ127) -> 0 | AM126: 0 | AN126: 0 | AP126: -1 | AQ126: -1 | AR126: -1 | AS126: -1 | AX126: 0 | AY126: 0 | BD126: 0 | BE126: 0 | BF126: 1 | BG126: 0 | BH126: 1 | BM126: =IF(BK126<>"",POWER((SUM($BK$34:BK125))+(BK126/2)-(0.5*SUM($BK$34:$BK$132)),2),0) -> 0 | BN126: =IF(BL126<>"",POWER(0.5*SUM($BL$34:$BL$132)-SUM($BL$34:BL125)-(0.5*BL126),2),0) -> 0
A127: =IF($F127="","",IF($A$1=PGZ,"0",94)) ->  | B127: =IF($F127="","",IF($A$1=PGZ,94,IF(AND($A$1=PGG,T127=1),1,95))) ->  | K127: =IF(AND($X127<>"",$Y127<>""),$X127,IF(Horizontaldistanz="","",IF(OR($A$1=PGG,$A$1=LXE),($K126+dY-Fehler_Y),IF(OR($A$1=PGO,$A$1=LNE),($K126+dY),IF($A$1=PGZ,(Horizontaldistanz*SIN(Richtung*Winkelmaß_Hz)+LOOKUP(1E+307,$X$33:$X126,$X$33:$X126)),"Err"))))) ->  | L127: =IF(AND($X127<>"",$Y127<>""),$Y127,IF(Horizontaldistanz="","",IF(OR($A$1=PGG,$A$1=LXE),($L126+dX-Fehler_X),IF(OR($A$1=PGO,$A$1=LNE),($L126+dX),IF($A$1=PGZ,(Horizontaldistanz*COS(Richtung*Winkelmaß_Hz)+LOOKUP(1E+307,$Y$33:$Y126,$Y$33:$Y126)),"Err"))))) ->  | M127: 0 | N127: -1 | O127: -1 | P127: Bedingungen | Q127: =IF(AND($A$1=PGO,$F$35<>""),Q128,"") ->  | R127: 0 | S127: 95 | T127: =IF($F127="","",IF($A$1=PGZ,"0",92)) ->  | U127: =IF($F127="","",IF($A$1=PGZ,92,IF(AND($A$1=PGG,AM127=1),1,93))) ->  | V127: =IF($F127="","",IF($A$1=PGZ,"0",94)) ->  | W127: =IF($F127="","",IF($A$1=PGZ,94,IF(AND($A$1=PGG,AO127=1),1,95))) ->  | AC127: 0 | AD127: =ROW() -> 127 | AF127: =IF(AND($X127<>"",$Y127<>""),SUM(INDIRECT(ADDRESS(LOOKUP(1E+307,$Y$33:$Y126,$AD$33:$AD126)+1,31,TRUE),TRUE):AE127),AF128) -> 0 | AG127: =IF(AND($X127<>"",$Y127<>""),SUM(INDIRECT(ADDRESS(LOOKUP(1E+307,$X$33:$X126,$AD$33:$AD126)+1,7,TRUE),TRUE):G127),AG128) -> 0 | AH127: =IF(AND($X127<>"",$Y127<>""),SUM(INDIRECT(ADDRESS(LOOKUP(1E+307,$Y$33:$Y126,$AD$33:$AD126)+1,8,TRUE),TRUE):H127),AH128) -> 0 | AI127: =IF(AND($X127<>"",$Y127<>""),X127-AG127-INDIRECT(ADDRESS(LOOKUP(1E+307,$X$33:$X126,$AD$33:$AD126),24,TRUE),TRUE),AI128) -> 0 | AJ127: =IF(AND($X127<>"",$Y127<>""),Y127-AH127-INDIRECT(ADDRESS(LOOKUP(1E+307,$X$33:$X126,$AD$33:$AD126),25,TRUE),TRUE),AJ128) -> 0 | AM127: 0 | AN127: 0 | AP127: -1 | AQ127: -1 | AR127: -1 | AS127: -1 | AX127: 0 | AY127: 0 | BD127: 0 | BE127: 0 | BF127: 1 | BG127: 0 | BH127: 1 | BM127: =IF(BK127<>"",POWER((SUM($BK$34:BK126))+(BK127/2)-(0.5*SUM($BK$34:$BK$132)),2),0) -> 0 | BN127: =IF(BL127<>"",POWER(0.5*SUM($BL$34:$BL$132)-SUM($BL$34:BL126)-(0.5*BL127),2),0) -> 0
A128: =IF($F128="","",IF($A$1=PGZ,"0",95)) ->  | B128: =IF($F128="","",IF($A$1=PGZ,95,IF(AND($A$1=PGG,T128=1),1,96))) ->  | K128: =IF(AND($X128<>"",$Y128<>""),$X128,IF(Horizontaldistanz="","",IF(OR($A$1=PGG,$A$1=LXE),($K127+dY-Fehler_Y),IF(OR($A$1=PGO,$A$1=LNE),($K127+dY),IF($A$1=PGZ,(Horizontaldistanz*SIN(Richtung*Winkelmaß_Hz)+LOOKUP(1E+307,$X$33:$X127,$X$33:$X127)),"Err"))))) ->  | L128: =IF(AND($X128<>"",$Y128<>""),$Y128,IF(Horizontaldistanz="","",IF(OR($A$1=PGG,$A$1=LXE),($L127+dX-Fehler_X),IF(OR($A$1=PGO,$A$1=LNE),($L127+dX),IF($A$1=PGZ,(Horizontaldistanz*COS(Richtung*Winkelmaß_Hz)+LOOKUP(1E+307,$Y$33:$Y127,$Y$33:$Y127)),"Err"))))) ->  | M128: 0 | N128: -1 | O128: -1 | P128: div/0 fuern identische Nullpunkte ausschließen | Q128: =IF(AND($Y$33-LOOKUP(1,$S$35:$S$132,$L$35:$L$132)=0,$X$33-LOOKUP(1,$S$35:$S$132,$K$35:$K$132)=0),0,Q129) ->  | R128: 0 | S128: 96 | T128: =IF($F128="","",IF($A$1=PGZ,"0",93)) ->  | U128: =IF($F128="","",IF($A$1=PGZ,93,IF(AND($A$1=PGG,AM128=1),1,94))) ->  | V128: =IF($F128="","",IF($A$1=PGZ,"0",95)) ->  | W128: =IF($F128="","",IF($A$1=PGZ,95,IF(AND($A$1=PGG,AO128=1),1,96))) ->  | AC128: 0 | AD128: =ROW() -> 128 | AF128: =IF(AND($X128<>"",$Y128<>""),SUM(INDIRECT(ADDRESS(LOOKUP(1E+307,$Y$33:$Y127,$AD$33:$AD127)+1,31,TRUE),TRUE):AE128),AF129) -> 0 | AG128: =IF(AND($X128<>"",$Y128<>""),SUM(INDIRECT(ADDRESS(LOOKUP(1E+307,$X$33:$X127,$AD$33:$AD127)+1,7,TRUE),TRUE):G128),AG129) -> 0 | AH128: =IF(AND($X128<>"",$Y128<>""),SUM(INDIRECT(ADDRESS(LOOKUP(1E+307,$Y$33:$Y127,$AD$33:$AD127)+1,8,TRUE),TRUE):H128),AH129) -> 0 | AI128: =IF(AND($X128<>"",$Y128<>""),X128-AG128-INDIRECT(ADDRESS(LOOKUP(1E+307,$X$33:$X127,$AD$33:$AD127),24,TRUE),TRUE),AI129) -> 0 | AJ128: =IF(AND($X128<>"",$Y128<>""),Y128-AH128-INDIRECT(ADDRESS(LOOKUP(1E+307,$X$33:$X127,$AD$33:$AD127),25,TRUE),TRUE),AJ129) -> 0 | AM128: 0 | AN128: 0 | AP128: -1 | AQ128: -1 | AR128: -1 | AS128: -1 | AX128: 0 | AY128: 0 | BD128: 0 | BE128: 0 | BF128: 1 | BG128: 0 | BH128: 1 | BM128: =IF(BK128<>"",POWER((SUM($BK$34:BK127))+(BK128/2)-(0.5*SUM($BK$34:$BK$132)),2),0) -> 0 | BN128: =IF(BL128<>"",POWER(0.5*SUM($BL$34:$BL$132)-SUM($BL$34:BL127)-(0.5*BL128),2),0) -> 0
A129: =IF($F129="","",IF($A$1=PGZ,"0",96)) ->  | B129: =IF($F129="","",IF($A$1=PGZ,96,IF(AND($A$1=PGG,T129=1),1,97))) ->  | K129: =IF(AND($X129<>"",$Y129<>""),$X129,IF(Horizontaldistanz="","",IF(OR($A$1=PGG,$A$1=LXE),($K128+dY-Fehler_Y),IF(OR($A$1=PGO,$A$1=LNE),($K128+dY),IF($A$1=PGZ,(Horizontaldistanz*SIN(Richtung*Winkelmaß_Hz)+LOOKUP(1E+307,$X$33:$X128,$X$33:$X128)),"Err"))))) ->  | L129: =IF(AND($X129<>"",$Y129<>""),$Y129,IF(Horizontaldistanz="","",IF(OR($A$1=PGG,$A$1=LXE),($L128+dX-Fehler_X),IF(OR($A$1=PGO,$A$1=LNE),($L128+dX),IF($A$1=PGZ,(Horizontaldistanz*COS(Richtung*Winkelmaß_Hz)+LOOKUP(1E+307,$Y$33:$Y128,$Y$33:$Y128)),"Err"))))) ->  | M129: 0 | N129: -1 | O129: -1 | P129: neg Grad | Q129: =IF(AND(($Q$131)<0,Winkelmaß_Richtung=Grad),360+$Q$131,$Q$130) ->  | R129: 0 | S129: 97 | T129: =IF($F129="","",IF($A$1=PGZ,"0",94)) ->  | U129: =IF($F129="","",IF($A$1=PGZ,94,IF(AND($A$1=PGG,AM129=1),1,95))) ->  | V129: =IF($F129="","",IF($A$1=PGZ,"0",96)) ->  | W129: =IF($F129="","",IF($A$1=PGZ,96,IF(AND($A$1=PGG,AO129=1),1,97))) ->  | AC129: 0 | AD129: =ROW() -> 129 | AF129: =IF(AND($X129<>"",$Y129<>""),SUM(INDIRECT(ADDRESS(LOOKUP(1E+307,$Y$33:$Y128,$AD$33:$AD128)+1,31,TRUE),TRUE):AE129),AF130) -> 0 | AG129: =IF(AND($X129<>"",$Y129<>""),SUM(INDIRECT(ADDRESS(LOOKUP(1E+307,$X$33:$X128,$AD$33:$AD128)+1,7,TRUE),TRUE):G129),AG130) -> 0 | AH129: =IF(AND($X129<>"",$Y129<>""),SUM(INDIRECT(ADDRESS(LOOKUP(1E+307,$Y$33:$Y128,$AD$33:$AD128)+1,8,TRUE),TRUE):H129),AH130) -> 0 | AI129: =IF(AND($X129<>"",$Y129<>""),X129-AG129-INDIRECT(ADDRESS(LOOKUP(1E+307,$X$33:$X128,$AD$33:$AD128),24,TRUE),TRUE),AI130) -> 0 | AJ129: =IF(AND($X129<>"",$Y129<>""),Y129-AH129-INDIRECT(ADDRESS(LOOKUP(1E+307,$X$33:$X128,$AD$33:$AD128),25,TRUE),TRUE),AJ130) -> 0 | AM129: 0 | AN129: 0 | AP129: -1 | AQ129: -1 | AR129: -1 | AS129: -1 | AX129: 0 | AY129: 0 | BD129: 0 | BE129: 0 | BF129: 1 | BG129: 0 | BH129: 1 | BM129: =IF(BK129<>"",POWER((SUM($BK$34:BK128))+(BK129/2)-(0.5*SUM($BK$34:$BK$132)),2),0) -> 0 | BN129: =IF(BL129<>"",POWER(0.5*SUM($BL$34:$BL$132)-SUM($BL$34:BL128)-(0.5*BL129),2),0) -> 0
K130: =IF(AND($X130<>"",$Y130<>""),$X130,IF(Horizontaldistanz="","",IF(OR($A$1=PGG,$A$1=LXE),($K129+dY-Fehler_Y),IF(OR($A$1=PGO,$A$1=LNE),($K129+dY),IF($A$1=PGZ,(Horizontaldistanz*SIN(Richtung*Winkelmaß_Hz)+LOOKUP(1E+307,$X$33:$X129,$X$33:$X129)),"Err"))))) ->  | L130: =IF(AND($X130<>"",$Y130<>""),$Y130,IF(Horizontaldistanz="","",IF(OR($A$1=PGG,$A$1=LXE),($L129+dX-Fehler_X),IF(OR($A$1=PGO,$A$1=LNE),($L129+dX),IF($A$1=PGZ,(Horizontaldistanz*COS(Richtung*Winkelmaß_Hz)+LOOKUP(1E+307,$Y$33:$Y129,$Y$33:$Y129)),"Err"))))) ->  | M130: 0 | N130: -1 | O130: -1 | P130: neg Gon | Q130: =IF(AND(($Q$131)<0,Winkelmaß_Richtung=Gon),400+$Q$131, $Q$131) ->  | R130: 0 | S130: 98 | T130: =IF($F130="","",IF($A$1=PGZ,"0",95)) ->  | U130: =IF($F130="","",IF($A$1=PGZ,95,IF(AND($A$1=PGG,AM130=1),1,96))) ->  | AC130: 0 | AD130: =ROW() -> 130 | AF130: =IF(AND($X130<>"",$Y130<>""),SUM(INDIRECT(ADDRESS(LOOKUP(1E+307,$Y$33:$Y129,$AD$33:$AD129)+1,31,TRUE),TRUE):AE130),AF131) -> 0 | AG130: =IF(AND($X130<>"",$Y130<>""),SUM(INDIRECT(ADDRESS(LOOKUP(1E+307,$X$33:$X129,$AD$33:$AD129)+1,7,TRUE),TRUE):G130),AG131) -> 0 | AH130: =IF(AND($X130<>"",$Y130<>""),SUM(INDIRECT(ADDRESS(LOOKUP(1E+307,$Y$33:$Y129,$AD$33:$AD129)+1,8,TRUE),TRUE):H130),AH131) -> 0 | AI130: =IF(AND($X130<>"",$Y130<>""),X130-AG130-INDIRECT(ADDRESS(LOOKUP(1E+307,$X$33:$X129,$AD$33:$AD129),24,TRUE),TRUE),AI131) -> 0 | AJ130: =IF(AND($X130<>"",$Y130<>""),Y130-AH130-INDIRECT(ADDRESS(LOOKUP(1E+307,$X$33:$X129,$AD$33:$AD129),25,TRUE),TRUE),AJ131) -> 0 | AM130: 0 | AN130: 0 | AP130: -1 | AQ130: -1 | AR130: -1 | AS130: -1 | AX130: 0 | AY130: 0 | BD130: 0 | BE130: 0 | BF130: 1 | BG130: 0 | BH130: 1 | BM130: =IF(BK130<>"",POWER((SUM($BK$34:BK129))+(BK130/2)-(0.5*SUM($BK$34:$BK$132)),2),0) -> 0 | BN130: =IF(BL130<>"",POWER(0.5*SUM($BL$34:$BL$132)-SUM($BL$34:BL129)-(0.5*BL130),2),0) -> 0
K131: =IF(AND($X131<>"",$Y131<>""),$X131,IF(Horizontaldistanz="","",IF(OR($A$1=PGG,$A$1=LXE),($K130+dY-Fehler_Y),IF(OR($A$1=PGO,$A$1=LNE),($K130+dY),IF($A$1=PGZ,(Horizontaldistanz*SIN(Richtung*Winkelmaß_Hz)+LOOKUP(1E+307,$X$33:$X130,$X$33:$X130)),"Err"))))) ->  | L131: =IF(AND($X131<>"",$Y131<>""),$Y131,IF(Horizontaldistanz="","",IF(OR($A$1=PGG,$A$1=LXE),($L130+dX-Fehler_X),IF(OR($A$1=PGO,$A$1=LNE),($L130+dX),IF($A$1=PGZ,(Horizontaldistanz*COS(Richtung*Winkelmaß_Hz)+LOOKUP(1E+307,$Y$33:$Y130,$Y$33:$Y130)),"Err"))))) ->  | M131: =IF(Ost="",0,K130*L131-L130*K131) -> 0 | N131: -1 | O131: -1 | P131: positiv | Q131: =ATAN2($Y$33-LOOKUP(1,$S$35:$S$132,$L$35:$L$132),$X$33-LOOKUP(1,$S$35:$S$132,$K$35:$K$132))*1/Winkelmaß_Hz ->  | R131: 0 | S131: 99 | T131: =IF($F131="","",IF($A$1=PGZ,"0",96)) ->  | U131: =IF($F131="","",IF($A$1=PGZ,96,IF(AND($A$1=PGG,AM131=1),1,97))) ->  | AC131: =IF(Ost="",0,AA130*AB131-AB130*AA131) -> 0 | AD131: =ROW() -> 131 | AF131: =IF(AND($X131<>"",$Y131<>""),SUM(INDIRECT(ADDRESS(LOOKUP(1E+307,$Y$33:$Y130,$AD$33:$AD130)+1,31,TRUE),TRUE):AE131),AF132) -> 0 | AG131: =IF(AND($X131<>"",$Y131<>""),SUM(INDIRECT(ADDRESS(LOOKUP(1E+307,$X$33:$X130,$AD$33:$AD130)+1,7,TRUE),TRUE):G131),AG132) -> 0 | AH131: =IF(AND($X131<>"",$Y131<>""),SUM(INDIRECT(ADDRESS(LOOKUP(1E+307,$Y$33:$Y130,$AD$33:$AD130)+1,8,TRUE),TRUE):H131),AH132) -> 0 | AI131: =IF(AND($X131<>"",$Y131<>""),X131-AG131-INDIRECT(ADDRESS(LOOKUP(1E+307,$X$33:$X130,$AD$33:$AD130),24,TRUE),TRUE),AI132) -> 0 | AJ131: =IF(AND($X131<>"",$Y131<>""),Y131-AH131-INDIRECT(ADDRESS(LOOKUP(1E+307,$X$33:$X130,$AD$33:$AD130),25,TRUE),TRUE),AJ132) -> 0 | AM131: 0 | AN131: 0 | AP131: -1 | AQ131: -1 | AR131: -1 | AS131: -1 | AX131: 0 | AY131: 0 | BD131: 0 | BE131: 0 | BF131: 1 | BG131: 0 | BH131: 1 | BM131: =IF(BK131<>"",POWER((SUM($BK$34:BK130))+(BK131/2)-(0.5*SUM($BK$34:$BK$132)),2),0) -> 0 | BN131: =IF(BL131<>"",POWER(0.5*SUM($BL$34:$BL$132)-SUM($BL$34:BL130)-(0.5*BL131),2),0) -> 0
K132: =IF(AND($X132<>"",$Y132<>""),$X132,IF(Horizontaldistanz="","",IF(OR($A$1=PGG,$A$1=LXE),($K131+dY-Fehler_Y),IF(OR($A$1=PGO,$A$1=LNE),($K131+dY),IF($A$1=PGZ,(Horizontaldistanz*SIN(Richtung*Winkelmaß_Hz)+LOOKUP(1E+307,$X$33:$X131,$X$33:$X131)),"Err"))))) ->  | L132: =IF(AND($X132<>"",$Y132<>""),$Y132,IF(Horizontaldistanz="","",IF(OR($A$1=PGG,$A$1=LXE),($L131+dX-Fehler_X),IF(OR($A$1=PGO,$A$1=LNE),($L131+dX),IF($A$1=PGZ,(Horizontaldistanz*COS(Richtung*Winkelmaß_Hz)+LOOKUP(1E+307,$Y$33:$Y131,$Y$33:$Y131)),"Err"))))) ->  | M132: =IF(Ost="",0,K131*L132-L131*K132) -> 0 | N132: -1 | O132: -1 | R132: 0 | S132: =S131+1 -> 100 | AC132: =IF(Ost="",0,AA131*AB132-AB131*AA132) -> 0 | AD132: =ROW() -> 132 | AF132: =IF(AND($X132<>"",$Y132<>""),SUM(INDIRECT(ADDRESS(LOOKUP(1E+307,$Y$33:$Y131,$AD$33:$AD131)+1,31,TRUE),TRUE):AE132),AF133) -> 0 | AG132: =IF(AND($X132<>"",$Y132<>""),SUM(INDIRECT(ADDRESS(LOOKUP(1E+307,$X$33:$X131,$AD$33:$AD131)+1,7,TRUE),TRUE):G132),AG133) -> 0 | AH132: =IF(AND($X132<>"",$Y132<>""),SUM(INDIRECT(ADDRESS(LOOKUP(1E+307,$Y$33:$Y131,$AD$33:$AD131)+1,8,TRUE),TRUE):H132),AH133) -> 0 | AI132: =IF(AND($X132<>"",$Y132<>""),X132-AG132-INDIRECT(ADDRESS(LOOKUP(1E+307,$X$33:$X131,$AD$33:$AD131),24,TRUE),TRUE),AI133) -> 0 | AJ132: =IF(AND($X132<>"",$Y132<>""),Y132-AH132-INDIRECT(ADDRESS(LOOKUP(1E+307,$X$33:$X131,$AD$33:$AD131),25,TRUE),TRUE),AJ133) -> 0 | AM132: 0 | AN132: 0 | AP132: -1 | AQ132: -1 | AR132: -1 | AS132: -1 | AX132: 0 | AY132: 0 | BD132: 0 | BE132: 0 | BF132: 1 | BG132: 0 | BH132: 1 | BM132: =IF(BK132<>"",POWER((SUM($BK$34:BK131))+(BK132/2)-(0.5*SUM($BK$34:$BK$132)),2),0) -> 0 | BN132: =IF(BL132<>"",POWER(0.5*SUM($BL$34:$BL$132)-SUM($BL$34:BL131)-(0.5*BL132),2),0) -> 0
C133: =IF(AND($A$1=PGO,$P$70="normal"),Q127,"") ->  | D133: =IF(AND($A$1=PGO,$P$70="normal"),(IF($F$35="","",SQRT(POWER($Y$33- LOOKUP(1,$S$35:$S$132,$L$35:$L$132),2)+POWER($X$33- LOOKUP(1,$S$35:$S$132,$K$35:$K$132),2)))),"") ->  | F133: =IF($D$133="","",IF(OR(Winkelmaß_Neigung=Prozent,Winkelmaß_Neigung=PRZ),Strecke*COS(ATAN(Neigung/100)),Strecke*COS((Neigung+Neigung_a_oder_z)*Winkelmaß_Vt))) ->  | K133: =IF(AND($X133<>"",$Y133<>""),$X133,IF(AND($F$133<>"",$A$1=PGO),(LOOKUP(1,$S$35:$S$132,$K$35:$K$132)+dY),"")) ->  | L133: =IF(AND($X133<>"",$Y133<>""),$Y133,IF(AND($F$133<>"",$A$1=PGO),(LOOKUP(1,$S$35:$S$132,$L$35:$L$132)+dX),"")) ->  | M133: =IF(AND($A$1=PGO,$F$35<>""),LOOKUP(1,$S$35:$S$132,$K$35:$K$132)*$L$133-LOOKUP(1,$S$35:$S$132,$L$35:$L$132)*$K$133,0) -> 0 | N133: -1 | O133: -1 | R133: =IF(AND($A$1=PGO,$F$36<>""),SQRT(POWER($K133-LOOKUP(1,$S$35:$S$132,$K$35:$K$132),2)+POWER($L133-LOOKUP(1,$S$35:$S$132,$L$35:$L$132),2)),0) -> 0 | S133: =S132+1 -> 101 | AA133: =IF($F$35 ="","",$X$33) ->  | AB133: =IF($F$35 ="","",$Y$33) ->  | AC133: =IF($F$35="",0,LOOKUP(1,$S$35:$S$132,$AA$35:$AA$132)*AB133-LOOKUP(1,$S$35:$S$132,$AB$35:$AB$132)*AA133) -> 0 | AF133: =IF(AND($X133<>"",$Y133<>""),SUM(INDIRECT(ADDRESS(LOOKUP(1E+307,$Y$33:$Y132,$AD$33:$AD132)+1,31,TRUE),TRUE):AE133),AF134) -> 0 | AG133: 0 | AH133: 0 | AI133: 0 | AJ133: 0 | AU133: =SQRT(POWER($K134-LOOKUP(1,$S$35:$S$132,$K$35:$K$132),2)+POWER($L134-LOOKUP(1,$S$35:$S$132,$L$35:$L$132),2)) ->  | BL133: =L133 -> 
K134: =IF($F$36 ="","", $K$34) ->  | L134: =IF($F$36 = "","", $L$34) ->  | M134: =IF(OR(AND($A$1=PGO,$F$35=""), $F$36=""),"",IF($A$1=PGO,$K$133*$L$134-$L$133*$K$134,LOOKUP(1,$S$35:$S$133,$K$35:$K$133)*L134-LOOKUP(1,$S$35:$S$133,$L$35:$L$133)*K134)) ->  | N134: =IF(AND($A$1=PGZ,$P$70="normal"), $N$34,$N$133) -> -1 | O134: =IF(AND($A$1=PGZ,$P$70="normal"), $O$34,$O$133) -> -1 | R134: =IF(AND($A$1<>PGO,$A$1<>LNE,$A$1<>LXE,$F$36<>""),SQRT(POWER($K134-LOOKUP(1,$S$35:$S$132,$K$35:$K$132),2)+POWER($L134-LOOKUP(1,$S$35:$S$132,$L$35:$L$132),2)),0) -> 0 | AA134: =IF($F$35 ="","",$AA$34) ->  | AB134: =IF($F$35 ="","",$AB$34) ->  | AC134: =IF($F$35="",0,AA133*AB134-AB133*AA134) -> 0
N135: =-MIN(Y33,L$34:L$133) -> 0 | O135: =-MIN(X33,K$34:K$133) -> 0
B136: 0.6 | C136: 0.6 | D136: 0.6 | E136: 0.6 | N136: Startpunkt | P136: ="" ->  | V136: ="" ->  | X136: ="" -> 
B137: 0.5 | C137: 0.5 | D137: 0.5 | E137: 0.5 | N137: =IF(OR($F$34<>"",X33<>""), N33,-1) -> -1 | O137: =IF(OR($F$34<>"",Y33<>""), O33,-1) -> -1
B138: 4.5 | C138: 5.75 | D138: 7 | E138: 9.5 | N138: Erster Vektor | X138: ="" -> 
N139: =IF(AND($A$1<>PGZ,K$34 <>""),N33,-1) -> -1 | O139: =IF(AND($A$1<>PGZ,L$34 <>""),O33,-1) -> -1 | P139: ="" ->  | V139: ="" ->  | X139: ="" -> 
N140: =IF(AND($A$1<>PGZ,K$34 <>""),N34,-1) -> -1 | O140: =IF(AND($A$1<>PGZ,L$34 <>""),O34,-1) -> -1
N141: Schlussvektor | O141: offenes Polygon | X141: ="" -> 
N142: =IF(AND($A$1=PGO,$P$70="normal"),N132,-1) -> -1 | O142: =IF(AND($A$1=PGO,$P$70="normal"),O132,-1) -> -1
N143: =IF(AND($A$1=PGO,$P$70="normal"),N133,-1) -> -1 | O143: =IF(AND($A$1=PGO,$P$70="normal"),O133,-1) -> -1

Sheet Polar
A1: Überprüfung der zentralen Aufstellung anhand von Spannmaßen
E2: =IF(Polygon!A1<>PGZ,"Nur für zentrale Aufstellung","") -> Nur für zentrale Aufstellung
A3: =IF(AND(Polygon!$A$1=PGZ,NOT(ISBLANK(Polygon!A3))),Polygon!A3,"") ->  | B3: =IF(AND(Polygon!$A$1=PGZ,NOT(ISBLANK(Polygon!B3))),Polygon!B3,"") -> 
A4: =IF(AND(Polygon!$A$1=PGZ,NOT(ISBLANK(Polygon!A4))),Polygon!A4,"") ->  | B4: =IF(AND(Polygon!$A$1=PGZ,NOT(ISBLANK(Polygon!B4))),Polygon!B4,"") ->  | H4: Mittlerer Fehler: | J4: =IF(AND(SUM(J9:J107)<>0,Polygon!$A$1=PGZ),AVERAGE(J9:J107),"") -> 
A5: =IF(AND(Polygon!$A$1=PGZ,NOT(ISBLANK(Polygon!A5))),Polygon!A5,"") ->  | B5: =IF(AND(Polygon!$A$1=PGZ,NOT(ISBLANK(Polygon!B5))),Polygon!B5,"") -> 
A6: =IF(AND(Polygon!$A$1=PGZ,NOT(ISBLANK(Polygon!A6))),Polygon!A6,"") ->  | B6: =IF(AND(Polygon!$A$1=PGZ,NOT(ISBLANK(Polygon!B6))),Polygon!B6,"") -> 
A7: =IF(AND(Polygon!$A$1=PGZ,NOT(ISBLANK(Polygon!A7))),Polygon!A7,"") ->  | B7: =IF(AND(Polygon!$A$1=PGZ,NOT(ISBLANK(Polygon!B7))),Polygon!B7,"") ->  | E7: Standpunkt | F7: Zielpunkt | G7: Spannmaß | H7: Spannmaß | I7: Differenz | J7: Fehlerprozent
A8: =IF(AND(Polygon!$A$1=PGZ,NOT(ISBLANK(Polygon!A8))),Polygon!A8,"") ->  | B8: =IF(AND(Polygon!$A$1=PGZ,NOT(ISBLANK(Polygon!B8))),Polygon!B8,"") ->  | E8: =IF(AND(Polygon!$A$1=PGZ,NOT(ISBLANK(Polygon!A33))),Polygon!A33,"") ->  | F8: =IF(AND(Polygon!$A$1=PGZ,NOT(ISBLANK(Polygon!B33))),Polygon!B33,"") ->  | G8: berechnet | H8: gemessen
A9: =IF(AND(Polygon!$A$1=PGZ,NOT(ISBLANK(Polygon!A9))),Polygon!A9,"") ->  | B9: =IF(AND(Polygon!$A$1=PGZ,NOT(ISBLANK(Polygon!B9))),Polygon!B9,"") ->  | E9: =IF(AND(Polygon!$A$1=PGZ,NOT(ISBLANK(Polygon!B34))),Polygon!B34,"") ->  | F9: =IF(AND(Polygon!$A$1=PGZ,NOT(ISBLANK(Polygon!B35))),IF(Polygon!$S34=1,$E$9,Polygon!B35),"") ->  | G9: =IF(Polygon!$A$1=PGZ,IF(Polygon!$S34=1,Polygon!$R$134,IF(NOT(Polygon!R35=0),Polygon!R35,"")),"") ->  | I9: =IF(AND($G9<>"",$H9<>""),$G9-$H9,"") ->  | J9: =IF(AND($G9<>"",$H9<>"",$G9<>0),ABS(I9/G9),"") -> 
A10: =IF(AND(Polygon!$A$1=PGZ,NOT(ISBLANK(Polygon!A10))),Polygon!A10,"") ->  | B10: =IF(AND(Polygon!$A$1=PGZ,NOT(ISBLANK(Polygon!B10))),Polygon!B10,"") ->  | E10: =IF(AND(Polygon!$A$1=PGZ,NOT(ISBLANK(Polygon!B35))),Polygon!B35,"") ->  | F10: =IF(AND(Polygon!$A$1=PGZ,NOT(ISBLANK(Polygon!B36))),IF(Polygon!$S35=1,$E$9,Polygon!B36),"") ->  | G10: =IF(Polygon!$A$1=PGZ,IF(Polygon!$S35=1,Polygon!$R$134,IF(NOT(Polygon!R36=0),Polygon!R36,"")),"") ->  | J10: =IF(AND($G10<>"",$H10<>"",$G10<>0),ABS(I10/G10),"") -> 
A11: =IF(AND(Polygon!$A$1=PGZ,NOT(ISBLANK(Polygon!A11))),Polygon!A11,"") ->  | B11: =IF(AND(Polygon!$A$1=PGZ,NOT(ISBLANK(Polygon!B11))),Polygon!B11,"") ->  | E11: =IF(AND(Polygon!$A$1=PGZ,NOT(ISBLANK(Polygon!B36))),Polygon!B36,"") ->  | F11: =IF(AND(Polygon!$A$1=PGZ,NOT(ISBLANK(Polygon!B37))),IF(Polygon!$S36=1,$E$9,Polygon!B37),"") ->  | G11: =IF(Polygon!$A$1=PGZ,IF(Polygon!$S36=1,Polygon!$R$134,IF(NOT(Polygon!R37=0),Polygon!R37,"")),"") -> 
A12: =IF(AND(Polygon!$A$1=PGZ,NOT(ISBLANK(Polygon!A12))),Polygon!A12,"") ->  | B12: =IF(AND(Polygon!$A$1=PGZ,NOT(ISBLANK(Polygon!B12))),Polygon!B12,"") ->  | E12: =IF(AND(Polygon!$A$1=PGZ,NOT(ISBLANK(Polygon!B37))),Polygon!B37,"") ->  | F12: =IF(AND(Polygon!$A$1=PGZ,NOT(ISBLANK(Polygon!B38))),IF(Polygon!$S37=1,$E$9,Polygon!B38),"") ->  | G12: =IF(Polygon!$A$1=PGZ,IF(Polygon!$S37=1,Polygon!$R$134,IF(NOT(Polygon!R38=0),Polygon!R38,"")),"") -> 
A13: =IF(AND(Polygon!$A$1=PGZ,NOT(ISBLANK(Polygon!A13))),Polygon!A13,"") ->  | B13: =IF(AND(Polygon!$A$1=PGZ,NOT(ISBLANK(Polygon!B13))),Polygon!B13,"") ->  | E13: =IF(AND(Polygon!$A$1=PGZ,NOT(ISBLANK(Polygon!B38))),Polygon!B38,"") ->  | F13: =IF(AND(Polygon!$A$1=PGZ,NOT(ISBLANK(Polygon!B39))),IF(Polygon!$S38=1,$E$9,Polygon!B39),"") ->  | G13: =IF(Polygon!$A$1=PGZ,IF(Polygon!$S38=1,Polygon!$R$134,IF(NOT(Polygon!R39=0),Polygon!R39,"")),"") -> 
A14: =IF(AND(Polygon!$A$1=PGZ,NOT(ISBLANK(Polygon!A14))),Polygon!A14,"") ->  | B14: =IF(AND(Polygon!$A$1=PGZ,NOT(ISBLANK(Polygon!B14))),Polygon!B14,"") ->  | E14: =IF(AND(Polygon!$A$1=PGZ,NOT(ISBLANK(Polygon!B39))),Polygon!B39,"") ->  | F14: =IF(AND(Polygon!$A$1=PGZ,NOT(ISBLANK(Polygon!B40))),IF(Polygon!$S39=1,$E$9,Polygon!B40),"") ->  | G14: =IF(Polygon!$A$1=PGZ,IF(Polygon!$S39=1,Polygon!$R$134,IF(NOT(Polygon!R40=0),Polygon!R40,"")),"") -> 
A15: =IF(AND(Polygon!$A$1=PGZ,NOT(ISBLANK(Polygon!A15))),Polygon!A15,"") ->  | B15: =IF(AND(Polygon!$A$1=PGZ,NOT(ISBLANK(Polygon!B15))),Polygon!B15,"") ->  | E15: =IF(AND(Polygon!$A$1=PGZ,NOT(ISBLANK(Polygon!B40))),Polygon!B40,"") ->  | F15: =IF(AND(Polygon!$A$1=PGZ,NOT(ISBLANK(Polygon!B41))),IF(Polygon!$S40=1,$E$9,Polygon!B41),"") ->  | G15: =IF(Polygon!$A$1=PGZ,IF(Polygon!$S40=1,Polygon!$R$134,IF(NOT(Polygon!R41=0),Polygon!R41,"")),"") -> 
A16: =IF(AND(Polygon!$A$1=PGZ,NOT(ISBLANK(Polygon!A16))),Polygon!A16,"") ->  | B16: =IF(AND(Polygon!$A$1=PGZ,NOT(ISBLANK(Polygon!B16))),Polygon!B16,"") ->  | E16: =IF(AND(Polygon!$A$1=PGZ,NOT(ISBLANK(Polygon!B41))),Polygon!B41,"") ->  | F16: =IF(AND(Polygon!$A$1=PGZ,NOT(ISBLANK(Polygon!B42))),IF(Polygon!$S41=1,$E$9,Polygon!B42),"") ->  | G16: =IF(Polygon!$A$1=PGZ,IF(Polygon!$S41=1,Polygon!$R$134,IF(NOT(Polygon!R42=0),Polygon!R42,"")),"") -> 
E17: =IF(AND(Polygon!$A$1=PGZ,NOT(ISBLANK(Polygon!B42))),Polygon!B42,"") ->  | F17: =IF(AND(Polygon!$A$1=PGZ,NOT(ISBLANK(Polygon!B43))),IF(Polygon!$S42=1,$E$9,Polygon!B43),"") ->  | G17: =IF(Polygon!$A$1=PGZ,IF(Polygon!$S42=1,Polygon!$R$134,IF(NOT(Polygon!R43=0),Polygon!R43,"")),"") -> 
E18: =IF(AND(Polygon!$A$1=PGZ,NOT(ISBLANK(Polygon!B43))),Polygon!B43,"") ->  | F18: =IF(AND(Polygon!$A$1=PGZ,NOT(ISBLANK(Polygon!B44))),IF(Polygon!$S43=1,$E$9,Polygon!B44),"") ->  | G18: =IF(Polygon!$A$1=PGZ,IF(Polygon!$S43=1,Polygon!$R$134,IF(NOT(Polygon!R44=0),Polygon!R44,"")),"") -> 
E19: =IF(AND(Polygon!$A$1=PGZ,NOT(ISBLANK(Polygon!B44))),Polygon!B44,"") ->  | F19: =IF(AND(Polygon!$A$1=PGZ,NOT(ISBLANK(Polygon!B45))),IF(Polygon!$S44=1,$E$9,Polygon!B45),"") ->  | G19: =IF(Polygon!$A$1=PGZ,IF(Polygon!$S44=1,Polygon!$R$134,IF(NOT(Polygon!R45=0),Polygon!R45,"")),"") -> 
E20: =IF(AND(Polygon!$A$1=PGZ,NOT(ISBLANK(Polygon!B45))),Polygon!B45,"") ->  | F20: =IF(AND(Polygon!$A$1=PGZ,NOT(ISBLANK(Polygon!B46))),IF(Polygon!$S45=1,$E$9,Polygon!B46),"") ->  | G20: =IF(Polygon!$A$1=PGZ,IF(Polygon!$S45=1,Polygon!$R$134,IF(NOT(Polygon!R46=0),Polygon!R46,"")),"") -> 
E21: =IF(AND(Polygon!$A$1=PGZ,NOT(ISBLANK(Polygon!B46))),Polygon!B46,"") ->  | F21: =IF(AND(Polygon!$A$1=PGZ,NOT(ISBLANK(Polygon!B47))),IF(Polygon!$S46=1,$E$9,Polygon!B47),"") ->  | G21: =IF(Polygon!$A$1=PGZ,IF(Polygon!$S46=1,Polygon!$R$134,IF(NOT(Polygon!R47=0),Polygon!R47,"")),"") -> 
E22: =IF(AND(Polygon!$A$1=PGZ,NOT(ISBLANK(Polygon!B47))),Polygon!B47,"") ->  | F22: =IF(AND(Polygon!$A$1=PGZ,NOT(ISBLANK(Polygon!B48))),IF(Polygon!$S47=1,$E$9,Polygon!B48),"") ->  | G22: =IF(Polygon!$A$1=PGZ,IF(Polygon!$S47=1,Polygon!$R$134,IF(NOT(Polygon!R48=0),Polygon!R48,"")),"") -> 
E23: =IF(AND(Polygon!$A$1=PGZ,NOT(ISBLANK(Polygon!B48))),Polygon!B48,"") ->  | F23: =IF(AND(Polygon!$A$1=PGZ,NOT(ISBLANK(Polygon!B49))),IF(Polygon!$S48=1,$E$9,Polygon!B49),"") ->  | G23: =IF(Polygon!$A$1=PGZ,IF(Polygon!$S48=1,Polygon!$R$134,IF(NOT(Polygon!R49=0),Polygon!R49,"")),"") -> 
E24: =IF(AND(Polygon!$A$1=PGZ,NOT(ISBLANK(Polygon!B49))),Polygon!B49,"") ->  | F24: =IF(AND(Polygon!$A$1=PGZ,NOT(ISBLANK(Polygon!B50))),IF(Polygon!$S49=1,$E$9,Polygon!B50),"") ->  | G24: =IF(Polygon!$A$1=PGZ,IF(Polygon!$S49=1,Polygon!$R$134,IF(NOT(Polygon!R50=0),Polygon!R50,"")),"") -> 
E25: =IF(AND(Polygon!$A$1=PGZ,NOT(ISBLANK(Polygon!B50))),Polygon!B50,"") ->  | F25: =IF(AND(Polygon!$A$1=PGZ,NOT(ISBLANK(Polygon!B51))),IF(Polygon!$S50=1,$E$9,Polygon!B51),"") ->  | G25: =IF(Polygon!$A$1=PGZ,IF(Polygon!$S50=1,Polygon!$R$134,IF(NOT(Polygon!R51=0),Polygon!R51,"")),"") -> 
E26: =IF(AND(Polygon!$A$1=PGZ,NOT(ISBLANK(Polygon!B51))),Polygon!B51,"") ->  | F26: =IF(AND(Polygon!$A$1=PGZ,NOT(ISBLANK(Polygon!B52))),IF(Polygon!$S51=1,$E$9,Polygon!B52),"") ->  | G26: =IF(Polygon!$A$1=PGZ,IF(Polygon!$S51=1,Polygon!$R$134,IF(NOT(Polygon!R52=0),Polygon!R52,"")),"") -> 
E27: =IF(AND(Polygon!$A$1=PGZ,NOT(ISBLANK(Polygon!B52))),Polygon!B52,"") ->  | F27: =IF(AND(Polygon!$A$1=PGZ,NOT(ISBLANK(Polygon!B53))),IF(Polygon!$S52=1,$E$9,Polygon!B53),"") ->  | G27: =IF(Polygon!$A$1=PGZ,IF(Polygon!$S52=1,Polygon!$R$134,IF(NOT(Polygon!R53=0),Polygon!R53,"")),"") -> 
E28: =IF(AND(Polygon!$A$1=PGZ,NOT(ISBLANK(Polygon!B53))),Polygon!B53,"") ->  | F28: =IF(AND(Polygon!$A$1=PGZ,NOT(ISBLANK(Polygon!B54))),IF(Polygon!$S53=1,$E$9,Polygon!B54),"") ->  | G28: =IF(Polygon!$A$1=PGZ,IF(Polygon!$S53=1,Polygon!$R$134,IF(NOT(Polygon!R54=0),Polygon!R54,"")),"") -> 
E29: =IF(AND(Polygon!$A$1=PGZ,NOT(ISBLANK(Polygon!B54))),Polygon!B54,"") ->  | F29: =IF(AND(Polygon!$A$1=PGZ,NOT(ISBLANK(Polygon!B55))),IF(Polygon!$S54=1,$E$9,Polygon!B55),"") ->  | G29: =IF(Polygon!$A$1=PGZ,IF(Polygon!$S54=1,Polygon!$R$134,IF(NOT(Polygon!R55=0),Polygon!R55,"")),"") -> 
E30: =IF(AND(Polygon!$A$1=PGZ,NOT(ISBLANK(Polygon!B55))),Polygon!B55,"") ->  | F30: =IF(AND(Polygon!$A$1=PGZ,NOT(ISBLANK(Polygon!B56))),IF(Polygon!$S55=1,$E$9,Polygon!B56),"") ->  | G30: =IF(Polygon!$A$1=PGZ,IF(Polygon!$S55=1,Polygon!$R$134,IF(NOT(Polygon!R56=0),Polygon!R56,"")),"") -> 
E31: =IF(AND(Polygon!$A$1=PGZ,NOT(ISBLANK(Polygon!B56))),Polygon!B56,"") ->  | F31: =IF(AND(Polygon!$A$1=PGZ,NOT(ISBLANK(Polygon!B57))),IF(Polygon!$S56=1,$E$9,Polygon!B57),"") ->  | G31: =IF(Polygon!$A$1=PGZ,IF(Polygon!$S56=1,Polygon!$R$134,IF(NOT(Polygon!R57=0),Polygon!R57,"")),"") -> 
E32: =IF(AND(Polygon!$A$1=PGZ,NOT(ISBLANK(Polygon!B57))),Polygon!B57,"") ->  | F32: =IF(AND(Polygon!$A$1=PGZ,NOT(ISBLANK(Polygon!B58))),IF(Polygon!$S57=1,$E$9,Polygon!B58),"") ->  | G32: =IF(Polygon!$A$1=PGZ,IF(Polygon!$S57=1,Polygon!$R$134,IF(NOT(Polygon!R58=0),Polygon!R58,"")),"") -> 
E33: =IF(AND(Polygon!$A$1=PGZ,NOT(ISBLANK(Polygon!B58))),Polygon!B58,"") ->  | F33: =IF(AND(Polygon!$A$1=PGZ,NOT(ISBLANK(Polygon!B59))),IF(Polygon!$S58=1,$E$9,Polygon!B59),"") ->  | G33: =IF(Polygon!$A$1=PGZ,IF(Polygon!$S58=1,Polygon!$R$134,IF(NOT(Polygon!R59=0),Polygon!R59,"")),"") -> 
E34: =IF(AND(Polygon!$A$1=PGZ,NOT(ISBLANK(Polygon!B59))),Polygon!B59,"") ->  | F34: =IF(AND(Polygon!$A$1=PGZ,NOT(ISBLANK(Polygon!B60))),IF(Polygon!$S59=1,$E$9,Polygon!B60),"") ->  | G34: =IF(Polygon!$A$1=PGZ,IF(Polygon!$S59=1,Polygon!$R$134,IF(NOT(Polygon!R60=0),Polygon!R60,"")),"") -> 
E35: =IF(AND(Polygon!$A$1=PGZ,NOT(ISBLANK(Polygon!B60))),Polygon!B60,"") ->  | F35: =IF(AND(Polygon!$A$1=PGZ,NOT(ISBLANK(Polygon!B61))),IF(Polygon!$S60=1,$E$9,Polygon!B61),"") ->  | G35: =IF(Polygon!$A$1=PGZ,IF(Polygon!$S60=1,Polygon!$R$134,IF(NOT(Polygon!R61=0),Polygon!R61,"")),"") -> 
E36: =IF(AND(Polygon!$A$1=PGZ,NOT(ISBLANK(Polygon!B61))),Polygon!B61,"") ->  | F36: =IF(AND(Polygon!$A$1=PGZ,NOT(ISBLANK(Polygon!B62))),IF(Polygon!$S61=1,$E$9,Polygon!B62),"") ->  | G36: =IF(Polygon!$A$1=PGZ,IF(Polygon!$S61=1,Polygon!$R$134,IF(NOT(Polygon!R62=0),Polygon!R62,"")),"") -> 
E37: =IF(AND(Polygon!$A$1=PGZ,NOT(ISBLANK(Polygon!B62))),Polygon!B62,"") ->  | F37: =IF(AND(Polygon!$A$1=PGZ,NOT(ISBLANK(Polygon!B63))),IF(Polygon!$S62=1,$E$9,Polygon!B63),"") ->  | G37: =IF(Polygon!$A$1=PGZ,IF(Polygon!$S62=1,Polygon!$R$134,IF(NOT(Polygon!R63=0),Polygon!R63,"")),"") -> 
E38: =IF(AND(Polygon!$A$1=PGZ,NOT(ISBLANK(Polygon!B63))),Polygon!B63,"") ->  | F38: =IF(AND(Polygon!$A$1=PGZ,NOT(ISBLANK(Polygon!B64))),IF(Polygon!$S63=1,$E$9,Polygon!B64),"") ->  | G38: =IF(Polygon!$A$1=PGZ,IF(Polygon!$S63=1,Polygon!$R$134,IF(NOT(Polygon!R64=0),Polygon!R64,"")),"") -> 
E39: =IF(AND(Polygon!$A$1=PGZ,NOT(ISBLANK(Polygon!B64))),Polygon!B64,"") ->  | F39: =IF(AND(Polygon!$A$1=PGZ,NOT(ISBLANK(Polygon!B65))),IF(Polygon!$S64=1,$E$9,Polygon!B65),"") ->  | G39: =IF(Polygon!$A$1=PGZ,IF(Polygon!$S64=1,Polygon!$R$134,IF(NOT(Polygon!R65=0),Polygon!R65,"")),"") -> 
E40: =IF(AND(Polygon!$A$1=PGZ,NOT(ISBLANK(Polygon!B65))),Polygon!B65,"") ->  | F40: =IF(AND(Polygon!$A$1=PGZ,NOT(ISBLANK(Polygon!B66))),IF(Polygon!$S65=1,$E$9,Polygon!B66),"") ->  | G40: =IF(Polygon!$A$1=PGZ,IF(Polygon!$S65=1,Polygon!$R$134,IF(NOT(Polygon!R66=0),Polygon!R66,"")),"") -> 
E41: =IF(AND(Polygon!$A$1=PGZ,NOT(ISBLANK(Polygon!B66))),Polygon!B66,"") ->  | F41: =IF(AND(Polygon!$A$1=PGZ,NOT(ISBLANK(Polygon!B67))),IF(Polygon!$S66=1,$E$9,Polygon!B67),"") ->  | G41: =IF(Polygon!$A$1=PGZ,IF(Polygon!$S66=1,Polygon!$R$134,IF(NOT(Polygon!R67=0),Polygon!R67,"")),"") ->  | I41: =IF(AND($G41<>"",$H41<>""),$G41-$H41,"") -> 
E42: =IF(AND(Polygon!$A$1=PGZ,NOT(ISBLANK(Polygon!B67))),Polygon!B67,"") ->  | F42: =IF(AND(Polygon!$A$1=PGZ,NOT(ISBLANK(Polygon!B68))),IF(Polygon!$S67=1,$E$9,Polygon!B68),"") ->  | G42: =IF(Polygon!$A$1=PGZ,IF(Polygon!$S67=1,Polygon!$R$134,IF(NOT(Polygon!R68=0),Polygon!R68,"")),"") -> 
E43: =IF(AND(Polygon!$A$1=PGZ,NOT(ISBLANK(Polygon!B68))),Polygon!B68,"") ->  | F43: =IF(AND(Polygon!$A$1=PGZ,NOT(ISBLANK(Polygon!B69))),IF(Polygon!$S68=1,$E$9,Polygon!B69),"") ->  | G43: =IF(Polygon!$A$1=PGZ,IF(Polygon!$S68=1,Polygon!$R$134,IF(NOT(Polygon!R69=0),Polygon!R69,"")),"") -> 
E44: =IF(AND(Polygon!$A$1=PGZ,NOT(ISBLANK(Polygon!B69))),Polygon!B69,"") ->  | F44: =IF(AND(Polygon!$A$1=PGZ,NOT(ISBLANK(Polygon!B70))),IF(Polygon!$S69=1,$E$9,Polygon!B70),"") ->  | G44: =IF(Polygon!$A$1=PGZ,IF(Polygon!$S69=1,Polygon!$R$134,IF(NOT(Polygon!R70=0),Polygon!R70,"")),"") -> 
E45: =IF(AND(Polygon!$A$1=PGZ,NOT(ISBLANK(Polygon!B70))),Polygon!B70,"") ->  | F45: =IF(AND(Polygon!$A$1=PGZ,NOT(ISBLANK(Polygon!B71))),IF(Polygon!$S70=1,$E$9,Polygon!B71),"") ->  | G45: =IF(Polygon!$A$1=PGZ,IF(Polygon!$S70=1,Polygon!$R$134,IF(NOT(Polygon!R71=0),Polygon!R71,"")),"") -> 
E46: =IF(AND(Polygon!$A$1=PGZ,NOT(ISBLANK(Polygon!B71))),Polygon!B71,"") ->  | F46: =IF(AND(Polygon!$A$1=PGZ,NOT(ISBLANK(Polygon!B72))),IF(Polygon!$S71=1,$E$9,Polygon!B72),"") ->  | G46: =IF(Polygon!$A$1=PGZ,IF(Polygon!$S71=1,Polygon!$R$134,IF(NOT(Polygon!R72=0),Polygon!R72,"")),"") -> 
E47: =IF(AND(Polygon!$A$1=PGZ,NOT(ISBLANK(Polygon!B72))),Polygon!B72,"") ->  | F47: =IF(AND(Polygon!$A$1=PGZ,NOT(ISBLANK(Polygon!B73))),IF(Polygon!$S72=1,$E$9,Polygon!B73),"") ->  | G47: =IF(Polygon!$A$1=PGZ,IF(Polygon!$S72=1,Polygon!$R$134,IF(NOT(Polygon!R73=0),Polygon!R73,"")),"") -> 
E48: =IF(AND(Polygon!$A$1=PGZ,NOT(ISBLANK(Polygon!B73))),Polygon!B73,"") ->  | F48: =IF(AND(Polygon!$A$1=PGZ,NOT(ISBLANK(Polygon!B74))),IF(Polygon!$S73=1,$E$9,Polygon!B74),"") ->  | G48: =IF(Polygon!$A$1=PGZ,IF(Polygon!$S73=1,Polygon!$R$134,IF(NOT(Polygon!R74=0),Polygon!R74,"")),"") -> 
E49: =IF(AND(Polygon!$A$1=PGZ,NOT(ISBLANK(Polygon!B74))),Polygon!B74,"") ->  | F49: =IF(AND(Polygon!$A$1=PGZ,NOT(ISBLANK(Polygon!B75))),IF(Polygon!$S74=1,$E$9,Polygon!B75),"") ->  | G49: =IF(Polygon!$A$1=PGZ,IF(Polygon!$S74=1,Polygon!$R$134,IF(NOT(Polygon!R75=0),Polygon!R75,"")),"") -> 
E50: =IF(AND(Polygon!$A$1=PGZ,NOT(ISBLANK(Polygon!B75))),Polygon!B75,"") ->  | F50: =IF(AND(Polygon!$A$1=PGZ,NOT(ISBLANK(Polygon!B76))),IF(Polygon!$S75=1,$E$9,Polygon!B76),"") ->  | G50: =IF(Polygon!$A$1=PGZ,IF(Polygon!$S75=1,Polygon!$R$134,IF(NOT(Polygon!R76=0),Polygon!R76,"")),"") -> 
E51: =IF(AND(Polygon!$A$1=PGZ,NOT(ISBLANK(Polygon!B76))),Polygon!B76,"") ->  | F51: =IF(AND(Polygon!$A$1=PGZ,NOT(ISBLANK(Polygon!B77))),IF(Polygon!$S76=1,$E$9,Polygon!B77),"") ->  | G51: =IF(Polygon!$A$1=PGZ,IF(Polygon!$S76=1,Polygon!$R$134,IF(NOT(Polygon!R77=0),Polygon!R77,"")),"") -> 
E52: =IF(AND(Polygon!$A$1=PGZ,NOT(ISBLANK(Polygon!B77))),Polygon!B77,"") ->  | F52: =IF(AND(Polygon!$A$1=PGZ,NOT(ISBLANK(Polygon!B78))),IF(Polygon!$S77=1,$E$9,Polygon!B78),"") ->  | G52: =IF(Polygon!$A$1=PGZ,IF(Polygon!$S77=1,Polygon!$R$134,IF(NOT(Polygon!R78=0),Polygon!R78,"")),"") -> 
E53: =IF(AND(Polygon!$A$1=PGZ,NOT(ISBLANK(Polygon!B78))),Polygon!B78,"") ->  | F53: =IF(AND(Polygon!$A$1=PGZ,NOT(ISBLANK(Polygon!B79))),IF(Polygon!$S78=1,$E$9,Polygon!B79),"") ->  | G53: =IF(Polygon!$A$1=PGZ,IF(Polygon!$S78=1,Polygon!$R$134,IF(NOT(Polygon!R79=0),Polygon!R79,"")),"") -> 
E54: =IF(AND(Polygon!$A$1=PGZ,NOT(ISBLANK(Polygon!B79))),Polygon!B79,"") ->  | F54: =IF(AND(Polygon!$A$1=PGZ,NOT(ISBLANK(Polygon!B80))),IF(Polygon!$S79=1,$E$9,Polygon!B80),"") ->  | G54: =IF(Polygon!$A$1=PGZ,IF(Polygon!$S79=1,Polygon!$R$134,IF(NOT(Polygon!R80=0),Polygon!R80,"")),"") -> 
E55: =IF(AND(Polygon!$A$1=PGZ,NOT(ISBLANK(Polygon!B80))),Polygon!B80,"") ->  | F55: =IF(AND(Polygon!$A$1=PGZ,NOT(ISBLANK(Polygon!B81))),IF(Polygon!$S80=1,$E$9,Polygon!B81),"") ->  | G55: =IF(Polygon!$A$1=PGZ,IF(Polygon!$S80=1,Polygon!$R$134,IF(NOT(Polygon!R81=0),Polygon!R81,"")),"") -> 
E56: =IF(AND(Polygon!$A$1=PGZ,NOT(ISBLANK(Polygon!B81))),Polygon!B81,"") ->  | F56: =IF(AND(Polygon!$A$1=PGZ,NOT(ISBLANK(Polygon!B82))),IF(Polygon!$S81=1,$E$9,Polygon!B82),"") ->  | G56: =IF(Polygon!$A$1=PGZ,IF(Polygon!$S81=1,Polygon!$R$134,IF(NOT(Polygon!R82=0),Polygon!R82,"")),"") -> 
E57: =IF(AND(Polygon!$A$1=PGZ,NOT(ISBLANK(Polygon!B82))),Polygon!B82,"") ->  | F57: =IF(AND(Polygon!$A$1=PGZ,NOT(ISBLANK(Polygon!B83))),IF(Polygon!$S82=1,$E$9,Polygon!B83),"") ->  | G57: =IF(Polygon!$A$1=PGZ,IF(Polygon!$S82=1,Polygon!$R$134,IF(NOT(Polygon!R83=0),Polygon!R83,"")),"") -> 
E58: =IF(AND(Polygon!$A$1=PGZ,NOT(ISBLANK(Polygon!B83))),Polygon!B83,"") ->  | F58: =IF(AND(Polygon!$A$1=PGZ,NOT(ISBLANK(Polygon!B84))),IF(Polygon!$S83=1,$E$9,Polygon!B84),"") ->  | G58: =IF(Polygon!$A$1=PGZ,IF(Polygon!$S83=1,Polygon!$R$134,IF(NOT(Polygon!R84=0),Polygon!R84,"")),"") -> 
E59: =IF(AND(Polygon!$A$1=PGZ,NOT(ISBLANK(Polygon!B84))),Polygon!B84,"") ->  | F59: =IF(AND(Polygon!$A$1=PGZ,NOT(ISBLANK(Polygon!B85))),IF(Polygon!$S84=1,$E$9,Polygon!B85),"") ->  | G59: =IF(Polygon!$A$1=PGZ,IF(Polygon!$S84=1,Polygon!$R$134,IF(NOT(Polygon!R85=0),Polygon!R85,"")),"") -> 
E60: =IF(AND(Polygon!$A$1=PGZ,NOT(ISBLANK(Polygon!B85))),Polygon!B85,"") ->  | F60: =IF(AND(Polygon!$A$1=PGZ,NOT(ISBLANK(Polygon!B86))),IF(Polygon!$S85=1,$E$9,Polygon!B86),"") ->  | G60: =IF(Polygon!$A$1=PGZ,IF(Polygon!$S85=1,Polygon!$R$134,IF(NOT(Polygon!R86=0),Polygon!R86,"")),"") -> 
E61: =IF(AND(Polygon!$A$1=PGZ,NOT(ISBLANK(Polygon!B86))),Polygon!B86,"") ->  | F61: =IF(AND(Polygon!$A$1=PGZ,NOT(ISBLANK(Polygon!B87))),IF(Polygon!$S86=1,$E$9,Polygon!B87),"") ->  | G61: =IF(Polygon!$A$1=PGZ,IF(Polygon!$S86=1,Polygon!$R$134,IF(NOT(Polygon!R87=0),Polygon!R87,"")),"") -> 
E62: =IF(AND(Polygon!$A$1=PGZ,NOT(ISBLANK(Polygon!B87))),Polygon!B87,"") ->  | F62: =IF(AND(Polygon!$A$1=PGZ,NOT(ISBLANK(Polygon!B88))),IF(Polygon!$S87=1,$E$9,Polygon!B88),"") ->  | G62: =IF(Polygon!$A$1=PGZ,IF(Polygon!$S87=1,Polygon!$R$134,IF(NOT(Polygon!R88=0),Polygon!R88,"")),"") -> 
E63: =IF(AND(Polygon!$A$1=PGZ,NOT(ISBLANK(Polygon!B88))),Polygon!B88,"") ->  | F63: =IF(AND(Polygon!$A$1=PGZ,NOT(ISBLANK(Polygon!B89))),IF(Polygon!$S88=1,$E$9,Polygon!B89),"") ->  | G63: =IF(Polygon!$A$1=PGZ,IF(Polygon!$S88=1,Polygon!$R$134,IF(NOT(Polygon!R89=0),Polygon!R89,"")),"") -> 
E64: =IF(AND(Polygon!$A$1=PGZ,NOT(ISBLANK(Polygon!B89))),Polygon!B89,"") ->  | F64: =IF(AND(Polygon!$A$1=PGZ,NOT(ISBLANK(Polygon!B90))),IF(Polygon!$S89=1,$E$9,Polygon!B90),"") ->  | G64: =IF(Polygon!$A$1=PGZ,IF(Polygon!$S89=1,Polygon!$R$134,IF(NOT(Polygon!R90=0),Polygon!R90,"")),"") -> 
E65: =IF(AND(Polygon!$A$1=PGZ,NOT(ISBLANK(Polygon!B90))),Polygon!B90,"") ->  | F65: =IF(AND(Polygon!$A$1=PGZ,NOT(ISBLANK(Polygon!B91))),IF(Polygon!$S90=1,$E$9,Polygon!B91),"") ->  | G65: =IF(Polygon!$A$1=PGZ,IF(Polygon!$S90=1,Polygon!$R$134,IF(NOT(Polygon!R91=0),Polygon!R91,"")),"") -> 
E66: =IF(AND(Polygon!$A$1=PGZ,NOT(ISBLANK(Polygon!B91))),Polygon!B91,"") ->  | F66: =IF(AND(Polygon!$A$1=PGZ,NOT(ISBLANK(Polygon!B92))),IF(Polygon!$S91=1,$E$9,Polygon!B92),"") ->  | G66: =IF(Polygon!$A$1=PGZ,IF(Polygon!$S91=1,Polygon!$R$134,IF(NOT(Polygon!R92=0),Polygon!R92,"")),"") -> 
E67: =IF(AND(Polygon!$A$1=PGZ,NOT(ISBLANK(Polygon!B92))),Polygon!B92,"") ->  | F67: =IF(AND(Polygon!$A$1=PGZ,NOT(ISBLANK(Polygon!B93))),IF(Polygon!$S92=1,$E$9,Polygon!B93),"") ->  | G67: =IF(Polygon!$A$1=PGZ,IF(Polygon!$S92=1,Polygon!$R$134,IF(NOT(Polygon!R93=0),Polygon!R93,"")),"") -> 
E68: =IF(AND(Polygon!$A$1=PGZ,NOT(ISBLANK(Polygon!B93))),Polygon!B93,"") ->  | F68: =IF(AND(Polygon!$A$1=PGZ,NOT(ISBLANK(Polygon!B94))),IF(Polygon!$S93=1,$E$9,Polygon!B94),"") ->  | G68: =IF(Polygon!$A$1=PGZ,IF(Polygon!$S93=1,Polygon!$R$134,IF(NOT(Polygon!R94=0),Polygon!R94,"")),"") -> 
E69: =IF(AND(Polygon!$A$1=PGZ,NOT(ISBLANK(Polygon!B94))),Polygon!B94,"") ->  | F69: =IF(AND(Polygon!$A$1=PGZ,NOT(ISBLANK(Polygon!B95))),IF(Polygon!$S94=1,$E$9,Polygon!B95),"") ->  | G69: =IF(Polygon!$A$1=PGZ,IF(Polygon!$S94=1,Polygon!$R$134,IF(NOT(Polygon!R95=0),Polygon!R95,"")),"") -> 
E70: =IF(AND(Polygon!$A$1=PGZ,NOT(ISBLANK(Polygon!B95))),Polygon!B95,"") ->  | F70: =IF(AND(Polygon!$A$1=PGZ,NOT(ISBLANK(Polygon!B96))),IF(Polygon!$S95=1,$E$9,Polygon!B96),"") ->  | G70: =IF(Polygon!$A$1=PGZ,IF(Polygon!$S95=1,Polygon!$R$134,IF(NOT(Polygon!R96=0),Polygon!R96,"")),"") -> 
E71: =IF(AND(Polygon!$A$1=PGZ,NOT(ISBLANK(Polygon!B96))),Polygon!B96,"") ->  | F71: =IF(AND(Polygon!$A$1=PGZ,NOT(ISBLANK(Polygon!B97))),IF(Polygon!$S96=1,$E$9,Polygon!B97),"") ->  | G71: =IF(Polygon!$A$1=PGZ,IF(Polygon!$S96=1,Polygon!$R$134,IF(NOT(Polygon!R97=0),Polygon!R97,"")),"") -> 
E72: =IF(AND(Polygon!$A$1=PGZ,NOT(ISBLANK(Polygon!B97))),Polygon!B97,"") ->  | F72: =IF(AND(Polygon!$A$1=PGZ,NOT(ISBLANK(Polygon!B98))),IF(Polygon!$S97=1,$E$9,Polygon!B98),"") ->  | G72: =IF(Polygon!$A$1=PGZ,IF(Polygon!$S97=1,Polygon!$R$134,IF(NOT(Polygon!R98=0),Polygon!R98,"")),"") -> 
E73: =IF(AND(Polygon!$A$1=PGZ,NOT(ISBLANK(Polygon!B98))),Polygon!B98,"") ->  | F73: =IF(AND(Polygon!$A$1=PGZ,NOT(ISBLANK(Polygon!B99))),IF(Polygon!$S98=1,$E$9,Polygon!B99),"") ->  | G73: =IF(Polygon!$A$1=PGZ,IF(Polygon!$S98=1,Polygon!$R$134,IF(NOT(Polygon!R99=0),Polygon!R99,"")),"") ->  | I73: =IF(AND($G73<>"",$H73<>""),$G73-$H73,"") -> 
E74: =IF(AND(Polygon!$A$1=PGZ,NOT(ISBLANK(Polygon!B99))),Polygon!B99,"") ->  | F74: =IF(AND(Polygon!$A$1=PGZ,NOT(ISBLANK(Polygon!B100))),IF(Polygon!$S99=1,$E$9,Polygon!B100),"") ->  | G74: =IF(Polygon!$A$1=PGZ,IF(Polygon!$S99=1,Polygon!$R$134,IF(NOT(Polygon!R100=0),Polygon!R100,"")),"") ->  | J74: =IF(AND($G74<>"",$H74<>"",$G74<>0),ABS(I74/G74),"") -> 
E75: =IF(AND(Polygon!$A$1=PGZ,NOT(ISBLANK(Polygon!B100))),Polygon!B100,"") ->  | F75: =IF(AND(Polygon!$A$1=PGZ,NOT(ISBLANK(Polygon!B101))),IF(Polygon!$S100=1,$E$9,Polygon!B101),"") ->  | G75: =IF(Polygon!$A$1=PGZ,IF(Polygon!$S100=1,Polygon!$R$134,IF(NOT(Polygon!R101=0),Polygon!R101,"")),"") -> 
E76: =IF(AND(Polygon!$A$1=PGZ,NOT(ISBLANK(Polygon!B101))),Polygon!B101,"") ->  | F76: =IF(AND(Polygon!$A$1=PGZ,NOT(ISBLANK(Polygon!B102))),IF(Polygon!$S101=1,$E$9,Polygon!B102),"") ->  | G76: =IF(Polygon!$A$1=PGZ,IF(Polygon!$S101=1,Polygon!$R$134,IF(NOT(Polygon!R102=0),Polygon!R102,"")),"") -> 
E77: =IF(AND(Polygon!$A$1=PGZ,NOT(ISBLANK(Polygon!B102))),Polygon!B102,"") ->  | F77: =IF(AND(Polygon!$A$1=PGZ,NOT(ISBLANK(Polygon!B103))),IF(Polygon!$S102=1,$E$9,Polygon!B103),"") ->  | G77: =IF(Polygon!$A$1=PGZ,IF(Polygon!$S102=1,Polygon!$R$134,IF(NOT(Polygon!R103=0),Polygon!R103,"")),"") -> 
E78: =IF(AND(Polygon!$A$1=PGZ,NOT(ISBLANK(Polygon!B103))),Polygon!B103,"") ->  | F78: =IF(AND(Polygon!$A$1=PGZ,NOT(ISBLANK(Polygon!B104))),IF(Polygon!$S103=1,$E$9,Polygon!B104),"") ->  | G78: =IF(Polygon!$A$1=PGZ,IF(Polygon!$S103=1,Polygon!$R$134,IF(NOT(Polygon!R104=0),Polygon!R104,"")),"") -> 
E79: =IF(AND(Polygon!$A$1=PGZ,NOT(ISBLANK(Polygon!B104))),Polygon!B104,"") ->  | F79: =IF(AND(Polygon!$A$1=PGZ,NOT(ISBLANK(Polygon!B105))),IF(Polygon!$S104=1,$E$9,Polygon!B105),"") ->  | G79: =IF(Polygon!$A$1=PGZ,IF(Polygon!$S104=1,Polygon!$R$134,IF(NOT(Polygon!R105=0),Polygon!R105,"")),"") -> 
E80: =IF(AND(Polygon!$A$1=PGZ,NOT(ISBLANK(Polygon!B105))),Polygon!B105,"") ->  | F80: =IF(AND(Polygon!$A$1=PGZ,NOT(ISBLANK(Polygon!B106))),IF(Polygon!$S105=1,$E$9,Polygon!B106),"") ->  | G80: =IF(Polygon!$A$1=PGZ,IF(Polygon!$S105=1,Polygon!$R$134,IF(NOT(Polygon!R106=0),Polygon!R106,"")),"") -> 
E81: =IF(AND(Polygon!$A$1=PGZ,NOT(ISBLANK(Polygon!B106))),Polygon!B106,"") ->  | F81: =IF(AND(Polygon!$A$1=PGZ,NOT(ISBLANK(Polygon!B107))),IF(Polygon!$S106=1,$E$9,Polygon!B107),"") ->  | G81: =IF(Polygon!$A$1=PGZ,IF(Polygon!$S106=1,Polygon!$R$134,IF(NOT(Polygon!R107=0),Polygon!R107,"")),"") -> 
E82: =IF(AND(Polygon!$A$1=PGZ,NOT(ISBLANK(Polygon!B107))),Polygon!B107,"") ->  | F82: =IF(AND(Polygon!$A$1=PGZ,NOT(ISBLANK(Polygon!B108))),IF(Polygon!$S107=1,$E$9,Polygon!B108),"") ->  | G82: =IF(Polygon!$A$1=PGZ,IF(Polygon!$S107=1,Polygon!$R$134,IF(NOT(Polygon!R108=0),Polygon!R108,"")),"") -> 
E83: =IF(AND(Polygon!$A$1=PGZ,NOT(ISBLANK(Polygon!B108))),Polygon!B108,"") ->  | F83: =IF(AND(Polygon!$A$1=PGZ,NOT(ISBLANK(Polygon!B109))),IF(Polygon!$S108=1,$E$9,Polygon!B109),"") ->  | G83: =IF(Polygon!$A$1=PGZ,IF(Polygon!$S108=1,Polygon!$R$134,IF(NOT(Polygon!R109=0),Polygon!R109,"")),"") -> 
E84: =IF(AND(Polygon!$A$1=PGZ,NOT(ISBLANK(Polygon!B109))),Polygon!B109,"") ->  | F84: =IF(AND(Polygon!$A$1=PGZ,NOT(ISBLANK(Polygon!B110))),IF(Polygon!$S109=1,$E$9,Polygon!B110),"") ->  | G84: =IF(Polygon!$A$1=PGZ,IF(Polygon!$S109=1,Polygon!$R$134,IF(NOT(Polygon!R110=0),Polygon!R110,"")),"") -> 
E85: =IF(AND(Polygon!$A$1=PGZ,NOT(ISBLANK(Polygon!B110))),Polygon!B110,"") ->  | F85: =IF(AND(Polygon!$A$1=PGZ,NOT(ISBLANK(Polygon!B111))),IF(Polygon!$S110=1,$E$9,Polygon!B111),"") ->  | G85: =IF(Polygon!$A$1=PGZ,IF(Polygon!$S110=1,Polygon!$R$134,IF(NOT(Polygon!R111=0),Polygon!R111,"")),"") -> 
E86: =IF(AND(Polygon!$A$1=PGZ,NOT(ISBLANK(Polygon!B111))),Polygon!B111,"") ->  | F86: =IF(AND(Polygon!$A$1=PGZ,NOT(ISBLANK(Polygon!B112))),IF(Polygon!$S111=1,$E$9,Polygon!B112),"") ->  | G86: =IF(Polygon!$A$1=PGZ,IF(Polygon!$S111=1,Polygon!$R$134,IF(NOT(Polygon!R112=0),Polygon!R112,"")),"") -> 
E87: =IF(AND(Polygon!$A$1=PGZ,NOT(ISBLANK(Polygon!B112))),Polygon!B112,"") ->  | F87: =IF(AND(Polygon!$A$1=PGZ,NOT(ISBLANK(Polygon!B113))),IF(Polygon!$S112=1,$E$9,Polygon!B113),"") ->  | G87: =IF(Polygon!$A$1=PGZ,IF(Polygon!$S112=1,Polygon!$R$134,IF(NOT(Polygon!R113=0),Polygon!R113,"")),"") -> 
E88: =IF(AND(Polygon!$A$1=PGZ,NOT(ISBLANK(Polygon!B113))),Polygon!B113,"") ->  | F88: =IF(AND(Polygon!$A$1=PGZ,NOT(ISBLANK(Polygon!B114))),IF(Polygon!$S113=1,$E$9,Polygon!B114),"") ->  | G88: =IF(Polygon!$A$1=PGZ,IF(Polygon!$S113=1,Polygon!$R$134,IF(NOT(Polygon!R114=0),Polygon!R114,"")),"") -> 
E89: =IF(AND(Polygon!$A$1=PGZ,NOT(ISBLANK(Polygon!B114))),Polygon!B114,"") ->  | F89: =IF(AND(Polygon!$A$1=PGZ,NOT(ISBLANK(Polygon!B115))),IF(Polygon!$S114=1,$E$9,Polygon!B115),"") ->  | G89: =IF(Polygon!$A$1=PGZ,IF(Polygon!$S114=1,Polygon!$R$134,IF(NOT(Polygon!R115=0),Polygon!R115,"")),"") -> 
E90: =IF(AND(Polygon!$A$1=PGZ,NOT(ISBLANK(Polygon!B115))),Polygon!B115,"") ->  | F90: =IF(AND(Polygon!$A$1=PGZ,NOT(ISBLANK(Polygon!B116))),IF(Polygon!$S115=1,$E$9,Polygon!B116),"") ->  | G90: =IF(Polygon!$A$1=PGZ,IF(Polygon!$S115=1,Polygon!$R$134,IF(NOT(Polygon!R116=0),Polygon!R116,"")),"") -> 
E91: =IF(AND(Polygon!$A$1=PGZ,NOT(ISBLANK(Polygon!B116))),Polygon!B116,"") ->  | F91: =IF(AND(Polygon!$A$1=PGZ,NOT(ISBLANK(Polygon!B117))),IF(Polygon!$S116=1,$E$9,Polygon!B117),"") ->  | G91: =IF(Polygon!$A$1=PGZ,IF(Polygon!$S116=1,Polygon!$R$134,IF(NOT(Polygon!R117=0),Polygon!R117,"")),"") -> 
E92: =IF(AND(Polygon!$A$1=PGZ,NOT(ISBLANK(Polygon!B117))),Polygon!B117,"") ->  | F92: =IF(AND(Polygon!$A$1=PGZ,NOT(ISBLANK(Polygon!B118))),IF(Polygon!$S117=1,$E$9,Polygon!B118),"") ->  | G92: =IF(Polygon!$A$1=PGZ,IF(Polygon!$S117=1,Polygon!$R$134,IF(NOT(Polygon!R118=0),Polygon!R118,"")),"") -> 
E93: =IF(AND(Polygon!$A$1=PGZ,NOT(ISBLANK(Polygon!B118))),Polygon!B118,"") ->  | F93: =IF(AND(Polygon!$A$1=PGZ,NOT(ISBLANK(Polygon!B119))),IF(Polygon!$S118=1,$E$9,Polygon!B119),"") ->  | G93: =IF(Polygon!$A$1=PGZ,IF(Polygon!$S118=1,Polygon!$R$134,IF(NOT(Polygon!R119=0),Polygon!R119,"")),"") -> 
E94: =IF(AND(Polygon!$A$1=PGZ,NOT(ISBLANK(Polygon!B119))),Polygon!B119,"") ->  | F94: =IF(AND(Polygon!$A$1=PGZ,NOT(ISBLANK(Polygon!B120))),IF(Polygon!$S119=1,$E$9,Polygon!B120),"") ->  | G94: =IF(Polygon!$A$1=PGZ,IF(Polygon!$S119=1,Polygon!$R$134,IF(NOT(Polygon!R120=0),Polygon!R120,"")),"") -> 
E95: =IF(AND(Polygon!$A$1=PGZ,NOT(ISBLANK(Polygon!B120))),Polygon!B120,"") ->  | F95: =IF(AND(Polygon!$A$1=PGZ,NOT(ISBLANK(Polygon!B121))),IF(Polygon!$S120=1,$E$9,Polygon!B121),"") ->  | G95: =IF(Polygon!$A$1=PGZ,IF(Polygon!$S120=1,Polygon!$R$134,IF(NOT(Polygon!R121=0),Polygon!R121,"")),"") -> 
E96: =IF(AND(Polygon!$A$1=PGZ,NOT(ISBLANK(Polygon!B121))),Polygon!B121,"") ->  | F96: =IF(AND(Polygon!$A$1=PGZ,NOT(ISBLANK(Polygon!B122))),IF(Polygon!$S121=1,$E$9,Polygon!B122),"") ->  | G96: =IF(Polygon!$A$1=PGZ,IF(Polygon!$S121=1,Polygon!$R$134,IF(NOT(Polygon!R122=0),Polygon!R122,"")),"") -> 
E97: =IF(AND(Polygon!$A$1=PGZ,NOT(ISBLANK(Polygon!B122))),Polygon!B122,"") ->  | F97: =IF(AND(Polygon!$A$1=PGZ,NOT(ISBLANK(Polygon!B123))),IF(Polygon!$S122=1,$E$9,Polygon!B123),"") ->  | G97: =IF(Polygon!$A$1=PGZ,IF(Polygon!$S122=1,Polygon!$R$134,IF(NOT(Polygon!R123=0),Polygon!R123,"")),"") -> 
E98: =IF(AND(Polygon!$A$1=PGZ,NOT(ISBLANK(Polygon!B123))),Polygon!B123,"") ->  | F98: =IF(AND(Polygon!$A$1=PGZ,NOT(ISBLANK(Polygon!B124))),IF(Polygon!$S123=1,$E$9,Polygon!B124),"") ->  | G98: =IF(Polygon!$A$1=PGZ,IF(Polygon!$S123=1,Polygon!$R$134,IF(NOT(Polygon!R124=0),Polygon!R124,"")),"") -> 
E99: =IF(AND(Polygon!$A$1=PGZ,NOT(ISBLANK(Polygon!B124))),Polygon!B124,"") ->  | F99: =IF(AND(Polygon!$A$1=PGZ,NOT(ISBLANK(Polygon!B125))),IF(Polygon!$S124=1,$E$9,Polygon!B125),"") ->  | G99: =IF(Polygon!$A$1=PGZ,IF(Polygon!$S124=1,Polygon!$R$134,IF(NOT(Polygon!R125=0),Polygon!R125,"")),"") -> 
E100: =IF(AND(Polygon!$A$1=PGZ,NOT(ISBLANK(Polygon!B125))),Polygon!B125,"") ->  | F100: =IF(AND(Polygon!$A$1=PGZ,NOT(ISBLANK(Polygon!B126))),IF(Polygon!$S125=1,$E$9,Polygon!B126),"") ->  | G100: =IF(Polygon!$A$1=PGZ,IF(Polygon!$S125=1,Polygon!$R$134,IF(NOT(Polygon!R126=0),Polygon!R126,"")),"") -> 
E101: =IF(AND(Polygon!$A$1=PGZ,NOT(ISBLANK(Polygon!B126))),Polygon!B126,"") ->  | F101: =IF(AND(Polygon!$A$1=PGZ,NOT(ISBLANK(Polygon!B127))),IF(Polygon!$S126=1,$E$9,Polygon!B127),"") ->  | G101: =IF(Polygon!$A$1=PGZ,IF(Polygon!$S126=1,Polygon!$R$134,IF(NOT(Polygon!R127=0),Polygon!R127,"")),"") -> 
E102: =IF(AND(Polygon!$A$1=PGZ,NOT(ISBLANK(Polygon!B127))),Polygon!B127,"") ->  | F102: =IF(AND(Polygon!$A$1=PGZ,NOT(ISBLANK(Polygon!B128))),IF(Polygon!$S127=1,$E$9,Polygon!B128),"") ->  | G102: =IF(Polygon!$A$1=PGZ,IF(Polygon!$S127=1,Polygon!$R$134,IF(NOT(Polygon!R128=0),Polygon!R128,"")),"") -> 
E103: =IF(AND(Polygon!$A$1=PGZ,NOT(ISBLANK(Polygon!B128))),Polygon!B128,"") ->  | F103: =IF(AND(Polygon!$A$1=PGZ,NOT(ISBLANK(Polygon!B129))),IF(Polygon!$S128=1,$E$9,Polygon!B129),"") ->  | G103: =IF(Polygon!$A$1=PGZ,IF(Polygon!$S128=1,Polygon!$R$134,IF(NOT(Polygon!R129=0),Polygon!R129,"")),"") -> 
E104: =IF(AND(Polygon!$A$1=PGZ,NOT(ISBLANK(Polygon!B129))),Polygon!B129,"") ->  | F104: =IF(AND(Polygon!$A$1=PGZ,NOT(ISBLANK(Polygon!B130))),IF(Polygon!$S129=1,$E$9,Polygon!B130),"") ->  | G104: =IF(Polygon!$A$1=PGZ,IF(Polygon!$S129=1,Polygon!$R$134,IF(NOT(Polygon!R130=0),Polygon!R130,"")),"") -> 
E105: =IF(AND(Polygon!$A$1=PGZ,NOT(ISBLANK(Polygon!B130))),Polygon!B130,"") ->  | F105: =IF(AND(Polygon!$A$1=PGZ,NOT(ISBLANK(Polygon!B131))),IF(Polygon!$S130=1,$E$9,Polygon!B131),"") ->  | G105: =IF(Polygon!$A$1=PGZ,IF(Polygon!$S130=1,Polygon!$R$134,IF(NOT(Polygon!R131=0),Polygon!R131,"")),"") -> 
E106: =IF(AND(Polygon!$A$1=PGZ,NOT(ISBLANK(Polygon!B131))),Polygon!B131,"") ->  | F106: =IF(AND(Polygon!$A$1=PGZ,NOT(ISBLANK(Polygon!B132))),IF(Polygon!$S131=1,$E$9,Polygon!B132),"") ->  | G106: =IF(Polygon!$A$1=PGZ,IF(Polygon!$S131=1,Polygon!$R$134,IF(NOT(Polygon!R132=0),Polygon!R132,"")),"") -> 
E107: =IF(AND(Polygon!$A$1=PGZ,NOT(ISBLANK(Polygon!B132))),Polygon!B132,"") ->  | F107: =IF(AND(Polygon!$A$1=PGZ,NOT(ISBLANK(Polygon!B133))),IF(Polygon!$S132=1,$E$9,Polygon!B133),"") ->  | G107: =IF(Polygon!$A$1=PGZ,IF(Polygon!$S132=1,Polygon!$R$134,IF(NOT(Polygon!R133=0),Polygon!R133,"")),"") -> 

Sheet Trigonometrie
A1: Berechnungen im Dreieck
B3: Eingabe | E3: Ausgabe
B4: Strecken und Winkel | E4: Strecken und Winkel
A5: a | D5: a | E5: =ddda -> 
A6: b | D6: b | E6: =dddb -> 
A7: c | D7: c | E7: =dddc -> 
A8: α | D8: α | E8: =dddalpha -> 
A9: β | D9: β | E9: =dddbeta -> 
A10: γ | D10: γ | E10: =dddgamma -> 
B12: Rechtswert | C12: Hochwert | E12: Rechtswert | F12: Hochwert
A13: A | D13: A | E13: =IF(OR($U$59<>0,dFallKO = 4),dddAX,"") ->  | F13: =IF(OR($U$59<>0,dFallKO = 4),dddAY,"") -> 
A14: B | D14: B | E14: =IF(OR($U$59<>0,dFallKO = 4),dddBX,"") ->  | F14: =IF(OR($U$59<>0,dFallKO = 4),dddBY,"") -> 
A15: C | D15: C | E15: =IF(OR($U$59<>0,dFallKO = 4),dddCX,"") ->  | F15: =IF(OR($U$59<>0,dFallKO = 4),dddCY,"") -> 
E17: Höhen [m]
A18: Winkelmaß: | B18: Grad | D18: ha | E18: =IF(OR($U$59<>0,dFallKO = 4),dddb*SIN(dddgamma*PI()/$E$88),"") -> 
A19: Beschriftung: | B19: Ohne | D19: hb | E19: =IF(OR($U$59<>0,dFallKO = 4),dddc*SIN(dddalpha*PI()/$E$88),"") -> 
A20: Drehung | D20: hc | E20: =IF(OR($U$59<>0,dFallKO = 4),ddda*SIN(dddbeta*PI()/$E$88),"") -> 
E21: Umfang [m]
D22: u | E22: =IF(OR($U$59<>0,dFallKO = 4),ddda+dddb+dddc,"") -> 
E23: Fläche [m²]
D24: A | E24: =IF(OR($U$59<>0,dFallKO = 4),ddda*E18/2,"") -> 
B26: Rechenweg:
B28: =IF($U$59<>0,LOOKUP(1,$C$59:$U$59,C61:U61),IF(dFallKO=4,$D99,"")) ->  | H28: =IF($U$59<>0,"ha = b * sin(γ)","") -> 
B29: =IF($U$59<>0,LOOKUP(1,$C$59:$U$59,C62:U62),IF(dFallKO=4,$D100,"")) ->  | H29: =IF($U$59<>0,"hb = c * sin(α)","") -> 
B30: =IF($U$59<>0,LOOKUP(1,$C$59:$U$59,C63:U63),IF(dFallKO=4,$D101,"")) ->  | H30: =IF($U$59<>0,"hc = a * sin(β)","") -> 
B31: =IF($U$59<>0,LOOKUP(1,$C$59:$U$59,C64:U64),IF(dFallKO=4,IF($C102<0,$D102& " + " &$E$88,$D102),"")) ->  | E31: =IF(dFallKO=4,$D105,"") ->  | H31: =IF($U$59<>0,"u = a + b + c","") -> 
B32: =IF($U$59<>0,LOOKUP(1,$C$59:$U$59,C65:U65),IF(dFallKO=4,IF($C103<0,$D103& " + " &$E$88,$D103),"")) ->  | E32: =IF(dFallKO=4,$D106,"") ->  | H32: =IF($U$59<>0,"A = a^2 * ha / 2","") -> 
B33: =IF($U$59<>0,LOOKUP(1,$C$59:$U$59,C66:U66),IF(dFallKO=4,IF($C104<0,$D104& " + " &$E$88,$D104),"")) ->  | E33: =IF(dFallKO=4,$D107,"") -> 
B35: =IF(AND($U$59<>0,dFallKO<9),LOOKUP(1,$B$79:$R$79,B92:R92),"") ->  | E35: =IF(AND($U$59<>0,dFallKO<9),LOOKUP(1.5,$B$79:$R$79,B92:R92),"") -> 
B36: =IF(AND($U$59<>0,dFallKO<9),LOOKUP(1,$B$79:$R$79,B93:R93),"") ->  | E36: =IF(AND($U$59<>0,dFallKO<9),LOOKUP(1.5,$B$79:$R$79,B93:R93),"") -> 
B37: =IF(AND($U$59<>0,dFallKO<9),LOOKUP(1,$B$79:$R$79,B94:R94),"") ->  | E37: =IF(AND($U$59<>0,dFallKO<9),LOOKUP(1.5,$B$79:$R$79,B94:R94),"") -> 
B39: =IF(AND(dFallKO>5,dFallKO<9,$U$59<>0),LOOKUP(1,$B$79:$R$79,B95:R95),"") -> 
A43: Fälle, in denen das Dreieck durch drei Werte aus Winkel oder Streckenlänge definiert ist
C44: SSS | D44: SWS | G44: SWW | J44: WSW | M44: WWS | P44: WsS | Q44: SsW | R44: WsS | S44: SsW | T44: WsS | U44: SsW
B45: a | C45: TRUE | D45: FALSE | E45: TRUE | F45: TRUE | G45: TRUE | H45: TRUE | I45: TRUE | J45: FALSE | K45: FALSE | L45: FALSE | M45: FALSE | N45: FALSE | O45: FALSE | P45: TRUE | Q45: TRUE | R45: TRUE | S45: TRUE | T45: FALSE | U45: FALSE
B46: b | C46: TRUE | D46: TRUE | E46: FALSE | F46: TRUE | G46: FALSE | H46: FALSE | I46: FALSE | J46: TRUE | K46: TRUE | L46: TRUE | M46: FALSE | N46: FALSE | O46: FALSE | P46: TRUE | Q46: TRUE | R46: FALSE | S46: FALSE | T46: TRUE | U46: TRUE
B47: c | C47: TRUE | D47: TRUE | E47: TRUE | F47: FALSE | G47: FALSE | H47: FALSE | I47: FALSE | J47: FALSE | K47: FALSE | L47: FALSE | M47: TRUE | N47: TRUE | O47: TRUE | P47: FALSE | Q47: FALSE | R47: TRUE | S47: TRUE | T47: TRUE | U47: TRUE
B48: α | C48: FALSE | D48: TRUE | E48: FALSE | F48: FALSE | G48: TRUE | H48: TRUE | I48: FALSE | J48: TRUE | K48: TRUE | L48: FALSE | M48: TRUE | N48: TRUE | O48: FALSE | P48: TRUE | Q48: FALSE | R48: TRUE | S48: FALSE | T48: FALSE | U48: FALSE
B49: β | C49: FALSE | D49: FALSE | E49: TRUE | F49: FALSE | G49: TRUE | H49: FALSE | I49: TRUE | J49: TRUE | K49: FALSE | L49: TRUE | M49: TRUE | N49: FALSE | O49: TRUE | P49: FALSE | Q49: TRUE | R49: FALSE | S49: FALSE | T49: TRUE | U49: FALSE
B50: γ | C50: FALSE | D50: FALSE | E50: FALSE | F50: TRUE | G50: FALSE | H50: TRUE | I50: TRUE | J50: FALSE | K50: TRUE | L50: TRUE | M50: FALSE | N50: TRUE | O50: TRUE | P50: FALSE | Q50: FALSE | R50: FALSE | S50: TRUE | T50: FALSE | U50: TRUE
A51: Vergleich mit vorhandenen Werten
B52: ist vorhanden | C52: SSS | D52: SWS | G52: SWW | J52: WSW | M52: WWS | P52: WsS | Q52: SsW | R52: WsS | S52: SsW | T52: WsS | U52: SsW
A53: a | B53: =IF(OR(dFallKO=6,NOT(ISBLANK(da))),TRUE,FALSE) -> FALSE | C53: =EXACT($B53,C45) -> FALSE | D53: TRUE | E53: FALSE | F53: FALSE | G53: FALSE | H53: FALSE | I53: FALSE | J53: TRUE | K53: TRUE | L53: TRUE | M53: TRUE | N53: TRUE | O53: TRUE | P53: FALSE | Q53: FALSE | R53: FALSE | S53: FALSE | T53: TRUE | U53: TRUE
A54: b | B54: =IF(OR(dFallKO=7,NOT(ISBLANK(db))),TRUE,FALSE) -> FALSE | C54: =EXACT($B54,C46) -> FALSE | D54: FALSE | E54: TRUE | F54: FALSE | G54: TRUE | H54: TRUE | I54: TRUE | J54: FALSE | K54: FALSE | L54: FALSE | M54: TRUE | N54: TRUE | O54: TRUE | P54: FALSE | Q54: FALSE | R54: TRUE | S54: TRUE | T54: FALSE | U54: FALSE
A55: c | B55: =IF(OR(dFallKO=8,NOT(ISBLANK(dc))),TRUE,FALSE) -> FALSE | C55: =EXACT($B55,C47) -> FALSE | D55: FALSE | E55: FALSE | F55: TRUE | G55: TRUE | H55: TRUE | I55: TRUE | J55: TRUE | K55: TRUE | L55: TRUE | M55: FALSE | N55: FALSE | O55: FALSE | P55: TRUE | Q55: TRUE | R55: FALSE | S55: FALSE | T55: FALSE | U55: FALSE
A56: α | B56: =NOT(ISBLANK(B8)) -> FALSE | C56: =EXACT($B56,C48) -> TRUE | D56: FALSE | E56: TRUE | F56: TRUE | G56: FALSE | H56: FALSE | I56: TRUE | J56: FALSE | K56: FALSE | L56: TRUE | M56: FALSE | N56: FALSE | O56: TRUE | P56: FALSE | Q56: TRUE | R56: FALSE | S56: TRUE | T56: TRUE | U56: TRUE
A57: β | B57: =NOT(ISBLANK(B9)) -> FALSE | C57: =EXACT($B57,C49) -> TRUE | D57: TRUE | E57: FALSE | F57: TRUE | G57: FALSE | H57: TRUE | I57: FALSE | J57: FALSE | K57: TRUE | L57: FALSE | M57: FALSE | N57: TRUE | O57: FALSE | P57: TRUE | Q57: FALSE | R57: TRUE | S57: TRUE | T57: FALSE | U57: TRUE
A58: γ | B58: =NOT(ISBLANK(B10)) -> FALSE | C58: =EXACT($B58,C50) -> TRUE | D58: TRUE | E58: TRUE | F58: FALSE | G58: TRUE | H58: FALSE | I58: FALSE | J58: TRUE | K58: FALSE | L58: FALSE | M58: TRUE | N58: FALSE | O58: FALSE | P58: TRUE | Q58: TRUE | R58: TRUE | S58: FALSE | T58: TRUE | U58: FALSE
A59: Auswahl Fall bei 1 | C59: =IF(AND(C53:C58),1,0) -> 0 | D59: =IF(C59>0,C59+1,IF(AND(D53:D58),1,0)) -> 0 | E59: 0 | F59: 0 | G59: 0 | H59: 0 | I59: 0 | J59: 0 | K59: 0 | L59: 0 | M59: 0 | N59: 0 | O59: 0 | P59: 0 | Q59: 0 | R59: 0 | S59: 0 | T59: 0 | U59: 0
A60: Ergebnis Fall | C60: 1 | D60: 2 | E60: 3 | F60: 4 | G60: 5 | H60: 6 | I60: 7 | J60: 8 | K60: 9 | L60: 10 | M60: 11 | N60: 12 | O60: 13 | P60: 14 | Q60: 15 | R60: 16 | S60: 17 | T60: 18 | U60: 19
A61: Formel | B61: a | C61: =IF(dFallKO=6,"a = sqr(Cx - Bx)^2 + (Cy - By)^2)","a = " &da) -> a = | D61: a = sqr(b^2 + c^2 - 2 * b * c* cos(α)) | E61: =IF(dFallKO=6,"a = sqr((Cx - Bx)^2 + (Cy - By)^2)","a = " &da) -> a = | F61: =IF(dFallKO=6,"a = sqr((Cx - Bx)^2 + (Cy - By)^2)","a = " &da) -> a = | G61: =IF(dFallKO=6,"a = sqr((Cx - Bx)^2 + (Cy - By)^2)","a = " &da) -> a = | H61: =IF(dFallKO=6,"a = sqr((Cx - Bx)^2 + (Cy - By)^2)","a = " &da) -> a = | I61: =IF(dFallKO=6,"a = sqr((Cx - Bx)^2 + (Cy - By)^2)","a = " &da) -> a = | J61: a = b * sin(α) / sin(β) | K61: a = b * sin(α) / sin(β) | L61: a = b * sin(α) / sin(β) | M61: a = c * sin(α) / sin(γ) | N61: a = c * sin(α) / sin(γ) | O61: a = c * sin(α) / sin(γ) | P61: =IF(dFallKO=6,"a = sqr((Cx - Bx)^2 + (Cy - By)^2)","a = " &da) -> a = | Q61: =IF(dFallKO=6,"a = sqr((Cx - Bx)^2 + (Cy - By)^2)","a = " &da) -> a = | R61: =IF(dFallKO=6,"a = sqr((Cx - Bx)^2 + (Cy - By)^2)","a = " &da) -> a = | S61: =IF(dFallKO=6,"a = sqr((Cx - Bx)^2 + (Cy - By)^2)","a = " &da) -> a = | T61: a = c * sin(α) / sin(γ) | U61: a = c * sin(α) / sin(γ)
B62: b | C62: =IF(dFallKO=7,"b = sqr((Cx - Ax)^2 + (Cy - Ay)^2)","b = " &db) -> b = | D62: =IF(dFallKO=7,"b = sqr((Cx - Ax)^2 + (Cy - Ay)^2)","b = " &db) -> b = | E62: b = sqr(a^2 + c^2 - 2 * a * c* cos(β)) | F62: =IF(dFallKO=7,"b = sqr((Cx - Ax)^2 + (Cy - Ay)^2)","b = " &db) -> b = | G62: b = a * sin(β) / sin(α) | H62: b = a * sin(β) / sin(α) | I62: b = a * sin(β) / sin(α) | J62: =IF(dFallKO=7,"b = sqr((Cx - Ax)^2 + (Cy - Ay)^2)","b = " &db) -> b = | K62: =IF(dFallKO=7,"b = sqr((Cx - Ax)^2 + (Cy - Ay)^2)","b = " &db) -> b = | L62: =IF(dFallKO=7,"b = sqr((Cx - Ax)^2 + (Cy - Ay)^2)","b = " &db) -> b = | M62: b = c * sin(β) / sin(γ) | N62: b = c * sin(β) / sin(γ) | O62: b = c * sin(β) / sin(γ) | P62: =IF(dFallKO=7,"b = sqr((Cx - Ax)^2 + (Cy - Ay)^2)","b = " &db) -> b = | Q62: =IF(dFallKO=7,"b = sqr((Cx - Ax)^2 + (Cy - Ay)^2)","b = " &db) -> b = | R62: b = c * sin(β) / sin(γ) | S62: =IF(dFallKO=7,"b = sqr((Cx - Ax)^2 + (Cy - Ay)^2)","b = " &db) -> b = | T62: =IF(dFallKO=7,"b = sqr((Cx - Ax)^2 + (Cy - Ay)^2)","b = " &db) -> b = | U62: =IF(dFallKO=7,"b = sqr((Cx - Ax)^2 + (Cy - Ay)^2)","b = " &db) -> b =
B63: c | C63: =IF(dFallKO=8,"c = sqr(Bx - Ax)^2 + (By - Ay)^2)","c = " &dc) -> c = | D63: =IF(dFallKO=8,"c = sqr(Bx - Ax)^2 + (By - Ay)^2)","c = " &dc) -> c = | E63: =IF(dFallKO=8,"c = sqr(Bx -Ax)^2 + (By - Ay)^2)","c = " &dc) -> c = | F63: c = sqr(a^2 + b^2 - 2* a *b *cos(γ)) | G63: c = a * sin(γ) / sin(α) | H63: c = a * sin(γ) / sin(α) | I63: c = a * sin(γ) / sin(α) | J63: c = b * sin(γ) / sin(β) | K63: c = b * sin(γ) / sin(β) | L63: c = b * sin(γ) / sin(β) | M63: =IF(dFallKO=8,"c = sqr((Bx - Ax)^2 + (By - Ay)^2)","c = " &dc) -> c = | N63: =IF(dFallKO=8,"c = sqr((Bx - Ax)^2 + (By - Ay)^2)","c = " &dc) -> c = | O63: =IF(dFallKO=8,"c = sqr((Bx - Ax)^2 + (By - Ay)^2)","c = " &dc) -> c = | P63: c = b * sin(γ) / sin(β) | Q63: c = b * sin(γ) / sin(β) | R63: =IF(dFallKO=8,"c = sqr((Bx - Ax)^2 + (By - Ay)^2)","c = " &dc) -> c = | S63: =IF(dFallKO=8,"c = sqr((Bx - Ax)^2 + (By - Ay)^2)","c = " &dc) -> c = | T63: =IF(dFallKO=8,"c = sqr((Bx - Ax)^2 + (By - Ay)^2)","c = " &dc) -> c = | U63: =IF(dFallKO=8,"c = sqr((Bx - Ax)^2 + (By - Ay)^2)","c = " &dc) -> c =
B64: α | C64: α = arccos((a^2 - b^2 - c^2) / (-2 * b * c)) | D64: ="α = " &dalpha -> α = | E64: α = arccos((a^2 - b^2 - c^2) / (-2 * b * c)) | F64: α = arccos((a^2 - b^2 - c^2) / (-2 * b * c)) | G64: ="α = " &dalpha -> α = | H64: ="α = " &dalpha -> α = | I64: ="α ="&$E$88&" - β - γ" -> α =180 - β - γ | J64: ="α = " &dalpha -> α = | K64: ="α = " &dalpha -> α = | L64: ="α ="&$E$88&" - β - γ" -> α =180 - β - γ | M64: ="α = " &dalpha -> α = | N64: ="α = " &dalpha -> α = | O64: ="α ="&$E$88&" - β - γ" -> α =180 - β - γ | P64: ="α = " &dalpha -> α = | Q64: α = arcsin(a * sin(β) / b) | R64: ="α = " &dalpha -> α = | S64: α = arcsin(a * sin(γ) / c) | T64: ="α ="&$E$88&" - β - γ" -> α =180 - β - γ | U64: ="α ="&$E$88&" - β - γ" -> α =180 - β - γ
B65: β | C65: β = arccos((b^2 - c^2 - a^2) / (-2 * c * a)) | D65: β = arccos((b^2 - c^2 - a^2) / (-2 * c * a)) | E65: ="β = " &dbeta -> β = | F65: β = arccos((b^2 - c^2 - a^2) / (-2 * c * a)) | G65: ="β = " &dbeta -> β = | H65: ="β ="&$E$88&" - α - γ" -> β =180 - α - γ | I65: ="β = " &dbeta -> β = | J65: ="β = " &dbeta -> β = | K65: ="β ="&$E$88&" - α - γ" -> β =180 - α - γ | L65: ="β = " &dbeta -> β = | M65: ="β = " &dbeta -> β = | N65: ="β ="&$E$88&" - α - γ" -> β =180 - α - γ | O65: ="β = " &dbeta -> β = | P65: β = arcsin(b * sin(α) / a) | Q65: ="β = " &dbeta -> β = | R65: ="β ="&$E$88&" - α - γ" -> β =180 - α - γ | S65: ="β ="&$E$88&" - α - γ" -> β =180 - α - γ | T65: ="β = " &dbeta -> β = | U65: β = asin(b * sin(γ) / c)
B66: γ | C66: γ = arccos((c^2 - a^2 - b^2) / (-2 * a * b)) | D66: γ = arccos((c^2 - a^2 - b^2) / (-2 * a * b)) | E66: γ = arccos((c^2 - a^2 - b^2) / (-2 * a * b)) | F66: ="γ = " &dgamma -> γ = | G66: ="γ ="&$E$88&" - α - β" -> γ =180 - α - β | H66: ="γ = " &dgamma -> γ = | I66: ="γ = " &dgamma -> γ = | J66: ="γ ="&$E$88&" - α - β" -> γ =180 - α - β | K66: ="γ = " &dgamma -> γ = | L66: ="γ = " &dgamma -> γ = | M66: ="γ ="&$E$88&" - α - β" -> γ =180 - α - β | N66: ="γ = " &dgamma -> γ = | O66: ="γ = " &dgamma -> γ = | P66: ="γ ="&$E$88&" - α - β" -> γ =180 - α - β | Q66: ="γ ="&$E$88&" - α - β" -> γ =180 - α - β | R66: γ = arcsin(c * sin(α) / a) | S66: ="γ = " &dgamma -> γ = | T66: γ = arcsin(c * sin(β) / b) | U66: ="γ = " &dgamma -> γ =
A68: Berechnung Dreieck
B69: a | C69: =IF(AND(C$53:C$58),IF(dFallKO=6,dka,da),"") ->  | D69: =IF(AND(D53:D58),SQRT(POWER(ddb,2)+POWER(ddc,2)-2*ddb*ddc*COS(dalpha*PI()/$E$88)),"") ->  | E69: =IF(AND(E$53:E$58),IF(dFallKO=6,dka,da),"") ->  | F69: =IF(AND(F$53:F$58),IF(dFallKO=6,dka,da),"") ->  | G69: =IF(AND(G$53:G$58),IF(dFallKO=6,dka,da),"") ->  | H69: =IF(AND(H$53:H$58),IF(dFallKO=6,dka,da),"") ->  | I69: =IF(AND(I$53:I$58),IF(dFallKO=6,dka,da),"") ->  | J69: =IF(AND(J$53:J$58),ddb*SIN(ddalpha*PI()/$E$88)/SIN(ddbeta*PI()/$E$88),"") ->  | K69: =IF(AND(K$53:K$58),ddb*SIN(ddalpha*PI()/$E$88)/SIN(ddbeta*PI()/$E$88),"") ->  | L69: =IF(AND(L$53:L$58),ddb*SIN(ddalpha*PI()/$E$88)/SIN(ddbeta*PI()/$E$88),"") ->  | M69: =IF(AND(M$53:M$58),ddc*SIN(ddalpha*PI()/$E$88)/SIN(ddgamma*PI()/$E$88),"") ->  | N69: =IF(AND(N$53:N$58),ddc*SIN(ddalpha*PI()/$E$88)/SIN(ddgamma*PI()/$E$88),"") ->  | O69: =IF(AND(O$53:O$58),ddc*SIN(ddalpha*PI()/$E$88)/SIN(ddgamma*PI()/$E$88),"") ->  | P69: =IF(AND(P$53:P$58),IF(dFallKO=6,dka,da),"") ->  | Q69: =IF(AND(Q$53:Q$58),IF(dFallKO=6,dka,da),"") ->  | R69: =IF(AND(R$53:R$58),IF(dFallKO=6,dka,da),"") ->  | S69: =IF(AND(S$53:S$58),IF(dFallKO=6,dka,da),"") ->  | T69: =IF(AND(T$53:T$58),ddc*SIN(ddalpha*PI()/$E$88)/SIN(ddgamma*PI()/$E$88),"") ->  | U69: =IF(AND(U$53:U$58),ddc*SIN(ddalpha*PI()/$E$88)/SIN(ddgamma*PI()/$E$88),"") -> 
B70: b | C70: =IF(AND(C$53:C$58),IF(dFallKO=7,dkb,db),"") ->  | D70: =IF(AND(D$53:D$58),IF(dFallKO=7,dkb,db),"") ->  | E70: =IF(AND(E53:E58),SQRT(POWER(dda,2)+POWER(ddc,2)-2*dda*ddc*COS(dbeta*PI()/$E$88)),"") ->  | F70: =IF(AND(F$53:F$58),IF(dFallKO=7,dkb,db),"") ->  | G70: =IF(AND(G$53:G$58),dda*SIN(ddbeta*PI()/$E$88)/SIN(ddalpha*PI()/$E$88),"") ->  | H70: =IF(AND(H$53:H$58),dda*SIN(ddbeta*PI()/$E$88)/SIN(ddalpha*PI()/$E$88),"") ->  | I70: =IF(AND(I$53:I$58),dda*SIN(ddbeta*PI()/$E$88)/SIN(ddalpha*PI()/$E$88),"") ->  | J70: =IF(AND(J$53:J$58),IF(dFallKO=7,dkb,db),"") ->  | K70: =IF(AND(K$53:K$58),IF(dFallKO=7,dkb,db),"") ->  | L70: =IF(AND(L$53:L$58),IF(dFallKO=7,dkb,db),"") ->  | M70: =IF(AND(M$53:M$58),ddc*SIN(ddbeta*PI()/$E$88)/SIN(ddgamma*PI()/$E$88),"") ->  | N70: =IF(AND(N$53:N$58),ddc*SIN(ddbeta*PI()/$E$88)/SIN(ddgamma*PI()/$E$88),"") ->  | O70: =IF(AND(O$53:O$58),ddc*SIN(ddbeta*PI()/$E$88)/SIN(ddgamma*PI()/$E$88),"") ->  | P70: =IF(AND(P$53:P$58),IF(dFallKO=7,dkb,db),"") ->  | Q70: =IF(AND(Q$53:Q$58),IF(dFallKO=7,dkb,db),"") ->  | R70: =IF(AND(R$53:R$58),ddc*SIN(ddbeta*PI()/$E$88)/SIN(ddgamma*PI()/$E$88),"") ->  | S70: =IF(AND(S$53:S$58),ddc*SIN(ddbeta*PI()/$E$88)/SIN(ddgamma*PI()/$E$88),"") ->  | T70: =IF(AND(T$53:T$58),IF(dFallKO=7,dkb,db),"") ->  | U70: =IF(AND(U$53:U$58),IF(dFallKO=7,dkb,db),"") -> 
B71: c | C71: =IF(AND(C$53:C$58),IF(dFallKO=8,dkc,dc),"") ->  | D71: =IF(AND(D$53:D$58),IF(dFallKO=8,dkc,dc),"") ->  | E71: =IF(AND(E$53:E$58),IF(dFallKO=8,dkc,dc),"") ->  | F71: =IF(AND(F53:F58),SQRT(POWER(dda,2)+POWER(ddb,2)-2*dda*ddb*COS(dgamma*PI()/$E$88)),"") ->  | G71: =IF(AND(G$53:G$58),dda*SIN(ddgamma*PI()/$E$88)/SIN(ddalpha*PI()/$E$88),"") ->  | H71: =IF(AND(H$53:H$58),dda*SIN(ddgamma*PI()/$E$88)/SIN(ddalpha*PI()/$E$88),"") ->  | I71: =IF(AND(I$53:I$58),dda*SIN(ddgamma*PI()/$E$88)/SIN(ddalpha*PI()/$E$88),"") ->  | J71: =IF(AND(J$53:J$58),ddb*SIN(ddgamma*PI()/$E$88)/SIN(ddbeta*PI()/$E$88),"") ->  | K71: =IF(AND(K$53:K$58),ddb*SIN(ddgamma*PI()/$E$88)/SIN(ddbeta*PI()/$E$88),"") ->  | L71: =IF(AND(L$53:L$58),ddb*SIN(ddgamma*PI()/$E$88)/SIN(ddbeta*PI()/$E$88),"") ->  | M71: =IF(AND(M$53:M$58),IF(dFallKO=8,dkc,dc),"") ->  | N71: =IF(AND(N$53:N$58),IF(dFallKO=8,dkc,dc),"") ->  | O71: =IF(AND(O$53:O$58),IF(dFallKO=8,dkc,dc),"") ->  | P71: =IF(AND(P$53:P$58),ddb*SIN(ddgamma*PI()/$E$88)/SIN(ddbeta*PI()/$E$88),"") ->  | Q71: =IF(AND(Q$53:Q$58),ddb*SIN(ddgamma*PI()/$E$88)/SIN(ddbeta*PI()/$E$88),"") ->  | R71: =IF(AND(R$53:R$58),IF(dFallKO=8,dkc,dc),"") ->  | S71: =IF(AND(S$53:S$58),IF(dFallKO=8,dkc,dc),"") ->  | T71: =IF(AND(T$53:T$58),IF(dFallKO=8,dkc,dc),"") ->  | U71: =IF(AND(U$53:U$58),IF(dFallKO=8,dkc,dc),"") -> 
B72: α | C72: =IF(AND(C53:C58),ACOS((POWER(dda,2)-POWER(ddb,2)-POWER(ddc,2))/(-2*ddb*ddc))*$E$88/PI(),"") ->  | D72: =IF(AND(D53:D58),dalpha,"") ->  | E72: =IF(AND(E53:E58),ACOS((POWER(dda,2)-POWER(ddb,2)-POWER(ddc,2))/(-2*ddb*ddc))*$E$88/PI(),"") ->  | F72: =IF(AND(F53:F58),ACOS((POWER(dda,2)-POWER(ddb,2)-POWER(ddc,2))/(-2*ddb*ddc))*$E$88/PI(),"") ->  | G72: =IF(AND(G$53:G$58),dalpha,"") ->  | H72: =IF(AND(H$53:H$58),dalpha,"") ->  | I72: =IF(AND(I$53:I$58),$E$88-ddbeta-ddgamma,"") ->  | J72: =IF(AND(J$53:J$58),dalpha,"") ->  | K72: =IF(AND(K$53:K$58),dalpha,"") ->  | L72: =IF(AND(L$53:L$58),$E$88-ddbeta-ddgamma,"") ->  | M72: =IF(AND(M$53:M$58),dalpha,"") ->  | N72: =IF(AND(N$53:N$58),dalpha,"") ->  | O72: =IF(AND(O$53:O$58),$E$88-ddbeta-ddgamma,"") ->  | P72: =IF(AND(P$53:P$58),dalpha,"") ->  | Q72: =IF(AND(Q$53:Q$58),ASIN(dda*SIN(ddbeta*PI()/$E$88)/ddb)*$E$88/PI(),"") ->  | R72: =IF(AND(R$53:R$58),dalpha,"") ->  | S72: =IF(AND(S$53:S$58),ASIN(dda*SIN(ddgamma*PI()/$E$88)/ddc)*$E$88/PI(),"") ->  | T72: =IF(AND(T$53:T$58),$E$88-ddbeta-ddgamma,"") ->  | U72: =IF(AND(U$53:U$58),$E$88-ddbeta-ddgamma,"") -> 
B73: β | C73: =IF(AND(C53:C58),ACOS((POWER(ddb,2)-POWER(ddc,2)-POWER(dda,2))/(-2*ddc*dda))*$E$88/PI(),"") ->  | D73: =IF(AND(D53:D58),ACOS((POWER(ddb,2)-POWER(ddc,2)-POWER(dda,2))/(-2*ddc*dda))*$E$88/PI(),"") ->  | E73: =IF(AND(E53:E58),dbeta,"") ->  | F73: =IF(AND(F53:F58),ACOS((POWER(ddb,2)-POWER(ddc,2)-POWER(dda,2))/(-2*ddc*dda))*$E$88/PI(),"") ->  | G73: =IF(AND(G$53:G$58),dbeta,"") ->  | H73: =IF(AND(H$53:H$58),$E$88-ddalpha-ddgamma,"") ->  | I73: =IF(AND(I$53:I$58),dbeta,"") ->  | J73: =IF(AND(J$53:J$58),dbeta,"") ->  | K73: =IF(AND(K$53:K$58),$E$88-ddalpha-ddgamma,"") ->  | L73: =IF(AND(L$53:L$58),dbeta,"") ->  | M73: =IF(AND(M$53:M$58),dbeta,"") ->  | N73: =IF(AND(N$53:N$58),$E$88-ddalpha-ddgamma,"") ->  | O73: =IF(AND(O$53:O$58),dbeta,"") ->  | P73: =IF(AND(P$53:P$58),ASIN(ddb*SIN(ddalpha*PI()/$E$88)/dda)*$E$88/PI(),"") ->  | Q73: =IF(AND(Q$53:Q$58),dbeta,"") ->  | R73: =IF(AND(R$53:R$58),$E$88-ddalpha-ddgamma,"") ->  | S73: =IF(AND(S$53:S$58),$E$88-ddalpha-ddgamma,"") ->  | T73: =IF(AND(T$53:T$58),dbeta,"") ->  | U73: =IF(AND(U$53:U$58),ASIN(ddb*SIN(ddgamma*PI()/$E$88)/ddc)*$E$88/PI(),"") -> 
B74: γ | C74: =IF(AND(C53:C58),ACOS((POWER(ddc,2)-POWER(dda,2)-POWER(ddb,2))/(-2*dda*ddb))*$E$88/PI(),"") ->  | D74: =IF(AND(D53:D58),ACOS((POWER(ddc,2)-POWER(dda,2)-POWER(ddb,2))/(-2*dda*ddb))*$E$88/PI(),"") ->  | E74: =IF(AND(E53:E58),ACOS((POWER(ddc,2)-POWER(dda,2)-POWER(ddb,2))/(-2*dda*ddb))*$E$88/PI(),"") ->  | F74: =IF(AND(F53:F58),dgamma,"") ->  | G74: =IF(AND(G$53:G$58),$E$88-ddalpha-ddbeta,"") ->  | H74: =IF(AND(H$53:H$58),dgamma,"") ->  | I74: =IF(AND(I$53:I$58),dgamma,"") ->  | J74: =IF(AND(J$53:J$58),$E$88-ddalpha-ddbeta,"") ->  | K74: =IF(AND(K$53:K$58),dgamma,"") ->  | L74: =IF(AND(L$53:L$58),dgamma,"") ->  | M74: =IF(AND(M$53:M$58),$E$88-ddalpha-ddbeta,"") ->  | N74: =IF(AND(N$53:N$58),dgamma,"") ->  | O74: =IF(AND(O$53:O$58),dgamma,"") ->  | P74: =IF(AND(P$53:P$58),$E$88-ddalpha-ddbeta,"") ->  | Q74: =IF(AND(Q$53:Q$58),$E$88-ddalpha-ddbeta,"") ->  | R74: =IF(AND(R$53:R$58),ASIN(ddc*SIN(ddalpha*PI()/$E$88)/dda)*$E$88/PI(),"") ->  | S74: =IF(AND(S$53:S$58),dgamma,"") ->  | T74: =IF(AND(T$53:T$58),ASIN(ddc*SIN(dbeta*PI()/$E$88)/ddb)*$E$88/PI(),"") ->  | U74: =IF(AND(U$53:U$58),dgamma,"") -> 
A76: Berechnung Koordinaten
B77: A gegeben | D77: B gegeben | F77: C gegeben | H77: ABC gegeben | J77: Keine gegeben | L77: BC = a gegeben | N77: CA = b gegeben | P77: AB = c gegeben | R77: Ungültig
A78: ist vorhanden | B78: =IF(AND(NOT(ISBLANK(dAX)),ISBLANK(dBX),ISBLANK(dCX)),TRUE,FALSE) -> FALSE | C78: =IF(AND(NOT(ISBLANK(dAY)),ISBLANK(dBY),ISBLANK(dCY)),TRUE,FALSE) -> FALSE | D78: =IF(AND(ISBLANK(dAX),NOT(ISBLANK(dBX)),ISBLANK(dCX)),TRUE,FALSE) -> FALSE | E78: =IF(AND(ISBLANK(dAY),NOT(ISBLANK(dBY)),ISBLANK(dCY)),TRUE,FALSE) -> FALSE | F78: =IF(AND(ISBLANK(dAX),ISBLANK(dBX),NOT(ISBLANK(dCX))),TRUE,FALSE) -> FALSE | G78: =IF(AND(ISBLANK(dAY),ISBLANK(dBY),NOT(ISBLANK(dCY))),TRUE,FALSE) -> FALSE | H78: =IF(AND(NOT(ISBLANK(dAX)),NOT(ISBLANK(dBX)),NOT(ISBLANK(dCX))),TRUE,FALSE) -> FALSE | I78: =IF(AND(NOT(ISBLANK(dAY)),NOT(ISBLANK(dBY)),NOT(ISBLANK(dCY))),TRUE,FALSE) -> FALSE | J78: =IF(AND(ISBLANK(dAX),ISBLANK(dBX),ISBLANK(dCX)),TRUE,FALSE) -> TRUE | K78: =IF(AND(ISBLANK(dAY),ISBLANK(dBY),ISBLANK(dCY)),TRUE,FALSE) -> TRUE | L78: =IF(AND(AND(ISBLANK(dAX),ISBLANK(dAY)),AND(NOT(ISBLANK(dBX)),NOT(ISBLANK(dBY))),AND(NOT(ISBLANK(dCX)),NOT(ISBLANK(dCY)))),TRUE,FALSE) -> FALSE | N78: =IF(AND(AND(NOT(ISBLANK(dAX)),NOT(ISBLANK(dAY))),AND(ISBLANK(dBX),ISBLANK(dBY)),AND(NOT(ISBLANK(dCX)),NOT(ISBLANK(dCY)))),TRUE,FALSE) -> FALSE | P78: =IF(AND(AND(NOT(ISBLANK(dAX)),NOT(ISBLANK(dAY))),AND(NOT(ISBLANK(dBX)),NOT(ISBLANK(dBY))),AND(ISBLANK(dCX),ISBLANK(dCY))),TRUE,FALSE) -> FALSE
A79: Auswahl Fall bei 1 ; 1,5 | B79: =IF(AND(B78,C78),1,0) -> 0 | C79: =IF(AND(B78,C78),1.5,0) -> 0 | D79: =IF(AND(D78,E78),1,IF(C79<>0,C79+1,0)) -> 0 | E79: =IF(AND(D78,E78),1.5,IF(C79<>0,C79+1.5,0)) -> 0 | F79: =IF(AND(F78,G78),1,IF(E79<>0,E79+1,0)) -> 0 | G79: =IF(AND(F78,G78),1.5,IF(E79<>0,E79+1.5,0)) -> 0 | H79: =IF(AND(H78,I78),1,IF(G79<>0,G79+1,0)) -> 0 | I79: =IF(AND(H78,I78),1.5,IF(G79<>0,G79+1.5,0)) -> 0 | J79: =IF(AND(J78,K78),1,IF(I79<>0,I79+1,0)) -> 1 | K79: =IF(AND(J78,K78),1.5,IF(I79<>0,I79+1.5,0)) -> 1.5 | L79: =IF(L78,1,IF(K79=0,0,K79+1)) -> 2.5 | M79: =IF(L78,1.5,IF($J$79<>0,$J$79+1.5,0)) -> 2.5 | N79: =IF(N78,1,IF(L79=0,0,L79+1)) -> 3.5 | O79: =IF(N78,1.5,IF(L79<>0,L79+1.5,0)) -> 4 | P79: =IF(P78,1,IF(N79=0,0,N79+1)) -> 4.5 | Q79: =IF(P78,1.5,IF(N79<>0,N79+1.5,0)) -> 5 | R79: =IF($P$79>0,$P$79+1,1) -> 5.5
B80: 1 | D80: 2 | F80: 3 | H80: 4 | J80: 5 | L80: 6 | N80: 7 | P80: 8 | R80: 9
B81: X | C81: Y | D81: X | E81: Y | F81: X | G81: Y | H81: X | I81: Y | J81: X | K81: Y | L81: X | M81: Y | N81: X | O81: Y | P81: X | Q81: Y
A82: A | B82: =IF(AND(B$78:C$78),dAX,"") ->  | C82: =IF(AND(B$78:C$78),dAY,"") ->  | D82: =IF(AND($D$78:$E$78),D84+(dddb*COS((drot+$E$88+dddbeta-dddgamma)*PI()/$E$88)),"") ->  | E82: =IF(AND($D$78:$E$78),E84+(dddb*SIN((drot+$E$88+dddbeta-dddgamma)*PI()/$E$88)),"") ->  | F82: =IF(AND($F$78:$G$78),dCX+(dddb*COS((drot+dddgamma)*PI()/$E$88)),"") ->  | G82: =IF(AND($F$78:$G$78),dCY+(dddb*SIN((drot+dddgamma)*PI()/$E$88)),"") ->  | H82: =IF(AND($H$78:$I$78),dAX,"") ->  | I82: =IF(AND($H$78:$I$78),dAY,"") ->  | J82: =IF(AND(J$78:K$78),0,"") -> 0 | K82: =IF(AND(J$78:K$78),0,"") -> 0 | L82: =IF(L78,dCX+(dddb*COS((L85)*PI()/$E$88)),"") ->  | M82: =IF(L78,dCY+(dddb*SIN(( L85)*PI()/$E$88)),"") ->  | N82: =IF(NOT($N$78),"",dAX) ->  | O82: =IF(NOT($N$78),"",dAY) ->  | P82: =IF(NOT($P$78),"",dAX) ->  | Q82: =IF(NOT($P$78),"",dAY) -> 
A83: B | B83: =IF(AND(B$78:C$78),dAX+(dddc*COS((drot+dddalpha)*PI()/$E$88)),"") ->  | C83: =IF(AND(B$78:C$78),dAY+(dddc*SIN((drot+dddalpha)*PI()/$E$88)),"") ->  | D83: =IF(AND($D$78:$E$78),dBX,"") ->  | E83: =IF(AND($D$78:$E$78),dBY,"") ->  | F83: =IF(AND($F$78:$G$78),F82+(dddc*COS((drot+$E$88+dddgamma-dddalpha)*PI()/$E$88)),"") ->  | G83: =IF(AND($F$78:$G$78),G82+(dddc*SIN((drot+$E$88+dddgamma-dddalpha)*PI()/$E$88)),"") ->  | H83: =IF(AND($H$78:$I$78),dBX,"") ->  | I83: =IF(AND($H$78:$I$78),dBY,"") ->  | J83: =IF(AND(J$78:K$78),0+(dddc*COS((drot+dddalpha)*PI()/$E$88)),"") ->  | K83: =IF(AND(J$78:K$78),0+(dddc*SIN((drot+dddalpha)*PI()/$E$88)),"") ->  | L83: =IF(NOT($L$78),"",dBX) ->  | M83: =IF(NOT($L$78),"",dBY) ->  | N83: =IF(N78,dAX+(dddc*COS((N85)*PI()/$E$88)),"") ->  | O83: =IF(N78,dAY+(dddc*SIN((N85)*PI()/$E$88)),"") ->  | P83: =IF(NOT($P$78),"",dBX) ->  | Q83: =IF(NOT($P$78),"",dBY) -> 
A84: C | B84: =IF(AND(B$78:C$78),B83+(ddda*COS((drot+$E$88+dddalpha-dddbeta)*PI()/$E$88)),"") ->  | C84: =IF(AND(B$78:C$78),C83+(ddda*SIN((drot+$E$88+dddalpha-dddbeta)*PI()/$E$88)),"") ->  | D84: =IF(AND($D$78:$E$78),dBX+(ddda*COS((drot+dddbeta)*PI()/$E$88)),"") ->  | E84: =IF(AND($D$78:$E$78),dBY+(ddda*SIN((drot+dddbeta)*PI()/$E$88)),"") ->  | F84: =IF(AND($F$78:$G$78),dCX,"") ->  | G84: =IF(AND($F$78:$G$78),dCY,"") ->  | H84: =IF(AND($H$78:$I$78),dCX,"") ->  | I84: =IF(AND($H$78:$I$78),dCY,"") ->  | J84: =IF(AND(J$78:K$78),J83+(ddda*COS((drot+$E$88+dddalpha-dddbeta)*PI()/$E$88)),"") ->  | K84: =IF(AND(J$78:K$78),K83+(ddda*SIN((drot+$E$88+dddalpha-dddbeta)*PI()/$E$88)),"") ->  | L84: =IF(NOT($L$78),"",dCX) ->  | M84: =IF(NOT($L$78),"",dCY) ->  | N84: =IF(NOT($N$78),"",dCX) ->  | O84: =IF(NOT($N$78),"",dCY) ->  | P84: =IF(P78,dBX+(ddda*COS((P85)*PI()/$E$88)),"") ->  | Q84: =IF(P78,dBY+(ddda*SIN((P85)*PI()/$E$88)),"") -> 
D85: Fallunterscheidungen | G85: Referenz für Drop Downs | L85: =SUM(L87:L90) -> 0 | N85: =SUM(N87:N90) -> 0 | P85: =SUM(P87:P90) -> 0
D86: Fall gegeben: | E86: =IF($U$59<>0,LOOKUP(1,C59:U59,C60:U60),0) -> 0 | G86: Grad | H86: Ohne | J86: 2 Pkte gegeben: δ zur korrekten Drehung des Dreiecks
D87: Koord Fall | E87: =LOOKUP(1,$B$79:$R$79,$B$80:$R$80) -> 5 | G87: Gon | H87: Bezeichnung | J87: X1<X2 | L87: =IF(dBX<dCX,$E$88+(ATAN((dCY-dBY)/(dCX-dBX))*$E$88/PI())-dddgamma,0) -> 0 | N87: =IF(dCX<dAX,$E$88+(ATAN((dAY-dCY)/(dAX-dCX))*$E$88/PI())-dddalpha,0) -> 0 | P87: =IF(dAX<dBX,$E$88+(ATAN((dBY-dAY)/(dBX-dAX))*$E$88/PI())-dddbeta,0) -> 0
D88: Halbkreis | E88: =IF($B$18=$G$86,180,IF($B$18=$G$87,200,"SetScale!")) -> 180 | H88: Werte | J88: X1>X2 | L88: =IF(dBX>dCX,(ATAN((dCY-dBY)/(dCX-dBX))*$E$88/PI())-dddgamma,0) -> 0 | N88: =IF(dCX>dAX,(ATAN((dAY-dCY)/(dAX-dCX))*$E$88/PI())-dddalpha,0) -> 0 | P88: =IF(dAX>dBX,(ATAN((dBY-dAY)/(dBX-dAX))*$E$88/PI())-dddbeta,0) -> 0
J89: X1=X2;Y1<Y2 | L89: =IF(AND(dBX=dCX,dBY<dCY),($E$88*1.5)-dddgamma,0) -> 0 | N89: =IF(AND(dCX=dAX,dCY<dAY),($E$88*1.5)-dddalpha,0) -> 0 | P89: =IF(AND(dAX=dBX,dAY<dBY),($E$88*1.5)-dddbeta,0) -> 0
J90: X1=X2;Y1>Y2 | L90: =IF(AND(dBX=dCX,dBY>dCY),-($E$88*1.5)-dddgamma,0) -> 0 | N90: =IF(AND(dCX=dAX,dCY>dAY),-($E$88*1.5)-dddalpha,0) -> 0 | P90: =IF(AND(dAX=dBX,dAY>dBY),-($E$88*1.5)-dddbeta,0) -> 0
A91: Anzeige Formeln Koordinaten
B92: ="Ax = "& dAX -> Ax = | C92: ="Ay = "&dAY -> Ay = | D92: ="Ax = Cx + b* cos(" & $E$88 &" + β - γ)" -> Ax = Cx + b* cos(180 + β - γ) | E92: ="Ay = Cy + b* sin(" & $E$88 &" + β - γ)" -> Ay = Cy + b* sin(180 + β - γ) | F92: ="Ax = Cx + cos(γ)" -> Ax = Cx + cos(γ) | G92: ="Ay = Cy + sin(γ)" -> Ay = Cy + sin(γ) | H92: ="Ax= " & dAX -> Ax= | I92: ="Ay= " & dAY -> Ay= | J92: ="Ax = 0 (angenommen)" -> Ax = 0 (angenommen) | K92: ="Ay= 0 (angenommen)" -> Ay= 0 (angenommen) | L92: ="Ax = Cx + b * cos(δ)" -> Ax = Cx + b * cos(δ) | M92: ="Ay = Cy + b * sin(δ)" -> Ay = Cy + b * sin(δ) | N92: ="Ax = " &dAX -> Ax = | O92: ="Ay = " &dAY -> Ay = | P92: ="Ax = " &dAX -> Ax = | Q92: ="Ay = " &dAY -> Ay =
B93: ="Bx = Ax + c * cos(α)" -> Bx = Ax + c * cos(α) | C93: ="By = Ay + c* sin(α)" -> By = Ay + c* sin(α) | D93: ="Bx = "& dBX -> Bx = | E93: ="By = "& dBY -> By = | F93: ="Bx = Ax + c * cos(" &$E$88 &" + γ- α)" -> Bx = Ax + c * cos(180 + γ- α) | G93: ="By = Ay + c * sin(" &$E$88 &" + γ- α)" -> By = Ay + c * sin(180 + γ- α) | H93: ="Bx = "&dBX -> Bx = | I93: ="By = "&dBY -> By = | J93: ="Bx = Ax + c * cos(α)" -> Bx = Ax + c * cos(α) | K93: ="By = Ay + c* sin(α)" -> By = Ay + c* sin(α) | L93: ="Bx = " &dBX -> Bx = | M93: ="By = " &dBY -> By = | N93: ="By = Ay + c * sin(δ)" -> By = Ay + c * sin(δ) | O93: ="Bx = Ax + c * cos(δ)" -> Bx = Ax + c * cos(δ) | P93: ="Bx = " &dBX -> Bx = | Q93: ="By = " &dBY -> By =
B94: ="Cx = Bx + a * cos(" & $E$88 &" + α - β)" -> Cx = Bx + a * cos(180 + α - β) | C94: ="Cy = By + a * sin(" & $E$88 &" + α - β)" -> Cy = By + a * sin(180 + α - β) | D94: ="Cx = Bx + a * cos(β)" -> Cx = Bx + a * cos(β) | E94: ="Cy = By + a * sin(β)" -> Cy = By + a * sin(β) | F94: ="Cx = "&dCX -> Cx = | G94: ="Cy = "&dCY -> Cy = | H94: ="Cx = "&dCX -> Cx = | I94: ="Cy = "&dCY -> Cy = | J94: ="Cx = Bx + a * cos(" & $E$88 &" + α - β)" -> Cx = Bx + a * cos(180 + α - β) | K94: ="Cy = By + a * sin(" & $E$88 &" + α - β)" -> Cy = By + a * sin(180 + α - β) | L94: ="Cx = " &dCX -> Cx = | M94: ="Cy = " &dCY -> Cy = | N94: ="Cx = " &dCX -> Cx = | O94: ="Cy = " &dCY -> Cy = | P94: ="Cx = Bx + a * cos(δ)" -> Cx = Bx + a * cos(δ) | Q94: ="Cy = By + a * sin(δ)" -> Cy = By + a * sin(δ)
L95: =IF(dBX<dCX,"δ = "&$E$88&" + arctan((Cy - By) / (Cy - By)) - γ",IF(dBX>dCX,"δ = arctan(Cy - By) / (Cy-By)) - γ",IF(AND(dBX=dCX,dBY<dCY),$E$88 &" * 1,5 - γ",IF(AND(dBX=dCX,dBY>dCY),"-"&$E$88&" * 1,5 - γ",0)))) -> 0 | N95: =IF(dCX<dAX,"δ = "&$E$88&" + arctan((Ay - Cy) / (Ay - Cy)) - α",IF(dCX>dAX,"δ = arctan(Ay - Cy) / (Ay-Cy)) - α",IF(AND(dCX=dAX,dCY<dAY),$E$88 &" * 1,5 - α",IF(AND(dCX=dAX,dCY>dAY),"-"&$E$88&" * 1,5 - α",0)))) -> 0 | P95: =IF(dAX<dBX,"δ = "&$E$88&" + arctan((By - Ay) / (By - Ay)) - β",IF(dAX>dBX,"δ = arctan(By - Ay) / (By-Ay)) - β",IF(AND(dAX=dBX,dAY<dBY),$E$88 &" * 1,5 - β",IF(AND(dAX=dBX,dAY>dBY),"-"&$E$88&" * 1,5 - β",0)))) -> 0
A98: Berechnung aus drei Koordinaten | D98: Formeln | G98: Ergebnis
A99: a | B99: =IF(OR(dFallKO=4,dFallKO=6),SQRT(POWER(dddCX-dddBX,2)+POWER(dddCY-dddBY,2)),0) -> 0 | D99: a = sqr( Cx - Bx)^2 + (Cy - By)^2) | G99: a | H99: =IF(dFallKO=4,$B99,INDEX(dda,LOOKUP(1,$C$59:$U$59,$C$60:$U$60))) -> 
A100: b | B100: =IF(OR(dFallKO=4,dFallKO=7),SQRT(POWER(dddCX-dddAX,2)+POWER(dddCY-dddAY,2)),0) -> 0 | D100: b = sqr(Cx - Ax)^2 + (Cy - Ay)^2) | G100: b | H100: =IF(dFallKO=4,$B100,INDEX(ddb,LOOKUP(1,$C$59:$U$59,$C$60:$U$60))) -> 
A101: c | B101: =IF(OR(dFallKO=4,dFallKO=8),SQRT(POWER(dddBX-dddAX,2)+POWER(dddBY-dddAY,2)),0) -> 0 | D101: c = sqr(Bx - Ax)^2 + (By - Ay)^2) | G101: c | H101: =IF(dFallKO=4,$B101,INDEX(ddc,LOOKUP(1,$C$59:$U$59,$C$60:$U$60))) -> 
A102: α | B102: =IF($C102<0,$C102+$E$88,$C102) -> 0 | C102: =ATAN((dma-dmb)/(1+dma*dmb))*$E$88/PI() -> 0 | D102: α = arctan((ma - mb) / (1 + ma * mb)) | G102: α | H102: =IF(dFallKO=4,$B102,INDEX(ddalpha,LOOKUP(1,$C$59:$U$59,$C$60:$U$60))) -> 
A103: β | B103: =IF($C103<0,$C103+$E$88,$C103) -> 0 | C103: =ATAN((dmb-dmc)/(1+dmb*dmc))*$E$88/PI() -> 0 | D103: β = arctan((mb - mc) / (1 + mb * mc)) | G103: β | H103: =IF(dFallKO=4,$B103,INDEX(ddbeta,LOOKUP(1,$C$59:$U$59,$C$60:$U$60))) -> 
A104: γ | B104: =IF($C104<0,$C104+$E$88,$C104) -> 0 | C104: =ATAN((dmc-dma)/(1+dmc*dma))*$E$88/PI() -> 0 | D104: γ = arctan((mc - ma) / (1 + mc * ma)) | G104: γ | H104: =IF(dFallKO=4,$B104,INDEX(ddgamma,LOOKUP(1,$C$59:$U$59,$C$60:$U$60))) -> 
A105: ma | B105: =IF(dFallKO=4,(dddCY-dddAY)/(dddCX-dddAX),0) -> 0 | D105: ma = arctan((Cy - Ay) / (Cx - Ax)) | H105: X | I105: Y
A106: mb | B106: =IF(dFallKO=4,(dddAY-dddBY)/(dddAX-dddBX),0) -> 0 | D106: mb = arctan((Ay - By) / (Ax - Bx)) | G106: A | H106: =LOOKUP(1,$B$79:$R$79,B82:R82) -> 0 | I106: =LOOKUP(1.5,$B$79:$R$79,B82:R82) -> 0
A107: mc | B107: =IF(dFallKO=4,(dddBY-dddCY)/(dddBX-dddCX),0) -> 0 | D107: mc = arctan((By - Cy) / (Bx - Cx)) | G107: B | H107: =LOOKUP(1,$B$79:$R$79,B83:R83) ->  | I107: =LOOKUP(1.5,$B$79:$R$79,B83:R83) -> 
G108: C | H108: =LOOKUP(1,$B$79:$R$79,B84:Q84) ->  | I108: =LOOKUP(1.5,$B$79:$R$79,B84:Q84) -> 
A110: NR: | B110: Koord Zeichnung | D110: Koord Seitenhalbierende | F110: Beschriftung
B111: X | C111: Y | D111: X | E111: Y
A112: =IF((MAX(dddAX,dddBX,dddCX)-MIN(dddAX,dddBX,dddCX))>(MAX(dddAY,dddBY,dddCY)-MIN(dddAY,dddBY,dddCY)),(MAX(dddAX,dddBX,dddCX)-MIN(dddAX,dddBX,dddCX))/10,(MAX(dddAY,dddBY,dddCY)-MIN(dddAY,dddBY,dddCY))/10) ->  | B112: =((dddAX-MIN(dddAX,dddBX,dddCX))/$A$112)+$A$113 ->  | C112: =((dddAY-MIN(dddAY,dddBY,dddCY))/$A$112)+$A$114 ->  | D112: =(B114+B113)/2 ->  | E112: =(C114+C113)/2 ->  | F112: =IF(OR($U$59<>0,dFallKO = 4),IF($A$13="","",IF($B$19=$H$86,"",IF($B$19=$H$87,$A13,$A13&" (" &ROUND(dddAX,0)&"/"&ROUND(dddAY,0)&")"))),"") ->  | G112: =IF(OR($U$59<>0,dFallKO = 4),IF($A$5="","",IF($B$19=$H$86,"",IF($B$19=$H$87,$A$5,$A$5&" = "&ROUND(ddda,0)))),"") ->  | H112: =IF(OR($U$59<>0,dFallKO = 4),IF($A$8="","",IF($B$19=$H$86,"",IF($B$19=$H$87,$A$8,$A$8&" = " &ROUND(dddalpha,0) &IF($B$18=$G$86,"°"," g")))),"") -> 
A113: =(10-(MAX(dddAX,dddBX,dddCX)-MIN(dddAX,dddBX,dddCX))/$A$112)/2 ->  | B113: =((dddBX-MIN(dddAX,dddBX,dddCX))/$A$112)+$A$113 ->  | C113: =((dddBY-MIN(dddAY,dddBY,dddCY))/$A$112)+$A$114 ->  | D113: =(B112+B114)/2 ->  | E113: =(C112+C114)/2 ->  | F113: =IF(OR($U$59<>0,dFallKO = 4),IF($A$14="","",IF($B$19=$H$86,"",IF($B$19=$H$87,$A14,$A14&" (" &ROUND(dddBX,0)&"/"&ROUND(dddBY,0)&")"))),"") ->  | G113: =IF(OR($U$59<>0,dFallKO = 4),IF($A$6="","",IF($B$19=$H$86,"",IF($B$19=$H$87,$A$6,$A$6&" = "&ROUND(dddb,0)))),"") ->  | H113: =IF(OR($U$59<>0,dFallKO = 4),IF($A$9="","",IF($B$19=$H$86,"",IF($B$19=$H$87,$A$9,$A$9&" = " &ROUND(dddbeta,0) &IF($B$18=$G$86,"°"," g")))),"") -> 
A114: =(10-(MAX(dddAY,dddBY,dddCY)-MIN(dddAY,dddBY,dddCY))/$A$112)/2 ->  | B114: =((dddCX-MIN(dddAX,dddBX,dddCX))/$A$112)+$A$113 ->  | C114: =((dddCY-MIN(dddAY,dddBY,dddCY))/$A$112)+$A$114 ->  | D114: =(B113+B112)/2 ->  | E114: =(C113+C112)/2 ->  | F114: =IF(OR($U$59<>0,dFallKO = 4),IF($A$15="","",IF($B$19=$H$86,"",IF($B$19=$H$87,$A15,$A15&" (" &ROUND(dddCX,0)&"/"&ROUND(dddCY,0)&")"))),"") ->  | G114: =IF(OR($U$59<>0,dFallKO = 4),IF($A$7="","",IF($B$19=$H$86,"",IF($B$19=$H$87,$A$7,$A$7&" = "&ROUND(dddc,0)))),"") ->  | H114: =IF(OR($U$59<>0,dFallKO = 4),IF($A$10="","",IF($B$19=$H$86,"",IF($B$19=$H$87,$A$10,$A$10&" = " &ROUND(dddgamma,0) &IF($B$18=$G$86,"°"," g")))),"") -> 
B115: =B112 ->  | C115: =C112 -> 

Sheet Orthogonal
A1: Orthogonalverfahren
E2: Einhängepunkt
A3: AntragsNr | E3: Bezeichnung | G3: Rechtswert | H3: Rechtswert | I3: Hochwert
A4: Antragsteller | E4: O | G4: 1000 | I4: 1000
A5: Massnahme | E5: Grundlinie | J5: Hilfslinien
A6: Aufnehmend | G6: Richtung: | H6: Richtung: | I6: 180 | J6: rechtwinklig zur Grundlinie
A7: Datum
A8: FlNr/Dist | E8: Bezeichnung | F8: Richtung | G8: Strecke | H8: Strecke | I8: Neigung | J8: Bezeichnung | K8: Strecke | L8: Neigung
A9: Gde/Abt | G9: fort- schreibend | H9: Binde- maße | K9: ="- = links" -> - = links
A10: Gmkg/Best | E10: =$E$4 -> O | K10: ="+ = rechts" -> + = rechts
C11: =IF(OR( $P$70<>"normal",$A$1=LNE),"","ha") ->  | F11: =IF(OR(AND($B$22=fortschreibend,$G11<>""),AND($B$22<>fortschreibend,$H11<>"")),$I$6,"") ->  | H11: =IF($G11 <>"",$G11,"") -> 
C12: =IF($P$70<>"normal","","km") ->  | F12: =IF(OR(AND($B$22=fortschreibend,$G12<>""),AND($B$22<>fortschreibend,$H12<>"")),$F11,"") ->  | H12: =IF($G12<>"",$G12-$H11,"") -> 
C13: =IF(AND($P$70="normal",$A$1=PGG),"ha","") ->  | H13: =IF($G13<>"",$G13-SUM($H$11:$H12),"") -> 
A14: Quelle | B14: Aequometer v 3.4 | H14: =IF($G14<>"",$G14-SUM($H$11:$H13),"") -> 
A15: Prfsum | H15: =IF($G15<>"",$G15-SUM($H$11:$H14),"") -> 
A16: Bemerkung | H16: =IF($G16<>"",$G16-SUM($H$11:$H15),"") -> 
H17: =IF($G17<>"",$G17-SUM($H$11:$H16),"") -> 
H18: =IF($G18<>"",$G18-SUM($H$11:$H17),"") -> 
H19: =IF($G19<>"",$G19-SUM($H$11:$H18),"") -> 
H20: =IF($G20<>"",$G20-SUM($H$11:$H19),"") -> 
H21: =IF($G21<>"",$G21-SUM($H$11:$H20),"") -> 
A22: Strecke | B22: fortschreibend | H22: =IF($G22<>"",$G22-SUM($H$11:$H21),"") -> 
H23: =IF($G23<>"",$G23-SUM($H$11:$H22),"") -> 
A24: Winkelmaß: | B24: Grad | H24: =IF($G24<>"",$G24-SUM($H$11:$H23),"") -> 
A25: (Richtung) | H25: =IF($G25<>"",$G25-SUM($H$11:$H24),"") -> 
A26: Winkelmaß: | B26: Grad | H26: =IF($G26<>"",$G26-SUM($H$11:$H25),"") -> 
A27: (Neigung) | H27: =IF($G27<>"",$G27-SUM($H$11:$H26),"") -> 
A28: a oder z? | B28: a | H28: =IF($G28<>"",$G28-SUM($H$11:$H27),"") -> 
H29: =IF($G29<>"",$G29-SUM($H$11:$H28),"") -> 
H30: =IF($G30<>"",$G30-SUM($H$11:$H29),"") -> 
H31: =IF($G31<>"",$G31-SUM($H$11:$H30),"") -> 
H32: =IF($G32<>"",$G32-SUM($H$11:$H31),"") -> 
H33: =IF($G33<>"",$G33-SUM($H$11:$H32),"") -> 
H34: =IF($G34<>"",$G34-SUM($H$11:$H33),"") -> 
H35: =IF($G35<>"",$G35-SUM($H$11:$H34),"") -> 
H36: =IF($G36<>"",$G36-SUM($H$11:$H35),"") -> 
H37: =IF($G37<>"",$G37-SUM($H$11:$H36),"") -> 
H38: =IF($G38<>"",$G38-SUM($H$11:$H37),"") -> 
H39: =IF($G39<>"",$G39-SUM($H$11:$H38),"") -> 
H40: =IF($G40<>"",$G40-SUM($H$11:$H39),"") -> 
H41: =IF($G41<>"",$G41-SUM($H$11:$H40),"") -> 
H42: =IF($G42<>"",$G42-SUM($H$11:$H41),"") -> 
H43: =IF($G43<>"",$G43-SUM($H$11:$H42),"") -> 
F44: =IF(OR(AND($B$22=fortschreibend,$G44<>""),AND($B$22<>fortschreibend,$H44<>"")),$F43,"") ->  | H44: =IF($G44<>"",$G44-SUM($H$11:$H43),"") -> 
H45: =IF($G45<>"",$G45-SUM($H$11:$H44),"") -> 
H46: =IF($G46<>"",$G46-SUM($H$11:$H45),"") -> 
H47: =IF($G47<>"",$G47-SUM($H$11:$H46),"") -> 
H48: =IF($G48<>"",$G48-SUM($H$11:$H47),"") -> 
H49: =IF($G49<>"",$G49-SUM($H$11:$H48),"") -> 
H50: =IF($G50<>"",$G50-SUM($H$11:$H49),"") -> 
H51: =IF($G51<>"",$G51-SUM($H$11:$H50),"") -> 
H52: =IF($G52<>"",$G52-SUM($H$11:$H51),"") -> 
H53: =IF($G53<>"",$G53-SUM($H$11:$H52),"") -> 
H54: =IF($G54<>"",$G54-SUM($H$11:$H53),"") -> 
H55: =IF($G55<>"",$G55-SUM($H$11:$H54),"") ->  | P55: Grad
H56: =IF($G56<>"",$G56-SUM($H$11:$H55),"") ->  | P56: Gon
H57: =IF($G57<>"",$G57-SUM($H$11:$H56),"") ->  | P57: Prozent
H58: =IF($G58<>"",$G58-SUM($H$11:$H57),"") ->  | P58: %
H59: =IF($G59<>"",$G59-SUM($H$11:$H58),"") ->  | P59: a
H60: =IF($G60<>"",$G60-SUM($H$11:$H59),"") ->  | P60: z
P62: fortschreibend
P63: Bindemaße
H86: Ohne
H87: Bezeichnung
H88: Werte

Sheet GK<->WGS84
A1: Koordinaten Transformation
A2: Eingabe | E2: Ausgabe
A3: GPS-Koordinaten (WGS84) | D3: ="->" -> -> | E3: Gauss-Krüger
A5: Grad | B5: Minuten | C5: Sekunden | D5: Dezimalgrad:
A6: 48 | B6: 23 | C6: 38.66405 | D6: =A6+B6/60+C6/3600 -> 48.39407335 | G6: =C61 -> Rechtswert | H6: =C55 -> Hochwert
A7: 11 | B7: 39 | C7: 34.0612 | D7: =A7+B7/60+C7/3600 -> 11.65946144 | G7: =D61 -> 4474888.229 | H7: =D55 -> 5361859.51
A8: Höhe [m] | B8: Parametersatz
A9: 552.09 | B9: 5 | C9: =VLOOKUP(B9,$A$21:$I$31,2) -> D-Süd
A11: Gauss-Krüger | D11: ="->" -> -> | E11: GPS (WGS84)
A13: Rechtswert | B13: Hochwert | F13: Grad | G13: Minuten | H13: Sekunden
A14: 4474888.229 | B14: 5361859.51 | E14: Breite | F14: =TRUNC(M62) -> 48 | G14: =TRUNC((M62-F14)*60) -> 23 | H14: =((M62-F14)*60-INT((M62-F14)*60))*60 -> 38.67584822
A15: Höhe | B15: Parametersatz | E15: Länge | F15: =TRUNC(M63) -> 11 | G15: =TRUNC((M63-F15)*60) -> 39 | H15: =((M63-F15)*60-INT((M63-F15)*60))*60 -> 34.06090205
A16: 597.05 | B16: 5 | C16: =VLOOKUP(B16,$A$21:$I$31,2) -> D-Süd | E16: Höhe | F16: =M64 -> 552.0936014
C18: Achtung: Transformationsparameter ungeprüft!
A19: Transformationsparameter (definiert von Region nach WGS84) | K19: WGS84-Ellipsoid
A20: Satz | B20: Region | C20: dx | D20: dy | E20: dz | F20: ex | G20: ey | H20: ez | I20: m | K20: a | L20: 6378137
A21: 1 | B21: DHDN (Deutschland 1995) | C21: 582 | D21: 105 | E21: 414 | F21: -1.04 | G21: -0.35 | H21: 3.08 | I21: 8.3 | K21: b | L21: 6356752.314
A22: 2 | B22: DHDN (Deutschland 2001) | C22: 598.1 | D22: 73.7 | E22: 418.2 | F22: -0.202 | G22: -0.045 | H22: 2.455 | I22: 6.7 | K22: e2 | L22: =(L20^2-L21^2)/L20^2 -> 0.006694380067
A23: 3 | B23: D-Mitte | C23: 584.8 | D23: 67 | E23: 400.3 | F23: -0.105 | G23: -0.013 | H23: 2.378 | I23: 10.29
A24: 4 | B24: D-Nord | C24: 590.5 | D24: 69.5 | E24: 411.6 | F24: 0.796 | G24: 0.052 | H24: 3.601 | I24: 8.3 | K24: Bessel-Ellipsoid | L24: WGS84->DHDN | M24: DHDN->WGS84
A25: 5 | B25: D-Süd | C25: 597.1 | D25: 71.4 | E25: 412.1 | F25: -0.894 | G25: -0.068 | H25: 1.563 | I25: 7.58 | K25: a | L25: 6377397.155 | M25: =L25 -> 6377397.155
A26: 6 | B26: OSGB36 (England, Schottland, Wales ) | C26: 446.448 | D26: -125.157 | E26: 542.06 | F26: -0.1502 | G26: -0.247 | H26: -0.8421 | I26: -20.4894 | K26: b | L26: 6356078.962 | M26: =L26 -> 6356078.962
A27: 7 | B27: Ireland 1965 | C27: 482.53 | D27: -130.596 | E27: 564.557 | F27: 1.042 | G27: 0.214 | H27: 0.631 | I27: 8.15 | K27: e | L27: =(L25^2-L26^2)/L25^2 -> 0.006674372488 | M27: =L27 -> 0.006674372488
A28: 8 | B28: Bessel 1841 | C28: 582 | D28: 105 | E28: 414 | F28: -1.04 | G28: -0.35 | H28: 3.08 | I28: 8.3 | K28: e2 | L28: =(L25^2-L26^2)/L25^2 -> 0.006674372488 | M28: =L28 -> 0.006674372488
A29: 9 | B29: Krassovski 1940 | C29: 24 | D29: -123 | E29: -94 | F29: -0.02 | G29: 0.26 | H29: 0.13 | I29: 1.1 | K29: n | L29: =(L25-L26)/(L25+L26) -> 0.001674184865 | M29: =L29 -> 0.001674184865
A30: 10 | B30: MGI (Österreich, BEV) | C30: 577.326 | D30: 90.129 | E30: 463.92 | F30: 5.137 | G30: 1.474 | H30: 5.297 | I30: 2.423 | K30: a | L30: =(L25+L26)/2*(1+1/4*L29^2+1/64*L29^4) -> 6366742.52 | M30: =(L25+L26)/2*(1+1/4*L29^2+1/64*L29^4) -> 6366742.52
A31: 11 | B31: Clarke 1866 (USA) | C31: -8 | D31: 160 | E31: 176 | F31: 0 | G31: 0 | H31: 0 | I31: 0 | K31: b | L31: =-3/2*L29+9/16*L29^3-3/32*L29^5 -> -0.002511274659 | M31: =3/2*L29+9/16*L29^3-3/32*L29^5 -> 0.002511279938
A32: 15 | K32: g | L32: =15/16*L29^2-15/32*L29^4 -> 2.627710346e-06 | M32: =21/16*L29^2-55/32*L29^4 -> 3.678786137e-06
C33: m | D33: m | E33: m | F33: m | G33: m | H33: m | I33: x 10exp-6 | K33: d | L33: =-35/48*L29^3+105/256*L29^5 -> -3.421656094e-09 | M33: =151/96*L29^3-417/128*L29^5 -> 7.380969792e-09
K34: e | L34: =315/512*L29^4 -> 4.833416711e-12 | M34: =1097/512*L29^4 -> 1.68325655e-11
A37: Umrechung von GPS-Koordinaten (WGS84) nach Gauss-Krüger | J37: Umrechnung Gauss-Krüger nach GPS (WGS84)
A39: Koordinaten WGS-Ellipsoid | C39: Umrechnung B,L in GK | G39: Parametersatz WGS84->DHDN | J39: Umrechnung GK nach B, L | L39: Koordinaten auf dem Bessel Ellipsoid | P39: Parametersatz DHDN->WGS84
F40: =B9 -> 5 | G40: =VLOOKUP(F40,A21:I31,2) -> D-Süd | O40: =B16 -> 5 | P40: =VLOOKUP(O40,A21:I31,2) -> D-Süd
A41: N | B41: =$L$20/SQRT(1-$L$22*SIN(D6/180*PI())^2) -> 6390106.73 | C41: L0 | D41: =IF(ABS(B69-6)<1.5,6,IF(ABS(B69-9)<1.5,9,IF(ABS(B69-12)<1.5,12,15))) -> 12 | F41: dx | G41: =-VLOOKUP($F$40,$A$21:$I$31,3) -> -597.1 | H41: =MMULT(F51:H53,G41:G43)*H47 -> -597.0947971 | J41: y0 | K41: =ROUNDDOWN(A14/1000000,0) -> 4 | L41: x | M41: =(K63+A16)*COS(K56/180*PI())*COS(K62/180*PI()) -> 4155287.742 | O41: dx | P41: =VLOOKUP($O$40,$A$21:$I$31,3) -> 597.1 | Q41: =MMULT(O51:Q53,P41:P43)*Q47 -> 597.0961509
C42: l | D42: =(B69-D41)*PI()/180 -> -0.005919158643 | F42: dy | G42: =-VLOOKUP($F$40,$A$21:$I$31,4) -> -71.4 | H42: -71.40576949 | J42: L0 | K42: =K41*3 -> 12 | L42: y | M42: =(K63+A16)*COS(K56/180*PI())*SIN(K62/180*PI()) -> 857558.6253 | O42: dy | P42: =VLOOKUP($O$40,$A$21:$I$31,4) -> 71.4 | Q42: 71.39314809
A43: Ergebnis-Vektoren | C43: B | D43: =B68/180*PI() -> 0.8446523988 | F43: dz | G43: =-VLOOKUP($F$40,$A$21:$I$31,5) -> -412.1 | H43: -412.0967637 | J43: y | K43: =A14-K41*1000000-500000 -> -25111.77143 | L43: z | M43: =(K63*$L$26^2/$L$25^2+A16)*SIN(K56/180*PI()) -> 4746119.105 | O43: dz | P43: =VLOOKUP($O$40,$A$21:$I$31,5) -> 412.1 | Q43: 412.0969889
F44: ex | G44: =-VLOOKUP($F$40,$A$21:$I$31,6) -> 0.894 | H44: =G44*PI()/180/3600 -> 4.334234309e-06 | O44: ex | P44: =VLOOKUP($O$40,$A$21:$I$31,6) -> -0.894 | Q44: =P44*PI()/180/3600 -> -4.334234309e-06
A45: x | B45: =(B41+A9)*COS(D6/180*PI())*COS(D7/180*PI()) -> 4155861.667 | C45: N | D45: =$L$25/SQRT(1-$L$27*SIN(D43)^2) -> 6389329.976 | F45: ey | G45: =-VLOOKUP($F$40,$A$21:$I$31,7) -> 0.068 | H45: =G45*PI()/180/3600 -> 3.296733032e-07 | J45: B0 | K45: =B14/M30 -> 0.8421668528 | L45: Rotierte Vektoren + Maßstab | O45: ey | P45: =VLOOKUP($O$40,$A$21:$I$31,7) -> -0.068 | Q45: =P45*PI()/180/3600 -> -3.296733032e-07
A46: y | B46: =(B41+A9)*COS(D6/180*PI())*SIN(D7/180*PI()) -> 857571.521 | C46: h | D46: =SQRT($L$25^2/$L$26^2*L27*COS(D43)^2) -> 0.05442792135 | F46: ez | G46: =-VLOOKUP($F$40,$A$21:$I$31,8) -> -1.563 | H46: =G46*PI()/180/3600 -> -7.577637836e-06 | J46: BF | K46: =(K45+M31*SIN(2*K45)+M32*SIN(4*K45)+M33*SIN(6*K45)+M34*SIN(8*K45)) -> 0.8446611288 | L46: x | M46: =MMULT($O$51:$Q$53,M41:M43)*$Q$47 -> 4155264.308 | O46: ez | P46: =VLOOKUP($O$40,$A$21:$I$31,8) -> 1.563 | Q46: =P46*PI()/180/3600 -> 7.577637836e-06
A47: z | B47: =(B41*$L$21^2/$L$20^2+A9)*SIN(D6/180*PI()) -> 4746497.329 | C47: t | D47: =TAN(D43) -> 1.12612985 | F47: m | G47: =-VLOOKUP($F$40,$A$21:$I$31,9) -> -7.58 | H47: =G47*10^-6+1 -> 0.99999242 | L47: y | M47: 857500.0673 | O47: m | P47: =VLOOKUP($O$40,$A$21:$I$31,9) -> 7.58 | Q47: =1-P47*10^-6 -> 0.99999242
J48: NF | K48: =$L$25/SQRT(1-$L$27*SIN(K46)^2) -> 6389330.162 | L48: z | M48: 4746085.477
A49: Rotierte Vektoren + Maßstab | C49: Bogenlänge | D49: =$L$30*(D43+$L$31*SIN(2*D43)+$L$32*SIN(4*D43)+$L$33*SIN(6*D43)+$L$34*SIN(8*D43)) -> 5361803.938 | J49: hF | K49: =SQRT($L$25^2/$L$26^2*$L$27*COS(K46)^2) -> 0.05442738626
A50: x | B50: =MMULT($F$51:$H$53,B45:B47)*$H$47 -> 4155822.103 | F50: Drehmatrix WGS84->DHDN | J50: tF | K50: =TAN(K46) -> 1.126149651 | L50: Translationen anbringen | O50: Drehmatrix DHDN->WGS84
A51: y | B51: 857617.0843 | D51: =D47/2*D45*COS(D43)^2*D42^2 -> 55.57230996 | F51: 1 | G51: =H46 -> -7.577637836e-06 | H51: =-H45 -> -3.296733032e-07 | L51: x | M51: =M46+Q41 -> 4155861.404 | O51: 1 | P51: =Q46 -> 7.577637836e-06 | Q51: =-Q45 -> 3.296733032e-07
A52: z | B52: 4746459.004 | D52: =D47/24*D45*COS(D43)^4*(5-D47^2+9*D46^2+4*D46^4)*D42^4 -> 0.0002688683483 | F52: =-G51 -> 7.577637836e-06 | G52: 1 | H52: =H44 -> 4.334234309e-06 | K52: =K50/2/K48^2*(-1-K49^2)*K43^2 -> -8.723580558e-06 | L52: y | M52: =M47+Q42 -> 857571.4604 | O52: =-P51 -> -7.577637836e-06 | P52: 1 | Q52: =Q44 -> -4.334234309e-06
D53: =D47/720*D45*COS(D43)^6*(61-58*D47^2+270*D46^2-330*D47^2*D46^2)*D42^6 -> -4.786049442e-10 | F53: =-H51 -> 3.296733032e-07 | G53: =-H52 -> -4.334234309e-06 | H53: 1 | K53: =K50/24/K48^4*(5+3*K50^2+6*K49^2-6*K50^2*K49^2-4*K49^4-9*K50^2*K49^4)*K43^4 -> 9.852413163e-11 | L53: z | M53: =M48+Q43 -> 4746497.574 | O53: =-Q51 -> -3.296733032e-07 | P53: =-Q52 -> 4.334234309e-06 | Q53: 1
A54: Translationen anbringen | D54: =D47/40320*D45*COS(D43)^8*(1385-3111*D47^2+543*D47^4-D47^6)*D42^8 -> -1.716087989e-14 | K54: =K50/720/K48^6*(-61-90*K50^2-45*K50^4-107*K49^2+162*K50^2*K49^2+45*K50^4*K49^2)*K43^6 -> -1.423998125e-15 | L54: Vektoren jetzt in WGS84!
C55: Hochwert | D55: =D49+D51+D52 -> 5361859.51 | K55: =K50/40320/K48^8*(1385+3663*K50^2+4095*K50^4+1575*K50^6)*K43^8 -> 2.517178434e-20 | L55: s | M55: =SQRT(M51^2+M52^2) -> 4243419.944
A56: x | B56: =B50+H41 -> 4155225.008 | J56: B | K56: =(K46+K52+K53)*180/PI() -> 48.39501798 | L56: T | M56: =ATAN(M53*$L$20/(M55*$L$21)) -> 0.8429684863
A57: y | B57: =B51+H42 -> 857545.6785 | D57: =D45*COS(D43)*D42 -> -25111.78858 | L57: B | M57: =ATAN((M53+$L$22*$L$20^2/$L$21*SIN(M56)^3)/(M55-$L$22*$L$20*COS(M56)^3)) -> 0.8446359756
A58: z | B58: =B52+H43 -> 4746046.907 | D58: =+D45/6*COS(D43)^3*(1-D47^2+D46^2)*D42^3 -> 0.01714567012 | K58: =1/K48/COS(K46)*K43 -> -0.005919212623 | L58: L | M58: =ATAN(M52/M51) -> 0.2034959898
A59: Vektoren jetzt in DHDN/Bessel! | D59: =D45/120*COS(D43)^5*(5-18*D47^2+D47^4+14*D46^2-58*D47^2*D46^2)*D42^5 -> 8.186579898e-07 | K59: =1/6/K48^3/COS(K46)*(-1-2*K50^2-K49^2)*K43^3 -> 5.39367723e-08 | L59: N | M59: =$L$20/SQRT(1-$L$22*SIN(M57)^2) -> 6390106.731
D60: =D45/5040*COS(D43)^7*(61-479*D47^2+179*D47^4)*D42^7 -> 4.74863536e-12 | K60: =1/120/K48^5/COS(K46)*(5+28*K50^2+24*K50^4+6*K49^2+8*K50^2*K49^2)*K43^5 -> -9.316837769e-13 | L60: h | M60: =M55/COS(M57)-M59 -> 552.0936014
A61: s | B61: =SQRT(B56^2+B57^2) -> 4242791.47 | C61: Rechtswert | D61: =D57+D58+500000+D41/3*1000000 -> 4474888.229 | K61: =1/15040/K48^7/COS(K46)*(-61-622*K50^2-1320*K50^4-720*K50^6)*K43^7 -> 6.44283115e-18
A62: T | B62: =ATAN(B58*$L$25/(B61*$L$26)) -> 0.8429898903 | J62: L | K62: =K42+(K58+K59)*180/PI() -> 11.66085719 | L62: B | M62: =M57*180/PI() -> 48.39407662
A63: B | B63: =ATAN((B58+$L$28*$L$25^2/$L$26*SIN(B62)^3)/(B61-$L$28*$L$25*COS(B62)^3)) -> 0.8446523988 | J63: N | K63: =$L$25/SQRT(1-$L$28*SIN(K56/180*PI())^2) -> 6389329.976 | L63: L | M63: =M58*180/PI() -> 11.65946136
A64: L | B64: =ATAN(B57/B56) -> 0.2035203516 | L64: h | M64: =M60 -> 552.0936014
A65: N | B65: =$L$25/SQRT(1-$L$28*SIN(B63)^2) -> 6389329.976
A66: h | B66: =B61/COS(B63)-B65 -> 500.531692
A68: B | B68: =B63*180/PI() -> 48.39501761
A69: L | B69: =B64*180/PI() -> 11.66085719
A70: h | B70: =B66 -> 500.531692
